Workbook

Sheet Cover
D2: ARP model
D4: Release for 2025/26 charge setting
B6: ='Version control'!F7 -> Model date: | D6: ='Version control'!H7 -> 2023-11-06
B8: ='Version control'!F9 -> Development stage: | D8: ='Version control'!H9 -> Release for charge setting
B10: ='Version control'!F11 -> Model number: | D10: ='Version control'!H11 -> 8
B12: ='Version control'!F13 -> DCUSA text version: | D12: ='Version control'!H13 -> Attachment A_2025-26 Charging Methodologies Pre-Release (shared on 09/10/2023)
B14: ='Version control'!F15 -> DCUSA text schedule: | D14: ='Version control'!H15 -> Schedules 16 & 20
B16: DISCLAIMER | D16: Neither the authors nor Cambridge Economic Policy Associates/TNEI accept or assume any responsibility or duty of care to any third party.
D17: © All rights reserved by Cambridge Economic Policy Associates Ltd (CEPA) and TNEI Services Ltd (TNEI).
B19: Charging year: | D19: 2025/26
B21: DNO name: | D21: Electricity North West Limited
B23: Data version: | D23: v1.0
B25: Notes: | D25: Annual Review Pack (ARP) issued alongside 2025/26 charges
B27: Key:
B28: Format | D28: Description
D29: Cell intentionally blank
B30: Value | D30: Hardcoded input
B31: Value | D31: User input
B32: Value | D32: Model output
B33: Value | D33: Calculation
B34: Value | D34: Value from another worksheet
B35: Value | D35: Value used on another worksheet
B36: Value | D36: Issue identified in a check
B37: Text | D37: Label
B38: Text | D38: Annotation
B39: Text | D39: Column heading
B40: Text | D40: Level 1 heading
B41: Text | D41: Level 2 heading
B42: Text | D42: Level 3 and 4 heading
B43: Sheet tab colour | D43: Information sheet
B44: Sheet tab colour | D44: User control sheet
B45: Sheet tab colour | D45: Input sheet
B46: Sheet tab colour | D46: Calculation sheet
B47: Sheet tab colour | D47: Output sheet

Sheet Version control
A1: =MID(CELL("filename",A1),FIND("]",CELL("filename",A1))+1,255) -> Version control
A2: =Cover!D21&" - "&Cover!D23 -> Electricity North West Limited - v1.0
A3: =Cover!D2&" - "&Cover!D8&" v"&Cover!D10&" - "&Cover!D19 -> ARP model - Release for charge setting v8 - 2025/26
A4: =J64 & IF(J64 = 1, " issue", " issues") &" identified in checks on this sheet" -> 0 issues identified in checks on this sheet
B5: Model version
F7: Model date: | H7: =LOOKUP(2,1/(F20:F33<>""),F20:F33) -> 2023-11-06
F9: Development stage: | H9: =LOOKUP(2,1/(G20:G33<>""),G20:G33) -> Release for charge setting
F11: Model number: | H11: =LOOKUP(2,1/(H20:H33<>""),H20:H33) -> 8
F13: DCUSA text version: | H13: =LOOKUP(2,1/(I20:I33<>""),I20:I33) -> Attachment A_2025-26 Charging Methodologies Pre-Release (shared on 09/10/2023)
F15: DCUSA text schedule: | H15: =LOOKUP(2,1/(J20:J33<>""),J20:J33) -> Schedules 16 & 20
B17: Version log
F19: Model date | G19: Development stage | H19: Model number | I19: DCUSA text version | J19: DCUSA text schedule | K19: Author | L19: Description of changes
F20: 2018-05-30 | G20: Pre-release | H20: 1 | I20: 2019-20 pre-release plus Expert Panel clarifications | J20: Schedules 16 & 20 | K20: CEPA-TNEI | L20: -
F21: 2018-07-20 | G21: Pre-release | H21: 2 | I21: DCUSA v10.3 (released 28/06/2018) | J21: Schedules 16 & 20 | K21: CEPA-TNEI | L21: References to DCUSA text updated to comply with version 10.3 (released 28/06/2018).
F22: 2018-10-16 | G22: Release for charge setting | H22: 3 | I22: 01 April 2020 DCUSA Charging Methodologies Pre-Release (released 09/10/2018) | J22: Schedules 16 & 20 | K22: CEPA-TNEI | L22: Updated references to legal text version.
F23: 2019-07-17 | G23: Pre-release | H23: 4 | I23: DCP 268 Draft Legal Text v2.0 (shared 10/06/2019) | J23: Schedules 16 & 20 | K23: CEPA-TNEI | L23: Implemented DCP268 as per service 1 request (received 10/06/2019): replaced 33 existing tariffs with 16 enduring tariffs, modified structure of fixed inputs and inputs by customer type, modified pseudo-load coefficient calculation, modified revenue matching calculation, modified ARP_Load characteristics.
F24: 2019-11-08 | G24: Release for charge setting | H24: 5 | I24: Attachment A_01 April 2021 Charging Methodologies Pre-Release_Issued October 2019 (shared 10/10/2019) | J24: Schedules 16 & 20 | K24: CEPA-TNEI | L24: Updated references to legal text version, and implemented DCP332 and DCP333, assuming implementation of DCP 356 (as described in the user guide).
F25: 2020-01-30 | G25: Release for charge setting | H25: 6 | I25: 01 April 2021 Charging Methodologies Pre-Release – December 2019 (Schedules 15-16-17-18-20-29) (DCPs 268-332-333-341-342-356) (shared 19/12/2019) | J25: Schedules 16 & 20 | K25: CEPA-TNEI | L25: Updated references to legal text version, and implemented DCP341 and DCP 356.
F26: 2020-05-26 | G26: Pre-release | H26: 6 | I26: Attachment A_DCP 361 Draft Legal Text v0.2 (shared 15/04/2020) | J26: Schedules 16 & 20 | K26: CEPA-TNEI | L26: Implemented DCP 361.
F27: 2020-11-06 | G27: Release for charge setting | H27: 7 | I27: 01 April 2022 Charging Methodologies Pre-Release – October 2020 (Schedules 16, 17, 18, 20 and 29) DCP 361 | J27: Schedules 16 & 20 | K27: CEPA-TNEI | L27: Updated references to legal text version.
F28: 2021-01-29 | G28: Pre-release | H28: 7 | I28: Attachment A_DCP 379 Draft Legal Text.pdf (shared 14/01/2021) | J28: Schedules 16 & 20 | K28: CEPA-TNEI | L28: Implemented DCP 379
F29: 2021-11-22 | G29: Release for charge setting | H29: 7 | I29: Attachment A_Charging Methodologies Pre-Release_01042023 (shared 15/11/2021) | J29: Schedules 16 & 20 | K29: CEPA-TNEI | L29: Release for charge setting. Cover sheet, version control and annotation changes only.
F30: 2022-10-27 | G30: Release for charge setting | H30: 7 | I30: Attachment A_2024-25 Charging Methodologies Pre-Release (shared 06/10/2022) | J30: Schedules 16 & 20 | K30: CEPA-TNEI | L30: Release for charge setting.
F31: 2023-11-06 | G31: Release for charge setting | H31: 8 | I31: Attachment A_2025-26 Charging Methodologies Pre-Release (shared on 09/10/2023) | J31: Schedules 16 & 20 | K31: CEPA-TNEI | L31: Release for charge setting. Some tariff names changed to faciliate DCP 414.
B34: Model checks
E36: Issues identified by in-built model checks, by sheet
F37: ="ARP_"&F41 -> ARP_Inputs by customer type | H37: Input 501 | I37: number of issues | J37: ='ARP_Inputs by customer type'!$H$1994 -> 0
F38: ="ARP_"&F42 -> ARP_Inputs by network level | H38: Input 502 | I38: number of issues | J38: ='ARP_Inputs by network level'!$H$218 -> 0
F39: ="ARP_"&F43 -> ARP_General inputs | H39: Input 503 | I39: number of issues | J39: ='ARP_General inputs'!$H$125 -> 0
F40: Fixed inputs | H40: Input 504 | I40: number of issues | J40: ='Fixed inputs'!H197 -> 0
F41: Inputs by customer type | H41: Section 501 | I41: number of issues | J41: ='Inputs by customer type'!H216 -> 0
F42: Inputs by network level | H42: Section 502 | I42: number of issues | J42: ='General inputs'!H118 -> 0
F43: General inputs | H43: Section 503 | I43: number of issues | J43: ='General inputs'!H118 -> 0
F44: Standing Charge Factors | H44: Section 504 | I44: number of issues | J44: ='Standing charge factors'!H58 -> 0
F45: Load & loss characteristics | H45: Section 505 | I45: number of issues | J45: ='Load & loss characteristics'!H183 -> 0
F46: Customer contributions | H46: Section 506 | I46: number of issues | J46: ='Customer contributions'!H70 -> 0
F47: Volume adjustments | H47: Section 507 | I47: number of issues | J47: ='Volume adjustments'!H693 -> 0
F48: Pseudo-load coefficients | H48: Section 508 | I48: number of issues | J48: ='Pseudo-load coefficients'!H306 -> 0
F49: System peak demand | H49: Section 509 | I49: number of issues | J49: ='System peak demand'!H281 -> 0
F50: Service model assets | H50: Section 510 | I50: number of issues | J50: ='Service model assets'!H38 -> 0
F51: Unit costs | H51: Section 511 | I51: number of issues | J51: ='Unit costs'!H131 -> 0
F52: Initial unit rates | H52: Section 512 | I52: number of issues | J52: ='Initial unit rates'!H241 -> 0
F53: Service model charges | H53: Section 513 | I53: number of issues | J53: ='Service model charges'!H48 -> 0
F54: Unit rate charges | H54: Section 514 | I54: number of issues | J54: ='Unit rate charges'!H223 -> 0
F55: Capacity charges | H55: Section 515 | I55: number of issues | J55: ='Capacity charges'!H295 -> 0
F56: Reactive power charges | H56: Section 516 | I56: number of issues | J56: ='Reactive power charges'!H254 -> 0
F57: Fixed charges | H57: Section 517 | I57: number of issues | J57: ='Fixed charges'!H165 -> 0
F58: SoLR & bad debt adders | H58: Section 518 | I58: number of issues | J58: ='SoLR & bad debt adders'!H71 -> 0
F59: Revenue matching | H59: Section 519 | I59: number of issues | J59: ='Revenue matching'!H433 -> 0
F60: Rounding | H60: Section 520 | I60: number of issues | J60: =Rounding!H178 -> 0
F61: Net revenue summary | H61: Section 521 | I61: number of issues | J61: ='Net revenue summary'!H146 -> 0
F62: Tariff summary | H62: Output 501 | I62: number of issues | J62: ='Tariff summary'!H641 -> 0
F63: Typical bills | H63: Output 502 | I63: number of issues | J63: ='Typical bills'!H121 -> 0
F64: Total | I64: number of issues | J64: =IFERROR(SUM(J37:J63), 1) -> 0
B66: Version log lists
F68: Development stages
F69: Working draft
F70: Interim release
F71: Pre-release
F72: Release for charge setting
F79: …
B81: End of sheet

Sheet Model map
A1: =MID(CELL("filename",A1),FIND("]",CELL("filename",A1))+1,255) -> Model map
A2: =Cover!D21&" - "&Cover!D23 -> Electricity North West Limited - v1.0
A3: =Cover!D2&" - "&Cover!D8&" v"&Cover!D10&" - "&Cover!D19 -> ARP model - Release for charge setting v8 - 2025/26
B5: Model map
B65: End of sheet

Sheet Index
A1: =MID(CELL("filename",A1),FIND("]",CELL("filename",A1))+1,255) -> Index
A2: =Cover!D21&" - "&Cover!D23 -> Electricity North West Limited - v1.0
A3: =Cover!D2&" - "&Cover!D8&" v"&Cover!D10&" - "&Cover!D19 -> ARP model - Release for charge setting v8 - 2025/26
B5: Description
C7: This sheet contains links to each sheet of the model and the main sections within them.
C8: It also contains links to more granular sections within the sheets for inputs, calculations and outputs.
B10: Index of sheets and main sections
C12: The following table provides links to all the sheets within this model and the main sections within them.
F14: Sheet | G14: Section
F15: Cover
F16: Version control | G16: ='Version control'!$B$5 -> Model version
G17: ='Version control'!$B$17 -> Version log
G18: ='Version control'!$B$34 -> Model checks
G19: ='Version control'!$B$66 -> Version log lists
F20: Model map | G20: ='Model map'!$B$5 -> Model map
F21: Named ranges | G21: ='Named ranges'!$B$5 -> List of named ranges
F22: ARP_DNO commentary | G22: ='ARP_DNO commentary'!$B$9 -> Commentary
F23: ARP_CDCM timebands | G23: ='ARP_CDCM timebands'!$B$12 -> CDCM timebands
F24: ARP_Load characteristics | G24: ='ARP_Load characteristics'!$B$13 -> Years
G25: ='ARP_Load characteristics'!$B$20 -> Load characteristics
F26: ARP_Peaking probabilities | G26: ='ARP_Peaking probabilities'!$B$14 -> Years
G27: ='ARP_Peaking probabilities'!$B$21 -> Peaking probabilities, by distribution timeband
F28: ARP_User control | G28: ='ARP_User control'!$B$10 -> User interface
G29: ='ARP_User control'!$B$25 -> Lists
F30: ARP_Inputs by customer type | G30: ='ARP_Inputs by customer type'!$B$14 -> Load characteristics
G31: ='ARP_Inputs by customer type'!$B$56 -> Volumes
G32: ='ARP_Inputs by customer type'!$B$1998 -> Non-Domestic Aggregated (Related MPAN) distribution by bands
G33: ='ARP_Inputs by customer type'!$B$2072 -> Service model asset values
F34: ARP_Inputs by network level | G34: ='ARP_Inputs by network level'!$B$14 -> Inputs by network level
F35: ARP_General inputs | G35: ='ARP_General inputs'!$B$14 -> General inputs
F36: Fixed inputs | G36: ='Fixed inputs'!$B$11 -> Fixed inputs
F37: Inputs by customer type | G37: ='Inputs by customer type'!$B$14 -> Inputs by customer type
F38: Inputs by network level | G38: ='Inputs by network level'!$B$14 -> Inputs by network level
F39: General inputs | G39: ='General inputs'!$B$14 -> General inputs
F40: Standing charge factors | G40: ='Standing charge factors'!$B$17 -> Adjustments to standing charges
F41: Load & loss characteristics | G41: ='Load & loss characteristics'!$B$13 -> Load and loss characteristics
G42: ='Load & loss characteristics'!$B$31 -> User loss factor adjustments
F43: Customer contributions | G43: ='Customer contributions'!$B$12 -> Customer contributions
F44: Volume adjustments | G44: ='Volume adjustments'!$B$13 -> LDNO discounts
G45: ='Volume adjustments'!$B$51 -> Volume discounting
G46: ='Volume adjustments'!$B$310 -> Volume discounting for revenue matching
F47: Pseudo-load coefficients | G47: ='Pseudo-load coefficients'!$B$13 -> Step 1: Ratio of coincidence to load factor assuming units evenly spread within time bands, and peak falls in Red period
G48: ='Pseudo-load coefficients'!$B$56 -> Step 2: Calculate correction factor
G49: ='Pseudo-load coefficients'!$B$95 -> Step 3: Ratio of coincidence factor (to network asset peak) to load factor, given peaking probabilities, multiplied by correction factor
G50: ='Pseudo-load coefficients'!$B$261 -> Step 4: Results of Step 3
F51: System peak demand | G51: ='System peak demand'!$B$16 -> Common inputs for chargeable load calculations
G52: ='System peak demand'!$B$63 -> Load at system peak charged to unit rates
G53: ='System peak demand'!$B$179 -> Load at system peak charged to standing charges
G54: ='System peak demand'!$B$262 -> System peak based on chargeable load
F55: Service model assets | G55: ='Service model assets'!$B$12 -> Service model notional asset values
F56: Unit costs | G56: ='Unit costs'!$B$15 -> 500MW model costs
G57: ='Unit costs'!$B$58 -> Allocation of other costs
G58: ='Unit costs'!$B$102 -> Outputs
F59: Initial unit rates | G59: ='Initial unit rates'!$B$11 -> Inputs for yardstick and unit rate calculations
G60: ='Initial unit rates'!$B$116 -> Calculation of yardstick & unit rate charges
F61: Service model charges | G61: ='Service model charges'!$B$13 -> Inputs to service model charge calculation
G62: ='Service model charges'!$B$29 -> Allocation of service model costs
F63: Unit rate charges | G63: ='Unit rate charges'!$B$15 -> Inputs to unit rate charge calculations
G64: ='Unit rate charges'!$B$122 -> Application of standing charges to unit rates
F65: Capacity charges | G65: ='Capacity charges'!$B$17 -> Inputs to capacity charge calculations
G66: ='Capacity charges'!$B$125 -> Calculation of capacity charges
G67: ='Capacity charges'!$B$249 -> Capacity charges (and elements allocated to fixed charges)
F68: Reactive power charges | G68: ='Reactive power charges'!$B$13 -> Inputs to reactive power charge calculations
G69: ='Reactive power charges'!$B$150 -> Calculation of yardstick charges for generation
G70: ='Reactive power charges'!$B$185 -> Calculation of reactive power charges
F71: Fixed charges | G71: ='Fixed charges'!$B$14 -> Inputs to fixed charge calculations
G72: ='Fixed charges'!$B$65 -> Calculation of fixed charges
F73: SoLR & bad debt adders | G73: ='SoLR & bad debt adders'!$B$12 -> Fixed tariff adjustments
F74: Revenue matching | G74: ='Revenue matching'!$B$13 -> Pre-matching net revenue calculations
G75: ='Revenue matching'!$B$87 -> Residual charge calculation
G76: ='Revenue matching'!$B$210 -> Adjustments for negative fixed charges
G77: ='Revenue matching'!$B$408 -> Final adders
F78: Rounding | G78: =Rounding!$B$12 -> Inputs
G79: =Rounding!$B$103 -> Rounding of tariff forecast
F80: Net revenue summary | G80: ='Net revenue summary'!$B$11 -> Inputs to net revenue summary calculation
G81: ='Net revenue summary'!$B$90 -> Typical bills
F82: Tariff summary | G82: ='Tariff summary'!$B$13 -> Tariff summary
F83: Typical bills | G83: ='Typical bills'!$B$13 -> Typical bills
B85: Index of inputs, calculation sections and outputs
C87: The following table provides links to each input, calculation and output section. Each has a unique identifier for ease of reference.
F89: Sheet | G89: Section
F90: ARP_CDCM timebands | G90: ='ARP_CDCM timebands'!$C$14 -> Distribution time bands
G91: ='ARP_CDCM timebands'!$C$26 -> Special distribution time bands
F92: ARP_User control | G92: ='ARP_User control'!$C$15 -> Inputs for manually running selected year
G93: ='ARP_User control'!$C$19 -> Macro to run all years
F94: ARP_Inputs by customer type | G94: ='ARP_Inputs by customer type'!$C$16 -> Input 501-A: Load factor
G95: ='ARP_Inputs by customer type'!$C$36 -> Input 501-B: Coincidence factor
G96: ='ARP_Inputs by customer type'!$C$58 -> Input 501-C: All-the-way volumes - No residual
G97: ='ARP_Inputs by customer type'!$C$186 -> Input 501-D: All-the-way volumes - Residual Band 1
G98: ='ARP_Inputs by customer type'!$C$314 -> Input 501-E: All-the-way volumes - Residual Band 2
G99: ='ARP_Inputs by customer type'!$C$442 -> Input 501-F: All-the-way volumes - Residual Band 3
G100: ='ARP_Inputs by customer type'!$C$570 -> Input 501-G: All-the-way volumes - Residual Band 4
G101: ='ARP_Inputs by customer type'!$C$698 -> Input 501-H: LDNO LV volumes - No residual
G102: ='ARP_Inputs by customer type'!$C$826 -> Input 501-I: LDNO LV volumes - Residual band 1
G103: ='ARP_Inputs by customer type'!$C$954 -> Input 501-J: LDNO LV volumes - Residual band 2
G104: ='ARP_Inputs by customer type'!$C$1082 -> Input 501-K: LDNO LV volumes - Residual band 3
G105: ='ARP_Inputs by customer type'!$C$1210 -> Input 501-L: LDNO LV volumes - Residual band 4
G106: ='ARP_Inputs by customer type'!$C$1338 -> Input 501-M: LDNO HV volumes - No residual
G107: ='ARP_Inputs by customer type'!$C$1466 -> Input 501-N: LDNO HV volumes - Residual band 1
G108: ='ARP_Inputs by customer type'!$C$1594 -> Input 501-O: LDNO HV volumes - Residual band 2
G109: ='ARP_Inputs by customer type'!$C$1722 -> Input 501-P: LDNO HV volumes - Residual band 3
G110: ='ARP_Inputs by customer type'!$C$1850 -> Input 501-Q: LDNO HV volumes - Residual band 4
G111: ='ARP_Inputs by customer type'!$C$1978 -> Input 501-R: 'Designated Property' MPANs with EDCM-level LDNO boundaries
G112: ='ARP_Inputs by customer type'!$C$2003 -> Input 501-S: All the way non-domestic aggregated (related MPAN) distribution by bands
G113: ='ARP_Inputs by customer type'!$C$2026 -> Input 501-T: LDNO LV non-domestic aggregated (related MPAN) distribution by bands
G114: ='ARP_Inputs by customer type'!$C$2049 -> Input 501-U: LDNO HV non-domestic aggregated (related MPAN) distribution by bands
G115: ='ARP_Inputs by customer type'!$C$2076 -> Input 501-V: LV customer service model asset values
G116: ='ARP_Inputs by customer type'!$C$2096 -> Input 501-W: HV customer service model asset values
G117: ='ARP_Inputs by customer type'!$C$2116 -> Input 501-X: LV UMS customer service model asset values
F118: ARP_Inputs by network level | G118: ='ARP_Inputs by network level'!$C$16 -> Input 502-A: Diversity allowance between top and bottom of network level
G119: ='ARP_Inputs by network level'!$C$30 -> Input 502-B: Proportion of EHV/HV load going through 132kV/HV direct transformation
G120: ='ARP_Inputs by network level'!$C$44 -> Input 502-C: Loss adjustment factors to transmission
G121: ='ARP_Inputs by network level'!$C$58 -> Input 502-D: Average kVAr by kVA, by network level
G122: ='ARP_Inputs by network level'!$C$72 -> Input 502-E: Customer contributions under current connection charging policy
G123: ='ARP_Inputs by network level'!$C$120 -> Input 502-F: Gross asset cost by network level
G124: ='ARP_Inputs by network level'!$C$134 -> Input 502-G: Peaking probabilities, by timeband & network level
F125: ARP_General inputs | G125: ='ARP_General inputs'!$C$16 -> Input 503-A: Split of hours by distribution timeband
G126: ='ARP_General inputs'!$C$28 -> Input 503-B: Embedded network (LDNO) discount percentages
G127: ='ARP_General inputs'!$C$38 -> Input 503-C: CDCM target revenue
G128: ='ARP_General inputs'!$C$99 -> Input 503-D: Financial and general assumptions
G129: ='ARP_General inputs'!$C$104 -> Input 503-E: Transmission exit charges
G130: ='ARP_General inputs'!$C$108 -> Input 503-F: Other expenditure
F131: Fixed inputs | G131: ='Fixed inputs'!$C$13 -> Input 504-A: Conversions and time
G132: ='Fixed inputs'!$C$20 -> Input 504-B: Input 101-B: Rounding
G133: ='Fixed inputs'!$C$33 -> Input 504-C: Financial and general assumptions
G134: ='Fixed inputs'!$C$43 -> Input 504-D: Mappings
G135: ='Fixed inputs'!$C$84 -> Input 504-E: Standing charge factors
G136: ='Fixed inputs'!$C$99 -> Input 504-F: Flags
G137: ='Fixed inputs'!$C$141 -> Input 504-G: Identifiers for customer groupings
G138: ='Fixed inputs'!$C$151 -> Input 504-H: Decimal places for error checks
G139: ='Fixed inputs'!$C$155 -> Input 504-I: Map of applicable MPANs
G140: ='Fixed inputs'!$C$162 -> Input 504-J: Revenue matching inputs
F141: Inputs by customer type | G141: ='Inputs by customer type'!$C$16 -> Section 501-A: Load characteristics
G142: ='Inputs by customer type'!$C$21 -> Section 501-B: Volume forecasts for the charging year
G143: ='Inputs by customer type'!$C$166 -> Section 501-C: Non-Domestic Aggregated (Related MPAN) distribution by bands
G144: ='Inputs by customer type'!$C$186 -> Section 501-D: Service model asset values
F145: Inputs by network level | G145: ='Inputs by network level'!$C$16 -> Section 502-A: Network and load inputs
G146: ='Inputs by network level'!$C$26 -> Section 502-B: Customer contributions under current connection charging policy
G147: ='Inputs by network level'!$C$34 -> Section 502-C: DRM asset costs
G148: ='Inputs by network level'!$C$38 -> Section 502-D: Peaking probabilities by network level
F149: General inputs | G149: ='General inputs'!$C$16 -> Section 503-A: Inputs by distribution timeband
G150: ='General inputs'!$C$28 -> Section 503-B: LDNO discount inputs
G151: ='General inputs'!$C$38 -> Section 503-C: CDCM target revenue
G152: ='General inputs'!$C$93 -> Section 503-D: Financial and general assumptions
G153: ='General inputs'!$C$99 -> Section 503-E: Transmission exit charges
G154: ='General inputs'!$C$103 -> Section 503-F: Other expenditure
F155: Standing charge factors | G155: ='Standing charge factors'!$C$19 -> Section 504-A: Adjustments to standing charges
F156: Load & loss characteristics | G156: ='Load & loss characteristics'!$C$17 -> Section 505-A: Load characteristics
G157: ='Load & loss characteristics'!$C$25 -> Section 505-B: Loss adjustment factors
G158: ='Load & loss characteristics'!$C$35 -> Section 505-C: Proportion of relevant load going through 132kV/HV direct transformation
G159: ='Load & loss characteristics'!$C$40 -> Section 505-D: Network use factors
G160: ='Load & loss characteristics'!$C$121 -> Section 505-E: User loss factors
F161: Customer contributions | G161: ='Customer contributions'!$C$16 -> Section 506-A: Network use factors
G162: ='Customer contributions'!$C$38 -> Section 506-B: Customer contributions
F163: Volume adjustments | G163: ='Volume adjustments'!$C$15 -> Section 507-A: LDNO discounts
G164: ='Volume adjustments'!$C$53 -> Section 507-B: Aggregation of volumes
G165: ='Volume adjustments'!$C$225 -> Section 507-C: Volume discounting
G166: ='Volume adjustments'!$C$332 -> Section 507-D: No residual volume discounting
G167: ='Volume adjustments'!$C$361 -> Section 507-E: Residual band 1 volume discounting
G168: ='Volume adjustments'!$C$390 -> Section 507-F: Residual band 2 volume discounting
G169: ='Volume adjustments'!$C$419 -> Section 507-G: Residual band 3 volume discounting
G170: ='Volume adjustments'!$C$448 -> Section 507-H: Residual band 4 volume discounting
G171: ='Volume adjustments'!$C$477 -> Section 507-I: Discounted volumes by residual band
G172: ='Volume adjustments'!$C$523 -> Section 507-J: Volumes by residual band
G173: ='Volume adjustments'!$C$657 -> Section 507-K: Non-domestic aggregated (related MPAN) distribution across bands
F174: Pseudo-load coefficients | G174: ='Pseudo-load coefficients'!$C$18 -> Section 508-A: Flags and hours in timebands
G175: ='Pseudo-load coefficients'!$C$28 -> Section 508-B: Average load by timeband
G176: ='Pseudo-load coefficients'!$C$36 -> Section 508-C: Aggregated groups for pseudo-load coefficients
G177: ='Pseudo-load coefficients'!$C$52 -> Section 508-D: Ratio of coincidence to load factor assuming units evenly spread within time bands, and peak falls in Red period
G178: ='Pseudo-load coefficients'!$C$60 -> Section 508-E: Load characteristics for all customers
G179: ='Pseudo-load coefficients'!$C$65 -> Section 508-F: Aggregated load characteristics for grouped customers
G180: ='Pseudo-load coefficients'!$C$87 -> Section 508-G: Calculation of correction factor
G181: ='Pseudo-load coefficients'!$C$100 -> Section 508-H: Peaking probabilities, by network level
G182: ='Pseudo-load coefficients'!$C$174 -> Section 508-I: Peaking probabilities, by network level and customer type
G183: ='Pseudo-load coefficients'!$C$221 -> Section 508-J: Ratio of coincidence factor to load factor, based on uniform distribution in timebands and peaking probabilities
G184: ='Pseudo-load coefficients'!$C$265 -> Section 508-K: Load coefficient
G185: ='Pseudo-load coefficients'!$C$269 -> Section 508-L: Pseudo load coefficients, by unit rate
F186: System peak demand | G186: ='System peak demand'!$C$18 -> Section 509-A: Common inputs for chargeable load calculations
G187: ='System peak demand'!$C$67 -> Section 509-B: System peak load, by unit rate
G188: ='System peak demand'!$C$138 -> Section 509-C: System peak load, all unit rates
G189: ='System peak demand'!$C$164 -> Section 509-D: Unit rate contributions to chargeable peak load
G190: ='System peak demand'!$C$184 -> Section 509-E: Adjustment of import and exceeded capacity
G191: ='System peak demand'!$C$194 -> Section 509-F: Calculation of LV circuit diversity factor
G192: ='System peak demand'!$C$236 -> Section 509-G: Import/exceeded capacity contribution to system peak
G193: ='System peak demand'!$C$249 -> Section 509-H: Estimated capacity contribution to system peak
G194: ='System peak demand'!$C$266 -> Section 509-I: System peak based on chargeable load
F195: Service model assets | G195: ='Service model assets'!$C$14 -> Section 510-A: Service model notional asset values
F196: Unit costs | G196: ='Unit costs'!$C$19 -> Section 511-A: Financial data
G197: ='Unit costs'!$C$27 -> Section 511-B: Diversity and loss adjustment factors
G198: ='Unit costs'!$C$35 -> Section 511-C: Maximum demand
G199: ='Unit costs'!$C$42 -> Section 511-D: Rerouting matrix
G200: ='Unit costs'!$C$50 -> Section 511-E: Annuitised cost of assets
G201: ='Unit costs'!$C$62 -> Section 511-F: System simultaneous peak load based on charegable units
G202: ='Unit costs'!$C$69 -> Section 511-G: Notional asset values, by network level
G203: ='Unit costs'!$C$80 -> Section 511-H: Other operating costs
G204: ='Unit costs'!$C$92 -> Section 511-I: Other operating costs by network level
G205: ='Unit costs'!$C$104 -> Section 511-J: Notional asset values by network level
G206: ='Unit costs'!$C$110 -> Section 511-K: Unit costs
G207: ='Unit costs'!$C$117 -> Section 511-L: Values used for allocating costs to service models
F208: Initial unit rates | G208: ='Initial unit rates'!$C$13 -> Section 512-A: Inputs for yardstick and unit rate calculations
... 75 more rows

Sheet Named ranges
A1: =MID(CELL("filename",A1),FIND("]",CELL("filename",A1))+1,255) -> Named ranges
A2: =Cover!D21&" - "&Cover!D23 -> Electricity North West Limited - v1.0
A3: =Cover!D2&" - "&Cover!D8&" v"&Cover!D10&" - "&Cover!D19 -> ARP model - Release for charge setting v8 - 2025/26
B5: List of named ranges
F7: charging_year | G7: Year for which charges are being calculated | H7: Cover
F8: charging_year_selected | G8: Charging year currently selected for ARP | H8: ARP_User control
F9: check_decimals | G9: Number of decimal places of precision for in-built model checks | H9: Fixed inputs
F10: days_in_year | G10: Days in the charging year | H10: General inputs
F11: DNO_name | G11: Name of DNO | H11: Cover
F12: hours_in_day | G12: Hours per day | H12: Fixed inputs
F13: hours_in_year | G13: Hours in the charging year | H13: General inputs
F14: hundred | G14: Equal to 100 | H14: Fixed inputs
F15: live_results_bills | G15: Typical bills for selected charging year | H15: Typical bills
F16: live_results_tariffs | G16: Tariffs for selected charging year | H16: Tariff summary
F17: PowerFactor | G17: Power factor, equal to 0.95 | H17: Fixed inputs
F18: results_4_bills | G18: Typical bills for current charging year | H18: Typical bills
F19: results_4_tariffs | G19: Tariffs for current charging year | H19: Tariff summary
F20: results_5_bills | G20: Typical bills for current charging year + 1 | H20: Typical bills
F21: results_5_tariffs | G21: Tariffs for current charging year + 1 | H21: Tariff summary
F22: results_6_bills | G22: Typical bills for current charging year + 2 | H22: Typical bills
F23: results_6_tariffs | G23: Tariffs for current charging year + 2 | H23: Tariff summary
F24: results_7_bills | G24: Typical bills for current charging year + 3 | H24: Typical bills
F25: results_7_tariffs | G25: Tariffs for current charging year + 3 | H25: Tariff summary
F26: results_8_bills | G26: Typical bills for current charging year + 4 | H26: Typical bills
F27: results_8_tariffs | G27: Tariffs for current charging year + 4 | H27: Tariff summary
F28: ten | G28: Equal to 10 | H28: Fixed inputs
F29: thousand | G29: Equal to 1000 | H29: Fixed inputs
F30: year_selection | G30: Index for selected charging year | H30: ARP_User control
B32: End of sheet

Sheet ARP_DNO commentary
A1: =MID(CELL("filename",A1),FIND("]",CELL("filename",A1))+1,255) -> ARP_DNO commentary
A2: =Cover!D21&" - "&Cover!D23 -> Electricity North West Limited - v1.0
A3: =Cover!D2&" - "&Cover!D8&" v"&Cover!D10&" - "&Cover!D19 -> ARP model - Release for charge setting v8 - 2025/26
B5: Description
C7: This sheet contains the DNO's commentary on its forecast of CDCM input data for the four years following the charging year, as required by DCUSA Schedule 20, Paragraph 2.1 (e).
B9: Commentary
F11: Revenue forecasts are aligned to the Price Control Financial Model available on our website. The majority of other inputs have been held at current levels in the forecasts. Exceptions to this are the number of days in the year and hours in each timeband, which reflect the actual days and hours in each forecast year. Although every effort has been made to ensure the accuracy of the information provided in this annual review pack, we do not accept any liability for the accuracy of the information contained herein. Please note, forecasts are subject to change. Historic information may not match actual published tariffs and data as used in our charging models. Tariff information should be sourced from our Charging Statement and assoicated tables.
B20: End of sheet

Sheet ARP_CDCM timebands
A1: =MID(CELL("filename",A1),FIND("]",CELL("filename",A1))+1,255) -> ARP_CDCM timebands
A2: =Cover!D21&" - "&Cover!D23 -> Electricity North West Limited - v1.0
A3: =Cover!D2&" - "&Cover!D8&" v"&Cover!D10&" - "&Cover!D19 -> ARP model - Release for charge setting v8 - 2025/26
B5: Click here to return to model map | G5: Units | H5: Constants | J5: =TRANSPOSE('ARP_User control'!G31:G35) -> 2025/26 | K5: 2026/27 | L5: 2027/28 | M5: 2028/29 | N5: 2029/30
B7: Description
C9: This sheet sets out the expected timebands that the DNO plans to use for each of the five years covered by the
C10: Annual Review Pack, as required by DCUSA Schedule 20, Paragraph 2.1 (f).
B12: CDCM timebands
C14: Distribution time bands
E16: Weekdays (including bank holidays)
F17: Red | G17: time of day | J17: 16:00 - 19:00 | K17: 16:00 - 19:00 | L17: 16:00 - 19:00 | M17: 16:00 - 19:00 | N17: 16:00 - 19:00
F18: Amber | G18: time of day | J18: 09:00 - 16:00 19:00 - 20:30 | K18: 09:00 - 16:00 19:00 - 20:30 | L18: 09:00 - 16:00 19:00 - 20:30 | M18: 09:00 - 16:00 19:00 - 20:30 | N18: 09:00 - 16:00 19:00 - 20:30
F19: Green | G19: time of day | J19: 00:00 - 09:00 20:30 - 24:00 | K19: 00:00 - 09:00 20:30 - 24:00 | L19: 00:00 - 09:00 20:30 - 24:00 | M19: 00:00 - 09:00 20:30 - 24:00 | N19: 00:00 - 09:00 20:30 - 24:00
E21: Weekends
F22: Red | G22: time of day | J22: n/a | K22: n/a | L22: n/a | M22: n/a | N22: n/a
F23: Amber | G23: time of day | J23: 16:00 - 19:00 | K23: 16:00 - 19:00 | L23: 16:00 - 19:00 | M23: 16:00 - 19:00 | N23: 16:00 - 19:00
F24: Green | G24: time of day | J24: 00:00 - 16:00 19:00 - 24:00 | K24: 00:00 - 16:00 19:00 - 24:00 | L24: 00:00 - 16:00 19:00 - 24:00 | M24: 00:00 - 16:00 19:00 - 24:00 | N24: 00:00 - 16:00 19:00 - 24:00
C26: Special distribution time bands
E28: Weekdays (including bank holidays) Nov to Feb
F29: Black | G29: time of day | J29: 16:00 - 19:00 | K29: 16:00 - 19:00 | L29: 16:00 - 19:00 | M29: 16:00 - 19:00 | N29: 16:00 - 19:00
F30: Yellow | G30: time of day | J30: 09:00 - 16:00 19:00 - 20:30 | K30: 09:00 - 16:00 19:00 - 20:30 | L30: 09:00 - 16:00 19:00 - 20:30 | M30: 09:00 - 16:00 19:00 - 20:30 | N30: 09:00 - 16:00 19:00 - 20:30
F31: Green | G31: time of day | J31: 00:00 - 09:00 20:30 - 24:00 | K31: 00:00 - 09:00 20:30 - 24:00 | L31: 00:00 - 09:00 20:30 - 24:00 | M31: 00:00 - 09:00 20:30 - 24:00 | N31: 00:00 - 09:00 20:30 - 24:00
E33: Weekdays (including bank holidays) Mar to Oct
F34: Black | G34: time of day | J34: n/a | K34: n/a | L34: n/a | M34: n/a | N34: n/a
F35: Yellow | G35: time of day | J35: 09:00 - 20:30 | K35: 09:00 - 20:30 | L35: 09:00 - 20:30 | M35: 09:00 - 20:30 | N35: 09:00 - 20:30
F36: Green | G36: time of day | J36: 00:00 - 09:00 20:30 - 24:00 | K36: 00:00 - 09:00 20:30 - 24:00 | L36: 00:00 - 09:00 20:30 - 24:00 | M36: 00:00 - 09:00 20:30 - 24:00 | N36: 00:00 - 09:00 20:30 - 24:00
E38: Weekends
F39: Black | G39: time of day | J39: n/a | K39: n/a | L39: n/a | M39: n/a | N39: n/a
F40: Yellow | G40: time of day | J40: 16:00 - 19:00 | K40: 16:00 - 19:00 | L40: 16:00 - 19:00 | M40: 16:00 - 19:00 | N40: 16:00 - 19:00
F41: Green | G41: time of day | J41: 00:00 - 16:00 19:00 - 24:00 | K41: 00:00 - 16:00 19:00 - 24:00 | L41: 00:00 - 16:00 19:00 - 24:00 | M41: 00:00 - 16:00 19:00 - 24:00 | N41: 00:00 - 16:00 19:00 - 24:00
B43: End of sheet

Sheet ARP_Load characteristics
A1: =MID(CELL("filename",A1),FIND("]",CELL("filename",A1))+1,255) -> ARP_Load characteristics
A2: =Cover!D21&" - "&Cover!D23 -> Electricity North West Limited - v1.0
A3: =Cover!D2&" - "&Cover!D8&" v"&Cover!D10&" - "&Cover!D19 -> ARP model - Release for charge setting v8 - 2025/26
B5: Click here to return to model map | G5: Units | H5: Constants | J5: Domestic Aggregated or CT | K5: Domestic Aggregated (Related MPAN) | L5: Non-Domestic Aggregated or CT | M5: Non-Domestic Aggregated (Related MPAN) | N5: LV Site Specific | O5: LV Sub Site Specific | P5: HV Site Specific | Q5: Unmetered Supplies | R5: LV Generation Aggregated | S5: LV Sub Generation Aggregated | T5: LV Generation Site Specific | U5: LV Generation Site Specific no RP Charge | V5: LV Sub Generation Site Specific | W5: LV Sub Generation Site Specific no RP Charge | X5: HV Generation Site Specific | Y5: HV Generation Site Specific no RP Charge
B7: Description
C9: This sheet presents historic data used to calculate average values for load characteristics, as required by DCUSA Schedule 20, Paragraph 2.1 (g).
C10: Charges for year Y are set in year Y-2 using average load characteristics from the three previous years (i.e. Y-3 to Y-5).
C11: This sheet is for information only, and is not linked to following worksheets.
B13: Years
E15: Years to which input data relate
F16: Year 1 | G16: year | H16: =LEFT(H17,4) - 1 & "/" & RIGHT(H17,2) - 1 -> 2020/21
F17: Year 2 | G17: year | H17: =LEFT(H18,4) - 1 & "/" & RIGHT(H18,2) - 1 -> 2021/22
F18: Year 3 | G18: year | H18: ='ARP_User control'!$G$28 -> 2022/23
B20: Load characteristics
E22: Load factor
F23: =$H$16 -> 2020/21 | G23: % | J23: 0.4249004107 | K23: 0.1711558114 | L23: 0.4014705372 | M23: 0.1703183058 | N23: 0.512468517 | O23: 0.5274949241 | P23: 0.696996197 | Q23: 0.4377709564
F24: =$H$17 -> 2021/22 | G24: % | J24: 0.3908244796 | K24: 0.1587817102 | L24: 0.3769342677 | M24: 0.1520934781 | N24: 0.5221112291 | O24: 0.5439182871 | P24: 0.7022395987 | Q24: 0.4798758395
F25: =$H$18 -> 2022/23 | G25: % | J25: 0.4211006772 | K25: 0.1515913399 | L25: 0.4195568897 | M25: 0.1594481856 | N25: 0.4973650307 | O25: 0.5258483094 | P25: 0.7053648953 | Q25: 0.4791792854
F26: Average | G26: % | J26: =AVERAGE(J23:J25) -> 0.4122751892 | K26: =AVERAGE(K23:K25) -> 0.1605096205 | L26: 0.3993205649 | M26: 0.1606199899 | N26: 0.5106482589 | O26: 0.5324205068 | P26: 0.7015335637 | Q26: 0.4656086938
E28: Coincidence factor
F29: =$H$16 -> 2020/21 | G29: % | J29: 0.866837074 | L29: 0.6727124687 | N29: 0.7029175154 | O29: 0.6744447146 | P29: 0.7906575172 | Q29: 0.8979943694
F30: =$H$17 -> 2021/22 | G30: % | J30: 0.859466063 | L30: 0.6778254377 | N30: 0.7020930307 | O30: 0.6657964205 | P30: 0.7694783305 | Q30: 0.9969433263
F31: =$H$18 -> 2022/23 | G31: % | J31: 0.927451556 | L31: 0.767386344 | N31: 0.7726376473 | O31: 0.7423457564 | P31: 0.8368013254 | Q31: 0.991962785
F32: Average | G32: % | J32: =AVERAGE(J29:J31) -> 0.8845848977 | L32: =AVERAGE(L29:L31) -> 0.7059747501 | N32: 0.7258827312 | O32: 0.6941956305 | P32: =AVERAGE(P29:P31) -> 0.7989790577 | Q32: 0.9623001603
B34: End of sheet

Sheet ARP_Peaking probabilities
A1: =MID(CELL("filename",A1),FIND("]",CELL("filename",A1))+1,255) -> ARP_Peaking probabilities
A2: =Cover!D21&" - "&Cover!D23 -> Electricity North West Limited - v1.0
A3: =Cover!D2&" - "&Cover!D8&" v"&Cover!D10&" - "&Cover!D19 -> ARP model - Release for charge setting v8 - 2025/26
B5: Click here to return to model map | G5: Units | H5: Constants | J5: Transmission exit | K5: GSPs | L5: 132kV | M5: 132kV/EHV | N5: EHV | O5: EHV/HV | P5: 132kV/HV | Q5: HV | R5: HV/LV | S5: LV circuits
B7: Description
C9: This sheet presents historic data used to calculate average values for peaking probabilities, as required by
C10: DCUSA Schedule 20, Paragraph 2.1 (e).
C11: Charges for year Y are set in year Y-2 using average peaking probabilities from the three previous years (i.e. Y-3 to Y-5).
C12: This sheet is for information only, and is not linked to following worksheets.
B14: Years
E16: Years to which input data relate
F17: Year 1 | G17: year | H17: =LEFT(H18,4) - 1 & "/" & RIGHT(H18,2) - 1 -> 2020/21
F18: Year 2 | G18: year | H18: =LEFT(H19,4) - 1 & "/" & RIGHT(H19,2) - 1 -> 2021/22
F19: Year 3 | G19: year | H19: ='ARP_User control'!$G$28 -> 2022/23
B21: Peaking probabilities, by distribution timeband
E23: Red period
F24: =$H$17 -> 2020/21 | G24: % | K24: 0.6666666667 | L24: 0.6885245902 | M24: 0.6885245902 | N24: 0.4901408451 | O24: 0.4901408451 | P24: 0 | Q24: 0.4901408451 | R24: 0.4901408451 | S24: 0.4901408451
F25: =$H$18 -> 2021/22 | G25: % | K25: 0.7333333333 | L25: 0.7580645161 | M25: 0.7580645161 | N25: 0.5483870968 | O25: 0.5483870968 | P25: 0 | Q25: 0.5483870968 | R25: 0.5483870968 | S25: 0.5483870968
F26: =$H$19 -> 2022/23 | G26: % | K26: 0.8 | L26: 0.7741935484 | M26: 0.7741935484 | N26: 0.6402266289 | O26: 0.6402266289 | P26: 0 | Q26: 0.6402266289 | R26: 0.6402266289 | S26: 0.6402266289
F27: Average | G27: % | K27: =AVERAGE(K24:K26) -> 0.7333333333 | L27: 0.7402608849 | M27: 0.7402608849 | N27: 0.5595848569 | O27: 0.5595848569 | P27: 0 | Q27: 0.5595848569 | R27: 0.5595848569 | S27: 0.5595848569
E29: Amber period
F30: =$H$17 -> 2020/21 | G30: % | K30: 0.3333333333 | L30: 0.2950819672 | M30: 0.2950819672 | N30: 0.4873239437 | O30: 0.4873239437 | P30: 0 | Q30: 0.4873239437 | R30: 0.4873239437 | S30: 0.4873239437
F31: =$H$18 -> 2021/22 | G31: % | K31: 0.2 | L31: 0.1935483871 | M31: 0.1935483871 | N31: 0.4059139785 | O31: 0.4059139785 | P31: 0 | Q31: 0.4059139785 | R31: 0.4059139785 | S31: 0.4059139785
F32: =$H$19 -> 2022/23 | G32: % | K32: 0.2 | L32: 0.1935483871 | M32: 0.1935483871 | N32: 0.3257790368 | O32: 0.3257790368 | P32: 0 | Q32: 0.3257790368 | R32: 0.3257790368 | S32: 0.3257790368
F33: Average | G33: % | K33: =AVERAGE(K30:K32) -> 0.2444444444 | L33: 0.2273929138 | M33: 0.2273929138 | N33: 0.4063389863 | O33: 0.4063389863 | P33: 0 | Q33: 0.4063389863 | R33: 0.4063389863 | S33: 0.4063389863
E35: Green period
F36: =$H$17 -> 2020/21 | G36: % | K36: 0 | L36: 0.01639344262 | M36: 0.01639344262 | N36: 0.02253521127 | O36: 0.02253521127 | P36: 0 | Q36: 0.02253521127 | R36: 0.02253521127 | S36: 0.02253521127
F37: =$H$18 -> 2021/22 | G37: % | K37: 0.06666666667 | L37: 0.04838709677 | M37: 0.04838709677 | N37: 0.04569892473 | O37: 0.04569892473 | P37: 0 | Q37: 0.04569892473 | R37: 0.04569892473 | S37: 0.04569892473
F38: =$H$19 -> 2022/23 | G38: % | K38: 0 | L38: 0.03225806452 | M38: 0.03225806452 | N38: 0.03399433428 | O38: 0.03399433428 | P38: 0 | Q38: 0.03399433428 | R38: 0.03399433428 | S38: 0.03399433428
F39: Average | G39: % | K39: =AVERAGE(K36:K38) -> 0.02222222222 | L39: 0.0323462013 | M39: 0.0323462013 | N39: 0.03407615676 | O39: 0.03407615676 | P39: 0 | Q39: 0.03407615676 | R39: 0.03407615676 | S39: 0.03407615676
E41: Black period
F42: =$H$17 -> 2020/21 | G42: % | K42: 0.6666666667 | L42: 0.6229508197 | M42: 0.6229508197 | N42: 0.4507042254 | O42: 0.4507042254 | P42: 0 | Q42: 0.4507042254 | R42: 0.4507042254 | S42: 0.4507042254
F43: =$H$18 -> 2021/22 | G43: % | K43: 0.6666666667 | L43: 0.7419354839 | M43: 0.7419354839 | N43: 0.5403225806 | O43: 0.5403225806 | P43: 0 | Q43: 0.5403225806 | R43: 0.5403225806 | S43: 0.5403225806
F44: =$H$19 -> 2022/23 | G44: % | K44: 0.8 | L44: 0.7580645161 | M44: 0.7580645161 | N44: 0.6345609065 | O44: 0.6345609065 | P44: 0 | Q44: 0.6345609065 | R44: 0.6345609065 | S44: 0.6345609065
F45: Average | G45: % | K45: =AVERAGE(K42:K44) -> 0.7111111111 | L45: 0.7076502732 | M45: 0.7076502732 | N45: 0.5418625708 | O45: 0.5418625708 | P45: 0 | Q45: 0.5418625708 | R45: 0.5418625708 | S45: 0.5418625708
B47: End of sheet

Sheet ARP_User control
A1: =MID(CELL("filename",A1),FIND("]",CELL("filename",A1))+1,255) -> ARP_User control
A2: =Cover!D21&" - "&Cover!D23 -> Electricity North West Limited - v1.0
A3: =Cover!D2&" - "&Cover!D8&" v"&Cover!D10&" - "&Cover!D19 -> ARP model - Release for charge setting v8 - 2025/26
B5: Description
C7: This sheet contains the user interface for the ARP, which is used to select the "live" year used for input data.
C8: It houses the Macro Button which should be pressed to update results for all years of the forecast period.
B10: User interface
C12: Users can select which year of input data is pulled into the model using the yellow cell.
C13: Users should press the "Run all years" macro button to update multi-year results on the 'Tariff summary' and 'Typical bills' sheets.
C15: Inputs for manually running selected year
E17: Year selection | G17: 2025/26
C19: Macro to run all years
B25: Lists
D27: List of years
E28: Year -3 | G28: =LEFT(G29,4) - 1 & "/" & RIGHT(G29,2) - 1 -> 2022/23 | H28: Historic
E29: Year -2 | G29: =LEFT(G30,4) - 1 & "/" & RIGHT(G30,2) - 1 -> 2023/24 | H29: Historic
E30: Year -1 | G30: =LEFT(G31,4) - 1 & "/" & RIGHT(G31,2) - 1 -> 2024/25 | H30: Historic
E31: ="Charging year (" & charging_year &")" -> Charging year (2025/26) | G31: =charging_year -> 2025/26 | H31: Current
E32: Year +1 | G32: =LEFT(G31,4) + 1 & "/" & RIGHT(G31,2) + 1 -> 2026/27 | H32: Forecast
E33: Year +2 | G33: =LEFT(G32,4) + 1 & "/" & RIGHT(G32,2) + 1 -> 2027/28 | H33: Forecast
E34: Year +3 | G34: 2028/29 | H34: Forecast
E35: Year +4 | G35: 2029/30 | H35: Forecast
E36: Year selection (index) | G36: =MATCH(G17,G28:G35) -> 4 | H36: =INDEX(H28:H35,MATCH($G$17,$G$28:$G$35,0)) -> Current
B38: End of sheet

Sheet ARP_Inputs by customer type
A1: =MID(CELL("filename",A1),FIND("]",CELL("filename",A1))+1,255) -> ARP_Inputs by customer type
A2: =Cover!D21&" - "&Cover!D23 -> Electricity North West Limited - v1.0
A3: =Cover!D2&" - "&Cover!D8&" v"&Cover!D10&" - "&Cover!D19 -> ARP model - Release for charge setting v8 - 2025/26
A4: =H2140 & IF(H2140 = 1, " issue", " issues") &" identified in checks on this sheet" -> 0 issues identified in checks on this sheet
J5: ="Year selected ("& charging_year_selected &")" -> Year selected (2025/26) | L5: =TRANSPOSE('ARP_User control'!G28:H35) -> 2022/23 | M5: 2023/24 | N5: 2024/25 | O5: 2025/26 | P5: 2026/27 | Q5: 2027/28 | R5: 2028/29 | S5: 2029/30
B6: Click here to return to model map | G6: Units | H6: Constants | J6: ='ARP_User control'!$H$36 -> Current | L6: Historic | M6: Historic | N6: Historic | O6: Current | P6: Forecast | Q6: Forecast | R6: Forecast | S6: Forecast | U6: Legal text reference
B8: Description
C10: This sheet sets out inputs by customer type and by year.
C11: DNOs should populate the inputs for the charging year and the four following years.
C12: DNOs can also populate the three years preceding the charging year, but are not obliged to do so.
B14: Load characteristics
C16: =INDEX('Version control'!$H$37:$H$63,MATCH($A$1,'Version control'!$F$37:$F$63,0),1)&"-A: Load factor" -> Input 501-A: Load factor
E18: Load factor | I18: > | U18: Paragraphs 42 (a) and 52
F19: Domestic Aggregated or CT | G19: % | J19: =CHOOSE(year_selection, L19,M19,N19,O19,P19,Q19,R19,S19) -> 0.4122751892 | L19: 0.441025453 | M19: 0.4348154597 | N19: 0.4211729819 | O19: 0.4122751892 | P19: 0.4122751892 | Q19: 0.4122751892 | R19: 0.4122751892 | S19: 0.4122751892
F20: Domestic Aggregated (Related MPAN) | G20: % | J20: =CHOOSE(year_selection, L20,M20,N20,O20,P20,Q20,R20,S20) -> 0.1605096205 | L20: 0.1967426153 | M20: 0.1913547308 | N20: 0.1823074577 | O20: 0.1605096205 | P20: 0.1605096205 | Q20: 0.1605096205 | R20: 0.1605096205 | S20: 0.1605096205
F21: Non-Domestic Aggregated or CT | G21: % | J21: 0.3993205649 | L21: 0.4360918296 | M21: 0.4357056565 | N21: 0.4123140228 | O21: 0.3993205649 | P21: 0.3993205649 | Q21: 0.3993205649 | R21: 0.3993205649 | S21: 0.3993205649
F22: Non-Domestic Aggregated (Related MPAN) | G22: % | J22: 0.1606199899 | L22: 0.1748106732 | M22: 0.1771433957 | N22: 0.1727641192 | O22: 0.1606199899 | P22: 0.1606199899 | Q22: 0.1606199899 | R22: 0.1606199899 | S22: 0.1606199899
F23: LV Site Specific | G23: % | J23: 0.5106482589 | L23: 0.5310263415 | M23: 0.5261533285 | N23: 0.5207634002 | O23: 0.5106482589 | P23: 0.5106482589 | Q23: 0.5106482589 | R23: 0.5106482589 | S23: 0.5106482589
F24: LV Sub Site Specific | G24: % | J24: 0.5324205068 | L24: 0.5489155103 | M24: 0.5431732975 | N24: 0.5403090522 | O24: 0.5324205068 | P24: 0.5324205068 | Q24: 0.5324205068 | R24: 0.5324205068 | S24: 0.5324205068
F25: HV Site Specific | G25: % | J25: 0.7015335637 | L25: 0.7086836596 | M25: 0.7047887686 | N25: 0.7039971186 | O25: 0.7015335637 | P25: 0.7015335637 | Q25: 0.7015335637 | R25: 0.7015335637 | S25: 0.7015335637
F26: Unmetered Supplies | G26: % | J26: 0.4656086938 | L26: 0.4741350839 | M26: 0.4554619734 | N26: 0.4507726474 | O26: 0.4656086938 | P26: 0.4656086938 | Q26: 0.4656086938 | R26: 0.4656086938 | S26: 0.4656086938
F27: LV Generation Aggregated | G27: %
F28: LV Sub Generation Aggregated | G28: %
F29: LV Generation Site Specific | G29: %
F30: LV Generation Site Specific no RP Charge | G30: %
F31: LV Sub Generation Site Specific | G31: %
F32: LV Sub Generation Site Specific no RP Charge | G32: %
F33: HV Generation Site Specific | G33: %
F34: HV Generation Site Specific no RP Charge | G34: %
C36: =INDEX('Version control'!$H$37:$H$63,MATCH($A$1,'Version control'!$F$37:$F$63,0),1)&"-B: Coincidence factor" -> Input 501-B: Coincidence factor
E38: Coincidence factor | I38: > | U38: Paragraphs 42 (b) and 52
F39: Domestic Aggregated or CT | G39: % | J39: =CHOOSE(year_selection, L39,M39,N39,O39,P39,Q39,R39,S39) -> 0.8845848977 | L39: 0.7758275857 | M39: 0.8301760196 | N39: 0.865036555 | O39: 0.8845848977 | P39: 0.8845848977 | Q39: 0.8845848977 | R39: 0.8845848977 | S39: 0.8845848977
F40: Domestic Aggregated (Related MPAN) | G40: %
F41: Non-Domestic Aggregated or CT | G41: % | J41: 0.7059747501 | L41: 0.7858103537 | M41: 0.7506012801 | N41: 0.6994352431 | O41: 0.7059747501 | P41: 0.7059747501 | Q41: 0.7059747501 | R41: 0.7059747501 | S41: 0.7059747501
F42: Non-Domestic Aggregated (Related MPAN) | G42: %
F43: LV Site Specific | G43: % | J43: 0.7258827312 | L43: 0.8324316682 | M43: 0.7720697999 | N43: 0.7273360581 | O43: 0.7258827312 | P43: 0.7258827312 | Q43: 0.7258827312 | R43: 0.7258827312 | S43: 0.7258827312
F44: LV Sub Site Specific | G44: % | J44: 0.6941956305 | L44: 0.8028256446 | M44: 0.741647867 | N44: 0.6967791741 | O44: 0.6941956305 | P44: 0.6941956305 | Q44: 0.6941956305 | R44: 0.6941956305 | S44: 0.6941956305
F45: HV Site Specific | G45: % | J45: 0.7989790577 | L45: 0.875598892 | M45: 0.8363677107 | N45: 0.7959003909 | O45: 0.7989790577 | P45: 0.7989790577 | Q45: 0.7989790577 | R45: 0.7989790577 | S45: 0.7989790577
F46: Unmetered Supplies | G46: % | J46: 0.9623001603 | L46: 0.6063984423 | M46: 0.6637923789 | N46: 0.9045279219 | O46: 0.9623001603 | P46: 0.9623001603 | Q46: 0.9623001603 | R46: 0.9623001603 | S46: 0.9623001603
F47: LV Generation Aggregated | G47: %
F48: LV Sub Generation Aggregated | G48: %
F49: LV Generation Site Specific | G49: %
F50: LV Generation Site Specific no RP Charge | G50: %
F51: LV Sub Generation Site Specific | G51: %
F52: LV Sub Generation Site Specific no RP Charge | G52: %
F53: HV Generation Site Specific | G53: %
F54: HV Generation Site Specific no RP Charge | G54: %
B56: Volumes
C58: =INDEX('Version control'!$H$37:$H$63,MATCH($A$1,'Version control'!$F$37:$F$63,0),1)&"-C: All-the-way volumes - No residual" -> Input 501-C: All-the-way volumes - No residual
E60: Rate 1 units | I60: > | U60: Paragraph 52
F61: Domestic Aggregated or CT | G61: MWh | H61: All the way customers
F62: Domestic Aggregated (Related MPAN) | G62: MWh | H62: All the way customers | J62: =CHOOSE(year_selection, L62,M62,N62,O62,P62,Q62,R62,S62) -> 31.48014544 | L62: 18.35045193 | M62: 18.17416968 | N62: 27.71379617 | O62: 31.48014544 | P62: 31.48014544 | Q62: 31.48014544 | R62: 31.48014544 | S62: 31.48014544
F63: Non-Domestic Aggregated or CT | G63: MWh | H63: All the way customers | J63: 0 | L63: 0.1664543848 | M63: 0.1648553531 | N63: 0 | O63: 0 | P63: 0 | Q63: 0 | R63: 0 | S63: 0
F64: Non-Domestic Aggregated (Related MPAN) | G64: MWh | H64: All the way customers | J64: 45.69652286 | L64: 30.96800905 | M64: 30.67051717 | N64: 50.78199136 | O64: 45.69652286 | P64: 45.69652286 | Q64: 45.69652286 | R64: 45.69652286 | S64: 45.69652286
F65: LV Site Specific | G65: MWh | H65: All the way customers | J65: 1.179842114 | L65: 6.286703173 | M65: 6.226310425 | N65: 1.247444366 | O65: 1.179842114 | P65: 1.179842114 | Q65: 1.179842114 | R65: 1.179842114 | S65: 1.179842114
F66: LV Sub Site Specific | G66: MWh | H66: All the way customers | J66: 0 | L66: 19.27847619 | M66: 19.09327894 | N66: 0 | O66: 0 | P66: 0 | Q66: 0 | R66: 0 | S66: 0
F67: HV Site Specific | G67: MWh | H67: All the way customers | J67: 329.3553672 | L67: 48.7797282 | M67: 48.31112936 | N67: 322.6761015 | O67: 329.3553672 | P67: 329.3553672 | Q67: 329.3553672 | R67: 329.3553672 | S67: 329.3553672
F68: Unmetered Supplies | G68: MWh | H68: All the way customers
F69: LV Generation Aggregated | G69: MWh | H69: All the way customers | J69: 7180.233994 | L69: 162.8649024 | M69: 162.8649024 | N69: 4443.360744 | O69: 7180.233994 | P69: 7180.233994 | Q69: 7180.233994 | R69: 7180.233994 | S69: 7180.233994
F70: LV Sub Generation Aggregated | G70: MWh | H70: All the way customers | J70: 0 | L70: 0 | M70: 0 | N70: 0 | O70: 0 | P70: 0 | Q70: 0 | R70: 0 | S70: 0
F71: LV Generation Site Specific | G71: MWh | H71: All the way customers | J71: 3390.05061 | L71: 2814.870587 | M71: 2814.870587 | N71: 2715.756259 | O71: 3390.05061 | P71: 3390.05061 | Q71: 3390.05061 | R71: 3390.05061 | S71: 3390.05061
F72: LV Generation Site Specific no RP Charge | G72: MWh | H72: All the way customers | J72: 0 | L72: 0 | M72: 0 | N72: 0 | O72: 0 | P72: 0 | Q72: 0 | R72: 0 | S72: 0
F73: LV Sub Generation Site Specific | G73: MWh | H73: All the way customers | J73: 586.6321703 | L73: 359.6190631 | M73: 359.6190631 | N73: 416.3814894 | O73: 586.6321703 | P73: 586.6321703 | Q73: 586.6321703 | R73: 586.6321703 | S73: 586.6321703
F74: LV Sub Generation Site Specific no RP Charge | G74: MWh | H74: All the way customers | J74: 0 | L74: 0 | M74: 0 | N74: 0 | O74: 0 | P74: 0 | Q74: 0 | R74: 0 | S74: 0
F75: HV Generation Site Specific | G75: MWh | H75: All the way customers | J75: 149365.3565 | L75: 134754.4957 | M75: 134754.4957 | N75: 135639.1598 | O75: 149365.3565 | P75: 149365.3565 | Q75: 149365.3565 | R75: 149365.3565 | S75: 149365.3565
F76: HV Generation Site Specific no RP Charge | G76: MWh | H76: All the way customers | J76: 0 | L76: 0 | M76: 0 | N76: 0 | O76: 0 | P76: 0 | Q76: 0 | R76: 0 | S76: 0
E78: Rate 2 units
F79: Domestic Aggregated or CT | G79: MWh | H79: All the way customers
F80: Domestic Aggregated (Related MPAN) | G80: MWh | H80: All the way customers | J80: =CHOOSE(year_selection, L80,M80,N80,O80,P80,Q80,R80,S80) -> 484.2888501 | L80: 442.0851277 | M80: 437.8382697 | N80: 466.0565085 | O80: 484.2888501 | P80: 484.2888501 | Q80: 484.2888501 | R80: 484.2888501 | S80: 484.2888501
F81: Non-Domestic Aggregated or CT | G81: MWh | H81: All the way customers | J81: 0 | L81: 0.5978758046 | M81: 0.592132355 | N81: 0 | O81: 0 | P81: 0 | Q81: 0 | R81: 0 | S81: 0
F82: Non-Domestic Aggregated (Related MPAN) | G82: MWh | H82: All the way customers | J82: 732.2906452 | L82: 924.2242553 | M82: 915.3457634 | N82: 735.0895139 | O82: 732.2906452 | P82: 732.2906452 | Q82: 732.2906452 | R82: 732.2906452 | S82: 732.2906452
F83: LV Site Specific | G83: MWh | H83: All the way customers | J83: 3.853584729 | L83: 22.67506543 | M83: 22.45723909 | N83: 4.130232662 | O83: 3.853584729 | P83: 3.853584729 | Q83: 3.853584729 | R83: 3.853584729 | S83: 3.853584729
F84: LV Sub Site Specific | G84: MWh | H84: All the way customers | J84: 0 | L84: 70.91831442 | M84: 70.23704289 | N84: 0 | O84: 0 | P84: 0 | Q84: 0 | R84: 0 | S84: 0
F85: HV Site Specific | G85: MWh | H85: All the way customers | J85: 1690.076098 | L85: 165.6098523 | M85: 164.0189336 | N85: 1522.911407 | O85: 1690.076098 | P85: 1690.076098 | Q85: 1690.076098 | R85: 1690.076098 | S85: 1690.076098
F86: Unmetered Supplies | G86: MWh | H86: All the way customers
F87: LV Generation Aggregated | G87: MWh | H87: All the way customers | J87: =CHOOSE(year_selection, L87,M87,N87,O87,P87,Q87,R87,S87) -> 53586.76191 | L87: 602.4003628 | M87: 602.4003628 | N87: 19533.73864 | O87: 53586.76191 | P87: 53586.76191 | Q87: 53586.76191 | R87: 53586.76191 | S87: 53586.76191
F88: LV Sub Generation Aggregated | G88: MWh | H88: All the way customers | J88: 0 | L88: 0 | M88: 0 | N88: 0 | O88: 0 | P88: 0 | Q88: 0 | R88: 0 | S88: 0
F89: LV Generation Site Specific | G89: MWh | H89: All the way customers | J89: 12108.75868 | L89: 10411.56835 | M89: 10411.56835 | N89: 10085.05987 | O89: 12108.75868 | P89: 12108.75868 | Q89: 12108.75868 | R89: 12108.75868 | S89: 12108.75868
F90: LV Generation Site Specific no RP Charge | G90: MWh | H90: All the way customers | J90: 0 | L90: 0 | M90: 0 | N90: 0 | O90: 0 | P90: 0 | Q90: 0 | R90: 0 | S90: 0
F91: LV Sub Generation Site Specific | G91: MWh | H91: All the way customers | J91: 2224.791254 | L91: 1554.670587 | M91: 1554.670587 | N91: 1839.986184 | O91: 2224.791254 | P91: 2224.791254 | Q91: 2224.791254 | R91: 2224.791254 | S91: 2224.791254
F92: LV Sub Generation Site Specific no RP Charge | G92: MWh | H92: All the way customers | J92: 0 | L92: 0 | M92: 0 | N92: 0 | O92: 0 | P92: 0 | Q92: 0 | R92: 0 | S92: 0
F93: HV Generation Site Specific | G93: MWh | H93: All the way customers | J93: 337523.8333 | L93: 332893.4529 | M93: 332893.4529 | N93: 341196.6878 | O93: 337523.8333 | P93: 337523.8333 | Q93: 337523.8333 | R93: 337523.8333 | S93: 337523.8333
F94: HV Generation Site Specific no RP Charge | G94: MWh | H94: All the way customers | J94: 0 | L94: 0 | M94: 0 | N94: 0 | O94: 0 | P94: 0 | Q94: 0 | R94: 0 | S94: 0
E96: Rate 3 units
F97: Domestic Aggregated or CT | G97: MWh | H97: All the way customers
F98: Domestic Aggregated (Related MPAN) | G98: MWh | H98: All the way customers | J98: =CHOOSE(year_selection, L98,M98,N98,O98,P98,Q98,R98,S98) -> 4417.374857 | L98: 4114.286713 | M98: 4074.763123 | N98: 4593.488025 | O98: 4417.374857 | P98: 4417.374857 | Q98: 4417.374857 | R98: 4417.374857 | S98: 4417.374857
F99: Non-Domestic Aggregated or CT | G99: MWh | H99: All the way customers | J99: 0 | L99: 0.7627025277 | M99: 0.7553756824 | N99: 0 | O99: 0 | P99: 0 | Q99: 0 | R99: 0 | S99: 0
F100: Non-Domestic Aggregated (Related MPAN) | G100: MWh | H100: All the way customers | J100: 13318.92266 | L100: 14603.79392 | M100: 14463.50366 | N100: 13161.43311 | O100: 13318.92266 | P100: 13318.92266 | Q100: 13318.92266 | R100: 13318.92266 | S100: 13318.92266
F101: LV Site Specific | G101: MWh | H101: All the way customers | J101: 10.99994742 | L101: 29.44770224 | M101: 29.16481507 | N101: 10.8552927 | O101: 10.99994742 | P101: 10.99994742 | Q101: 10.99994742 | R101: 10.99994742 | S101: 10.99994742
F102: LV Sub Site Specific | G102: MWh | H102: All the way customers | J102: 0 | L102: 97.543464 | M102: 96.60641994 | N102: 0 | O102: 0 | P102: 0 | Q102: 0 | R102: 0 | S102: 0
F103: HV Site Specific | G103: MWh | H103: All the way customers | J103: 4305.109749 | L103: 275.5708439 | M103: 272.923593 | N103: 3974.406386 | O103: 4305.109749 | P103: 4305.109749 | Q103: 4305.109749 | R103: 4305.109749 | S103: 4305.109749
F104: Unmetered Supplies | G104: MWh | H104: All the way customers
F105: LV Generation Aggregated | G105: MWh | H105: All the way customers | J105: =CHOOSE(year_selection, L105,M105,N105,O105,P105,Q105,R105,S105) -> 28245.82021 | L105: 1012.292096 | M105: 1012.292096 | N105: 11594.00965 | O105: 28245.82021 | P105: 28245.82021 | Q105: 28245.82021 | R105: 28245.82021 | S105: 28245.82021
F106: LV Sub Generation Aggregated | G106: MWh | H106: All the way customers | J106: 0 | L106: 0 | M106: 0 | N106: 0 | O106: 0 | P106: 0 | Q106: 0 | R106: 0 | S106: 0
F107: LV Generation Site Specific | G107: MWh | H107: All the way customers | J107: 19639.00584 | L107: 17495.91965 | M107: 17495.91965 | N107: 16899.62528 | O107: 19639.00584 | P107: 19639.00584 | Q107: 19639.00584 | R107: 19639.00584 | S107: 19639.00584
F108: LV Generation Site Specific no RP Charge | G108: MWh | H108: All the way customers | J108: 0 | L108: 0 | M108: 0 | N108: 0 | O108: 0 | P108: 0 | Q108: 0 | R108: 0 | S108: 0
F109: LV Sub Generation Site Specific | G109: MWh | H109: All the way customers | J109: 3543.987489 | L109: 2113.881734 | M109: 2113.881734 | N109: 2641.617707 | O109: 3543.987489 | P109: 3543.987489 | Q109: 3543.987489 | R109: 3543.987489 | S109: 3543.987489
F110: LV Sub Generation Site Specific no RP Charge | G110: MWh | H110: All the way customers | J110: 0 | L110: 0 | M110: 0 | N110: 0 | O110: 0 | P110: 0 | Q110: 0 | R110: 0 | S110: 0
F111: HV Generation Site Specific | G111: MWh | H111: All the way customers | J111: 439423.3169 | L111: 476929.1141 | M111: 476929.1141 | N111: 478773.401 | O111: 439423.3169 | P111: 439423.3169 | Q111: 439423.3169 | R111: 439423.3169 | S111: 439423.3169
F112: HV Generation Site Specific no RP Charge | G112: MWh | H112: All the way customers | J112: 0 | L112: 0 | M112: 0 | N112: 0 | O112: 0 | P112: 0 | Q112: 0 | R112: 0 | S112: 0
E114: MPANs
F115: Domestic Aggregated or CT | G115: MPANs | H115: All the way customers
F116: Domestic Aggregated (Related MPAN) | G116: MPANs | H116: All the way customers | J116: =CHOOSE(year_selection, L116,M116,N116,O116,P116,Q116,R116,S116) -> 1936.769863 | L116: 1739.855994 | M116: 1746.815418 | N116: 1912.723288 | O116: 1936.769863 | P116: 1936.769863 | Q116: 1936.769863 | R116: 1936.769863 | S116: 1936.769863
F117: Non-Domestic Aggregated or CT | G117: MPANs | H117: All the way customers | J117: 0 | L117: 1 | M117: 1.004 | N117: 0 | O117: 0 | P117: 0 | Q117: 0 | R117: 0 | S117: 0
F118: Non-Domestic Aggregated (Related MPAN) | G118: MPANs | H118: All the way customers | J118: 2536.139726 | L118: 2930.035604 | M118: 2941.755746 | N118: 2548.816438 | O118: 2536.139726 | P118: 2536.139726 | Q118: 2536.139726 | R118: 2536.139726 | S118: 2536.139726
F119: LV Site Specific | G119: MPANs | H119: All the way customers | J119: 10 | L119: 1 | M119: 1.004 | N119: 12 | O119: 10 | P119: 10 | Q119: 10 | R119: 10 | S119: 10
F120: LV Sub Site Specific | G120: MPANs | H120: All the way customers | J120: 0 | L120: 1 | M120: 1.004 | N120: 0 | O120: 0 | P120: 0 | Q120: 0 | R120: 0 | S120: 0
F121: HV Site Specific | G121: MPANs | H121: All the way customers | J121: 101 | L121: 1 | M121: 1.004 | N121: 98.4 | O121: 101 | P121: 101 | Q121: 101 | R121: 101 | S121: 101
F122: Unmetered Supplies | G122: MPANs | H122: All the way customers
F123: LV Generation Aggregated | G123: MPANs | H123: All the way customers | J123: =CHOOSE(year_selection, L123,M123,N123,O123,P123,Q123,R123,S123) -> 15770.66301 | L123: 397.909589 | M123: 399.5012274 | N123: 5340.323288 | O123: 15770.66301 | P123: 15770.66301 | Q123: 15770.66301 | R123: 15770.66301 | S123: 15770.66301
F124: LV Sub Generation Aggregated | G124: MPANs | H124: All the way customers | J124: 0 | L124: 0 | M124: 0 | N124: 0 | O124: 0 | P124: 0 | Q124: 0 | R124: 0 | S124: 0
F125: LV Generation Site Specific | G125: MPANs | H125: All the way customers | J125: 334.1982648 | L125: 258.4849315 | M125: 259.5188712 | N125: 277.9863014 | O125: 334.1982648 | P125: 334.1982648 | Q125: 334.1982648 | R125: 334.1982648 | S125: 334.1982648
F126: LV Generation Site Specific no RP Charge | G126: MPANs | H126: All the way customers | J126: 0 | L126: 0 | M126: 0 | N126: 0 | O126: 0 | P126: 0 | Q126: 0 | R126: 0 | S126: 0
F127: LV Sub Generation Site Specific | G127: MPANs | H127: All the way customers | J127: 45 | L127: 42 | M127: 42.168 | N127: 42 | O127: 45 | P127: 45 | Q127: 45 | R127: 45 | S127: 45
F128: LV Sub Generation Site Specific no RP Charge | G128: MPANs | H128: All the way customers | J128: 0 | L128: 0 | M128: 0 | N128: 0 | O128: 0 | P128: 0 | Q128: 0 | R128: 0 | S128: 0
F129: HV Generation Site Specific | G129: MPANs | H129: All the way customers | J129: 316.9534247 | L129: 280 | M129: 281.12 | N129: 314.8356164 | O129: 316.9534247 | P129: 316.9534247 | Q129: 316.9534247 | R129: 316.9534247 | S129: 316.9534247
F130: HV Generation Site Specific no RP Charge | G130: MPANs | H130: All the way customers | J130: 0 | L130: 0 | M130: 0 | N130: 0 | O130: 0 | P130: 0 | Q130: 0 | R130: 0 | S130: 0
E132: Import capacity
F133: Domestic Aggregated or CT | G133: kVA | H133: All the way customers
F134: Domestic Aggregated (Related MPAN) | G134: kVA | H134: All the way customers
F135: Non-Domestic Aggregated or CT | G135: kVA | H135: All the way customers
F136: Non-Domestic Aggregated (Related MPAN) | G136: kVA | H136: All the way customers
F137: LV Site Specific | G137: kVA | H137: All the way customers | J137: =CHOOSE(year_selection, L137,M137,N137,O137,P137,Q137,R137,S137) -> 157.9452055 | L137: 37.85015519 | M137: 38.00155581 | N137: 254.2834502 | O137: 157.9452055 | P137: 157.9452055 | Q137: 157.9452055 | R137: 157.9452055 | S137: 157.9452055
F138: LV Sub Site Specific | G138: kVA | H138: All the way customers | J138: 0 | L138: 107.1858834 | M138: 107.6146269 | N138: 0 | O138: 0 | P138: 0 | Q138: 0 | R138: 0 | S138: 0
F139: HV Site Specific | G139: kVA | H139: All the way customers | J139: 14349.0581 | L139: 204.6755786 | M139: 205.4942809 | N139: 11373.91794 | O139: 14349.0581 | P139: 14349.0581 | Q139: 14349.0581 | R139: 14349.0581 | S139: 14349.0581
F140: Unmetered Supplies | G140: kVA | H140: All the way customers
F141: LV Generation Aggregated | G141: kVA | H141: All the way customers
F142: LV Sub Generation Aggregated | G142: kVA | H142: All the way customers
F143: LV Generation Site Specific | G143: kVA | H143: All the way customers
F144: LV Generation Site Specific no RP Charge | G144: kVA | H144: All the way customers
F145: LV Sub Generation Site Specific | G145: kVA | H145: All the way customers
F146: LV Sub Generation Site Specific no RP Charge | G146: kVA | H146: All the way customers
F147: HV Generation Site Specific | G147: kVA | H147: All the way customers
F148: HV Generation Site Specific no RP Charge | G148: kVA | H148: All the way customers
E150: Exceeded capacity
F151: Domestic Aggregated or CT | G151: kVA | H151: All the way customers
F152: Domestic Aggregated (Related MPAN) | G152: kVA | H152: All the way customers
F153: Non-Domestic Aggregated or CT | G153: kVA | H153: All the way customers
F154: Non-Domestic Aggregated (Related MPAN) | G154: kVA | H154: All the way customers
F155: LV Site Specific | G155: kVA | H155: All the way customers | J155: =CHOOSE(year_selection, L155,M155,N155,O155,P155,Q155,R155,S155) -> 11.29863014 | L155: 0.8089898188 | M155: 0.8122257781 | N155: 7.699726027 | O155: 11.29863014 | P155: 11.29863014 | Q155: 11.29863014 | R155: 11.29863014 | S155: 11.29863014
F156: LV Sub Site Specific | G156: kVA | H156: All the way customers | J156: 0 | L156: 0.9929640158 | M156: 0.9969358719 | N156: 0 | O156: 0 | P156: 0 | Q156: 0 | R156: 0 | S156: 0
F157: HV Site Specific | G157: kVA | H157: All the way customers | J157: 1250.493365 | L157: 1.810298734 | M157: 1.817539929 | N157: 650.2063118 | O157: 1250.493365 | P157: 1250.493365 | Q157: 1250.493365 | R157: 1250.493365 | S157: 1250.493365
F158: Unmetered Supplies | G158: kVA | H158: All the way customers
F159: LV Generation Aggregated | G159: kVA | H159: All the way customers
F160: LV Sub Generation Aggregated | G160: kVA | H160: All the way customers
F161: LV Generation Site Specific | G161: kVA | H161: All the way customers
F162: LV Generation Site Specific no RP Charge | G162: kVA | H162: All the way customers
F163: LV Sub Generation Site Specific | G163: kVA | H163: All the way customers
F164: LV Sub Generation Site Specific no RP Charge | G164: kVA | H164: All the way customers
F165: HV Generation Site Specific | G165: kVA | H165: All the way customers
F166: HV Generation Site Specific no RP Charge | G166: kVA | H166: All the way customers
E168: Reactive power units
F169: Domestic Aggregated or CT | G169: MVArh | H169: All the way customers
F170: Domestic Aggregated (Related MPAN) | G170: MVArh | H170: All the way customers
F171: Non-Domestic Aggregated or CT | G171: MVArh | H171: All the way customers
F172: Non-Domestic Aggregated (Related MPAN) | G172: MVArh | H172: All the way customers
F173: LV Site Specific | G173: MVArh | H173: All the way customers | J173: =CHOOSE(year_selection, L173,M173,N173,O173,P173,Q173,R173,S173) -> 46.182 | L173: 4.748997489 | M173: 4.767993479 | N173: 13.44339121 | O173: 46.182 | P173: 46.182 | Q173: 46.182 | R173: 46.182 | S173: 46.182
F174: LV Sub Site Specific | G174: MVArh | H174: All the way customers | J174: 0 | L174: 14.1679946 | M174: 14.22466658 | N174: 0 | O174: 0 | P174: 0 | Q174: 0 | R174: 0 | S174: 0
F175: HV Site Specific | G175: MVArh | H175: All the way customers | J175: 1623.773541 | L175: 37.44758296 | M175: 37.59737329 | N175: 1943.261439 | O175: 1623.773541 | P175: 1623.773541 | Q175: 1623.773541 | R175: 1623.773541 | S175: 1623.773541
F176: Unmetered Supplies | G176: MVArh | H176: All the way customers
F177: LV Generation Aggregated | G177: MVArh | H177: All the way customers
F178: LV Sub Generation Aggregated | G178: MVArh | H178: All the way customers
F179: LV Generation Site Specific | G179: MVArh | H179: All the way customers | J179: =CHOOSE(year_selection, L179,M179,N179,O179,P179,Q179,R179,S179) -> 3928.356911 | L179: 2939.5815 | M179: 2951.339826 | N179: 2603.512172 | O179: 3928.356911 | P179: 3928.356911 | Q179: 3928.356911 | R179: 3928.356911 | S179: 3928.356911
F180: LV Generation Site Specific no RP Charge | G180: MVArh | H180: All the way customers
F181: LV Sub Generation Site Specific | G181: MVArh | H181: All the way customers | J181: =CHOOSE(year_selection, L181,M181,N181,O181,P181,Q181,R181,S181) -> 553.571164 | L181: 658.0971303 | M181: 660.7295188 | N181: 572.783148 | O181: 553.571164 | P181: 553.571164 | Q181: 553.571164 | R181: 553.571164 | S181: 553.571164
F182: LV Sub Generation Site Specific no RP Charge | G182: MVArh | H182: All the way customers
F183: HV Generation Site Specific | G183: MVArh | H183: All the way customers | J183: =CHOOSE(year_selection, L183,M183,N183,O183,P183,Q183,R183,S183) -> 15927.70188 | L183: 12290.73931 | M183: 12339.90227 | N183: 15482.78287 | O183: 15927.70188 | P183: 15927.70188 | Q183: 15927.70188 | R183: 15927.70188 | S183: 15927.70188
F184: HV Generation Site Specific no RP Charge | G184: MVArh | H184: All the way customers
C186: =INDEX('Version control'!$H$37:$H$63,MATCH($A$1,'Version control'!$F$37:$F$63,0),1)&"-D: All-the-way volumes - Residual Band 1" -> Input 501-D: All-the-way volumes - Residual Band 1
E188: Rate 1 units | I188: > | U188: Paragraph 52
F189: Domestic Aggregated or CT | G189: MWh | H189: All the way customers | J189: =CHOOSE(year_selection, L189,M189,N189,O189,P189,Q189,R189,S189) -> 836398.5198 | L189: 880894.3283 | M189: 872432.0822 | N189: 873961.6106 | O189: 836398.5198 | P189: 836398.5198 | Q189: 836398.5198 | R189: 836398.5198 | S189: 836398.5198
F190: Domestic Aggregated (Related MPAN) | G190: MWh | H190: All the way customers
F191: Non-Domestic Aggregated or CT | G191: MWh | H191: All the way customers | J191: 30542.95908 | L191: 9645.229297 | M191: 9552.573117 | N191: 32441.23353 | O191: 30542.95908 | P191: 30542.95908 | Q191: 30542.95908 | R191: 30542.95908 | S191: 30542.95908
F192: Non-Domestic Aggregated (Related MPAN) | G192: MWh | H192: All the way customers
F193: LV Site Specific | G193: MWh | H193: All the way customers | J193: 49162.22093 | L193: 32807.61414 | M193: 32492.45022 | N193: 46091.0428 | O193: 49162.22093 | P193: 49162.22093 | Q193: 49162.22093 | R193: 49162.22093 | S193: 49162.22093
F194: LV Sub Site Specific | G194: MWh | H194: All the way customers | J194: 4324.584647 | L194: 16390.59403 | M194: 16233.139 | N194: 5612.567605 | O194: 4324.584647 | P194: 4324.584647 | Q194: 4324.584647 | R194: 4324.584647 | S194: 4324.584647
F195: HV Site Specific | G195: MWh | H195: All the way customers | J195: 37395.70593 | L195: 42767.22772 | M195: 42356.38752 | N195: 38393.1751 | O195: 37395.70593 | P195: 37395.70593 | Q195: 37395.70593 | R195: 37395.70593 | S195: 37395.70593
F196: Unmetered Supplies | G196: MWh | H196: All the way customers | J196: 8856.380053 | L196: 9039.905721 | M196: 8953.064536 | N196: 8340.092631 | O196: 8856.380053 | P196: 8856.380053 | Q196: 8856.380053 | R196: 8856.380053 | S196: 8856.380053
F197: LV Generation Aggregated | G197: MWh | H197: All the way customers
F198: LV Sub Generation Aggregated | G198: MWh | H198: All the way customers
F199: LV Generation Site Specific | G199: MWh | H199: All the way customers
F200: LV Generation Site Specific no RP Charge | G200: MWh | H200: All the way customers
F201: LV Sub Generation Site Specific | G201: MWh | H201: All the way customers
F202: LV Sub Generation Site Specific no RP Charge | G202: MWh | H202: All the way customers
F203: HV Generation Site Specific | G203: MWh | H203: All the way customers
F204: HV Generation Site Specific no RP Charge | G204: MWh | H204: All the way customers
E206: Rate 2 units
F207: Domestic Aggregated or CT | G207: MWh | H207: All the way customers | J207: =CHOOSE(year_selection, L207,M207,N207,O207,P207,Q207,R207,S207) -> 2273538.296 | L207: 2219285.745 | M207: 2197966.341 | N207: 2311267.006 | O207: 2273538.296 | P207: 2273538.296 | Q207: 2273538.296 | R207: 2273538.296 | S207: 2273538.296
F208: Domestic Aggregated (Related MPAN) | G208: MWh | H208: All the way customers
F209: Non-Domestic Aggregated or CT | G209: MWh | H209: All the way customers | J209: =CHOOSE(year_selection, L209,M209,N209,O209,P209,Q209,R209,S209) -> 116452.383 | L209: 34644.02115 | M209: 34311.21593 | N209: 123657.8199 | O209: 116452.383 | P209: 116452.383 | Q209: 116452.383 | R209: 116452.383 | S209: 116452.383
F210: Non-Domestic Aggregated (Related MPAN) | G210: MWh | H210: All the way customers
F211: LV Site Specific | G211: MWh | H211: All the way customers | J211: =CHOOSE(year_selection, L211,M211,N211,O211,P211,Q211,R211,S211) -> 181914.514 | L211: 118331.4651 | M211: 117194.7227 | N211: 168313.0313 | O211: 181914.514 | P211: 181914.514 | Q211: 181914.514 | R211: 181914.514 | S211: 181914.514
F212: LV Sub Site Specific | G212: MWh | H212: All the way customers | J212: 16326.63645 | L212: 60294.87442 | M212: 59715.65617 | N212: 20491.61433 | O212: 16326.63645 | P212: 16326.63645 | Q212: 16326.63645 | R212: 16326.63645 | S212: 16326.63645
F213: HV Site Specific | G213: MWh | H213: All the way customers | J213: 137858.3104 | L213: 145197.0835 | M213: 143802.2585 | N213: 137688.6605 | O213: 137858.3104 | P213: 137858.3104 | Q213: 137858.3104 | R213: 137858.3104 | S213: 137858.3104
F214: Unmetered Supplies | G214: MWh | H214: All the way customers | J214: 31938.37497 | L214: 30004.34024 | M214: 29716.10577 | N214: 28292.58724 | O214: 31938.37497 | P214: 31938.37497 | Q214: 31938.37497 | R214: 31938.37497 | S214: 31938.37497
F215: LV Generation Aggregated | G215: MWh | H215: All the way customers
F216: LV Sub Generation Aggregated | G216: MWh | H216: All the way customers
F217: LV Generation Site Specific | G217: MWh | H217: All the way customers
F218: LV Generation Site Specific no RP Charge | G218: MWh | H218: All the way customers
F219: LV Sub Generation Site Specific | G219: MWh | H219: All the way customers
... 1786 more rows

Sheet ARP_Inputs by network level
A1: =MID(CELL("filename",A1),FIND("]",CELL("filename",A1))+1,255) -> ARP_Inputs by network level
A2: =Cover!D21&" - "&Cover!D23 -> Electricity North West Limited - v1.0
A3: =Cover!D2&" - "&Cover!D8&" v"&Cover!D10&" - "&Cover!D19 -> ARP model - Release for charge setting v8 - 2025/26
A4: =H218 & IF(H218 = 1, " issue", " issues") &" identified in checks on this sheet" -> 0 issues identified in checks on this sheet
J5: ="Year selected ("& charging_year_selected &")" -> Year selected (2025/26) | L5: =TRANSPOSE('ARP_User control'!G28:H35) -> 2022/23 | M5: 2023/24 | N5: 2024/25 | O5: 2025/26 | P5: 2026/27 | Q5: 2027/28 | R5: 2028/29 | S5: 2029/30
B6: Click here to return to model map | G6: Units | H6: Constants | J6: ='ARP_User control'!$H$36 -> Current | L6: Historic | M6: Historic | N6: Historic | O6: Current | P6: Forecast | Q6: Forecast | R6: Forecast | S6: Forecast | U6: Legal text reference
B8: Description
C10: This sheet sets out inputs by network level and by year.
C11: DNOs should populate the inputs for the charging year and the four following years.
C12: DNOs can also populate the three years preceding the charging year, but are not obliged to do so.
B14: Inputs by network level
C16: =INDEX('Version control'!$H$37:$H$63,MATCH($A$1,'Version control'!$F$37:$F$63,0),1)&"-A: Diversity allowance between top and bottom of network level" -> Input 502-A: Diversity allowance between top and bottom of network level
E18: Diversity allowance between top and bottom of network level | I18: > | U18: Paragraphs 26 to 28
F19: Transmission exit | G19: %
F20: GSPs | G20: % | J20: =CHOOSE(year_selection, L20,M20,N20,O20,P20,Q20,R20,S20) -> 0.1088923406 | L20: 0.06493394236 | M20: 0.07138527046 | N20: 0.06471971219 | O20: 0.1088923406 | P20: 0.1088923406 | Q20: 0.1088923406 | R20: 0.1088923406 | S20: 0.1088923406
F21: 132kV | G21: % | J21: =CHOOSE(year_selection, L21,M21,N21,O21,P21,Q21,R21,S21) -> 0.03771232896 | L21: 0.06805431724 | M21: 0.05922272088 | N21: 0.05007793444 | O21: 0.03771232896 | P21: 0.03771232896 | Q21: 0.03771232896 | R21: 0.03771232896 | S21: 0.03771232896
F22: 132kV/EHV | G22: %
F23: EHV | G23: % | J23: =CHOOSE(year_selection, L23,M23,N23,O23,P23,Q23,R23,S23) -> 0.09148834523 | L23: 0.1006873102 | M23: 0.1162105664 | N23: 0.1048996548 | O23: 0.09148834523 | P23: 0.09148834523 | Q23: 0.09148834523 | R23: 0.09148834523 | S23: 0.09148834523
F24: EHV/HV | G24: %
F25: 132kV/HV | G25: %
F26: HV | G26: % | J26: =CHOOSE(year_selection, L26,M26,N26,O26,P26,Q26,R26,S26) -> 0.174318547 | L26: 0.4029928739 | M26: 0.3911896239 | N26: 0.4238045598 | O26: 0.174318547 | P26: 0.174318547 | Q26: 0.174318547 | R26: 0.174318547 | S26: 0.174318547
F27: HV/LV | G27: %
F28: LV circuits | G28: %
C30: =INDEX('Version control'!$H$37:$H$63,MATCH($A$1,'Version control'!$F$37:$F$63,0),1)&"-B: Proportion of EHV/HV load going through 132kV/HV direct transformation" -> Input 502-B: Proportion of EHV/HV load going through 132kV/HV direct transformation
E32: Proportion of EHV/HV load going through 132kV/HV direct transformation
F33: Transmission exit | G33: %
F34: GSPs | G34: %
F35: 132kV | G35: %
F36: 132kV/EHV | G36: %
F37: EHV | G37: %
F38: EHV/HV | G38: %
F39: 132kV/HV | G39: % | J39: =CHOOSE(year_selection, L39,M39,N39,O39,P39,Q39,R39,S39) -> 0 | L39: 0 | M39: 0 | N39: 0 | O39: 0 | P39: 0 | Q39: 0 | R39: 0 | S39: 0
F40: HV | G40: %
F41: HV/LV | G41: %
F42: LV circuits | G42: %
C44: =INDEX('Version control'!$H$37:$H$63,MATCH($A$1,'Version control'!$F$37:$F$63,0),1)&"-C: Loss adjustment factors to transmission" -> Input 502-C: Loss adjustment factors to transmission
E46: Loss adjustment factors to transmission | I46: > | U46: Paragraph 47
F47: Transmission exit | G47: scalar
F48: GSPs | G48: scalar | J48: =CHOOSE(year_selection, L48,M48,N48,O48,P48,Q48,R48,S48) -> 1 | L48: 1 | M48: 1 | N48: 1 | O48: 1 | P48: 1 | Q48: 1 | R48: 1 | S48: 1
F49: 132kV | G49: scalar | J49: =CHOOSE(year_selection, L49,M49,N49,O49,P49,Q49,R49,S49) -> 1.007649528 | L49: 1.006992114 | M49: 1.007 | N49: 1.006224662 | O49: 1.007649528 | P49: 1.007649528 | Q49: 1.007649528 | R49: 1.007649528 | S49: 1.007649528
F50: 132kV/EHV | G50: scalar | J50: =CHOOSE(year_selection, L50,M50,N50,O50,P50,Q50,R50,S50) -> 1.012908838 | L50: 1.012029802 | M50: 1.012 | N50: 1.011293456 | O50: 1.012908838 | P50: 1.012908838 | Q50: 1.012908838 | R50: 1.012908838 | S50: 1.012908838
F51: EHV | G51: scalar | J51: =CHOOSE(year_selection, L51,M51,N51,O51,P51,Q51,R51,S51) -> 1.018226232 | L51: 1.016967228 | M51: 1.017 | N51: 1.015838409 | O51: 1.018226232 | P51: 1.018226232 | Q51: 1.018226232 | R51: 1.018226232 | S51: 1.018226232
F52: EHV/HV | G52: scalar | J52: =CHOOSE(year_selection, L52,M52,N52,O52,P52,Q52,R52,S52) -> 1.023840958 | L52: 1.022345392 | M52: 1.022 | N52: 1.021196615 | O52: 1.023840958 | P52: 1.023840958 | Q52: 1.023840958 | R52: 1.023840958 | S52: 1.023840958
F53: 132kV/HV | G53: scalar
F54: HV | G54: scalar | J54: =CHOOSE(year_selection, L54,M54,N54,O54,P54,Q54,R54,S54) -> 1.032769628 | L54: 1.030550424 | M54: 1.03 | N54: 1.028404741 | O54: 1.032769628 | P54: 1.032769628 | Q54: 1.032769628 | R54: 1.032769628 | S54: 1.032769628
F55: HV/LV | G55: scalar | J55: =CHOOSE(year_selection, L55,M55,N55,O55,P55,Q55,R55,S55) -> 1.04988666 | L55: 1.046332868 | M55: 1.046 | N55: 1.044274395 | O55: 1.04988666 | P55: 1.04988666 | Q55: 1.04988666 | R55: 1.04988666 | S55: 1.04988666
F56: LV circuits | G56: scalar | J56: =CHOOSE(year_selection, L56,M56,N56,O56,P56,Q56,R56,S56) -> 1.10004388 | L56: 1.081111948 | M56: 1.08 | N56: 1.072868649 | O56: 1.10004388 | P56: 1.10004388 | Q56: 1.10004388 | R56: 1.10004388 | S56: 1.10004388
C58: =INDEX('Version control'!$H$37:$H$63,MATCH($A$1,'Version control'!$F$37:$F$63,0),1)&"-D: Average kVAr by kVA, by network level" -> Input 502-D: Average kVAr by kVA, by network level
E60: Average kVAr by kVA, by network level | I60: > | U60: Paragraphs 50 to 51
F61: Transmission exit | G61: kVAr/ kVA
F62: GSPs | G62: kVAr/ kVA | J62: =CHOOSE(year_selection, L62,M62,N62,O62,P62,Q62,R62,S62) -> 0.1076706985 | L62: 0.1021674158 | M62: 0.07179786606 | N62: 0.1099488697 | O62: 0.1076706985 | P62: 0.1076706985 | Q62: 0.1076706985 | R62: 0.1076706985 | S62: 0.1076706985
F63: 132kV | G63: kVAr/ kVA | J63: 0.1076706985 | L63: 0.1021674158 | M63: 0.07179786606 | N63: 0.1099488697 | O63: 0.1076706985 | P63: 0.1076706985 | Q63: 0.1076706985 | R63: 0.1076706985 | S63: 0.1076706985
F64: 132kV/EHV | G64: kVAr/ kVA | J64: 0.1521337249 | L64: 0.1413723181 | M64: 0.1345122283 | N64: 0.1434708043 | O64: 0.1521337249 | P64: 0.1521337249 | Q64: 0.1521337249 | R64: 0.1521337249 | S64: 0.1521337249
F65: EHV | G65: kVAr/ kVA | J65: 0.1521337249 | L65: 0.1413723181 | M65: 0.1345122283 | N65: 0.1434708043 | O65: 0.1521337249 | P65: 0.1521337249 | Q65: 0.1521337249 | R65: 0.1521337249 | S65: 0.1521337249
F66: EHV/HV | G66: kVAr/ kVA | J66: 0.1521337249 | L66: 0.1265383554 | M66: 0.1298018838 | N66: 0.1434708043 | O66: 0.1521337249 | P66: 0.1521337249 | Q66: 0.1521337249 | R66: 0.1521337249 | S66: 0.1521337249
F67: 132kV/HV | G67: kVAr/ kVA | J67: 0 | L67: 0 | M67: 0 | N67: 0 | O67: 0 | P67: 0 | Q67: 0 | R67: 0 | S67: 0
F68: HV | G68: kVAr/ kVA | J68: 0.1195421069 | L68: 0.1265383554 | M68: 0.1298018838 | N68: 0.1213096506 | O68: 0.1195421069 | P68: 0.1195421069 | Q68: 0.1195421069 | R68: 0.1195421069 | S68: 0.1195421069
F69: HV/LV | G69: kVAr/ kVA | J69: 0.1195421069 | L69: 0.1265383554 | M69: 0.1298018838 | N69: 0.1213096506 | O69: 0.1195421069 | P69: 0.1195421069 | Q69: 0.1195421069 | R69: 0.1195421069 | S69: 0.1195421069
F70: LV circuits | G70: kVAr/ kVA | J70: 0.1195421069 | L70: 0.1265383554 | M70: 0.1298018838 | N70: 0.1213096506 | O70: 0.1195421069 | P70: 0.1195421069 | Q70: 0.1195421069 | R70: 0.1195421069 | S70: 0.1195421069
C72: =INDEX('Version control'!$H$37:$H$63,MATCH($A$1,'Version control'!$F$37:$F$63,0),1)&"-E: Customer contributions under current connection charging policy" -> Input 502-E: Customer contributions under current connection charging policy
D74: Customer contributions under current connection charging policy | I74: > | U74: Paragraphs 29 to 31
E75: LV network
F76: Transmission exit | G76: %
F77: GSPs | G77: %
F78: 132kV | G78: % | J78: =CHOOSE(year_selection, L78,M78,N78,O78,P78,Q78,R78,S78) -> 0 | L78: 0 | M78: 0 | N78: 0 | O78: 0 | P78: 0 | Q78: 0 | R78: 0 | S78: 0
F79: 132kV/EHV | G79: % | J79: 0 | L79: 0 | M79: 0 | N79: 0 | O79: 0 | P79: 0 | Q79: 0 | R79: 0 | S79: 0
F80: EHV | G80: % | J80: 0 | L80: 0 | M80: 0 | N80: 0 | O80: 0 | P80: 0 | Q80: 0 | R80: 0 | S80: 0
F81: EHV/HV | G81: % | J81: 0 | L81: 0 | M81: 0 | N81: 0 | O81: 0 | P81: 0 | Q81: 0 | R81: 0 | S81: 0
F82: 132kV/HV | G82: % | J82: 0 | L82: 0 | M82: 0 | N82: 0 | O82: 0 | P82: 0 | Q82: 0 | R82: 0 | S82: 0
F83: HV | G83: % | J83: 0 | L83: 0.3 | M83: 0.3 | N83: 0.3 | O83: 0 | P83: 0 | Q83: 0 | R83: 0 | S83: 0
F84: HV/LV | G84: % | J84: 0 | L84: 0.3 | M84: 0.3 | N84: 0.3 | O84: 0 | P84: 0 | Q84: 0 | R84: 0 | S84: 0
F85: LV circuits | G85: % | J85: 0 | L85: 0.97 | M85: 0.97 | N85: 0.97 | O85: 0 | P85: 0 | Q85: 0 | R85: 0 | S85: 0
E86: LV substation
F87: Transmission exit | G87: %
F88: GSPs | G88: %
F89: 132kV | G89: % | J89: =CHOOSE(year_selection, L89,M89,N89,O89,P89,Q89,R89,S89) -> 0 | L89: 0 | M89: 0 | N89: 0 | O89: 0 | P89: 0 | Q89: 0 | R89: 0 | S89: 0
F90: 132kV/EHV | G90: % | J90: 0 | L90: 0 | M90: 0 | N90: 0 | O90: 0 | P90: 0 | Q90: 0 | R90: 0 | S90: 0
F91: EHV | G91: % | J91: 0 | L91: 0 | M91: 0 | N91: 0 | O91: 0 | P91: 0 | Q91: 0 | R91: 0 | S91: 0
F92: EHV/HV | G92: % | J92: 0 | L92: 0 | M92: 0 | N92: 0 | O92: 0 | P92: 0 | Q92: 0 | R92: 0 | S92: 0
F93: 132kV/HV | G93: % | J93: 0 | L93: 0 | M93: 0 | N93: 0 | O93: 0 | P93: 0 | Q93: 0 | R93: 0 | S93: 0
F94: HV | G94: % | J94: 0 | L94: 0.3 | M94: 0.3 | N94: 0.3 | O94: 0 | P94: 0 | Q94: 0 | R94: 0 | S94: 0
F95: HV/LV | G95: % | J95: 0 | L95: 0.97 | M95: 0.97 | N95: 0.97 | O95: 0 | P95: 0 | Q95: 0 | R95: 0 | S95: 0
F96: LV circuits | G96: %
E97: HV network
F98: Transmission exit | G98: %
F99: GSPs | G99: %
F100: 132kV | G100: % | J100: =CHOOSE(year_selection, L100,M100,N100,O100,P100,Q100,R100,S100) -> 0 | L100: 0 | M100: 0 | N100: 0 | O100: 0 | P100: 0 | Q100: 0 | R100: 0 | S100: 0
F101: 132kV/EHV | G101: % | J101: 0 | L101: 0 | M101: 0 | N101: 0 | O101: 0 | P101: 0 | Q101: 0 | R101: 0 | S101: 0
F102: EHV | G102: % | J102: 0 | L102: 0 | M102: 0 | N102: 0 | O102: 0 | P102: 0 | Q102: 0 | R102: 0 | S102: 0
F103: EHV/HV | G103: % | J103: 0 | L103: 0.57 | M103: 0.57 | N103: 0.57 | O103: 0 | P103: 0 | Q103: 0 | R103: 0 | S103: 0
F104: 132kV/HV | G104: % | J104: 0 | L104: 0 | M104: 0 | N104: 0 | O104: 0 | P104: 0 | Q104: 0 | R104: 0 | S104: 0
F105: HV | G105: % | J105: 0 | L105: 0.91 | M105: 0.91 | N105: 0.91 | O105: 0 | P105: 0 | Q105: 0 | R105: 0 | S105: 0
F106: HV/LV | G106: %
F107: LV circuits | G107: %
E108: HV substation
F109: Transmission exit | G109: %
F110: GSPs | G110: %
F111: 132kV | G111: % | J111: =CHOOSE(year_selection, L111,M111,N111,O111,P111,Q111,R111,S111) -> 0 | L111: 0 | M111: 0 | N111: 0 | O111: 0 | P111: 0 | Q111: 0 | R111: 0 | S111: 0
F112: 132kV/EHV | G112: % | J112: 0 | L112: 0 | M112: 0 | N112: 0 | O112: 0 | P112: 0 | Q112: 0 | R112: 0 | S112: 0
F113: EHV | G113: % | J113: 0 | L113: 0.57 | M113: 0.57 | N113: 0.57 | O113: 0 | P113: 0 | Q113: 0 | R113: 0 | S113: 0
F114: EHV/HV | G114: % | J114: 0 | L114: 0.92 | M114: 0.92 | N114: 0.92 | O114: 0 | P114: 0 | Q114: 0 | R114: 0 | S114: 0
F115: 132kV/HV | G115: %
F116: HV | G116: %
F117: HV/LV | G117: %
F118: LV circuits | G118: %
C120: =INDEX('Version control'!$H$37:$H$63,MATCH($A$1,'Version control'!$F$37:$F$63,0),1)&"-F: Gross asset cost by network level" -> Input 502-F: Gross asset cost by network level
E122: Gross asset cost by network level
F123: Transmission exit | G123: £
F124: GSPs | G124: £
F125: 132kV | G125: £ | J125: =CHOOSE(year_selection, L125,M125,N125,O125,P125,Q125,R125,S125) -> 130221017.8 | L125: 107288380 | M125: 113693869 | N125: 130416257.7 | O125: 130221017.8 | P125: 129633782.8 | Q125: 130455132.2 | R125: 132767793.5 | S125: 132767793.5
F126: 132kV/EHV | G126: £ | J126: 51509624.43 | L126: 42438496.14 | M126: 44972221.77 | N126: 51586852.63 | O126: 51509624.43 | P126: 51277340.47 | Q126: 51602229.64 | R126: 52517015.29 | S126: 52517015.29
F127: EHV | G127: £ | J127: 130065284.2 | L127: 107160072 | M127: 113557900.5 | N127: 130260290.6 | O127: 130065284.2 | P127: 129478751.5 | Q127: 130299118.6 | R127: 132609014.2 | S127: 132609014.2
F128: EHV/HV | G128: £ | J128: 82045623.08 | L128: 67596937.4 | M128: 71632709.37 | N128: 82168633.8 | O128: 82045623.08 | P128: 81675636.25 | Q128: 82193126.62 | R128: 83650216.62 | S128: 83650216.62
F129: 132kV/HV | G129: £ | J129: 0 | L129: 0 | M129: 0 | N129: 0 | O129: 0 | P129: 0 | Q129: 0 | R129: 0 | S129: 0
F130: HV | G130: £ | J130: 148952242.9 | L130: 122720933.3 | M130: 130047799.3 | N130: 149175566.5 | O130: 148952242.9 | P130: 148280539 | Q130: 149220032.7 | R130: 151865351.5 | S130: 151865351.5
F131: HV/LV | G131: £ | J131: 135236780.3 | L131: 111420839.2 | M131: 118073050.3 | N131: 135439540.4 | O131: 135236780.3 | P131: 134626926.6 | Q131: 135479912.2 | R131: 137881651 | S131: 137881651
F132: LV circuits | G132: £ | J132: 74970092.65 | L132: 61767446.81 | M132: 65455177.94 | N132: 75082495.06 | O132: 74970092.65 | P132: 74632013.11 | Q132: 75104875.64 | R132: 76436307.69 | S132: 76436307.69
C134: =INDEX('Version control'!$H$37:$H$63,MATCH($A$1,'Version control'!$F$37:$F$63,0),1)&"-G: Peaking probabilities, by timeband & network level" -> Input 502-G: Peaking probabilities, by timeband & network level
C136: Red, Amber & Green peaking probabilities must sum to 100%, except for unused network levels, which should sum to 0%
E138: Red peaking probabilities, by network level | I138: > | U138: Paragraphs 48 to 49
F139: Transmission exit | G139: %
F140: GSPs | G140: % | J140: =CHOOSE(year_selection, L140,M140,N140,O140,P140,Q140,R140,S140) -> 0.7333333333 | L140: 0.8888888889 | M140: 0.8222222222 | N140: 0.7777777778 | O140: 0.7333333333 | P140: 0.7333333333 | Q140: 0.7333333333 | R140: 0.7333333333 | S140: 0.7333333333
F141: 132kV | G141: % | J141: 0.7402608849 | L141: 0.6747076023 | M141: 0.6646324657 | N141: 0.6985706378 | O141: 0.7402608849 | P141: 0.7402608849 | Q141: 0.7402608849 | R141: 0.7402608849 | S141: 0.7402608849
F142: 132kV/EHV | G142: % | J142: 0.7402608849 | L142: 0.6747076023 | M142: 0.6646324657 | N142: 0.6985706378 | O142: 0.7402608849 | P142: 0.7402608849 | Q142: 0.7402608849 | R142: 0.7402608849 | S142: 0.7402608849
F143: EHV | G143: % | J143: 0.5595848569 | L143: 0.4879157027 | M143: 0.47885154 | N143: 0.5015348793 | O143: 0.5595848569 | P143: 0.5595848569 | Q143: 0.5595848569 | R143: 0.5595848569 | S143: 0.5595848569
F144: EHV/HV | G144: % | J144: 0.5595848569 | L144: 0.4879157027 | M144: 0.47885154 | N144: 0.5015348793 | O144: 0.5595848569 | P144: 0.5595848569 | Q144: 0.5595848569 | R144: 0.5595848569 | S144: 0.5595848569
F145: 132kV/HV | G145: % | J145: 0 | L145: 0 | M145: 0 | N145: 0 | O145: 0 | P145: 0 | Q145: 0 | R145: 0 | S145: 0
F146: HV | G146: % | J146: 0.5595848569 | L146: 0.4879157027 | M146: 0.47885154 | N146: 0.5015348793 | O146: 0.5595848569 | P146: 0.5595848569 | Q146: 0.5595848569 | R146: 0.5595848569 | S146: 0.5595848569
F147: HV/LV | G147: % | J147: 0.5595848569 | L147: 0.4879157027 | M147: 0.47885154 | N147: 0.5015348793 | O147: 0.5595848569 | P147: 0.5595848569 | Q147: 0.5595848569 | R147: 0.5595848569 | S147: 0.5595848569
F148: LV circuits | G148: % | J148: 0.5595848569 | L148: 0.4879157027 | M148: 0.47885154 | N148: 0.5015348793 | O148: 0.5595848569 | P148: 0.5595848569 | Q148: 0.5595848569 | R148: 0.5595848569 | S148: 0.5595848569
E150: Amber peaking probabilities, by network level | I150: > | U150: Paragraphs 48 to 49
F151: Transmission exit | G151: %
F152: GSPs | G152: % | J152: =CHOOSE(year_selection, L152,M152,N152,O152,P152,Q152,R152,S152) -> 0.2444444444 | L152: 0.1111111111 | M152: 0.1777777778 | N152: 0.2 | O152: 0.2444444444 | P152: 0.2444444444 | Q152: 0.2444444444 | R152: 0.2444444444 | S152: 0.2444444444
F153: 132kV | G153: % | J153: 0.2273929138 | L153: 0.222496345 | M153: 0.2583570008 | N153: 0.2447481298 | O153: 0.2273929138 | P153: 0.2273929138 | Q153: 0.2273929138 | R153: 0.2273929138 | S153: 0.2273929138
F154: 132kV/EHV | G154: % | J154: 0.2273929138 | L154: 0.222496345 | M154: 0.2583570008 | N154: 0.2447481298 | O154: 0.2273929138 | P154: 0.2273929138 | Q154: 0.2273929138 | R154: 0.2273929138 | S154: 0.2273929138
F155: EHV | G155: % | J155: 0.4063389863 | L155: 0.4013872703 | M155: 0.442939696 | N155: 0.4462218836 | O155: 0.4063389863 | P155: 0.4063389863 | Q155: 0.4063389863 | R155: 0.4063389863 | S155: 0.4063389863
F156: EHV/HV | G156: % | J156: 0.4063389863 | L156: 0.4013872703 | M156: 0.442939696 | N156: 0.4462218836 | O156: 0.4063389863 | P156: 0.4063389863 | Q156: 0.4063389863 | R156: 0.4063389863 | S156: 0.4063389863
F157: 132kV/HV | G157: % | J157: 0 | L157: 0 | M157: 0 | N157: 0 | O157: 0 | P157: 0 | Q157: 0 | R157: 0 | S157: 0
F158: HV | G158: % | J158: 0.4063389863 | L158: 0.4013872703 | M158: 0.442939696 | N158: 0.4462218836 | O158: 0.4063389863 | P158: 0.4063389863 | Q158: 0.4063389863 | R158: 0.4063389863 | S158: 0.4063389863
F159: HV/LV | G159: % | J159: 0.4063389863 | L159: 0.4013872703 | M159: 0.442939696 | N159: 0.4462218836 | O159: 0.4063389863 | P159: 0.4063389863 | Q159: 0.4063389863 | R159: 0.4063389863 | S159: 0.4063389863
F160: LV circuits | G160: % | J160: 0.4063389863 | L160: 0.4013872703 | M160: 0.442939696 | N160: 0.4462218836 | O160: 0.4063389863 | P160: 0.4063389863 | Q160: 0.4063389863 | R160: 0.4063389863 | S160: 0.4063389863
E162: Green peaking probabilities, by network level | I162: > | U162: Paragraphs 48 to 49
F163: Transmission exit | G163: %
F164: GSPs | G164: % | J164: =CHOOSE(year_selection, L164,M164,N164,O164,P164,Q164,R164,S164) -> 0.02222222222 | L164: 0 | M164: 0 | N164: 0.02222222222 | O164: 0.02222222222 | P164: 0.02222222222 | Q164: 0.02222222222 | R164: 0.02222222222 | S164: 0.02222222222
F165: 132kV | G165: % | J165: 0.0323462013 | L165: 0.1027960526 | M165: 0.07701053351 | N165: 0.05668123243 | O165: 0.0323462013 | P165: 0.0323462013 | Q165: 0.0323462013 | R165: 0.0323462013 | S165: 0.0323462013
F166: 132kV/EHV | G166: % | J166: 0.0323462013 | L166: 0.1027960526 | M166: 0.07701053351 | N166: 0.05668123243 | O166: 0.0323462013 | P166: 0.0323462013 | Q166: 0.0323462013 | R166: 0.0323462013 | S166: 0.0323462013
F167: EHV | G167: % | J167: 0.03407615676 | L167: 0.1106970269 | M167: 0.07820876404 | N167: 0.05224323707 | O167: 0.03407615676 | P167: 0.03407615676 | Q167: 0.03407615676 | R167: 0.03407615676 | S167: 0.03407615676
F168: EHV/HV | G168: % | J168: 0.03407615676 | L168: 0.1106970269 | M168: 0.07820876404 | N168: 0.05224323707 | O168: 0.03407615676 | P168: 0.03407615676 | Q168: 0.03407615676 | R168: 0.03407615676 | S168: 0.03407615676
F169: 132kV/HV | G169: % | J169: 0 | L169: 0 | M169: 0 | N169: 0 | O169: 0 | P169: 0 | Q169: 0 | R169: 0 | S169: 0
F170: HV | G170: % | J170: 0.03407615676 | L170: 0.1106970269 | M170: 0.07820876404 | N170: 0.05224323707 | O170: 0.03407615676 | P170: 0.03407615676 | Q170: 0.03407615676 | R170: 0.03407615676 | S170: 0.03407615676
F171: HV/LV | G171: % | J171: 0.03407615676 | L171: 0.1106970269 | M171: 0.07820876404 | N171: 0.05224323707 | O171: 0.03407615676 | P171: 0.03407615676 | Q171: 0.03407615676 | R171: 0.03407615676 | S171: 0.03407615676
F172: LV circuits | G172: % | J172: 0.03407615676 | L172: 0.1106970269 | M172: 0.07820876404 | N172: 0.05224323707 | O172: 0.03407615676 | P172: 0.03407615676 | Q172: 0.03407615676 | R172: 0.03407615676 | S172: 0.03407615676
E174: Black peaking probabilities, by network level
F175: Transmission exit | G175: %
F176: GSPs | G176: % | J176: =CHOOSE(year_selection, L176,M176,N176,O176,P176,Q176,R176,S176) -> 0.7111111111 | L176: 0.7777777778 | M176: 0.8222222222 | N176: 0.6444444444 | O176: 0.7111111111 | P176: 0.7111111111 | Q176: 0.7111111111 | R176: 0.7111111111 | S176: 0.7111111111
F177: 132kV | G177: % | J177: 0.7076502732 | L177: 0.515625 | M177: 0.5409836066 | N177: 0.4657147894 | O177: 0.7076502732 | P177: 0.7076502732 | Q177: 0.7076502732 | R177: 0.7076502732 | S177: 0.7076502732
F178: 132kV/EHV | G178: % | J178: 0.7076502732 | L178: 0.515625 | M178: 0.5409836066 | N178: 0.4657147894 | O178: 0.7076502732 | P178: 0.7076502732 | Q178: 0.7076502732 | R178: 0.7076502732 | S178: 0.7076502732
F179: EHV | G179: % | J179: 0.5418625708 | L179: 0.4243865232 | M179: 0.4602595628 | N179: 0.3493397449 | O179: 0.5418625708 | P179: 0.5418625708 | Q179: 0.5418625708 | R179: 0.5418625708 | S179: 0.5418625708
F180: EHV/HV | G180: % | J180: 0.5418625708 | L180: 0.4243865232 | M180: 0.4602595628 | N180: 0.3493397449 | O180: 0.5418625708 | P180: 0.5418625708 | Q180: 0.5418625708 | R180: 0.5418625708 | S180: 0.5418625708
F181: 132kV/HV | G181: % | J181: 0 | L181: 0 | M181: 0 | N181: 0 | O181: 0 | P181: 0 | Q181: 0 | R181: 0 | S181: 0
F182: HV | G182: % | J182: 0.5418625708 | L182: 0.4243865232 | M182: 0.4602595628 | N182: 0.3493397449 | O182: 0.5418625708 | P182: 0.5418625708 | Q182: 0.5418625708 | R182: 0.5418625708 | S182: 0.5418625708
F183: HV/LV | G183: % | J183: 0.5418625708 | L183: 0.4243865232 | M183: 0.4602595628 | N183: 0.3493397449 | O183: 0.5418625708 | P183: 0.5418625708 | Q183: 0.5418625708 | R183: 0.5418625708 | S183: 0.5418625708
F184: LV circuits | G184: % | J184: 0.5418625708 | L184: 0.4243865232 | M184: 0.4602595628 | N184: 0.3493397449 | O184: 0.5418625708 | P184: 0.5418625708 | Q184: 0.5418625708 | R184: 0.5418625708 | S184: 0.5418625708
B186: Checks
C188: Checks are not run for historic years, for which DNOs are not obliged to enter inputs.
E190: Check for error values | G190: number of issues | H190: =SUM(IF(ISERROR(H18:T185), 1)) -> 0
E192: Check that loss adjustment factor = 1 at grid supply point | G192: number of issues | H192: =SUM(L192:S192) -> 0 | O192: =IF(O48 = 1, 0, 1) -> 0 | P192: =IF(P48 = 1, 0, 1) -> 0 | Q192: =IF(Q48 = 1, 0, 1) -> 0 | R192: =IF(R48 = 1, 0, 1) -> 0 | S192: =IF(S48 = 1, 0, 1) -> 0
E194: Peaking probabilities check - General
F195: Transmission exit | G195: number of issues
F196: GSPs | G196: number of issues | H196: =SUM(L196:S196) -> 0 | O196: =IF(ABS(SUM(O140,O152,O164) - 1) < 10^-check_decimals,0,1) -> 0 | P196: =IF(ABS(SUM(P140,P152,P164) - 1) < 10^-check_decimals,0,1) -> 0 | Q196: =IF(ABS(SUM(Q140,Q152,Q164) - 1) < 10^-check_decimals,0,1) -> 0 | R196: =IF(ABS(SUM(R140,R152,R164) - 1) < 10^-check_decimals,0,1) -> 0 | S196: =IF(ABS(SUM(S140,S152,S164) - 1) < 10^-check_decimals,0,1) -> 0
F197: 132kV | G197: number of issues
F198: 132kV/EHV | G198: number of issues
F199: EHV | G199: number of issues | H199: 0 | O199: =IF(ABS(SUM(O143,O155,O167) - 1) < 10^-check_decimals,0,1) -> 0 | P199: 0 | Q199: 0 | R199: 0 | S199: 0
F200: EHV/HV | G200: number of issues | H200: 0 | O200: 0 | P200: 0 | Q200: 0 | R200: 0 | S200: 0
F201: 132kV/HV | G201: number of issues
F202: HV | G202: number of issues | H202: 0 | O202: =IF(ABS(SUM(O146,O158,O170) - 1) < 10^-check_decimals,0,1) -> 0 | P202: 0 | Q202: 0 | R202: 0 | S202: 0
F203: HV/LV | G203: number of issues | H203: 0 | O203: 0 | P203: 0 | Q203: 0 | R203: 0 | S203: 0
F204: LV circuits | G204: number of issues | H204: =SUM(L204:S204) -> 0 | O204: 0 | P204: 0 | Q204: 0 | R204: 0 | S204: 0
E206: Peaking probabilities check - 132kV/HV
F207: Transmission exit | G207: number of issues
F208: GSPs | G208: number of issues
F209: 132kV | G209: number of issues | H209: =SUM(L209:S209) -> 0 | O209: =IF(OR(ABS(SUM(O141,O153,O165) - 1) < 10^-check_decimals, ABS(SUM(O141,O153,O165) - 0) < 10^-check_decimals),0,1) -> 0 | P209: 0 | Q209: 0 | R209: 0 | S209: 0
F210: 132kV/EHV | G210: number of issues | H210: =SUM(L210:S210) -> 0 | O210: 0 | P210: 0 | Q210: 0 | R210: 0 | S210: 0
F211: EHV | G211: number of issues
F212: EHV/HV | G212: number of issues
F213: 132kV/HV | G213: number of issues | H213: =SUM(L213:S213) -> 0 | O213: =IF(OR(ABS(SUM(O145,O157,O169) - 1) < 10^-check_decimals, ABS(SUM(O145,O157,O169) - 0) < 10^-check_decimals),0,1) -> 0 | P213: =IF(OR(ABS(SUM(P145,P157,P169) - 1) < 10^-check_decimals, ABS(SUM(P145,P157,P169) - 0) < 10^-check_decimals),0,1) -> 0 | Q213: =IF(OR(ABS(SUM(Q145,Q157,Q169) - 1) < 10^-check_decimals, ABS(SUM(Q145,Q157,Q169) - 0) < 10^-check_decimals),0,1) -> 0 | R213: =IF(OR(ABS(SUM(R145,R157,R169) - 1) < 10^-check_decimals, ABS(SUM(R145,R157,R169) - 0) < 10^-check_decimals),0,1) -> 0 | S213: =IF(OR(ABS(SUM(S145,S157,S169) - 1) < 10^-check_decimals, ABS(SUM(S145,S157,S169) - 0) < 10^-check_decimals),0,1) -> 0
F214: HV | G214: number of issues
F215: HV/LV | G215: number of issues
F216: LV circuits | G216: number of issues
E218: Summary of checks | G218: number of issues | H218: =SUM(H190,H192,H195:H204,H207:H216) -> 0
B220: End of sheet

Sheet ARP_General inputs
A1: =MID(CELL("filename",A1),FIND("]",CELL("filename",A1))+1,255) -> ARP_General inputs
A2: =Cover!D21&" - "&Cover!D23 -> Electricity North West Limited - v1.0
A3: =Cover!D2&" - "&Cover!D8&" v"&Cover!D10&" - "&Cover!D19 -> ARP model - Release for charge setting v8 - 2025/26
A4: =H125 & IF(H125 = 1, " issue", " issues") &" identified in checks on this sheet" -> 0 issues identified in checks on this sheet
J5: ="Year selected ("& charging_year_selected &")" -> Year selected (2025/26) | L5: =TRANSPOSE('ARP_User control'!G28:H35) -> 2022/23 | M5: 2023/24 | N5: 2024/25 | O5: 2025/26 | P5: 2026/27 | Q5: 2027/28 | R5: 2028/29 | S5: 2029/30
B6: Click here to return to model map | G6: Units | H6: Constants | J6: ='ARP_User control'!$H$36 -> Current | L6: Historic | M6: Historic | N6: Historic | O6: Current | P6: Forecast | Q6: Forecast | R6: Forecast | S6: Forecast | U6: Legal text reference
B8: Description
C10: This sheet sets out general inputs by year.
C11: DNOs should populate the inputs for the charging year and the four following years.
C12: DNOs can also populate the three years preceding the charging year, but are not obliged to do so.
B14: General inputs
C16: =INDEX('Version control'!$H$37:$H$63,MATCH($A$1,'Version control'!$F$37:$F$63,0),1)&"-A: Split of hours by distribution timeband" -> Input 503-A: Split of hours by distribution timeband
E18: Typical annual hours by special distribution time band | I18: > | U18: Paragraphs 40 to 41
F19: Black | G19: hours per year | J19: =CHOOSE(year_selection, L19,M19,N19,O19,P19,Q19,R19,S19) -> 255 | L19: 258 | M19: 261 | N19: 258 | O19: 255 | P19: 258 | Q19: 261 | R19: 258 | S19: 258
F20: Yellow | G20: hours per year | J20: =CHOOSE(year_selection, L20,M20,N20,O20,P20,Q20,R20,S20) -> 3058.5 | L20: 3055.5 | M20: 3047 | N20: 3055.5 | O20: 3058.5 | P20: 3055.5 | Q20: 3055.5 | R20: 3047 | S20: 3055.5
F21: Green | G21: hours per year | J21: =CHOOSE(year_selection, L21,M21,N21,O21,P21,Q21,R21,S21) -> 5446.5 | L21: 5446.5 | M21: 5476 | N21: 5446.5 | O21: 5446.5 | P21: 5446.5 | Q21: 5467.5 | R21: 5455 | S21: 5446.5
E23: Typical annual hours by distribution time band | I23: > | U23: Paragraphs 40 to 41
F24: Red | G24: hours per year | J24: =CHOOSE(year_selection, L24,M24,N24,O24,P24,Q24,R24,S24) -> 783 | L24: 783 | M24: 780 | N24: 783 | O24: 783 | P24: 783 | Q24: 783 | R24: 780 | S24: 783
F25: Amber | G25: hours per year | J25: =CHOOSE(year_selection, L25,M25,N25,O25,P25,Q25,R25,S25) -> 2530.5 | L25: 2530.5 | M25: 2528 | N25: 2530.5 | O25: 2530.5 | P25: 2530.5 | Q25: 2533.5 | R25: 2525 | S25: 2530.5
F26: Green | G26: hours per year | J26: =CHOOSE(year_selection, L26,M26,N26,O26,P26,Q26,R26,S26) -> 5446.5 | L26: 5446.5 | M26: 5476 | N26: 5446.5 | O26: 5446.5 | P26: 5446.5 | Q26: 5467.5 | R26: 5455 | S26: 5446.5
C28: =INDEX('Version control'!$H$37:$H$63,MATCH($A$1,'Version control'!$F$37:$F$63,0),1)&"-B: Embedded network (LDNO) discount percentages" -> Input 503-B: Embedded network (LDNO) discount percentages
D30: Inputs sourced from PCDM
E32: Embedded network (LDNO) discount percentages | I32: > | U32: Paragraph 53
F33: LDNO LV: LV user | G33: % | J33: =CHOOSE(year_selection, L33,M33,N33,O33,P33,Q33,R33,S33) -> 0.3619206701 | L33: 0.3486598351 | M33: 0.3489024736 | N33: 0.3695306557 | O33: 0.3619206701 | P33: 0.3619206701 | Q33: 0.3619206701 | R33: 0.3619206701 | S33: 0.3619206701
F34: LDNO HV: LV user | G34: % | J34: =CHOOSE(year_selection, L34,M34,N34,O34,P34,Q34,R34,S34) -> 0.5503573612 | L34: 0.5431945928 | M34: 0.5442251368 | N34: 0.5539458222 | O34: 0.5503573612 | P34: 0.5503573612 | Q34: 0.5503573612 | R34: 0.5503573612 | S34: 0.5503573612 | W34: NHH UMS category D | X34: LV UMS (Pseudo HH Metered) | Y34: LV Generation NHH or Aggregate HH | Z34: LV Sub Generation NHH | AA34: LV Generation Intermittent | AB34: LV Generation Intermittent no RP charge | AC34: LV Generation Non-Intermittent | AD34: LV Generation Non-Intermittent no RP charge | AE34: LV Sub Generation Intermittent | AF34: LV Sub Generation Intermittent no RP charge | AG34: LV Sub Generation Non-Intermittent | AH34: LV Sub Generation Non-Intermittent no RP charge | AI34: HV Generation Intermittent | AJ34: HV Generation Intermittent no RP charge | AK34: HV Generation Non-Intermittent | AL34: HV Generation Non-Intermittent no RP charge
F35: LDNO HV: LV Sub user | G35: % | J35: =CHOOSE(year_selection, L35,M35,N35,O35,P35,Q35,R35,S35) -> 0.2777160593 | L35: 0.2762447602 | M35: 0.2779245269 | N35: 0.2743817162 | O35: 0.2777160593 | P35: 0.2777160593 | Q35: 0.2777160593 | R35: 0.2777160593 | S35: 0.2777160593
F36: LDNO HV: HV user | G36: % | J36: =CHOOSE(year_selection, L36,M36,N36,O36,P36,Q36,R36,S36) -> 0.1453428393 | L36: 0.1440796236 | M36: 0.1460956348 | N36: 0.1431602812 | O36: 0.1453428393 | P36: 0.1453428393 | Q36: 0.1453428393 | R36: 0.1453428393 | S36: 0.1453428393
C38: =INDEX('Version control'!$H$37:$H$63,MATCH($A$1,'Version control'!$F$37:$F$63,0),1)&"-C: CDCM target revenue" -> Input 503-C: CDCM target revenue
D40: The contents of this section are defined in Paragraph 1.5 of Schedule 15 (Table 1). | I40: > | U40: Paragraph 54, Schedule 15 Table 1
D41: The only rows used as inputs to the model itself are "Latest forecast of CDCM Revenue" and "Pass-through… Adjustment" items.
E43: Base Demand Revenue before inflation | G43: £ | J43: =CHOOSE(year_selection, L43,M43,N43,O43,P43,Q43,R43,S43) -> 434437812.5 | L43: 350200000 | M43: 460732866.4 | N43: 422829823.2 | O43: 434437812.5 | P43: 428788204.1 | Q43: 428788204.1 | R43: 428788204.1 | S43: 428788204.1
E44: Annual Iteration adjustment before inflation | G44: £ | J44: -790071.6156 | L44: -18899125.68 | M44: -3814379.415 | N44: -1369706.556 | O44: -790071.6156 | P44: -822820.219 | Q44: -822820.219 | R44: -822820.219 | S44: -822820.219
E45: RPI True-up before inflation | G45: £ | J45: 0 | L45: -2752635.842 | M45: 5690771.143 | N45: 33031678.6 | O45: 0
E46: Price index adjustment (RPI index) | G46: scalar | J46: 1.351154722 | L46: 1.277 | M46: 1.126644253 | N46: 1.276133759 | O46: 1.351154722 | P46: 1.371991664 | Q46: 1.371991664 | R46: 1.399431498 | S46: 1.427420128
E47: Base demand revenue | G47: £ | J47: 433647740.9 | L47: =SUM(L43:L45) -> 328548238.5 | M47: =SUM(M43:M45) -> 462609258.1 | N47: 454491795.3 | O47: =SUM(O43:O45) -> 433647740.9 | P47: =SUM(P43:P45) -> 427965383.9 | Q47: 427965383.9 | R47: 427965383.9 | S47: 427965383.9
E48: Inflation adjustment | G48: £ | J48: 152277451.8 | L48: =L47 * (L46 - 1) -> 91007862.06 | M48: 58586804.15 | N48: 125500527.7 | O48: 152277451.8 | P48: 159199555.5 | Q48: 159199555.5 | R48: 170942854.2 | S48: 182921019
E50: Pass-Through Licence Fees | G50: £ | J50: =CHOOSE(year_selection, L50,M50,N50,O50,P50,Q50,R50,S50) -> 0 | L50: 623137.673 | M50: 579338.4014 | N50: 1130848.341 | O50: 0
E51: Pass-Through Business Rates | G51: £ | J51: 0 | L51: -6922515.968 | M51: -8373138.051 | N51: -11494550.25 | O51: 0
E52: Pass-Through Transmission Connection Point Charges | G52: £ | J52: 0 | L52: -2013980.64 | M52: -3742463.825 | N52: -13650094 | O52: 0
E53: Pass-through Smart Meter Communication Licence Costs | G53: £ | J53: 3571723.697 | L53: 1551177.465 | M53: 0 | N53: 7881858.994 | O53: 3571723.697 | P53: 3725462.831 | Q53: 3725462.831 | R53: 3725462.831 | S53: 3725462.831
E54: Pass-through Smart Meter IT Costs | G54: £ | J54: 0 | L54: -86687.94599 | M54: 1202644.047 | N54: 4082707.882 | O54: 0
E55: Pass-through Ring Fence Costs | G55: £ | J55: 0 | L55: 0 | M55: 0 | N55: 0 | O55: 0
E56: Pass-through Supplier of Last Resort Adjustment | G56: £ | J56: 0 | L56: 589743.6356 | M56: 23159234.81 | N56: 1956473.429 | O56: 0
E57: Pass-through Eligible Bad Debt Adjustment | G57: £ | J57: 144609.5598 | L57: 355501.8003 | M57: 1027997.531 | N57: 3987492.461 | O57: 144609.5598 | P57: 0 | Q57: 0 | R57: 0 | S57: 0
E58: Pass-through COVID-19 Bad Debt Adjustment | G58: £ | J58: 0 | L58: 0 | M58: 0 | N58: 0 | O58: 0
E59: Pass-Through Others | G59: £ | J59: 0 | L59: 0 | M59: 0 | N59: 0 | O59: 0
E60: Allowed Pass-Through Items | G60: £ | J60: 3716333.257 | L60: =SUM(L50:L59) -> -5903623.981 | M60: 13853612.91 | N60: -6105263.139 | O60: =SUM(O50:O59) -> 3716333.257 | P60: =SUM(P50:P59) -> 3725462.831 | Q60: 3725462.831 | R60: 3725462.831 | S60: 3725462.831
E62: Broad Measure of Customer Service incentive | G62: £ | J62: =CHOOSE(year_selection, L62,M62,N62,O62,P62,Q62,R62,S62) -> 0 | L62: 3862178.711 | M62: 4699895.97 | N62: 4582933.94 | O62: 0
E63: Quality of Service incentive | G63: £ | J63: 0 | L63: 18498272.46 | M63: 19858476.11 | N63: 22353731.4 | O63: 0
E64: Connections Engagement incentive | G64: £ | J64: 0 | L64: 0 | M64: 0 | N64: 0 | O64: 0
E65: Time to Connect incentive | G65: £ | J65: 0 | L65: 1449635.98 | M65: 1504727.622 | N65: 1718552.679 | O65: 0
E66: Losses Discretionary Reward incentive | G66: £ | J66: 0 | L66: 0 | M66: 0 | N66: 0 | O66: 0
E67: Network Innovation Allowance | G67: £ | J67: 0 | L67: 2936892.704 | M67: 0 | N67: 0 | O67: 0
E68: Low Carbon Network Fund - Tier 1 unrecoverable | G68: £ | J68: 0 | L68: 0 | M68: 0 | N68: 0 | O68: 0
E69: Low Carbon Network Fund - Tier 2 & Discretionary Funding | G69: £ | J69: 0 | L69: 0 | M69: 0 | N69: 0 | O69: 0
E70: Connection Guaranteed Standards Systems & Processes penalty | G70: £ | J70: 0 | L70: 0 | M70: 0 | N70: 0 | O70: 0
E71: Residual Losses and Growth Incentive - Losses | G71: £ | J71: 0 | L71: 0 | M71: 0 | N71: 0 | O71: 0
E72: Residual Losses and Growth Incentive - Growth | G72: £ | J72: 0 | L72: 0 | M72: 0 | N72: 0 | O72: 0
E73: Incentive Revenue and Other Adjustments | G73: £ | J73: 0 | L73: =SUM(L62:L72) -> 26746979.85 | M73: 26063099.7 | N73: 28655218.02 | O73: =SUM(O62:O72) -> 0 | P73: 0 | Q73: 0 | R73: 0 | S73: 0
E75: Correction Factor | G75: £ | J75: =CHOOSE(year_selection, L75,M75,N75,O75,P75,Q75,R75,S75) -> 79138299.72 | L75: 31933888.05 | M75: 1015275.069 | N75: 18346354.56 | O75: 79138299.72 | P75: 0 | Q75: 0
E76: Total allowed Revenue | G76: £ | J76: =CHOOSE(year_selection, L76,M76,N76,O76,P76,Q76,R76,S76) -> 668779825.7 | L76: =L75 + L73 + L60 + L48 + L47 -> 472333344.5 | M76: 562128050 | N76: 620888632.4 | O76: 668779825.7 | P76: 590890402.2 | Q76: 590890402.2 | R76: 602633701 | S76: 614611865.8
E78: Other 1. Excluded services - Top-up, standby, and enhanced system security | G78: £ | J78: =CHOOSE(year_selection, L78,M78,N78,O78,P78,Q78,R78,S78) -> 0 | L78: 0 | M78: 0 | N78: 0 | O78: 0
E79: Other 2. Excluded services - Revenue protection services | G79: £ | J79: 0 | L79: 0 | M79: 0 | N79: 0 | O79: 0
E80: Other 3. Excluded services - Miscellaneous | G80: £ | J80: 0 | L80: 0 | M80: 0 | N80: 0 | O80: 0
E81: Other 4. Please describe if used | G81: £ | J81: 0 | L81: 0 | M81: 0 | N81: 0 | O81: 0
E82: Other 5. Please describe if used | G82: £ | J82: 0 | L82: 0 | M82: 0 | N82: 0 | O82: 0
E83: Total other revenue recovered by Use of System Charges | G83: £ | J83: 0 | L83: =SUM(L78:L82) -> 0 | M83: 0 | N83: 0 | O83: =SUM(O78:O82) -> 0 | P83: 0 | Q83: 0 | R83: 0 | S83: 0
E84: Total Revenue for Use of System Charges | G84: £ | J84: 668779825.7 | L84: =L76+L83 -> 472333344.5 | M84: 562128050 | N84: 620888632.4 | O84: 668779825.7 | P84: 590890402.2 | Q84: 590890402.2 | R84: 602633701 | S84: 614611865.8
E86: 1. Revenue raised outside CDCM - EDCM and Certain Interconnector Revenue | G86: £ | J86: =CHOOSE(year_selection, L86,M86,N86,O86,P86,Q86,R86,S86) -> 26989973.67 | L86: 18483922.96 | M86: 20975101.72 | N86: 25404044.46 | O86: 26989973.67 | P86: 23846587.15 | Q86: 23846587.15 | R86: 24320511.92 | S86: 24803915.18
E87: 2. Revenue raised outside CDCM - Voluntary under-recovery | G87: £ | J87: 0 | L87: 0 | M87: 0 | N87: 0 | O87: 0
E88: 3. Revenue raised outside CDCM - Please describe if used | G88: £ | J88: 0 | L88: 0 | M88: 0 | N88: 0 | O88: 0
E89: 4. Revenue raised outside CDCM - Please describe if used | G89: £ | J89: 0 | L89: 0 | M89: 0 | N89: 0 | O89: 0
E90: Total Revenue to be raised outside the CDCM | G90: £ | J90: 26989973.67 | L90: =SUM(L86:L89) -> 18483922.96 | M90: 20975101.72 | N90: 25404044.46 | O90: =SUM(O86:O89) -> 26989973.67 | P90: =SUM(P86:P89) -> 23846587.15 | Q90: 23846587.15 | R90: 24320511.92 | S90: 24803915.18
E91: Latest forecast of CDCM Revenue | G91: £ | J91: 641789852 | L91: =L84-L90 -> 453849421.5 | M91: 541152948.2 | N91: 595484587.9 | O91: 641789852 | P91: 567043815.1 | Q91: 567043815.1 | R91: 578313189.1 | S91: 589807950.6
E92: CDCM Revenue Used in Charging Model | G92: £ | J92: =CHOOSE(year_selection, L92,M92,N92,O92,P92,Q92,R92,S92) -> 641789852 | L92: =L91 -> 453849421.5 | M92: 541152948.2 | N92: 595484587.9 | O92: 641789852 | P92: 567043815.1 | Q92: 567043815.1 | R92: 578313189.1 | S92: 589807950.6
E94: Final Collected Revenue Forecast | G94: £ | J94: =CHOOSE(year_selection, L94,M94,N94,O94,P94,Q94,R94,S94) -> 668779825.7 | L94: 472333344.5 | M94: 562128050 | N94: 620888632.4 | O94: 668779825.7 | P94: 590890402.2 | Q94: 590890402.2 | R94: 602633701 | S94: 614611865.8
E95: Forecast Over / (Under) Recovery | G95: £ | J95: =CHOOSE(year_selection, L95,M95,N95,O95,P95,Q95,R95,S95) -> 0 | L95: =L94 - L83 - L76 + L87 -> 0 | M95: 0 | N95: 0 | O95: 0 | P95: 0 | Q95: 0 | R95: 0 | S95: 0
E96: Forecast overall percentage change to Allowed Revenue | G96: % | J96: =CHOOSE(year_selection, L96,M96,N96,O96,P96,Q96,R96,S96) -> 0.07713330671 | L96: =IF( K76 <> 0, L76 / K76 - 1, 0) -> 0 | M96: 0.190108758 | N96: 0.1045323791 | O96: 0.07713330671 | P96: -0.1164649717 | Q96: 0 | R96: 0.01987390342 | S96: 0.01987636062
E97: Overall % change to Use of System Charges effective 1st April of Regulatory Year to balance | G97: % | J97: =CHOOSE(year_selection, L97,M97,N97,O97,P97,Q97,R97,S97) -> 0.07713330671 | L97: =IF( K94 <> 0, L94 / K94 - 1, 0) -> 0 | M97: 0.190108758 | N97: 0.1045323791 | O97: 0.07713330671 | P97: -0.1164649717 | Q97: 0 | R97: 0.01987390342 | S97: 0.01987636062
C99: =INDEX('Version control'!$H$37:$H$63,MATCH($A$1,'Version control'!$F$37:$F$63,0),1)&"-D: Financial and general assumptions" -> Input 503-D: Financial and general assumptions
E101: Real post-tax cost of capital | G101: % | I101: > | J101: =CHOOSE(year_selection, L101,M101,N101,O101,P101,Q101,R101,S101) -> 0.049 | L101: 0.0365 | M101: 0.0374 | N101: 0.0374 | O101: 0.049 | P101: 0.049 | Q101: 0.049 | R101: 0.049 | S101: 0.049 | U101: Paragraph 57
E102: Days in the charging year | G102: days | J102: =CHOOSE(year_selection, L102,M102,N102,O102,P102,Q102,R102,S102) -> 365 | L102: 365 | M102: 366 | N102: 365 | O102: 365 | P102: 365 | Q102: 366 | R102: 365 | S102: 365
C104: =INDEX('Version control'!$H$37:$H$63,MATCH($A$1,'Version control'!$F$37:$F$63,0),1)&"-E: Transmission exit charges" -> Input 503-E: Transmission exit charges
E106: Transmission exit charges | G106: £ per year | I106: > | J106: =CHOOSE(year_selection, L106,M106,N106,O106,P106,Q106,R106,S106) -> 19076036.58 | L106: 18960271.58 | M106: 23288984.53 | N106: 22240932.02 | O106: 19076036.58 | P106: 18990012.71 | Q106: 19110331.93 | R106: 19449112.97 | S106: 19449112.97 | U106: Paragraph 38
C108: =INDEX('Version control'!$H$37:$H$63,MATCH($A$1,'Version control'!$F$37:$F$63,0),1)&"-F: Other expenditure" -> Input 503-F: Other expenditure
E110: Other expenditure | I110: > | U110: Paragraph 39
F111: Direct cost | G111: £ per year | J111: =CHOOSE(year_selection, L111,M111,N111,O111,P111,Q111,R111,S111) -> 51831949.65 | L111: 37915128.14 | M111: 47084079.17 | N111: 52828824.25 | O111: 51831949.65 | P111: 51598212.15 | Q111: 51925134.34 | R111: 52845644.33 | S111: 52845644.33
F112: Indirect cost | G112: £ per year | J112: =CHOOSE(year_selection, L112,M112,N112,O112,P112,Q112,R112,S112) -> 218809875.8 | L112: 131411604.6 | M112: 166701109.3 | N112: 199430237.7 | O112: 218809875.8 | P112: 217823147.1 | Q112: 219203257.3 | R112: 223089213.3 | S112: 223089213.3
F113: Network rates | G113: £ per year | J113: =CHOOSE(year_selection, L113,M113,N113,O113,P113,Q113,R113,S113) -> 35145721.26 | L113: 27046960 | M113: 40111734.18 | N113: 33823445.7 | O113: 35145721.26 | P113: 34987230.73 | Q113: 35208907.06 | R113: 35833077.82 | S113: 35833077.82
B115: Checks
C117: Checks are not run for historic years, for which DNOs are not obliged to enter inputs.
E119: Check for error values | G119: number of issues | H119: =SUM(IF(ISERROR(H15:S114), 1)) -> 0
E121: Hours in charging year check
F122: Normal distribution timebands | G122: number of issues | H122: =SUM(L122:S122) -> 0 | M122: =IF(SUM(M19:M21) = M$102 * hours_in_day, 0, 1) -> 0 | N122: 0 | O122: 0 | P122: 0 | Q122: 0 | R122: 0 | S122: 0
F123: Special distribution timebands | G123: number of issues | H123: =SUM(L123:S123) -> 0 | M123: =IF(SUM(M24:M26) = M$102 * hours_in_day, 0, 1) -> 0 | N123: 0 | O123: 0 | P123: 0 | Q123: 0 | R123: 0 | S123: 0
E125: Summary of checks | G125: number of issues | H125: =SUM(H119, H122:H123) -> 0
B127: End of sheet

Sheet Fixed inputs
A1: =MID(CELL("filename",A1),FIND("]",CELL("filename",A1))+1,255) -> Fixed inputs
A2: =Cover!D21&" - "&Cover!D23 -> Electricity North West Limited - v1.0
A3: =Cover!D2&" - "&Cover!D8&" v"&Cover!D10&" - "&Cover!D19 -> ARP model - Release for charge setting v8 - 2025/26
A4: =H197 & IF(H197 = 1, " issue", " issues") &" identified in checks on this sheet" -> 0 issues identified in checks on this sheet
B5: Click here to return to model map | G5: Units | H5: Constants | J5: Domestic Aggregated or CT | K5: Domestic Aggregated (Related MPAN) | L5: Non-Domestic Aggregated or CT | M5: Non-Domestic Aggregated (Related MPAN) | N5: LV Site Specific | O5: LV Sub Site Specific | P5: HV Site Specific | Q5: Unmetered Supplies | R5: LV Generation Aggregated | S5: LV Sub Generation Aggregated | T5: LV Generation Site Specific | U5: LV Generation Site Specific no RP Charge | V5: LV Sub Generation Site Specific | W5: LV Sub Generation Site Specific no RP Charge | X5: HV Generation Site Specific | Y5: HV Generation Site Specific no RP Charge | AQ5: Legal text reference
B7: Description
C9: This sheet sets out the inputs that should be constant across DNOs
B11: Fixed inputs
C13: =INDEX('Version control'!$H$37:$H$63,MATCH($A$1,'Version control'!$F$37:$F$63,0),1)&"-A: Conversions and time" -> Input 504-A: Conversions and time
E15: Hours per day | G15: hours | H15: 24
E16: Ten | G16: integer | H16: 10
E17: One hundred | G17: integer | H17: 100
E18: One thousand | G18: integer | H18: 1000
C20: =INDEX('Version control'!$H$37:$H$63,MATCH($A$1,'Version control'!$F$37:$F$63,0),1)&"-B: Input 101-B: Rounding" -> Input 504-B: Input 101-B: Rounding
D22: Number of decimal places each final charge should be rounded to, specified in Paragraph 14.
E24: Decimal places | I24: > | AQ24: Paragraph 14
F25: Unit rate 1 | G25: integer | H25: 3
F26: Unit rate 2 | G26: integer | H26: 3
F27: Unit rate 3 | G27: integer | H27: 3
F28: Fixed charge | G28: integer | H28: 2
F29: Capacity charge | G29: integer | H29: 2
F30: Exceeded capacity charge | G30: integer | H30: 2
F31: Reactive power charge | G31: integer | H31: 3
C33: =INDEX('Version control'!$H$37:$H$63,MATCH($A$1,'Version control'!$F$37:$F$63,0),1)&"-C: Financial and general assumptions" -> Input 504-C: Financial and general assumptions
E35: Annualisation period | G35: years | H35: 40 | I35: > | AQ35: Paragraph 57
E37: Power factor | G37: % | H37: 0.95 | I37: > | AQ37: Paragraphs 21 & 79
E39: Indirect cost proportion | G39: % | H39: 0.6 | I39: > | AQ39: Paragraph 39
E41: Network model GSP peak demand | G41: MW | H41: 500 | I41: > | AQ41: Paragraph 20
C43: =INDEX('Version control'!$H$37:$H$63,MATCH($A$1,'Version control'!$F$37:$F$63,0),1)&"-D: Mappings" -> Input 504-D: Mappings
E45: LDNO discount map
F46: LDNO LV: LV user | G46: 1 or 0 | J46: 1 | K46: 1 | L46: 1 | M46: 1 | N46: 1 | O46: 0 | P46: 0 | Q46: 1
F47: LDNO HV: LV user | G47: 1 or 0 | J47: 1 | K47: 1 | L47: 1 | M47: 1 | N47: 1 | O47: 0 | P47: 0 | Q47: 1
F48: LDNO HV: LV Sub user | G48: 1 or 0 | J48: 0 | K48: 0 | L48: 0 | M48: 0 | N48: 0 | O48: 1 | P48: 0 | Q48: 0
F49: LDNO HV: HV user | G49: 1 or 0 | J49: 0 | K49: 0 | L49: 0 | M49: 0 | N49: 0 | O49: 0 | P49: 1 | Q49: 0
E51: Network level at which users are supplied | I51: > | AQ51: Paragraph 30
E52: Network use factors based on customer contributed assets
F53: HV substation | G53: 1 or 0 | J53: 0 | K53: 0 | L53: 0 | M53: 0 | N53: 0 | O53: 0 | P53: 0 | Q53: 0 | R53: 0 | S53: 0 | T53: 0 | U53: 0 | V53: 0 | W53: 0 | X53: 0 | Y53: 0
F54: HV network | G54: 1 or 0 | J54: 0 | K54: 0 | L54: 0 | M54: 0 | N54: 0 | O54: 0 | P54: 1 | Q54: 0 | R54: 0 | S54: 0 | T54: 0 | U54: 0 | V54: 0 | W54: 0 | X54: 1 | Y54: 1
F55: LV substation | G55: 1 or 0 | J55: 0 | K55: 0 | L55: 0 | M55: 0 | N55: 0 | O55: 1 | P55: 0 | Q55: 0 | R55: 0 | S55: 1 | T55: 0 | U55: 0 | V55: 1 | W55: 1 | X55: 0 | Y55: 0
F56: LV network | G56: 1 or 0 | J56: 1 | K56: 1 | L56: 1 | M56: 1 | N56: 1 | O56: 0 | P56: 0 | Q56: 1 | R56: 1 | S56: 0 | T56: 1 | U56: 1 | V56: 0 | W56: 0 | X56: 0 | Y56: 0
E58: Network use factors (assuming generation contributes at level of connection)
E59: These assume demand and generation use the network from the point of connection.
F60: Transmission exit | G60: 1, 0 or -1 | J60: 1 | K60: 1 | L60: 1 | M60: 1 | N60: 1 | O60: 1 | P60: 1 | Q60: 1 | R60: -1 | S60: -1 | T60: -1 | U60: -1 | V60: -1 | W60: -1 | X60: -1 | Y60: -1
F61: GSPs | G61: 1, 0 or -1 | J61: 1 | K61: 1 | L61: 1 | M61: 1 | N61: 1 | O61: 1 | P61: 1 | Q61: 1 | R61: -1 | S61: -1 | T61: -1 | U61: -1 | V61: -1 | W61: -1 | X61: -1 | Y61: -1
F62: 132kV | G62: 1, 0 or -1 | J62: 1 | K62: 1 | L62: 1 | M62: 1 | N62: 1 | O62: 1 | P62: 1 | Q62: 1 | R62: -1 | S62: -1 | T62: -1 | U62: -1 | V62: -1 | W62: -1 | X62: -1 | Y62: -1
F63: 132kV/EHV | G63: 1, 0 or -1 | J63: 1 | K63: 1 | L63: 1 | M63: 1 | N63: 1 | O63: 1 | P63: 1 | Q63: 1 | R63: -1 | S63: -1 | T63: -1 | U63: -1 | V63: -1 | W63: -1 | X63: -1 | Y63: -1
F64: EHV | G64: 1, 0 or -1 | J64: 1 | K64: 1 | L64: 1 | M64: 1 | N64: 1 | O64: 1 | P64: 1 | Q64: 1 | R64: -1 | S64: -1 | T64: -1 | U64: -1 | V64: -1 | W64: -1 | X64: -1 | Y64: -1
F65: EHV/HV | G65: 1, 0 or -1 | J65: 1 | K65: 1 | L65: 1 | M65: 1 | N65: 1 | O65: 1 | P65: 1 | Q65: 1 | R65: -1 | S65: -1 | T65: -1 | U65: -1 | V65: -1 | W65: -1 | X65: -1 | Y65: -1
F66: 132kV/HV | G66: 1, 0 or -1 | J66: 1 | K66: 1 | L66: 1 | M66: 1 | N66: 1 | O66: 1 | P66: 1 | Q66: 1 | R66: -1 | S66: -1 | T66: -1 | U66: -1 | V66: -1 | W66: -1 | X66: -1 | Y66: -1
F67: HV | G67: 1, 0 or -1 | J67: 1 | K67: 1 | L67: 1 | M67: 1 | N67: 1 | O67: 1 | P67: 1 | Q67: 1 | R67: -1 | S67: -1 | T67: -1 | U67: -1 | V67: -1 | W67: -1 | X67: -1 | Y67: -1
F68: HV/LV | G68: 1, 0 or -1 | J68: 1 | K68: 1 | L68: 1 | M68: 1 | N68: 1 | O68: 1 | P68: 0 | Q68: 1 | R68: -1 | S68: -1 | T68: -1 | U68: -1 | V68: -1 | W68: -1 | X68: 0 | Y68: 0
F69: LV circuits | G69: 1, 0 or -1 | J69: 1 | K69: 1 | L69: 1 | M69: 1 | N69: 1 | O69: 0 | P69: 0 | Q69: 1 | R69: -1 | S69: 0 | T69: -1 | U69: -1 | V69: 0 | W69: 0 | X69: 0 | Y69: 0
E71: Network use factors (assuming generation makes no contribution at level of connection) | I71: > | AQ71: Paragraphs 62 & 71
E72: Equal to 0 for the network level at which generation is connected, otherwise equal to network use factor
F73: Transmission exit | G73: 1, 0 or -1 | J73: 1 | K73: 1 | L73: 1 | M73: 1 | N73: 1 | O73: 1 | P73: 1 | Q73: 1 | R73: -1 | S73: -1 | T73: -1 | U73: -1 | V73: -1 | W73: -1 | X73: -1 | Y73: -1
F74: GSPs | G74: 1, 0 or -1 | J74: 1 | K74: 1 | L74: 1 | M74: 1 | N74: 1 | O74: 1 | P74: 1 | Q74: 1 | R74: -1 | S74: -1 | T74: -1 | U74: -1 | V74: -1 | W74: -1 | X74: -1 | Y74: -1
F75: 132kV | G75: 1, 0 or -1 | J75: 1 | K75: 1 | L75: 1 | M75: 1 | N75: 1 | O75: 1 | P75: 1 | Q75: 1 | R75: -1 | S75: -1 | T75: -1 | U75: -1 | V75: -1 | W75: -1 | X75: -1 | Y75: -1
F76: 132kV/EHV | G76: 1, 0 or -1 | J76: 1 | K76: 1 | L76: 1 | M76: 1 | N76: 1 | O76: 1 | P76: 1 | Q76: 1 | R76: -1 | S76: -1 | T76: -1 | U76: -1 | V76: -1 | W76: -1 | X76: -1 | Y76: -1
F77: EHV | G77: 1, 0 or -1 | J77: 1 | K77: 1 | L77: 1 | M77: 1 | N77: 1 | O77: 1 | P77: 1 | Q77: 1 | R77: -1 | S77: -1 | T77: -1 | U77: -1 | V77: -1 | W77: -1 | X77: -1 | Y77: -1
F78: EHV/HV | G78: 1, 0 or -1 | J78: 1 | K78: 1 | L78: 1 | M78: 1 | N78: 1 | O78: 1 | P78: 1 | Q78: 1 | R78: -1 | S78: -1 | T78: -1 | U78: -1 | V78: -1 | W78: -1 | X78: -1 | Y78: -1
F79: 132kV/HV | G79: 1, 0 or -1 | J79: 1 | K79: 1 | L79: 1 | M79: 1 | N79: 1 | O79: 1 | P79: 1 | Q79: 1 | R79: -1 | S79: -1 | T79: -1 | U79: -1 | V79: -1 | W79: -1 | X79: -1 | Y79: -1
F80: HV | G80: 1, 0 or -1 | J80: 1 | K80: 1 | L80: 1 | M80: 1 | N80: 1 | O80: 1 | P80: 1 | Q80: 1 | R80: -1 | S80: -1 | T80: -1 | U80: -1 | V80: -1 | W80: -1 | X80: 0 | Y80: 0
F81: HV/LV | G81: 1, 0 or -1 | J81: 1 | K81: 1 | L81: 1 | M81: 1 | N81: 1 | O81: 1 | P81: 0 | Q81: 1 | R81: -1 | S81: 0 | T81: -1 | U81: -1 | V81: 0 | W81: 0 | X81: 0 | Y81: 0
F82: LV circuits | G82: 1, 0 or -1 | J82: 1 | K82: 1 | L82: 1 | M82: 1 | N82: 1 | O82: 0 | P82: 0 | Q82: 1 | R82: 0 | S82: 0 | T82: 0 | U82: 0 | V82: 0 | W82: 0 | X82: 0 | Y82: 0
C84: =INDEX('Version control'!$H$37:$H$63,MATCH($A$1,'Version control'!$F$37:$F$63,0),1)&"-E: Standing charge factors" -> Input 504-E: Standing charge factors
E86: Standing charge factors | I86: > | AQ86: Paragraph 74
E87: Sets the proportion of costs to be recovered through fixed and capacity charge components.
F88: Transmission exit | G88: %
F89: GSPs | G89: %
F90: 132kV | G90: %
F91: 132kV/EHV | G91: %
F92: EHV | G92: % | P92: 0.2
F93: EHV/HV | G93: % | P93: 1
F94: 132kV/HV | G94: %
F95: HV | G95: % | N95: 0.2 | O95: 1 | P95: 1
F96: HV/LV | G96: % | N96: 1 | O96: 1
F97: LV circuits | G97: % | J97: 1 | K97: 1 | L97: 1 | M97: 1 | N97: 1 | Q97: 0
C99: =INDEX('Version control'!$H$37:$H$63,MATCH($A$1,'Version control'!$F$37:$F$63,0),1)&"-F: Flags" -> Input 504-F: Flags
D101: Override discount rate applied
D102: See Schedule 16, para 125. This has been interpreted to mean that MPANs are fully discounted,
D103: and everything else is not
E104: MWh
F105: Override discount | G105: TRUE / FALSE | I105: > | J105: FALSE | K105: FALSE | L105: FALSE | M105: FALSE | N105: FALSE | O105: FALSE | P105: FALSE | Q105: FALSE | R105: TRUE | S105: TRUE | T105: TRUE | U105: TRUE | V105: TRUE | W105: TRUE | X105: TRUE | Y105: TRUE | AQ105: Paragraph 99
F106: Discount % | G106: % | R106: 0 | S106: 0 | T106: 0 | U106: 0 | V106: 0 | W106: 0 | X106: 0 | Y106: 0
E108: MPANs
F109: Override discount | G109: TRUE / FALSE | J109: FALSE | K109: FALSE | L109: FALSE | M109: FALSE | N109: FALSE | O109: FALSE | P109: FALSE | Q109: FALSE | R109: TRUE | S109: TRUE | T109: TRUE | U109: TRUE | V109: TRUE | W109: TRUE | X109: TRUE | Y109: TRUE
F110: Discount % | G110: % | R110: 1 | S110: 1 | T110: 1 | U110: 1 | V110: 1 | W110: 1 | X110: 1 | Y110: 1
E112: Import capacity (kVA)
F113: Override discount | G113: TRUE / FALSE | J113: FALSE | K113: FALSE | L113: FALSE | M113: FALSE | N113: FALSE | O113: FALSE | P113: FALSE | Q113: FALSE | R113: TRUE | S113: TRUE | T113: TRUE | U113: TRUE | V113: TRUE | W113: TRUE | X113: TRUE | Y113: TRUE
F114: Discount % | G114: % | R114: 0 | S114: 0 | T114: 0 | U114: 0 | V114: 0 | W114: 0 | X114: 0 | Y114: 0
E116: Exceeded capacity (kVA)
F117: Override discount | G117: TRUE / FALSE | J117: FALSE | K117: FALSE | L117: FALSE | M117: FALSE | N117: FALSE | O117: FALSE | P117: FALSE | Q117: FALSE | R117: TRUE | S117: TRUE | T117: TRUE | U117: TRUE | V117: TRUE | W117: TRUE | X117: TRUE | Y117: TRUE
F118: Discount % | G118: % | R118: 0 | S118: 0 | T118: 0 | U118: 0 | V118: 0 | W118: 0 | X118: 0 | Y118: 0
E120: Reactive power units (MVArh)
F121: Override discount | G121: TRUE / FALSE | J121: FALSE | K121: FALSE | L121: FALSE | M121: FALSE | N121: FALSE | O121: FALSE | P121: FALSE | Q121: FALSE | R121: TRUE | S121: TRUE | T121: TRUE | U121: TRUE | V121: TRUE | W121: TRUE | X121: TRUE | Y121: TRUE
F122: Discount % | G122: % | R122: 0 | S122: 0 | T122: 0 | U122: 0 | V122: 0 | W122: 0 | X122: 0 | Y122: 0
E124: Unmetered supply flags
E125: These are used to flag UMS tariff forecast in the pseudo load coefficient calculations, because UMS
E126: customers are subject to a different timebanding
F127: Unmetered supply flags | G127: TRUE / FALSE | J127: FALSE | K127: FALSE | L127: FALSE | M127: FALSE | N127: FALSE | O127: FALSE | P127: FALSE | Q127: TRUE | R127: FALSE | S127: FALSE | T127: FALSE | U127: FALSE | V127: FALSE | W127: FALSE | X127: FALSE | Y127: FALSE
E129: Flags used in calculation of LV diversity allowance
E130: FALSE = exclude
F131: Flag for customers included in aggregate maximum demand | G131: TRUE / FALSE | J131: TRUE | K131: FALSE | L131: TRUE | M131: FALSE | N131: TRUE | O131: TRUE | P131: TRUE | Q131: TRUE | R131: TRUE | S131: TRUE | T131: TRUE | U131: TRUE | V131: TRUE | W131: TRUE | X131: TRUE | Y131: TRUE
E133: Flags for applicability of capacity & reactive charges | I133: > | AQ133: Paragraphs 141 & 146
E134: 0 = charges not applicable to customer type
E135: For fixed charges, 1 = capacity element is allocated to fixed charges
F136: Capacity charge | G136: 1 or 0 | J136: 0 | K136: 0 | L136: 0 | M136: 0 | N136: 1 | O136: 1 | P136: 1 | Q136: 0 | R136: 0 | S136: 0 | T136: 0 | U136: 0 | V136: 0 | W136: 0 | X136: 0 | Y136: 0
F137: Exceeded capacity charge | G137: 1 or 0 | J137: 0 | K137: 0 | L137: 0 | M137: 0 | N137: 1 | O137: 1 | P137: 1 | Q137: 0 | R137: 0 | S137: 0 | T137: 0 | U137: 0 | V137: 0 | W137: 0 | X137: 0 | Y137: 0
F138: Reactive power | G138: 1 or 0 | J138: 0 | K138: 0 | L138: 0 | M138: 0 | N138: 1 | O138: 1 | P138: 1 | Q138: 0 | R138: 0 | S138: 0 | T138: 1 | U138: 0 | V138: 1 | W138: 0 | X138: 1 | Y138: 0
F139: Capacity charge allocated to fixed charge | G139: 1 or 0 | J139: 1 | K139: 0 | L139: 1 | M139: 0 | N139: 0 | O139: 0 | P139: 0 | Q139: 0 | R139: 0 | S139: 0 | T139: 0 | U139: 0 | V139: 0 | W139: 0 | X139: 0 | Y139: 0
C141: =INDEX('Version control'!$H$37:$H$63,MATCH($A$1,'Version control'!$F$37:$F$63,0),1)&"-G: Identifiers for customer groupings" -> Input 504-G: Identifiers for customer groupings
E143: Groupings for fixed charges
E144: Sets out the groups that are aggregated when calculating fixed charges. Each group is given an identifier. | I144: > | AQ144: Paragraph 83
F145: Groupings for fixed charges | G145: integer | J145: 1 | L145: 1
E147: Groupings for aggregated pseudo-load coefficients | I147: > | AQ147: Paragraph 70 c) iv
E148: Sets out the groups that are equalised for unit rates, as set out in Paragraph 70 c) iv
F149: Pseudo-load coefficient aggregation group | G149: integer | J149: 1 | K149: 1 | L149: 2 | M149: 2 | N149: 3 | O149: 4 | P149: 5
C151: =INDEX('Version control'!$H$37:$H$63,MATCH($A$1,'Version control'!$F$37:$F$63,0),1)&"-H: Decimal places for error checks" -> Input 504-H: Decimal places for error checks
E153: Decimals of precision for error checks | G153: integer | H153: 3
C155: =INDEX('Version control'!$H$37:$H$63,MATCH($A$1,'Version control'!$F$37:$F$63,0),1)&"-I: Map of applicable MPANs" -> Input 504-I: Map of applicable MPANs
E157: Map of applicable MPANs | I157: > | AQ157: Paragraphs 101 and 103
F158: Pass-through Supplier of Last Resort Adjustment | G158: 1 or 0 | J158: 1 | K158: 0 | L158: 0 | M158: 0 | N158: 0 | O158: 0 | P158: 0 | Q158: 0 | R158: 0 | S158: 0 | T158: 0 | U158: 0 | V158: 0 | W158: 0 | X158: 0 | Y158: 0
F159: Pass-through Eligible Bad Debt Adjustment | G159: 1 or 0 | J159: 1 | K159: 0 | L159: 1 | M159: 0 | N159: 1 | O159: 1 | P159: 1 | Q159: 0 | R159: 0 | S159: 0 | T159: 0 | U159: 0 | V159: 0 | W159: 0 | X159: 0 | Y159: 0
F160: Pass-through COVID-19 Bad Debt Adjustment | G160: 1 or 0 | J160: 1 | K160: 0 | L160: 1 | M160: 0 | N160: 1 | O160: 1 | P160: 1 | Q160: 0 | R160: 0 | S160: 0 | T160: 0 | U160: 0 | V160: 0 | W160: 0 | X160: 0 | Y160: 0
C162: =INDEX('Version control'!$H$37:$H$63,MATCH($A$1,'Version control'!$F$37:$F$63,0),1)&"-J: Revenue matching inputs" -> Input 504-J: Revenue matching inputs
E164: Flags for calculation of revenue matching | J164: Domestic Aggregated or CT with Residual | K164: Domestic Aggregated (Related MPAN) | L164: Non-Domestic Aggregated or CT No Residual | M164: Non-Domestic Aggregated or CT Band 1 | N164: Non-Domestic Aggregated or CT Band 2 | O164: Non-Domestic Aggregated or CT Band 3 | P164: Non-Domestic Aggregated or CT Band 4 | Q164: Non-Domestic Aggregated (Related MPAN) | R164: LV Site Specific No Residual | S164: LV Site Specific Band 1 | T164: LV Site Specific Band 2 | U164: LV Site Specific Band 3 | V164: LV Site Specific Band 4 | W164: LV Sub Site Specific No Residual | X164: LV Sub Site Specific Band 1 | Y164: LV Sub Site Specific Band 2 | Z164: LV Sub Site Specific Band 3 | AA164: LV Sub Site Specific Band 4 | AB164: HV Site Specific No Residual | AC164: HV Site Specific Band 1 | AD164: HV Site Specific Band 2 | AE164: HV Site Specific Band 3 | AF164: HV Site Specific Band 4 | AG164: Unmetered Supplies | AH164: LV Generation Aggregated | AI164: LV Sub Generation Aggregated | AJ164: LV Generation Site Specific | AK164: LV Generation Site Specific no RP Charge | AL164: LV Sub Generation Site Specific | AM164: LV Sub Generation Site Specific no RP Charge | AN164: HV Generation Site Specific | AO164: HV Generation Site Specific no RP Charge
F165: Residual charges | G165: TRUE or FALSE | J165: TRUE | K165: FALSE | L165: FALSE | M165: TRUE | N165: TRUE | O165: TRUE | P165: TRUE | Q165: FALSE | R165: FALSE | S165: TRUE | T165: TRUE | U165: TRUE | V165: TRUE | W165: FALSE | X165: TRUE | Y165: TRUE | Z165: TRUE | AA165: TRUE | AB165: FALSE | AC165: TRUE | AD165: TRUE | AE165: TRUE | AF165: TRUE | AG165: TRUE | AH165: FALSE | AI165: FALSE | AJ165: FALSE | AK165: FALSE | AL165: FALSE | AM165: FALSE | AN165: FALSE | AO165: FALSE
F166: Residual fixed charge | G166: TRUE or FALSE | J166: TRUE | M166: TRUE | N166: TRUE | O166: TRUE | P166: TRUE | S166: TRUE | T166: TRUE | U166: TRUE | V166: TRUE | X166: TRUE | Y166: TRUE | Z166: TRUE | AA166: TRUE | AC166: TRUE | AD166: TRUE | AE166: TRUE | AF166: TRUE | AG166: FALSE
F167: Residual, no fixed charge | G167: TRUE or FALSE | J167: FALSE | M167: FALSE | N167: FALSE | O167: FALSE | P167: FALSE | S167: FALSE | T167: FALSE | U167: FALSE | V167: FALSE | X167: FALSE | Y167: FALSE | Z167: FALSE | AA167: FALSE | AC167: FALSE | AD167: FALSE | AE167: FALSE | AF167: FALSE | AG167: TRUE
F168: Residual group | G168: integer | J168: 1 | M168: 2 | N168: 2 | O168: 2 | P168: 2 | S168: 3 | T168: 3 | U168: 3 | V168: 3 | X168: 3 | Y168: 3 | Z168: 3 | AA168: 3 | AC168: 4 | AD168: 4 | AE168: 4 | AF168: 4 | AG168: 5
F169: Residual band | G169: integer | J169: 1 | M169: 1 | N169: 2 | O169: 3 | P169: 4 | S169: 1 | T169: 2 | U169: 3 | V169: 4 | X169: 1 | Y169: 2 | Z169: 3 | AA169: 4 | AC169: 1 | AD169: 2 | AE169: 3 | AF169: 4 | AG169: 1
F170: Index of tariff before revenue matching | G170: integer | J170: 1 | K170: 2 | L170: 3 | M170: 3 | N170: 3 | O170: 3 | P170: 3 | Q170: 4 | R170: 5 | S170: 5 | T170: 5 | U170: 5 | V170: 5 | W170: 6 | X170: 6 | Y170: 6 | Z170: 6 | AA170: 6 | AB170: 7 | AC170: 7 | AD170: 7 | AE170: 7 | AF170: 7 | AG170: 8 | AH170: 9 | AI170: 10 | AJ170: 11 | AK170: 12 | AL170: 13 | AM170: 14 | AN170: 15 | AO170: 16
E172: Minimum number of MPANs in residual band | G172: integer | H172: 2
E174: Band grouping configurations
F175: The legal text requires that any bands with fewer than 2 customers are combined with another band. This input
F176: defines the different possible configurations of these band combinations. | J176: Domestic Aggregated or CT with Residual | K176: Domestic Aggregated (Related MPAN) | L176: Non-Domestic Aggregated or CT No Residual | M176: Non-Domestic Aggregated or CT Band 1 | N176: Non-Domestic Aggregated or CT Band 2 | O176: Non-Domestic Aggregated or CT Band 3 | P176: Non-Domestic Aggregated or CT Band 4 | Q176: Non-Domestic Aggregated (Related MPAN) | R176: LV Site Specific No Residual | S176: LV Site Specific Band 1 | T176: LV Site Specific Band 2 | U176: LV Site Specific Band 3 | V176: LV Site Specific Band 4 | W176: LV Sub Site Specific No Residual | X176: LV Sub Site Specific Band 1 | Y176: LV Sub Site Specific Band 2 | Z176: LV Sub Site Specific Band 3 | AA176: LV Sub Site Specific Band 4 | AB176: HV Site Specific No Residual | AC176: HV Site Specific Band 1 | AD176: HV Site Specific Band 2 | AE176: HV Site Specific Band 3 | AF176: HV Site Specific Band 4 | AG176: Unmetered Supplies | AH176: LV Generation Aggregated | AI176: LV Sub Generation Aggregated | AJ176: LV Generation Site Specific | AK176: LV Generation Site Specific no RP Charge | AL176: LV Sub Generation Site Specific | AM176: LV Sub Generation Site Specific no RP Charge | AN176: HV Generation Site Specific | AO176: HV Generation Site Specific no RP Charge
F177: Band grouping configuration 1 | G177: integer | J177: 1 | M177: 1 | N177: 2 | O177: 3 | P177: 4 | S177: 1 | T177: 2 | U177: 3 | V177: 4 | X177: 1 | Y177: 2 | Z177: 3 | AA177: 4 | AC177: 1 | AD177: 2 | AE177: 3 | AF177: 4 | AG177: 1
F178: Band grouping configuration 2 | G178: integer | J178: 1 | M178: 1 | N178: 1 | O178: 2 | P178: 3 | S178: 1 | T178: 1 | U178: 2 | V178: 3 | X178: 1 | Y178: 1 | Z178: 2 | AA178: 3 | AC178: 1 | AD178: 1 | AE178: 2 | AF178: 3 | AG178: 1
F179: Band grouping configuration 3 | G179: integer | J179: 1 | M179: 1 | N179: 2 | O179: 2 | P179: 3 | S179: 1 | T179: 2 | U179: 2 | V179: 3 | X179: 1 | Y179: 2 | Z179: 2 | AA179: 3 | AC179: 1 | AD179: 2 | AE179: 2 | AF179: 3 | AG179: 1
F180: Band grouping configuration 4 | G180: integer | J180: 1 | M180: 1 | N180: 2 | O180: 3 | P180: 3 | S180: 1 | T180: 2 | U180: 3 | V180: 3 | X180: 1 | Y180: 2 | Z180: 3 | AA180: 3 | AC180: 1 | AD180: 2 | AE180: 3 | AF180: 3 | AG180: 1
F181: Band grouping configuration 5 | G181: integer | J181: 1 | M181: 1 | N181: 1 | O181: 2 | P181: 2 | S181: 1 | T181: 1 | U181: 2 | V181: 2 | X181: 1 | Y181: 1 | Z181: 2 | AA181: 2 | AC181: 1 | AD181: 1 | AE181: 2 | AF181: 2 | AG181: 1
F182: Band grouping configuration 6 | G182: integer | J182: 1 | M182: 1 | N182: 1 | O182: 1 | P182: 2 | S182: 1 | T182: 1 | U182: 1 | V182: 2 | X182: 1 | Y182: 1 | Z182: 1 | AA182: 2 | AC182: 1 | AD182: 1 | AE182: 1 | AF182: 2 | AG182: 1
F183: Band grouping configuration 7 | G183: integer | J183: 1 | M183: 1 | N183: 2 | O183: 2 | P183: 2 | S183: 1 | T183: 2 | U183: 2 | V183: 2 | X183: 1 | Y183: 2 | Z183: 2 | AA183: 2 | AC183: 1 | AD183: 2 | AE183: 2 | AF183: 2 | AG183: 1
F184: Band grouping configuration 8 | G184: integer | J184: 1 | M184: 1 | N184: 1 | O184: 1 | P184: 1 | S184: 1 | T184: 1 | U184: 1 | V184: 1 | X184: 1 | Y184: 1 | Z184: 1 | AA184: 1 | AC184: 1 | AD184: 1 | AE184: 1 | AF184: 1 | AG184: 1
B186: Checks
E188: Check for error values | G188: number of issues | H188: =SUM(IF(ISERROR(H15:Y146), 1)) -> 0
E190: Check that discount overrides are either FALSE, or non-zero
F191: MWh override | G191: number of issues | H191: =SUM(J191:Y191) -> 0 | J191: =IF( OR( AND(J105 = TRUE, NOT(ISBLANK(J106))), AND(J105 = FALSE, J106 = 0)), 0, 1) -> 0 | K191: 0 | L191: 0 | M191: 0 | N191: 0 | O191: 0 | P191: 0 | Q191: 0 | R191: 0 | S191: 0 | T191: 0 | U191: 0 | V191: 0 | W191: 0 | X191: 0 | Y191: 0
F192: MPAN override | G192: number of issues | H192: =SUM(J192:Y192) -> 0 | J192: =IF( OR( AND(J109 = TRUE, NOT(ISBLANK(J110))), AND(J109 = FALSE, J110 = 0)), 0, 1) -> 0 | K192: 0 | L192: 0 | M192: 0 | N192: 0 | O192: 0 | P192: 0 | Q192: 0 | R192: 0 | S192: 0 | T192: 0 | U192: 0 | V192: 0 | W192: 0 | X192: 0 | Y192: 0
F193: Import capacity override | G193: number of issues | H193: =SUM(J193:Y193) -> 0 | J193: =IF( OR( AND(J113 = TRUE, NOT(ISBLANK(J114))), AND(J113 = FALSE, J114 = 0)), 0, 1) -> 0 | K193: 0 | L193: 0 | M193: 0 | N193: 0 | O193: 0 | P193: 0 | Q193: 0 | R193: 0 | S193: 0 | T193: 0 | U193: 0 | V193: 0 | W193: 0 | X193: 0 | Y193: 0
F194: Exceeded capacity override | G194: number of issues | H194: =SUM(J194:Y194) -> 0 | J194: =IF( OR( AND(J117 = TRUE, NOT(ISBLANK(J118))), AND(J117 = FALSE, J118 = 0)), 0, 1) -> 0 | K194: 0 | L194: 0 | M194: 0 | N194: 0 | O194: 0 | P194: 0 | Q194: 0 | R194: 0 | S194: 0 | T194: 0 | U194: 0 | V194: 0 | W194: 0 | X194: 0 | Y194: 0
F195: Reactive power override | G195: number of issues | H195: =SUM(J195:Y195) -> 0 | J195: =IF( OR( AND(J121 = TRUE, NOT(ISBLANK(J122))), AND(J121 = FALSE, J122 = 0)), 0, 1) -> 0 | K195: 0 | L195: 0 | M195: 0 | N195: 0 | O195: 0 | P195: 0 | Q195: 0 | R195: 0 | S195: 0 | T195: 0 | U195: 0 | V195: 0 | W195: 0 | X195: 0 | Y195: 0
E197: Summary of checks | G197: number of issues | H197: =H188 + SUM(H191:H195) -> 0
B199: End of sheet

Sheet Inputs by customer type
A1: =MID(CELL("filename",A1),FIND("]",CELL("filename",A1))+1,255) -> Inputs by customer type
A2: =Cover!D21&" - "&Cover!D23 -> Electricity North West Limited - v1.0
A3: =Cover!D2&" - "&Cover!D8&" v"&Cover!D10&" - "&Cover!D19 -> ARP model - Release for charge setting v8 - 2025/26
A4: =H216 & IF(H216 = 1, " issue", " issues") &" identified in checks on this sheet" -> 0 issues identified in checks on this sheet
B5: Click here to return to model map | G5: Units | H5: Constants | J5: Domestic Aggregated or CT | K5: Domestic Aggregated (Related MPAN) | L5: Non-Domestic Aggregated or CT | M5: Non-Domestic Aggregated (Related MPAN) | N5: LV Site Specific | O5: LV Sub Site Specific | P5: HV Site Specific | Q5: Unmetered Supplies | R5: LV Generation Aggregated | S5: LV Sub Generation Aggregated | T5: LV Generation Site Specific | U5: LV Generation Site Specific no RP Charge | V5: LV Sub Generation Site Specific | W5: LV Sub Generation Site Specific no RP Charge | X5: HV Generation Site Specific | Y5: HV Generation Site Specific no RP Charge | AQ5: Legal text reference
B7: Description
C9: This sheet sets out the inputs by customer type to be filled in by DNOs.
E11: Charging year selected | G11: year | H11: =charging_year_selected -> 2025/26
E12: Historic / current / forecast | G12: text | H12: ='ARP_User control'!$H$36 -> Current
B14: Inputs by customer type
C16: =INDEX('Version control'!$H$37:$H$63,MATCH($A$1,'Version control'!$F$37:$F$63,0),1)&"-A: Load characteristics" -> Section 501-A: Load characteristics
E18: Load factor | G18: % | I18: > | J18: =TRANSPOSE('ARP_Inputs by customer type'!J19:J34) -> 0.4122751892 | K18: 0.1605096205 | L18: 0.3993205649 | M18: 0.1606199899 | N18: 0.5106482589 | O18: 0.5324205068 | P18: 0.7015335637 | Q18: 0.4656086938 | R18: 0 | S18: 0 | T18: 0 | U18: 0 | V18: 0 | W18: 0 | X18: 0 | Y18: 0 | AQ18: Paragraph 42 (a)
E19: Coincidence factor | G19: % | I19: > | J19: =TRANSPOSE('ARP_Inputs by customer type'!J39:J54) -> 0.8845848977 | K19: 0 | L19: 0.7059747501 | M19: 0 | N19: 0.7258827312 | O19: 0.6941956305 | P19: 0.7989790577 | Q19: 0.9623001603 | R19: 0 | S19: 0 | T19: 0 | U19: 0 | V19: 0 | W19: 0 | X19: 0 | Y19: 0 | AQ19: Paragraph 42 (b)
C21: =INDEX('Version control'!$H$37:$H$63,MATCH($A$1,'Version control'!$F$37:$F$63,0),1)&"-B: Volume forecasts for the charging year" -> Section 501-B: Volume forecasts for the charging year
D23: Volumes for all the way tariffs are entered here, separately for each residual band. | I23: > | AQ23: Paragraph 52
E25: All the way volume forecast - No Residual
F26: Rate 1 units | G26: MWh | J26: =TRANSPOSE('ARP_Inputs by customer type'!J61:J76) -> 0 | K26: 31.48014544 | L26: 0 | M26: 45.69652286 | N26: 1.179842114 | O26: 0 | P26: 329.3553672 | Q26: 0 | R26: 7180.233994 | S26: 0 | T26: 3390.05061 | U26: 0 | V26: 586.6321703 | W26: 0 | X26: 149365.3565 | Y26: 0
F27: Rate 2 units | G27: MWh | J27: =TRANSPOSE('ARP_Inputs by customer type'!J79:J94) -> 0 | K27: 484.2888501 | L27: 0 | M27: 732.2906452 | N27: 3.853584729 | O27: 0 | P27: 1690.076098 | Q27: 0 | R27: 53586.76191 | S27: 0 | T27: 12108.75868 | U27: 0 | V27: 2224.791254 | W27: 0 | X27: 337523.8333 | Y27: 0
F28: Rate 3 units | G28: MWh | J28: =TRANSPOSE('ARP_Inputs by customer type'!J97:J112) -> 0 | K28: 4417.374857 | L28: 0 | M28: 13318.92266 | N28: 10.99994742 | O28: 0 | P28: 4305.109749 | Q28: 0 | R28: 28245.82021 | S28: 0 | T28: 19639.00584 | U28: 0 | V28: 3543.987489 | W28: 0 | X28: 439423.3169 | Y28: 0
F29: MPANs | G29: MPANs | J29: =TRANSPOSE('ARP_Inputs by customer type'!J115:J130) -> 0 | K29: 1936.769863 | L29: 0 | M29: 2536.139726 | N29: 10 | O29: 0 | P29: 101 | Q29: 0 | R29: 15770.66301 | S29: 0 | T29: 334.1982648 | U29: 0 | V29: 45 | W29: 0 | X29: 316.9534247 | Y29: 0
F30: Import capacity | G30: kVA | J30: =TRANSPOSE('ARP_Inputs by customer type'!J133:J148) -> 0 | K30: 0 | L30: 0 | M30: 0 | N30: 157.9452055 | O30: 0 | P30: 14349.0581 | Q30: 0 | R30: 0 | S30: 0 | T30: 0 | U30: 0 | V30: 0 | W30: 0 | X30: 0 | Y30: 0
F31: Exceeded capacity | G31: kVA | J31: =TRANSPOSE('ARP_Inputs by customer type'!J151:J166) -> 0 | K31: 0 | L31: 0 | M31: 0 | N31: 11.29863014 | O31: 0 | P31: 1250.493365 | Q31: 0 | R31: 0 | S31: 0 | T31: 0 | U31: 0 | V31: 0 | W31: 0 | X31: 0 | Y31: 0
F32: Reactive power units | G32: MVArh | J32: =TRANSPOSE('ARP_Inputs by customer type'!J169:J184) -> 0 | K32: 0 | L32: 0 | M32: 0 | N32: 46.182 | O32: 0 | P32: 1623.773541 | Q32: 0 | R32: 0 | S32: 0 | T32: 3928.356911 | U32: 0 | V32: 553.571164 | W32: 0 | X32: 15927.70188 | Y32: 0
E34: All the way volume forecast - Residual Band 1
F35: Rate 1 units | G35: MWh | J35: =TRANSPOSE('ARP_Inputs by customer type'!J189:J204) -> 836398.5198 | K35: 0 | L35: 30542.95908 | M35: 0 | N35: 49162.22093 | O35: 4324.584647 | P35: 37395.70593 | Q35: 8856.380053 | R35: 0 | S35: 0 | T35: 0 | U35: 0 | V35: 0 | W35: 0 | X35: 0 | Y35: 0
F36: Rate 2 units | G36: MWh | J36: =TRANSPOSE('ARP_Inputs by customer type'!J207:J222) -> 2273538.296 | K36: 0 | L36: 116452.383 | M36: 0 | N36: 181914.514 | O36: 16326.63645 | P36: 137858.3104 | Q36: 31938.37497 | R36: 0 | S36: 0 | T36: 0 | U36: 0 | V36: 0 | W36: 0 | X36: 0 | Y36: 0
F37: Rate 3 units | G37: MWh | J37: =TRANSPOSE('ARP_Inputs by customer type'!J225:J240) -> 3843228.747 | K37: 0 | L37: 151707.894 | M37: 0 | N37: 241213.8019 | O37: 23211.22951 | P37: 203558.1306 | Q37: 145326.4297 | R37: 0 | S37: 0 | T37: 0 | U37: 0 | V37: 0 | W37: 0 | X37: 0 | Y37: 0
F38: MPANs | G38: MPANs | J38: =TRANSPOSE('ARP_Inputs by customer type'!J243:J258) -> 2217420.014 | K38: 0 | L38: 60367.88219 | M38: 0 | N38: 5329.217808 | O38: 314.1592694 | P38: 769.8336073 | Q38: 640.1917808 | R38: 0 | S38: 0 | T38: 0 | U38: 0 | V38: 0 | W38: 0 | X38: 0 | Y38: 0
F39: Import capacity | G39: kVA | J39: =TRANSPOSE('ARP_Inputs by customer type'!J261:J276) -> 0 | K39: 0 | L39: 0 | M39: 0 | N39: 286588.6965 | O39: 37806.36374 | P39: 218416.0941 | Q39: 0 | R39: 0 | S39: 0 | T39: 0 | U39: 0 | V39: 0 | W39: 0 | X39: 0 | Y39: 0
F40: Exceeded capacity | G40: kVA | J40: =TRANSPOSE('ARP_Inputs by customer type'!J279:J294) -> 0 | K40: 0 | L40: 0 | M40: 0 | N40: 20500.57568 | O40: 3714.493855 | P40: 8370.637264 | Q40: 0 | R40: 0 | S40: 0 | T40: 0 | U40: 0 | V40: 0 | W40: 0 | X40: 0 | Y40: 0
F41: Reactive power units | G41: MVArh | J41: =TRANSPOSE('ARP_Inputs by customer type'!J297:J312) -> 0 | K41: 0 | L41: 0 | M41: 0 | N41: 38073.98402 | O41: 6182.730126 | P41: 43336.81403 | Q41: 0 | R41: 0 | S41: 0 | T41: 0 | U41: 0 | V41: 0 | W41: 0 | X41: 0 | Y41: 0
E43: All the way volume forecast - Residual Band 2
F44: Rate 1 units | G44: MWh | J44: =TRANSPOSE('ARP_Inputs by customer type'!J317:J332) -> 0 | K44: 0 | L44: 37904.08591 | M44: 0 | N44: 84374.92104 | O44: 5894.149219 | P44: 92505.35214 | Q44: 0 | R44: 0 | S44: 0 | T44: 0 | U44: 0 | V44: 0 | W44: 0 | X44: 0 | Y44: 0
F45: Rate 2 units | G45: MWh | J45: =TRANSPOSE('ARP_Inputs by customer type'!J335:J350) -> 0 | K45: 0 | L45: 144959.5116 | M45: 0 | N45: 301977.5702 | O45: 23072.54218 | P45: 326976.6297 | Q45: 0 | R45: 0 | S45: 0 | T45: 0 | U45: 0 | V45: 0 | W45: 0 | X45: 0 | Y45: 0
F46: Rate 3 units | G46: MWh | J46: =TRANSPOSE('ARP_Inputs by customer type'!J353:J368) -> 0 | K46: 0 | L46: 183719.9095 | M46: 0 | N46: 396220.7405 | O46: 31053.75458 | P46: 523409.7334 | Q46: 0 | R46: 0 | S46: 0 | T46: 0 | U46: 0 | V46: 0 | W46: 0 | X46: 0 | Y46: 0
F47: MPANs | G47: MPANs | J47: =TRANSPOSE('ARP_Inputs by customer type'!J371:J386) -> 0 | K47: 0 | L47: 48156.04932 | M47: 0 | N47: 5236.318995 | O47: 304.2306849 | P47: 700.6219178 | Q47: 0 | R47: 0 | S47: 0 | T47: 0 | U47: 0 | V47: 0 | W47: 0 | X47: 0 | Y47: 0
F48: Import capacity | G48: kVA | J48: =TRANSPOSE('ARP_Inputs by customer type'!J389:J404) -> 0 | K48: 0 | L48: 0 | M48: 0 | N48: 587325.299 | O48: 35848.64293 | P48: 450226.3942 | Q48: 0 | R48: 0 | S48: 0 | T48: 0 | U48: 0 | V48: 0 | W48: 0 | X48: 0 | Y48: 0
F49: Exceeded capacity | G49: kVA | J49: =TRANSPOSE('ARP_Inputs by customer type'!J407:J422) -> 0 | K49: 0 | L49: 0 | M49: 0 | N49: 2649.59608 | O49: 817.7073002 | P49: 4985.262275 | Q49: 0 | R49: 0 | S49: 0 | T49: 0 | U49: 0 | V49: 0 | W49: 0 | X49: 0 | Y49: 0
F50: Reactive power units | G50: MVArh | J50: =TRANSPOSE('ARP_Inputs by customer type'!J425:J440) -> 0 | K50: 0 | L50: 0 | M50: 0 | N50: 61662.7339 | O50: 8902.779036 | P50: 67471.14162 | Q50: 0 | R50: 0 | S50: 0 | T50: 0 | U50: 0 | V50: 0 | W50: 0 | X50: 0 | Y50: 0
E52: All the way volume forecast - Residual Band 3
F53: Rate 1 units | G53: MWh | J53: =TRANSPOSE('ARP_Inputs by customer type'!J445:J460) -> 0 | K53: 0 | L53: 43297.46819 | M53: 0 | N53: 43354.74519 | O53: 10342.81869 | P53: 83425.67446 | Q53: 0 | R53: 0 | S53: 0 | T53: 0 | U53: 0 | V53: 0 | W53: 0 | X53: 0 | Y53: 0
F54: Rate 2 units | G54: MWh | J54: =TRANSPOSE('ARP_Inputs by customer type'!J463:J478) -> 0 | K54: 0 | L54: 165774.0237 | M54: 0 | N54: 158749.6936 | O54: 37761.15207 | P54: 282824.2943 | Q54: 0 | R54: 0 | S54: 0 | T54: 0 | U54: 0 | V54: 0 | W54: 0 | X54: 0 | Y54: 0
F55: Rate 3 units | G55: MWh | J55: =TRANSPOSE('ARP_Inputs by customer type'!J481:J496) -> 0 | K55: 0 | L55: 214895.3882 | M55: 0 | N55: 214842.963 | O55: 52351.70067 | P55: 471411.6707 | Q55: 0 | R55: 0 | S55: 0 | T55: 0 | U55: 0 | V55: 0 | W55: 0 | X55: 0 | Y55: 0
F56: MPANs | G56: MPANs | J56: =TRANSPOSE('ARP_Inputs by customer type'!J499:J514) -> 0 | K56: 0 | L56: 25527.20822 | M56: 0 | N56: 1730.081826 | O56: 293.3013699 | P56: 296.0410959 | Q56: 0 | R56: 0 | S56: 0 | T56: 0 | U56: 0 | V56: 0 | W56: 0 | X56: 0 | Y56: 0
F57: Import capacity | G57: kVA | J57: =TRANSPOSE('ARP_Inputs by customer type'!J517:J532) -> 0 | K57: 0 | L57: 0 | M57: 0 | N57: 311985.2422 | O57: 54956.17635 | P57: 402818.3137 | Q57: 0 | R57: 0 | S57: 0 | T57: 0 | U57: 0 | V57: 0 | W57: 0 | X57: 0 | Y57: 0
F58: Exceeded capacity | G58: kVA | J58: =TRANSPOSE('ARP_Inputs by customer type'!J535:J550) -> 0 | K58: 0 | L58: 0 | M58: 0 | N58: 678.1085038 | O58: 760.3152127 | P58: 2387.740912 | Q58: 0 | R58: 0 | S58: 0 | T58: 0 | U58: 0 | V58: 0 | W58: 0 | X58: 0 | Y58: 0
F59: Reactive power units | G59: MVArh | J59: =TRANSPOSE('ARP_Inputs by customer type'!J553:J568) -> 0 | K59: 0 | L59: 0 | M59: 0 | N59: 37383.1974 | O59: 9367.964885 | P59: 63450.63293 | Q59: 0 | R59: 0 | S59: 0 | T59: 0 | U59: 0 | V59: 0 | W59: 0 | X59: 0 | Y59: 0
E61: All the way volume forecast - Residual Band 4
F62: Rate 1 units | G62: MWh | J62: =TRANSPOSE('ARP_Inputs by customer type'!J573:J588) -> 0 | K62: 0 | L62: 119338.7612 | M62: 0 | N62: 29946.52792 | O62: 86398.4256 | P62: 165343.0128 | Q62: 0 | R62: 0 | S62: 0 | T62: 0 | U62: 0 | V62: 0 | W62: 0 | X62: 0 | Y62: 0
F63: Rate 2 units | G63: MWh | J63: =TRANSPOSE('ARP_Inputs by customer type'!J591:J606) -> 0 | K63: 0 | L63: 449774.3872 | M63: 0 | N63: 112336.4926 | O63: 321959.0961 | P63: 541991.9037 | Q63: 0 | R63: 0 | S63: 0 | T63: 0 | U63: 0 | V63: 0 | W63: 0 | X63: 0 | Y63: 0
F64: Rate 3 units | G64: MWh | J64: =TRANSPOSE('ARP_Inputs by customer type'!J609:J624) -> 0 | K64: 0 | L64: 614426.5522 | M64: 0 | N64: 150340.7567 | O64: 457078.5944 | P64: 985136.7781 | Q64: 0 | R64: 0 | S64: 0 | T64: 0 | U64: 0 | V64: 0 | W64: 0 | X64: 0 | Y64: 0
F65: MPANs | G65: MPANs | J65: =TRANSPOSE('ARP_Inputs by customer type'!J627:J642) -> 0 | K65: 0 | L65: 25144.73973 | M65: 0 | N65: 794.5018265 | O65: 1279.803105 | P65: 233.3643836 | Q65: 0 | R65: 0 | S65: 0 | T65: 0 | U65: 0 | V65: 0 | W65: 0 | X65: 0 | Y65: 0
F66: Import capacity | G66: kVA | J66: =TRANSPOSE('ARP_Inputs by customer type'!J645:J660) -> 0 | K66: 0 | L66: 0 | M66: 0 | N66: 227427.7333 | O66: 570095.9596 | P66: 744010.7629 | Q66: 0 | R66: 0 | S66: 0 | T66: 0 | U66: 0 | V66: 0 | W66: 0 | X66: 0 | Y66: 0
F67: Exceeded capacity | G67: kVA | J67: =TRANSPOSE('ARP_Inputs by customer type'!J663:J678) -> 0 | K67: 0 | L67: 0 | M67: 0 | N67: 201.4063106 | O67: 2024.899791 | P67: 1453.692814 | Q67: 0 | R67: 0 | S67: 0 | T67: 0 | U67: 0 | V67: 0 | W67: 0 | X67: 0 | Y67: 0
F68: Reactive power units | G68: MVArh | J68: =TRANSPOSE('ARP_Inputs by customer type'!J681:J696) -> 0 | K68: 0 | L68: 0 | M68: 0 | N68: 24140.52295 | O68: 65982.49861 | P68: 128888.4999 | Q68: 0 | R68: 0 | S68: 0 | T68: 0 | U68: 0 | V68: 0 | W68: 0 | X68: 0 | Y68: 0
D70: Volumes for LNDO LV tariffs are entered here, separately for each residual band. | I70: > | AQ70: Paragraph 52
E72: LDNO LV volume forecast - No Residual
F73: Rate 1 units | G73: MWh | J73: =TRANSPOSE('ARP_Inputs by customer type'!J701:J716) -> 0 | K73: 0 | L73: 0 | M73: 0 | N73: 0 | O73: 0 | P73: 0 | Q73: 0 | R73: 570.0841327 | S73: 0 | T73: 0 | U73: 0 | V73: 0 | W73: 0 | X73: 0 | Y73: 0
F74: Rate 2 units | G74: MWh | J74: =TRANSPOSE('ARP_Inputs by customer type'!J719:J734) -> 0 | K74: 0 | L74: 0 | M74: 0 | N74: 0 | O74: 0 | P74: 0 | Q74: 0 | R74: 3053.413268 | S74: 0 | T74: 0 | U74: 0 | V74: 0 | W74: 0 | X74: 0 | Y74: 0
F75: Rate 3 units | G75: MWh | J75: =TRANSPOSE('ARP_Inputs by customer type'!J737:J752) -> 0 | K75: 0 | L75: 0 | M75: 0 | N75: 0 | O75: 0 | P75: 0 | Q75: 0 | R75: 1736.973913 | S75: 0 | T75: 0 | U75: 0 | V75: 0 | W75: 0 | X75: 0 | Y75: 0
F76: MPANs | G76: MPANs | J76: =TRANSPOSE('ARP_Inputs by customer type'!J755:J770) -> 0 | K76: 0 | L76: 0 | M76: 0 | N76: 0 | O76: 0 | P76: 0 | Q76: 0 | R76: 456.0698174 | S76: 0 | T76: 0 | U76: 0 | V76: 0 | W76: 0 | X76: 0 | Y76: 0
F77: Import capacity | G77: kVA | J77: =TRANSPOSE('ARP_Inputs by customer type'!J773:J788) -> 0 | K77: 0 | L77: 0 | M77: 0 | N77: 0 | O77: 0 | P77: 0 | Q77: 0 | R77: 0 | S77: 0 | T77: 0 | U77: 0 | V77: 0 | W77: 0 | X77: 0 | Y77: 0
F78: Exceeded capacity | G78: kVA | J78: =TRANSPOSE('ARP_Inputs by customer type'!J791:J806) -> 0 | K78: 0 | L78: 0 | M78: 0 | N78: 0 | O78: 0 | P78: 0 | Q78: 0 | R78: 0 | S78: 0 | T78: 0 | U78: 0 | V78: 0 | W78: 0 | X78: 0 | Y78: 0
F79: Reactive power units | G79: MVArh | J79: =TRANSPOSE('ARP_Inputs by customer type'!J809:J824) -> 0 | K79: 0 | L79: 0 | M79: 0 | N79: 0 | O79: 0 | P79: 0 | Q79: 0 | R79: 0 | S79: 0 | T79: 0 | U79: 0 | V79: 0 | W79: 0 | X79: 0 | Y79: 0
E81: LDNO LV volume forecast - Residual Band 1
F82: Rate 1 units | G82: MWh | J82: =TRANSPOSE('ARP_Inputs by customer type'!J829:J844) -> 23937.92249 | K82: 0 | L82: 633.4769156 | M82: 0 | N82: 107.844912 | O82: 0 | P82: 0 | Q82: 0 | R82: 0 | S82: 0 | T82: 0 | U82: 0 | V82: 0 | W82: 0 | X82: 0 | Y82: 0
F83: Rate 2 units | G83: MWh | J83: =TRANSPOSE('ARP_Inputs by customer type'!J847:J862) -> 64810.77388 | K83: 0 | L83: 2410.060318 | M83: 0 | N83: 393.7157205 | O83: 0 | P83: 0 | Q83: 0 | R83: 0 | S83: 0 | T83: 0 | U83: 0 | V83: 0 | W83: 0 | X83: 0 | Y83: 0
F84: Rate 3 units | G84: MWh | J84: =TRANSPOSE('ARP_Inputs by customer type'!J865:J880) -> 102698.9653 | K84: 0 | L84: 2889.456802 | M84: 0 | N84: 589.4667788 | O84: 0 | P84: 0 | Q84: 0 | R84: 0 | S84: 0 | T84: 0 | U84: 0 | V84: 0 | W84: 0 | X84: 0 | Y84: 0
F85: MPANs | G85: MPANs | J85: =TRANSPOSE('ARP_Inputs by customer type'!J883:J898) -> 66706.44536 | K85: 0 | L85: 1006.402648 | M85: 0 | N85: 16 | O85: 0 | P85: 0 | Q85: 0 | R85: 0 | S85: 0 | T85: 0 | U85: 0 | V85: 0 | W85: 0 | X85: 0 | Y85: 0
F86: Import capacity | G86: kVA | J86: =TRANSPOSE('ARP_Inputs by customer type'!J901:J916) -> 0 | K86: 0 | L86: 0 | M86: 0 | N86: 907.8425009 | O86: 0 | P86: 0 | Q86: 0 | R86: 0 | S86: 0 | T86: 0 | U86: 0 | V86: 0 | W86: 0 | X86: 0 | Y86: 0
F87: Exceeded capacity | G87: kVA | J87: =TRANSPOSE('ARP_Inputs by customer type'!J919:J934) -> 0 | K87: 0 | L87: 0 | M87: 0 | N87: 46.80996738 | O87: 0 | P87: 0 | Q87: 0 | R87: 0 | S87: 0 | T87: 0 | U87: 0 | V87: 0 | W87: 0 | X87: 0 | Y87: 0
F88: Reactive power units | G88: MVArh | J88: =TRANSPOSE('ARP_Inputs by customer type'!J937:J952) -> 0 | K88: 0 | L88: 0 | M88: 0 | N88: 138.2068425 | O88: 0 | P88: 0 | Q88: 0 | R88: 0 | S88: 0 | T88: 0 | U88: 0 | V88: 0 | W88: 0 | X88: 0 | Y88: 0
E90: LDNO LV volume forecast - Residual Band 2
F91: Rate 1 units | G91: MWh | J91: =TRANSPOSE('ARP_Inputs by customer type'!J957:J972) -> 0 | K91: 0 | L91: 0 | M91: 0 | N91: 1032.434653 | O91: 0 | P91: 0 | Q91: 0 | R91: 0 | S91: 0 | T91: 0 | U91: 0 | V91: 0 | W91: 0 | X91: 0 | Y91: 0
F92: Rate 2 units | G92: MWh | J92: =TRANSPOSE('ARP_Inputs by customer type'!J975:J990) -> 0 | K92: 0 | L92: 0 | M92: 0 | N92: 3537.039831 | O92: 0 | P92: 0 | Q92: 0 | R92: 0 | S92: 0 | T92: 0 | U92: 0 | V92: 0 | W92: 0 | X92: 0 | Y92: 0
F93: Rate 3 units | G93: MWh | J93: =TRANSPOSE('ARP_Inputs by customer type'!J993:J1008) -> 0 | K93: 0 | L93: 0 | M93: 0 | N93: 4879.493148 | O93: 0 | P93: 0 | Q93: 0 | R93: 0 | S93: 0 | T93: 0 | U93: 0 | V93: 0 | W93: 0 | X93: 0 | Y93: 0
F94: MPANs | G94: MPANs | J94: =TRANSPOSE('ARP_Inputs by customer type'!J1011:J1026) -> 0 | K94: 0 | L94: 0 | M94: 0 | N94: 87 | O94: 0 | P94: 0 | Q94: 0 | R94: 0 | S94: 0 | T94: 0 | U94: 0 | V94: 0 | W94: 0 | X94: 0 | Y94: 0
F95: Import capacity | G95: kVA | J95: =TRANSPOSE('ARP_Inputs by customer type'!J1029:J1044) -> 0 | K95: 0 | L95: 0 | M95: 0 | N95: 10303.78227 | O95: 0 | P95: 0 | Q95: 0 | R95: 0 | S95: 0 | T95: 0 | U95: 0 | V95: 0 | W95: 0 | X95: 0 | Y95: 0
F96: Exceeded capacity | G96: kVA | J96: =TRANSPOSE('ARP_Inputs by customer type'!J1047:J1062) -> 0 | K96: 0 | L96: 0 | M96: 0 | N96: 63.69067538 | O96: 0 | P96: 0 | Q96: 0 | R96: 0 | S96: 0 | T96: 0 | U96: 0 | V96: 0 | W96: 0 | X96: 0 | Y96: 0
F97: Reactive power units | G97: MVArh | J97: =TRANSPOSE('ARP_Inputs by customer type'!J1065:J1080) -> 0 | K97: 0 | L97: 0 | M97: 0 | N97: 523.7604634 | O97: 0 | P97: 0 | Q97: 0 | R97: 0 | S97: 0 | T97: 0 | U97: 0 | V97: 0 | W97: 0 | X97: 0 | Y97: 0
E99: LDNO LV volume forecast - Residual Band 3
F100: Rate 1 units | G100: MWh | J100: =TRANSPOSE('ARP_Inputs by customer type'!J1085:J1100) -> 0 | K100: 0 | L100: 0 | M100: 0 | N100: 924.7980259 | O100: 0 | P100: 0 | Q100: 0 | R100: 0 | S100: 0 | T100: 0 | U100: 0 | V100: 0 | W100: 0 | X100: 0 | Y100: 0
F101: Rate 2 units | G101: MWh | J101: =TRANSPOSE('ARP_Inputs by customer type'!J1103:J1118) -> 0 | K101: 0 | L101: 0 | M101: 0 | N101: 3177.788945 | O101: 0 | P101: 0 | Q101: 0 | R101: 0 | S101: 0 | T101: 0 | U101: 0 | V101: 0 | W101: 0 | X101: 0 | Y101: 0
F102: Rate 3 units | G102: MWh | J102: =TRANSPOSE('ARP_Inputs by customer type'!J1121:J1136) -> 0 | K102: 0 | L102: 0 | M102: 0 | N102: 4106.840876 | O102: 0 | P102: 0 | Q102: 0 | R102: 0 | S102: 0 | T102: 0 | U102: 0 | V102: 0 | W102: 0 | X102: 0 | Y102: 0
F103: MPANs | G103: MPANs | J103: =TRANSPOSE('ARP_Inputs by customer type'!J1139:J1154) -> 0 | K103: 0 | L103: 0 | M103: 0 | N103: 64 | O103: 0 | P103: 0 | Q103: 0 | R103: 0 | S103: 0 | T103: 0 | U103: 0 | V103: 0 | W103: 0 | X103: 0 | Y103: 0
F104: Import capacity | G104: kVA | J104: =TRANSPOSE('ARP_Inputs by customer type'!J1157:J1172) -> 0 | K104: 0 | L104: 0 | M104: 0 | N104: 10319.16187 | O104: 0 | P104: 0 | Q104: 0 | R104: 0 | S104: 0 | T104: 0 | U104: 0 | V104: 0 | W104: 0 | X104: 0 | Y104: 0
F105: Exceeded capacity | G105: kVA | J105: =TRANSPOSE('ARP_Inputs by customer type'!J1175:J1190) -> 0 | K105: 0 | L105: 0 | M105: 0 | N105: 2.643125317 | O105: 0 | P105: 0 | Q105: 0 | R105: 0 | S105: 0 | T105: 0 | U105: 0 | V105: 0 | W105: 0 | X105: 0 | Y105: 0
F106: Reactive power units | G106: MVArh | J106: =TRANSPOSE('ARP_Inputs by customer type'!J1193:J1208) -> 0 | K106: 0 | L106: 0 | M106: 0 | N106: 736.0556946 | O106: 0 | P106: 0 | Q106: 0 | R106: 0 | S106: 0 | T106: 0 | U106: 0 | V106: 0 | W106: 0 | X106: 0 | Y106: 0
E108: LDNO LV volume forecast - Residual Band 4
F109: Rate 1 units | G109: MWh | J109: =TRANSPOSE('ARP_Inputs by customer type'!J1213:J1228) -> 0 | K109: 0 | L109: 0 | M109: 0 | N109: 533.8400326 | O109: 0 | P109: 0 | Q109: 0 | R109: 0 | S109: 0 | T109: 0 | U109: 0 | V109: 0 | W109: 0 | X109: 0 | Y109: 0
F110: Rate 2 units | G110: MWh | J110: =TRANSPOSE('ARP_Inputs by customer type'!J1231:J1246) -> 0 | K110: 0 | L110: 0 | M110: 0 | N110: 1599.196527 | O110: 0 | P110: 0 | Q110: 0 | R110: 0 | S110: 0 | T110: 0 | U110: 0 | V110: 0 | W110: 0 | X110: 0 | Y110: 0
F111: Rate 3 units | G111: MWh | J111: =TRANSPOSE('ARP_Inputs by customer type'!J1249:J1264) -> 0 | K111: 0 | L111: 0 | M111: 0 | N111: 2336.046881 | O111: 0 | P111: 0 | Q111: 0 | R111: 0 | S111: 0 | T111: 0 | U111: 0 | V111: 0 | W111: 0 | X111: 0 | Y111: 0
F112: MPANs | G112: MPANs | J112: =TRANSPOSE('ARP_Inputs by customer type'!J1267:J1282) -> 0 | K112: 0 | L112: 0 | M112: 0 | N112: 21 | O112: 0 | P112: 0 | Q112: 0 | R112: 0 | S112: 0 | T112: 0 | U112: 0 | V112: 0 | W112: 0 | X112: 0 | Y112: 0
F113: Import capacity | G113: kVA | J113: =TRANSPOSE('ARP_Inputs by customer type'!J1285:J1300) -> 0 | K113: 0 | L113: 0 | M113: 0 | N113: 8108.197934 | O113: 0 | P113: 0 | Q113: 0 | R113: 0 | S113: 0 | T113: 0 | U113: 0 | V113: 0 | W113: 0 | X113: 0 | Y113: 0
F114: Exceeded capacity | G114: kVA | J114: =TRANSPOSE('ARP_Inputs by customer type'!J1303:J1318) -> 0 | K114: 0 | L114: 0 | M114: 0 | N114: 0 | O114: 0 | P114: 0 | Q114: 0 | R114: 0 | S114: 0 | T114: 0 | U114: 0 | V114: 0 | W114: 0 | X114: 0 | Y114: 0
F115: Reactive power units | G115: MVArh | J115: =TRANSPOSE('ARP_Inputs by customer type'!J1321:J1336) -> 0 | K115: 0 | L115: 0 | M115: 0 | N115: 178.2657275 | O115: 0 | P115: 0 | Q115: 0 | R115: 0 | S115: 0 | T115: 0 | U115: 0 | V115: 0 | W115: 0 | X115: 0 | Y115: 0
D117: Volumes for LNDO HV tariffs are entered here, separately for each residual band. | I117: > | AQ117: Paragraph 52
E119: LDNO HV volume forecast - No Residual
F120: Rate 1 units | G120: MWh | J120: =TRANSPOSE('ARP_Inputs by customer type'!J1341:J1356) -> 0 | K120: 0 | L120: 0 | M120: 0 | N120: 0 | O120: 0 | P120: 0 | Q120: 0 | R120: 913.8178873 | S120: 0 | T120: 0 | U120: 0 | V120: 0 | W120: 0 | X120: 0 | Y120: 0
F121: Rate 2 units | G121: MWh | J121: =TRANSPOSE('ARP_Inputs by customer type'!J1359:J1374) -> 0 | K121: 0 | L121: 0 | M121: 0 | N121: 0 | O121: 0 | P121: 0 | Q121: 0 | R121: 4896.80443 | S121: 0 | T121: 0 | U121: 0 | V121: 0 | W121: 0 | X121: 0 | Y121: 0
F122: Rate 3 units | G122: MWh | J122: =TRANSPOSE('ARP_Inputs by customer type'!J1377:J1392) -> 0 | K122: 0 | L122: 0 | M122: 0 | N122: 0 | O122: 0 | P122: 0 | Q122: 0 | R122: 2845.541654 | S122: 0 | T122: 0 | U122: 0 | V122: 0 | W122: 0 | X122: 0 | Y122: 0
F123: MPANs | G123: MPANs | J123: =TRANSPOSE('ARP_Inputs by customer type'!J1395:J1410) -> 0 | K123: 0 | L123: 0 | M123: 0 | N123: 0 | O123: 0 | P123: 0 | Q123: 0 | R123: 827.9485388 | S123: 0 | T123: 0 | U123: 0 | V123: 0 | W123: 0 | X123: 0 | Y123: 0
F124: Import capacity | G124: kVA | J124: =TRANSPOSE('ARP_Inputs by customer type'!J1413:J1428) -> 0 | K124: 0 | L124: 0 | M124: 0 | N124: 0 | O124: 0 | P124: 0 | Q124: 0 | R124: 0 | S124: 0 | T124: 0 | U124: 0 | V124: 0 | W124: 0 | X124: 0 | Y124: 0
F125: Exceeded capacity | G125: kVA | J125: =TRANSPOSE('ARP_Inputs by customer type'!J1431:J1446) -> 0 | K125: 0 | L125: 0 | M125: 0 | N125: 0 | O125: 0 | P125: 0 | Q125: 0 | R125: 0 | S125: 0 | T125: 0 | U125: 0 | V125: 0 | W125: 0 | X125: 0 | Y125: 0
F126: Reactive power units | G126: MVArh | J126: =TRANSPOSE('ARP_Inputs by customer type'!J1449:J1464) -> 0 | K126: 0 | L126: 0 | M126: 0 | N126: 0 | O126: 0 | P126: 0 | Q126: 0 | R126: 0 | S126: 0 | T126: 0 | U126: 0 | V126: 0 | W126: 0 | X126: 0 | Y126: 0
E128: LDNO HV volume forecast - Residual Band 1
F129: Rate 1 units | G129: MWh | J129: =TRANSPOSE('ARP_Inputs by customer type'!J1469:J1484) -> 30617.5603 | K129: 0 | L129: 601.143302 | M129: 0 | N129: 1009.852655 | O129: 0.09999683386 | P129: 289.1756712 | Q129: 0 | R129: 0 | S129: 0 | T129: 0 | U129: 0 | V129: 0 | W129: 0 | X129: 0 | Y129: 0
F130: Rate 2 units | G130: MWh | J130: =TRANSPOSE('ARP_Inputs by customer type'!J1487:J1502) -> 82870.64272 | K130: 0 | L130: 2284.217913 | M130: 0 | N130: 3324.973382 | O130: 0.3740437314 | P130: 906.7657614 | Q130: 0 | R130: 0 | S130: 0 | T130: 0 | U130: 0 | V130: 0 | W130: 0 | X130: 0 | Y130: 0
F131: Rate 3 units | G131: MWh | J131: =TRANSPOSE('ARP_Inputs by customer type'!J1505:J1520) -> 132925.3995 | K131: 0 | L131: 2772.968005 | M131: 0 | N131: 5290.941334 | O131: 0.9444623759 | P131: 2099.790722 | Q131: 0 | R131: 0 | S131: 0 | T131: 0 | U131: 0 | V131: 0 | W131: 0 | X131: 0 | Y131: 0
F132: MPANs | G132: MPANs | J132: =TRANSPOSE('ARP_Inputs by customer type'!J1523:J1538) -> 81370.45624 | K132: 0 | L132: 975.2821918 | M132: 0 | N132: 128 | O132: 2 | P132: 5 | Q132: 0 | R132: 0 | S132: 0 | T132: 0 | U132: 0 | V132: 0 | W132: 0 | X132: 0 | Y132: 0
F133: Import capacity | G133: kVA | J133: =TRANSPOSE('ARP_Inputs by customer type'!J1541:J1556) -> 0 | K133: 0 | L133: 0 | M133: 0 | N133: 7554.413629 | O133: 140 | P133: 784 | Q133: 0 | R133: 0 | S133: 0 | T133: 0 | U133: 0 | V133: 0 | W133: 0 | X133: 0 | Y133: 0
F134: Exceeded capacity | G134: kVA | J134: =TRANSPOSE('ARP_Inputs by customer type'!J1559:J1574) -> 0 | K134: 0 | L134: 0 | M134: 0 | N134: 186.1191098 | O134: 0 | P134: 82.72328767 | Q134: 0 | R134: 0 | S134: 0 | T134: 0 | U134: 0 | V134: 0 | W134: 0 | X134: 0 | Y134: 0
F135: Reactive power units | G135: MVArh | J135: =TRANSPOSE('ARP_Inputs by customer type'!J1577:J1592) -> 0 | K135: 0 | L135: 0 | M135: 0 | N135: 792.6179343 | O135: 0.177 | P135: 111.078 | Q135: 0 | R135: 0 | S135: 0 | T135: 0 | U135: 0 | V135: 0 | W135: 0 | X135: 0 | Y135: 0
E137: LDNO HV volume forecast - Residual Band 2
F138: Rate 1 units | G138: MWh | J138: =TRANSPOSE('ARP_Inputs by customer type'!J1597:J1612) -> 0 | K138: 0 | L138: 0 | M138: 0 | N138: 2553.383157 | O138: 103.4649086 | P138: 664.5995764 | Q138: 0 | R138: 0 | S138: 0 | T138: 0 | U138: 0 | V138: 0 | W138: 0 | X138: 0 | Y138: 0
F139: Rate 2 units | G139: MWh | J139: =TRANSPOSE('ARP_Inputs by customer type'!J1615:J1630) -> 0 | K139: 0 | L139: 0 | M139: 0 | N139: 8372.827736 | O139: 362.5424755 | P139: 2336.787928 | Q139: 0 | R139: 0 | S139: 0 | T139: 0 | U139: 0 | V139: 0 | W139: 0 | X139: 0 | Y139: 0
F140: Rate 3 units | G140: MWh | J140: =TRANSPOSE('ARP_Inputs by customer type'!J1633:J1648) -> 0 | K140: 0 | L140: 0 | M140: 0 | N140: 12374.32699 | O140: 606.1995552 | P140: 3984.101922 | Q140: 0 | R140: 0 | S140: 0 | T140: 0 | U140: 0 | V140: 0 | W140: 0 | X140: 0 | Y140: 0
F141: MPANs | G141: MPANs | J141: =TRANSPOSE('ARP_Inputs by customer type'!J1651:J1666) -> 0 | K141: 0 | L141: 0 | M141: 0 | N141: 215.9753425 | O141: 7 | P141: 11 | Q141: 0 | R141: 0 | S141: 0 | T141: 0 | U141: 0 | V141: 0 | W141: 0 | X141: 0 | Y141: 0
F142: Import capacity | G142: kVA | J142: =TRANSPOSE('ARP_Inputs by customer type'!J1669:J1684) -> 0 | K142: 0 | L142: 0 | M142: 0 | N142: 24802.16204 | O142: 670.3047945 | P142: 6399.672181 | Q142: 0 | R142: 0 | S142: 0 | T142: 0 | U142: 0 | V142: 0 | W142: 0 | X142: 0 | Y142: 0
F143: Exceeded capacity | G143: kVA | J143: =TRANSPOSE('ARP_Inputs by customer type'!J1687:J1702) -> 0 | K143: 0 | L143: 0 | M143: 0 | N143: 2.953278476 | O143: 16.21575342 | P143: 0 | Q143: 0 | R143: 0 | S143: 0 | T143: 0 | U143: 0 | V143: 0 | W143: 0 | X143: 0 | Y143: 0
F144: Reactive power units | G144: MVArh | J144: =TRANSPOSE('ARP_Inputs by customer type'!J1705:J1720) -> 0 | K144: 0 | L144: 0 | M144: 0 | N144: 1762.13325 | O144: 24.7 | P144: 222.8380292 | Q144: 0 | R144: 0 | S144: 0 | T144: 0 | U144: 0 | V144: 0 | W144: 0 | X144: 0 | Y144: 0
E146: LDNO HV volume forecast - Residual Band 3
F147: Rate 1 units | G147: MWh | J147: =TRANSPOSE('ARP_Inputs by customer type'!J1725:J1740) -> 0 | K147: 0 | L147: 0 | M147: 0 | N147: 2403.758923 | O147: 173.1202313 | P147: 599.3784683 | Q147: 0 | R147: 0 | S147: 0 | T147: 0 | U147: 0 | V147: 0 | W147: 0 | X147: 0 | Y147: 0
F148: Rate 2 units | G148: MWh | J148: =TRANSPOSE('ARP_Inputs by customer type'!J1743:J1758) -> 0 | K148: 0 | L148: 0 | M148: 0 | N148: 7993.336366 | O148: 525.2436638 | P148: 2025.08013 | Q148: 0 | R148: 0 | S148: 0 | T148: 0 | U148: 0 | V148: 0 | W148: 0 | X148: 0 | Y148: 0
F149: Rate 3 units | G149: MWh | J149: =TRANSPOSE('ARP_Inputs by customer type'!J1761:J1776) -> 0 | K149: 0 | L149: 0 | M149: 0 | N149: 12709.59324 | O149: 848.4812479 | P149: 3383.133567 | Q149: 0 | R149: 0 | S149: 0 | T149: 0 | U149: 0 | V149: 0 | W149: 0 | X149: 0 | Y149: 0
F150: MPANs | G150: MPANs | J150: =TRANSPOSE('ARP_Inputs by customer type'!J1779:J1794) -> 0 | K150: 0 | L150: 0 | M150: 0 | N150: 119 | O150: 10 | P150: 6 | Q150: 0 | R150: 0 | S150: 0 | T150: 0 | U150: 0 | V150: 0 | W150: 0 | X150: 0 | Y150: 0
F151: Import capacity | G151: kVA | J151: =TRANSPOSE('ARP_Inputs by customer type'!J1797:J1812) -> 0 | K151: 0 | L151: 0 | M151: 0 | N151: 21540.35864 | O151: 2067.426152 | P151: 6531.119962 | Q151: 0 | R151: 0 | S151: 0 | T151: 0 | U151: 0 | V151: 0 | W151: 0 | X151: 0 | Y151: 0
F152: Exceeded capacity | G152: kVA | J152: =TRANSPOSE('ARP_Inputs by customer type'!J1815:J1830) -> 0 | K152: 0 | L152: 0 | M152: 0 | N152: 0.1684474886 | O152: 0 | P152: 0 | Q152: 0 | R152: 0 | S152: 0 | T152: 0 | U152: 0 | V152: 0 | W152: 0 | X152: 0 | Y152: 0
F153: Reactive power units | G153: MVArh | J153: =TRANSPOSE('ARP_Inputs by customer type'!J1833:J1848) -> 0 | K153: 0 | L153: 0 | M153: 0 | N153: 1635.058116 | O153: 34.73872727 | P153: 9.110420455 | Q153: 0 | R153: 0 | S153: 0 | T153: 0 | U153: 0 | V153: 0 | W153: 0 | X153: 0 | Y153: 0
E155: LDNO HV volume forecast - Residual Band 4
F156: Rate 1 units | G156: MWh | J156: =TRANSPOSE('ARP_Inputs by customer type'!J1853:J1868) -> 0 | K156: 0 | L156: 0 | M156: 0 | N156: 9964.602475 | O156: 2165.302439 | P156: 2210.185119 | Q156: 0 | R156: 0 | S156: 0 | T156: 0 | U156: 0 | V156: 0 | W156: 0 | X156: 0 | Y156: 0
F157: Rate 2 units | G157: MWh | J157: =TRANSPOSE('ARP_Inputs by customer type'!J1871:J1886) -> 0 | K157: 0 | L157: 0 | M157: 0 | N157: 34596.81386 | O157: 7714.980694 | P157: 6680.976311 | Q157: 0 | R157: 0 | S157: 0 | T157: 0 | U157: 0 | V157: 0 | W157: 0 | X157: 0 | Y157: 0
F158: Rate 3 units | G158: MWh | J158: =TRANSPOSE('ARP_Inputs by customer type'!J1889:J1904) -> 0 | K158: 0 | L158: 0 | M158: 0 | N158: 49899.61684 | O158: 10664.55255 | P158: 14003.94766 | Q158: 0 | R158: 0 | S158: 0 | T158: 0 | U158: 0 | V158: 0 | W158: 0 | X158: 0 | Y158: 0
F159: MPANs | G159: MPANs | J159: =TRANSPOSE('ARP_Inputs by customer type'!J1907:J1922) -> 0 | K159: 0 | L159: 0 | M159: 0 | N159: 215.169863 | O159: 37 | P159: 9 | Q159: 0 | R159: 0 | S159: 0 | T159: 0 | U159: 0 | V159: 0 | W159: 0 | X159: 0 | Y159: 0
F160: Import capacity | G160: kVA | J160: =TRANSPOSE('ARP_Inputs by customer type'!J1925:J1940) -> 0 | K160: 0 | L160: 0 | M160: 0 | N160: 104082.6682 | O160: 22066.23509 | P160: 17212.34981 | Q160: 0 | R160: 0 | S160: 0 | T160: 0 | U160: 0 | V160: 0 | W160: 0 | X160: 0 | Y160: 0
F161: Exceeded capacity | G161: kVA | J161: =TRANSPOSE('ARP_Inputs by customer type'!J1943:J1958) -> 0 | K161: 0 | L161: 0 | M161: 0 | N161: 0 | O161: 0 | P161: 0 | Q161: 0 | R161: 0 | S161: 0 | T161: 0 | U161: 0 | V161: 0 | W161: 0 | X161: 0 | Y161: 0
F162: Reactive power units | G162: MVArh | J162: =TRANSPOSE('ARP_Inputs by customer type'!J1961:J1976) -> 0 | K162: 0 | L162: 0 | M162: 0 | N162: 4148.951273 | O162: 1080.592886 | P162: 288.0618409 | Q162: 0 | R162: 0 | S162: 0 | T162: 0 | U162: 0 | V162: 0 | W162: 0 | X162: 0 | Y162: 0
E164: 'Designated Property' MPANs with EDCM-level LDNO boundaries | G164: MPANs | I164: > | J164: =TRANSPOSE('ARP_Inputs by customer type'!J1981:J1996) -> 1262.548816 | K164: 0 | L164: 60.45 | M164: 0 | N164: 73 | O164: 4 | P164: 5 | Q164: 0 | R164: 0 | S164: 0 | T164: 0 | U164: 0 | V164: 0 | W164: 0 | X164: 0 | Y164: 0 | AQ164: Paragraphs 53A, 53B, 101 and 102
C166: =INDEX('Version control'!$H$37:$H$63,MATCH($A$1,'Version control'!$F$37:$F$63,0),1)&"-C: Non-Domestic Aggregated (Related MPAN) distribution by bands" -> Section 501-C: Non-Domestic Aggregated (Related MPAN) distribution by bands
D168: The split of Non-Domestic Aggregated (Related MPAN) units by residual band is used to allocate residual revenue | I168: > | AQ168: Paragraph 92 (a)
D169: between bands to be recovered from Non-Domestic Aggregated customers.
E171: All the way non-domestic aggregated (related MPAN) distribution by bands | J171: No residual | K171: Band 1 | L171: Band 2 | M171: Band 3 | N171: Band 4
F172: Rate 1 units | G172: % | J172: =TRANSPOSE('ARP_Inputs by customer type'!J2006:J2010) -> 0 | K172: 0.02342238326 | L172: 0.1877686192 | M172: 0.2376367361 | N172: 0.5511722614
F173: Rate 2 units | G173: % | J173: =TRANSPOSE('ARP_Inputs by customer type'!J2013:J2017) -> 0 | K173: 0.02342238326 | L173: 0.1877686192 | M173: 0.2376367361 | N173: 0.5511722614
F174: Rate 3 units | G174: % | J174: =TRANSPOSE('ARP_Inputs by customer type'!J2020:J2024) -> 0 | K174: 0.02342238326 | L174: 0.1877686192 | M174: 0.2376367361 | N174: 0.5511722614
E176: LDNO LV non-domestic aggregated (related MPAN) distribution by bands | J176: No residual | K176: Band 1 | L176: Band 2 | M176: Band 3 | N176: Band 4
F177: Rate 1 units | G177: % | J177: =TRANSPOSE('ARP_Inputs by customer type'!J2029:J2033) -> 0 | K177: 0.02342238326 | L177: 0.1877686192 | M177: 0.2376367361 | N177: 0.5511722614
F178: Rate 2 units | G178: % | J178: =TRANSPOSE('ARP_Inputs by customer type'!J2036:J2040) -> 0 | K178: 0.02342238326 | L178: 0.1877686192 | M178: 0.2376367361 | N178: 0.5511722614
F179: Rate 3 units | G179: % | J179: =TRANSPOSE('ARP_Inputs by customer type'!J2043:J2047) -> 0 | K179: 0.02342238326 | L179: 0.1877686192 | M179: 0.2376367361 | N179: 0.5511722614
E181: LDNO HV non-domestic aggregated (related MPAN) distribution by bands | J181: No residual | K181: Band 1 | L181: Band 2 | M181: Band 3 | N181: Band 4
F182: Rate 1 units | G182: % | J182: =TRANSPOSE('ARP_Inputs by customer type'!J2052:J2056) -> 0 | K182: 0.02342238326 | L182: 0.1877686192 | M182: 0.2376367361 | N182: 0.5511722614
F183: Rate 2 units | G183: % | J183: =TRANSPOSE('ARP_Inputs by customer type'!J2059:J2063) -> 0 | K183: 0.02342238326 | L183: 0.1877686192 | M183: 0.2376367361 | N183: 0.5511722614
F184: Rate 3 units | G184: % | J184: =TRANSPOSE('ARP_Inputs by customer type'!J2066:J2070) -> 0 | K184: 0.02342238326 | L184: 0.1877686192 | M184: 0.2376367361 | N184: 0.5511722614
C186: =INDEX('Version control'!$H$37:$H$63,MATCH($A$1,'Version control'!$F$37:$F$63,0),1)&"-D: Service model asset values" -> Section 501-D: Service model asset values
D188: Service model costs should be entered per customer or per MWh for unmetered customers
I189: > | AQ189: Paragraphs 32 to 37
E190: LV customer service model asset values | G190: £ per MPAN | J190: =TRANSPOSE('ARP_Inputs by customer type'!J2079:J2094) -> 711.5831875 | K190: 0 | L190: 711.5831875 | M190: 0 | N190: 3327.250213 | O190: 10739.00675 | P190: 0 | Q190: 0 | R190: 0 | S190: 0 | T190: 0 | U190: 0 | V190: 0 | W190: 0 | X190: 0 | Y190: 0
E191: HV customer service model asset values | G191: £ per MPAN | J191: =TRANSPOSE('ARP_Inputs by customer type'!J2099:J2114) -> 0 | K191: 0 | L191: 0 | M191: 0 | N191: 0 | O191: 0 | P191: 23613.64397 | Q191: 0 | R191: 0 | S191: 0 | T191: 0 | U191: 0 | V191: 0 | W191: 0 | X191: 1590.065493 | Y191: 1590.065493
E193: LV UMS customer service model asset values | G193: £/MWh/year | I193: > | J193: =TRANSPOSE('ARP_Inputs by customer type'!J2119:J2134) -> 0 | K193: 0 | L193: 0 | M193: 0 | N193: 0 | O193: 0 | P193: 0 | Q193: 1123.568096 | R193: 0 | S193: 0 | T193: 0 | U193: 0 | V193: 0 | W193: 0 | X193: 0 | Y193: 0 | AQ193: Paragraph 36
B195: Checks
E197: Check that all the way non-domestic aggregated (related MPAN) distribution by bands adds to 100%
F198: Rate 1 units | G198: TRUE / FALSE | H198: =SUM(J172:N172)=1 -> TRUE
F199: Rate 2 units | G199: TRUE / FALSE | H199: =SUM(J173:N173)=1 -> TRUE
F200: Rate 3 units | G200: TRUE / FALSE | H200: TRUE
E202: Check that LDNO LV non-domestic aggregated (related MPAN) distribution by bands adds to 100%
F203: Rate 1 units | G203: TRUE / FALSE | H203: =SUM(J177:N177)=1 -> TRUE
F204: Rate 2 units | G204: TRUE / FALSE | H204: =SUM(J178:N178)=1 -> TRUE
F205: Rate 3 units | G205: TRUE / FALSE | H205: TRUE
E207: Check that LDNO HV non-domestic aggregated (related MPAN) distribution by bands adds to 100%
F208: Rate 1 units | G208: TRUE / FALSE | H208: =SUM(J182:N182)=1 -> TRUE
F209: Rate 2 units | G209: TRUE / FALSE | H209: =SUM(J183:N183)=1 -> TRUE
F210: Rate 3 units | G210: TRUE / FALSE | H210: TRUE
E212: Checks on non-domestic aggregated (related MPAN) distributions | G212: number of issues | H212: =COUNTIF(H198:H210,FALSE) -> 0
E214: Check for error values | G214: number of issues | H214: =SUM(IF(ISERROR(H16:Y194), 1)) -> 0
E216: Summary of checks | G216: number of issues | H216: =H212 + H214 -> 0
B218: End of sheet

Sheet Inputs by network level
A1: =MID(CELL("filename",A1),FIND("]",CELL("filename",A1))+1,255) -> Inputs by network level
A2: =Cover!D21&" - "&Cover!D23 -> Electricity North West Limited - v1.0
A3: =Cover!D2&" - "&Cover!D8&" v"&Cover!D10&" - "&Cover!D19 -> ARP model - Release for charge setting v8 - 2025/26
A4: =H59 & IF(H59 = 1, " issue", " issues") &" identified in checks on this sheet" -> 0 issues identified in checks on this sheet
B5: Click here to return to model map | G5: Units | H5: Constants | J5: Transmission exit | K5: GSPs | L5: 132kV | M5: 132kV/EHV | N5: EHV | O5: EHV/HV | P5: 132kV/HV | Q5: HV | R5: HV/LV | S5: LV circuits | U5: Legal text reference
B7: Description
C9: This sheet sets out the inputs by network level to be filled in by DNOs.
E11: Charging year selected | G11: year | H11: =charging_year_selected -> 2025/26
E12: Historic / current / forecast | G12: text | H12: ='ARP_User control'!$H$36 -> Current
B14: Inputs by network level
C16: =INDEX('Version control'!$H$37:$H$63,MATCH($A$1,'Version control'!$F$37:$F$63,0),1)&"-A: Network and load inputs" -> Section 502-A: Network and load inputs
E18: Diversity allowance between top and bottom of network level | G18: % | I18: > | K18: ='ARP_Inputs by network level'!J20 -> 0.1088923406 | L18: ='ARP_Inputs by network level'!J21 -> 0.03771232896 | N18: ='ARP_Inputs by network level'!J23 -> 0.09148834523 | Q18: ='ARP_Inputs by network level'!J26 -> 0.174318547 | U18: Paragraphs 26 to 28
E20: Proportion of load going through 132kV/HV direct transformation | G20: % | P20: ='ARP_Inputs by network level'!J39 -> 0
E22: Loss adjustment factors to transmission | G22: scalar | I22: > | K22: ='ARP_Inputs by network level'!J48 -> 1 | L22: ='ARP_Inputs by network level'!J49 -> 1.007649528 | M22: ='ARP_Inputs by network level'!J50 -> 1.012908838 | N22: ='ARP_Inputs by network level'!J51 -> 1.018226232 | O22: ='ARP_Inputs by network level'!J52 -> 1.023840958 | Q22: ='ARP_Inputs by network level'!J54 -> 1.032769628 | R22: ='ARP_Inputs by network level'!J55 -> 1.04988666 | S22: ='ARP_Inputs by network level'!J56 -> 1.10004388 | U22: Paragraph 47
E24: Average kVAr by kVA, by network level | G24: kVAr/kVA | I24: > | K24: ='ARP_Inputs by network level'!J62 -> 0.1076706985 | L24: ='ARP_Inputs by network level'!J63 -> 0.1076706985 | M24: ='ARP_Inputs by network level'!J64 -> 0.1521337249 | N24: ='ARP_Inputs by network level'!J65 -> 0.1521337249 | O24: ='ARP_Inputs by network level'!J66 -> 0.1521337249 | P24: ='ARP_Inputs by network level'!J67 -> 0 | Q24: ='ARP_Inputs by network level'!J68 -> 0.1195421069 | R24: ='ARP_Inputs by network level'!J69 -> 0.1195421069 | S24: ='ARP_Inputs by network level'!J70 -> 0.1195421069 | U24: Paragraphs 50 to 51
C26: =INDEX('Version control'!$H$37:$H$63,MATCH($A$1,'Version control'!$F$37:$F$63,0),1)&"-B: Customer contributions under current connection charging policy" -> Section 502-B: Customer contributions under current connection charging policy
I27: > | U27: Paragraphs 29 to 31
E28: Customer contributions under current connection charging policy
F29: LV network | G29: % | L29: ='ARP_Inputs by network level'!J78 -> 0 | M29: ='ARP_Inputs by network level'!J79 -> 0 | N29: ='ARP_Inputs by network level'!J80 -> 0 | O29: ='ARP_Inputs by network level'!J81 -> 0 | P29: ='ARP_Inputs by network level'!J82 -> 0 | Q29: ='ARP_Inputs by network level'!J83 -> 0 | R29: ='ARP_Inputs by network level'!J84 -> 0 | S29: ='ARP_Inputs by network level'!J85 -> 0
F30: LV substation | G30: % | L30: ='ARP_Inputs by network level'!J89 -> 0 | M30: ='ARP_Inputs by network level'!J90 -> 0 | N30: ='ARP_Inputs by network level'!J91 -> 0 | O30: ='ARP_Inputs by network level'!J92 -> 0 | P30: ='ARP_Inputs by network level'!J93 -> 0 | Q30: ='ARP_Inputs by network level'!J94 -> 0 | R30: ='ARP_Inputs by network level'!J95 -> 0
F31: HV network | G31: % | L31: ='ARP_Inputs by network level'!J100 -> 0 | M31: ='ARP_Inputs by network level'!J101 -> 0 | N31: ='ARP_Inputs by network level'!J102 -> 0 | O31: ='ARP_Inputs by network level'!J103 -> 0 | P31: ='ARP_Inputs by network level'!J104 -> 0 | Q31: ='ARP_Inputs by network level'!J105 -> 0
F32: HV substation | G32: % | L32: ='ARP_Inputs by network level'!J111 -> 0 | M32: ='ARP_Inputs by network level'!J112 -> 0 | N32: ='ARP_Inputs by network level'!J113 -> 0 | O32: ='ARP_Inputs by network level'!J114 -> 0
C34: =INDEX('Version control'!$H$37:$H$63,MATCH($A$1,'Version control'!$F$37:$F$63,0),1)&"-C: DRM asset costs" -> Section 502-C: DRM asset costs
E36: Gross asset cost by network level | G36: £ | I36: > | L36: ='ARP_Inputs by network level'!J125 -> 130221017.8 | M36: ='ARP_Inputs by network level'!J126 -> 51509624.43 | N36: ='ARP_Inputs by network level'!J127 -> 130065284.2 | O36: ='ARP_Inputs by network level'!J128 -> 82045623.08 | P36: ='ARP_Inputs by network level'!J129 -> 0 | Q36: ='ARP_Inputs by network level'!J130 -> 148952242.9 | R36: ='ARP_Inputs by network level'!J131 -> 135236780.3 | S36: ='ARP_Inputs by network level'!J132 -> 74970092.65
C38: =INDEX('Version control'!$H$37:$H$63,MATCH($A$1,'Version control'!$F$37:$F$63,0),1)&"-D: Peaking probabilities by network level" -> Section 502-D: Peaking probabilities by network level
D40: Red, Amber & Green peaking probabilities must sum to 100%, except for unused network levels, which should sum to 0%
E42: Peaking probabilities by network level | I42: > | U42: Paragraphs 48 to 49
F43: Red | G43: % | K43: ='ARP_Inputs by network level'!J140 -> 0.7333333333 | L43: ='ARP_Inputs by network level'!J141 -> 0.7402608849 | M43: ='ARP_Inputs by network level'!J142 -> 0.7402608849 | N43: ='ARP_Inputs by network level'!J143 -> 0.5595848569 | O43: ='ARP_Inputs by network level'!J144 -> 0.5595848569 | P43: ='ARP_Inputs by network level'!J145 -> 0 | Q43: ='ARP_Inputs by network level'!J146 -> 0.5595848569 | R43: ='ARP_Inputs by network level'!J147 -> 0.5595848569 | S43: ='ARP_Inputs by network level'!J148 -> 0.5595848569
F44: Amber | G44: % | K44: ='ARP_Inputs by network level'!J152 -> 0.2444444444 | L44: ='ARP_Inputs by network level'!J153 -> 0.2273929138 | M44: ='ARP_Inputs by network level'!J154 -> 0.2273929138 | N44: ='ARP_Inputs by network level'!J155 -> 0.4063389863 | O44: ='ARP_Inputs by network level'!J156 -> 0.4063389863 | P44: ='ARP_Inputs by network level'!J157 -> 0 | Q44: ='ARP_Inputs by network level'!J158 -> 0.4063389863 | R44: ='ARP_Inputs by network level'!J159 -> 0.4063389863 | S44: ='ARP_Inputs by network level'!J160 -> 0.4063389863
F45: Green | G45: % | K45: ='ARP_Inputs by network level'!J164 -> 0.02222222222 | L45: ='ARP_Inputs by network level'!J165 -> 0.0323462013 | M45: ='ARP_Inputs by network level'!J166 -> 0.0323462013 | N45: ='ARP_Inputs by network level'!J167 -> 0.03407615676 | O45: ='ARP_Inputs by network level'!J168 -> 0.03407615676 | P45: ='ARP_Inputs by network level'!J169 -> 0 | Q45: ='ARP_Inputs by network level'!J170 -> 0.03407615676 | R45: ='ARP_Inputs by network level'!J171 -> 0.03407615676 | S45: ='ARP_Inputs by network level'!J172 -> 0.03407615676
F46: Black | G46: % | K46: ='ARP_Inputs by network level'!J176 -> 0.7111111111 | L46: ='ARP_Inputs by network level'!J177 -> 0.7076502732 | M46: ='ARP_Inputs by network level'!J178 -> 0.7076502732 | N46: ='ARP_Inputs by network level'!J179 -> 0.5418625708 | O46: ='ARP_Inputs by network level'!J180 -> 0.5418625708 | P46: ='ARP_Inputs by network level'!J181 -> 0 | Q46: ='ARP_Inputs by network level'!J182 -> 0.5418625708 | R46: ='ARP_Inputs by network level'!J183 -> 0.5418625708 | S46: ='ARP_Inputs by network level'!J184 -> 0.5418625708
B48: Checks
E50: Check for error values | G50: number of issues | H50: =SUM(IF(ISERROR(H18:AA47), 1)) -> 0
E52: Check that loss adjustment factor = 1 at grid supply point | G52: number of issues | H52: =IF(K22 = 1, 0, 1) -> 0
E54: Peaking probabilities check
E55: 0% peaking probabilities are permitted for 132kV, 132kV/EHV & 132kV/HV network levels, which do not exist for all DNOs
F56: General | G56: number of issues | H56: =SUM(K56:S56) -> 0 | K56: =IF(ABS(SUM(K43:K45) - 1) < 10^-check_decimals, 0, 1) -> 0 | N56: =IF(ABS(SUM(N43:N45) - 1) < 10^-check_decimals, 0, 1) -> 0 | O56: =IF(ABS(SUM(O43:O45) - 1) < 10^-check_decimals, 0, 1) -> 0 | Q56: =IF(ABS(SUM(Q43:Q45) - 1) < 10^-check_decimals, 0, 1) -> 0 | R56: =IF(ABS(SUM(R43:R45) - 1) < 10^-check_decimals, 0, 1) -> 0 | S56: =IF(ABS(SUM(S43:S45) - 1) < 10^-check_decimals, 0, 1) -> 0
F57: 132kV | G57: number of issues | H57: =SUM(K57:S57) -> 0 | L57: =IF(OR(ABS(SUM(L43:L45) - 1) < 10^-check_decimals, ABS(SUM(L43:L45) - 0) < 10^-check_decimals), 0, 1) -> 0 | M57: =IF(OR(ABS(SUM(M43:M45) - 1) < 10^-check_decimals, ABS(SUM(M43:M45) - 0) < 10^-check_decimals), 0, 1) -> 0 | P57: =IF(OR(ABS(SUM(P43:P45) - 1) < 10^-check_decimals, ABS(SUM(P43:P45) - 0) < 10^-check_decimals), 0, 1) -> 0
E59: Summary of checks | G59: number of issues | H59: =SUM(H50:H57) -> 0
B61: End of sheet

Sheet General inputs
A1: =MID(CELL("filename",A1),FIND("]",CELL("filename",A1))+1,255) -> General inputs
A2: =Cover!D21&" - "&Cover!D23 -> Electricity North West Limited - v1.0
A3: =Cover!D2&" - "&Cover!D8&" v"&Cover!D10&" - "&Cover!D19 -> ARP model - Release for charge setting v8 - 2025/26
A4: =H118 & IF(H118 = 1, " issue", " issues") &" identified in checks on this sheet" -> 0 issues identified in checks on this sheet
B5: Click here to return to model map | G5: Units | H5: Constants | J5: Legal text reference
B7: Description
C9: This sheet sets out the other inputs to be filled in by DNOs
E11: Charging year selected | G11: year | H11: =charging_year_selected -> 2025/26
E12: Historic / current / forecast | G12: text | H12: ='ARP_User control'!$H$36 -> Current
B14: General inputs
C16: =INDEX('Version control'!$H$37:$H$63,MATCH($A$1,'Version control'!$F$37:$F$63,0),1)&"-A: Inputs by distribution timeband" -> Section 503-A: Inputs by distribution timeband
D18: Typical annual hours by special distribution time band | I18: > | J18: Paragraphs 40 to 41
E19: Black | G19: hours per year | H19: ='ARP_General inputs'!J19 -> 255
E20: Yellow | G20: hours per year | H20: ='ARP_General inputs'!J20 -> 3058.5
E21: Green | G21: hours per year | H21: ='ARP_General inputs'!J21 -> 5446.5
D23: Typical annual hours by distribution time band | I23: > | J23: Paragraphs 40 to 41
E24: Red | G24: hours per year | H24: ='ARP_General inputs'!J24 -> 783
E25: Amber | G25: hours per year | H25: ='ARP_General inputs'!J25 -> 2530.5
E26: Green | G26: hours per year | H26: ='ARP_General inputs'!J26 -> 5446.5
C28: =INDEX('Version control'!$H$37:$H$63,MATCH($A$1,'Version control'!$F$37:$F$63,0),1)&"-B: LDNO discount inputs" -> Section 503-B: LDNO discount inputs
D30: Inputs sourced from the PCDM
D32: Embedded network (LDNO) discount percentages | I32: > | J32: Paragraph 53
E33: LDNO LV: LV user | G33: % | H33: ='ARP_General inputs'!J33 -> 0.3619206701
E34: LDNO HV: LV user | G34: % | H34: ='ARP_General inputs'!J34 -> 0.5503573612
E35: LDNO HV: LV Sub user | G35: % | H35: ='ARP_General inputs'!J35 -> 0.2777160593
E36: LDNO HV: HV user | G36: % | H36: ='ARP_General inputs'!J36 -> 0.1453428393
C38: =INDEX('Version control'!$H$37:$H$63,MATCH($A$1,'Version control'!$F$37:$F$63,0),1)&"-C: CDCM target revenue" -> Section 503-C: CDCM target revenue
D40: The contents of this table are defined in Paragraph 1.5 of Schedule 15 (Table 1) | I40: > | J40: Paragraph 54, Schedule 15 Table 1
D41: The only rows used as inputs to the model itself are "Latest forecast of CDCM Revenue" and "Pass-through… Adjustment" items.
E43: Base Demand Revenue before inflation | G43: £ | H43: ='ARP_General inputs'!J43 -> 434437812.5
E44: Annual Iteration adjustment before inflation | G44: £ | H44: ='ARP_General inputs'!J44 -> -790071.6156
E45: RPI True-up before inflation | G45: £ | H45: ='ARP_General inputs'!J45 -> 0
E46: Price index adjustment (RPI index) | G46: scalar | H46: ='ARP_General inputs'!J46 -> 1.351154722
E47: Base demand revenue | G47: £ | H47: =SUM(H43:H45) -> 433647740.9
E48: Inflation adjustment | G48: £ | H48: =H47 * (H46 - 1) -> 152277451.8
E50: Pass-Through Licence Fees | G50: £ | H50: ='ARP_General inputs'!J50 -> 0
E51: Pass-Through Business Rates | G51: £ | H51: ='ARP_General inputs'!J51 -> 0
E52: Pass-Through Transmission Connection Point Charges | G52: £ | H52: ='ARP_General inputs'!J52 -> 0
E53: Pass-through Smart Meter Communication Licence Costs | G53: £ | H53: ='ARP_General inputs'!J53 -> 3571723.697
E54: Pass-through Smart Meter IT Costs | G54: £ | H54: ='ARP_General inputs'!J54 -> 0
E55: Pass-through Ring Fence Costs | G55: £ | H55: ='ARP_General inputs'!J55 -> 0
E56: Pass-through Supplier of Last Resort Adjustment | G56: £ | H56: ='ARP_General inputs'!J56 -> 0
E57: Pass-through Eligible Bad Debt Adjustment | G57: £ | H57: ='ARP_General inputs'!J57 -> 144609.5598
E58: Pass-through COVID-19 Bad Debt Adjustment | G58: £ | H58: ='ARP_General inputs'!J58 -> 0
E59: Pass-Through Others | G59: £ | H59: ='ARP_General inputs'!J59 -> 0
E60: Allowed Pass-Through Items | G60: £ | H60: =SUM(H50:H59) -> 3716333.257
E62: Broad Measure of Customer Service incentive | G62: £ | H62: ='ARP_General inputs'!J62 -> 0
E63: Quality of Service incentive | G63: £ | H63: ='ARP_General inputs'!J63 -> 0
E64: Connections Engagement incentive | G64: £ | H64: ='ARP_General inputs'!J64 -> 0
E65: Time to Connect incentive | G65: £ | H65: ='ARP_General inputs'!J65 -> 0
E66: Losses Discretionary Reward incentive | G66: £ | H66: ='ARP_General inputs'!J66 -> 0
E67: Network Innovation Allowance | G67: £ | H67: ='ARP_General inputs'!J67 -> 0
E68: Low Carbon Network Fund - Tier 1 unrecoverable | G68: £ | H68: ='ARP_General inputs'!J68 -> 0
E69: Low Carbon Network Fund - Tier 2 & Discretionary Funding | G69: £ | H69: ='ARP_General inputs'!J69 -> 0
E70: Connection Guaranteed Standards Systems & Processes penalty | G70: £ | H70: ='ARP_General inputs'!J70 -> 0
E71: Residual Losses and Growth Incentive - Losses | G71: £ | H71: ='ARP_General inputs'!J71 -> 0
E72: Residual Losses and Growth Incentive - Growth | G72: £ | H72: ='ARP_General inputs'!J72 -> 0
E73: Incentive Revenue and Other Adjustments | G73: £ | H73: =SUM(H62:H72) -> 0
E75: Correction Factor | G75: £ | H75: ='ARP_General inputs'!J75 -> 79138299.72
E76: Total allowed Revenue | G76: £ | H76: =H75 + H73 + H60 + H48 + H47 -> 668779825.7
E78: Other 1. Excluded services - Top-up, standby, and enhanced system security | G78: £ | H78: ='ARP_General inputs'!J78 -> 0
E79: Other 2. Excluded services - Revenue protection services | G79: £ | H79: ='ARP_General inputs'!J79 -> 0
E80: Other 3. Excluded services - Miscellaneous | G80: £ | H80: ='ARP_General inputs'!J80 -> 0
E81: Other 4. Please describe if used | G81: £ | H81: ='ARP_General inputs'!J81 -> 0
E82: Other 5. Please describe if used | G82: £ | H82: ='ARP_General inputs'!J82 -> 0
E83: Total other revenue recovered by Use of System Charges | G83: £ | H83: =SUM(H78:H82) -> 0
E84: Total Revenue for Use of System Charges | G84: £ | H84: =H76+H83 -> 668779825.7
E86: 1. Revenue raised outside CDCM - EDCM and Certain Interconnector Revenue | G86: £ | H86: ='ARP_General inputs'!J86 -> 26989973.67
E87: 2. Revenue raised outside CDCM - Voluntary under-recovery | G87: £ | H87: ='ARP_General inputs'!J87 -> 0
E88: 3. Revenue raised outside CDCM - Please describe if used | G88: £ | H88: ='ARP_General inputs'!J88 -> 0
E89: 4. Revenue raised outside CDCM - Please describe if used | G89: £ | H89: ='ARP_General inputs'!J89 -> 0
E90: Total Revenue to be raised outside the CDCM | G90: £ | H90: =SUM(H86:H89) -> 26989973.67
E91: Latest forecast of CDCM Revenue | G91: £ | H91: =H84-H90 -> 641789852
C93: =INDEX('Version control'!$H$37:$H$63,MATCH($A$1,'Version control'!$F$37:$F$63,0),1)&"-D: Financial and general assumptions" -> Section 503-D: Financial and general assumptions
E95: Real pre-tax cost of capital | G95: % | H95: ='ARP_General inputs'!J101 -> 0.049 | I95: > | J95: Paragraph 57
E96: Days in the charging year | G96: days | H96: ='ARP_General inputs'!J102 -> 365
E97: Hours in charging year | G97: hours | H97: =days_in_year * hours_in_day -> 8760
C99: =INDEX('Version control'!$H$37:$H$63,MATCH($A$1,'Version control'!$F$37:$F$63,0),1)&"-E: Transmission exit charges" -> Section 503-E: Transmission exit charges
E101: Transmission exit charges | G101: £ per year | H101: ='ARP_General inputs'!J106 -> 19076036.58 | I101: > | J101: Paragraph 38
C103: =INDEX('Version control'!$H$37:$H$63,MATCH($A$1,'Version control'!$F$37:$F$63,0),1)&"-F: Other expenditure" -> Section 503-F: Other expenditure
E105: Other expenditure | I105: > | J105: Paragraph 39
F106: Direct cost | G106: £ per year | H106: ='ARP_General inputs'!J111 -> 51831949.65
F107: Indirect cost | G107: £ per year | H107: ='ARP_General inputs'!J112 -> 218809875.8
F108: Network rates | G108: £ per year | H108: ='ARP_General inputs'!J113 -> 35145721.26
B110: Checks
E112: Check for error values | G112: number of issues | H112: =SUM(IF(ISERROR(H6:H109), 1)) -> 0
E114: Hours in charging year check
F115: Normal distribution timebands | G115: number of issues | H115: =IF(SUM(H19:H21) = hours_in_year, 0, 1) -> 0
F116: Special distribution timebands | G116: number of issues | H116: =IF(SUM(H24:H26) = hours_in_year, 0, 1) -> 0
E118: Summary of checks | G118: number of issues | H118: =SUM(H112,H115:H116) -> 0
B120: End of sheet

Sheet Standing charge factors
A1: =MID(CELL("filename",A1),FIND("]",CELL("filename",A1))+1,255) -> Standing charge factors
A2: =Cover!D21&" - "&Cover!D23 -> Electricity North West Limited - v1.0
A3: =Cover!D2&" - "&Cover!D8&" v"&Cover!D10&" - "&Cover!D19 -> ARP model - Release for charge setting v8 - 2025/26
A4: =H58 & IF(H58 = 1, " issue", " issues") &" identified in checks on this sheet" -> 0 issues identified in checks on this sheet
B5: Click here to return to model map | G5: Units | H5: Constants | J5: Domestic Aggregated or CT | K5: Domestic Aggregated (Related MPAN) | L5: Non-Domestic Aggregated or CT | M5: Non-Domestic Aggregated (Related MPAN) | N5: LV Site Specific | O5: LV Sub Site Specific | P5: HV Site Specific | Q5: Unmetered Supplies | R5: LV Generation Aggregated | S5: LV Sub Generation Aggregated | T5: LV Generation Site Specific | U5: LV Generation Site Specific no RP Charge | V5: LV Sub Generation Site Specific | W5: LV Sub Generation Site Specific no RP Charge | X5: HV Generation Site Specific | Y5: HV Generation Site Specific no RP Charge | AA5: Legal text reference
B7: Description
C9: This sheet contains standing charge factors, as described in DCUSA Schedule 16, Paragraphs 74-76.
C10: Standing charge factors are used to split network costs between those to be recovered through unit rate charges
C11: and those to be recovered through standing (capacity or fixed) charges, depending on the customer class and
C12: the network level at which costs occur.
C14: Standing charge factors are only applied for demand users.
C15: A factor of 100% implies that all costs will be allocated to standing charges.
B17: Adjustments to standing charges
C19: =INDEX('Version control'!$H$37:$H$63,MATCH($A$1,'Version control'!$F$37:$F$63,0),1)&"-A: Adjustments to standing charges" -> Section 504-A: Adjustments to standing charges
D21: Brings in standing charge factors and adjusts them for share of load going through 132/HV
E23: Raw inputs for standing charge factors, by network level | I23: > | AA23: Paragraph 74
E24: Standing charge factors as specified in Paragraph 74
F25: Transmission exit | G25: % | J25: ='Fixed inputs'!J88 -> 0 | K25: ='Fixed inputs'!K88 -> 0 | L25: ='Fixed inputs'!L88 -> 0 | M25: ='Fixed inputs'!M88 -> 0 | N25: ='Fixed inputs'!N88 -> 0 | O25: ='Fixed inputs'!O88 -> 0 | P25: ='Fixed inputs'!P88 -> 0 | Q25: ='Fixed inputs'!Q88 -> 0
F26: GSPs | G26: % | J26: ='Fixed inputs'!J89 -> 0 | K26: ='Fixed inputs'!K89 -> 0 | L26: ='Fixed inputs'!L89 -> 0 | M26: ='Fixed inputs'!M89 -> 0 | N26: ='Fixed inputs'!N89 -> 0 | O26: ='Fixed inputs'!O89 -> 0 | P26: ='Fixed inputs'!P89 -> 0 | Q26: ='Fixed inputs'!Q89 -> 0
F27: 132kV | G27: % | J27: ='Fixed inputs'!J90 -> 0 | K27: ='Fixed inputs'!K90 -> 0 | L27: ='Fixed inputs'!L90 -> 0 | M27: ='Fixed inputs'!M90 -> 0 | N27: ='Fixed inputs'!N90 -> 0 | O27: ='Fixed inputs'!O90 -> 0 | P27: ='Fixed inputs'!P90 -> 0 | Q27: ='Fixed inputs'!Q90 -> 0
F28: 132kV/EHV | G28: % | J28: ='Fixed inputs'!J91 -> 0 | K28: ='Fixed inputs'!K91 -> 0 | L28: ='Fixed inputs'!L91 -> 0 | M28: ='Fixed inputs'!M91 -> 0 | N28: ='Fixed inputs'!N91 -> 0 | O28: ='Fixed inputs'!O91 -> 0 | P28: ='Fixed inputs'!P91 -> 0 | Q28: ='Fixed inputs'!Q91 -> 0
F29: EHV | G29: % | J29: ='Fixed inputs'!J92 -> 0 | K29: ='Fixed inputs'!K92 -> 0 | L29: ='Fixed inputs'!L92 -> 0 | M29: ='Fixed inputs'!M92 -> 0 | N29: ='Fixed inputs'!N92 -> 0 | O29: ='Fixed inputs'!O92 -> 0 | P29: ='Fixed inputs'!P92 -> 0.2 | Q29: ='Fixed inputs'!Q92 -> 0
F30: EHV/HV | G30: % | J30: ='Fixed inputs'!J93 -> 0 | K30: ='Fixed inputs'!K93 -> 0 | L30: ='Fixed inputs'!L93 -> 0 | M30: ='Fixed inputs'!M93 -> 0 | N30: ='Fixed inputs'!N93 -> 0 | O30: ='Fixed inputs'!O93 -> 0 | P30: ='Fixed inputs'!P93 -> 1 | Q30: ='Fixed inputs'!Q93 -> 0
F31: 132kV/HV | G31: % | J31: ='Fixed inputs'!J94 -> 0 | K31: ='Fixed inputs'!K94 -> 0 | L31: ='Fixed inputs'!L94 -> 0 | M31: ='Fixed inputs'!M94 -> 0 | N31: ='Fixed inputs'!N94 -> 0 | O31: ='Fixed inputs'!O94 -> 0 | P31: ='Fixed inputs'!P94 -> 0 | Q31: ='Fixed inputs'!Q94 -> 0
F32: HV | G32: % | J32: ='Fixed inputs'!J95 -> 0 | K32: ='Fixed inputs'!K95 -> 0 | L32: ='Fixed inputs'!L95 -> 0 | M32: ='Fixed inputs'!M95 -> 0 | N32: ='Fixed inputs'!N95 -> 0.2 | O32: ='Fixed inputs'!O95 -> 1 | P32: ='Fixed inputs'!P95 -> 1 | Q32: ='Fixed inputs'!Q95 -> 0
F33: HV/LV | G33: % | J33: ='Fixed inputs'!J96 -> 0 | K33: ='Fixed inputs'!K96 -> 0 | L33: ='Fixed inputs'!L96 -> 0 | M33: ='Fixed inputs'!M96 -> 0 | N33: ='Fixed inputs'!N96 -> 1 | O33: ='Fixed inputs'!O96 -> 1 | P33: ='Fixed inputs'!P96 -> 0 | Q33: ='Fixed inputs'!Q96 -> 0
F34: LV circuits | G34: % | J34: ='Fixed inputs'!J97 -> 1 | K34: ='Fixed inputs'!K97 -> 1 | L34: ='Fixed inputs'!L97 -> 1 | M34: ='Fixed inputs'!M97 -> 1 | N34: ='Fixed inputs'!N97 -> 1 | O34: ='Fixed inputs'!O97 -> 0 | P34: ='Fixed inputs'!P97 -> 0 | Q34: ='Fixed inputs'!Q97 -> 0
F35: LV customers | G35: %
F36: HV customers | G36: %
E38: Proportion of load going through 132kV/HV direct transformation
F39: Proportion of load going through 132kV/HV direct transformation | G39: % | H39: ='Inputs by network level'!P20 -> 0
E41: Standing charges factors adapted to use 132kV/HV, by network level
E42: Adjustments as described in Paragraph 75 and 76
F43: Transmission exit | G43: %
F44: GSPs | G44: %
F45: 132kV | G45: % | I45: > | J45: =IF($H$39 = 0, J27, J29 * $H$39) -> 0 | K45: =IF($H$39 = 0, K27, K29 * $H$39) -> 0 | L45: 0 | M45: 0 | N45: 0 | O45: 0 | P45: 0 | Q45: 0 | AA45: Paragraph 76
F46: 132kV/EHV | G46: % | J46: =J28 -> 0 | K46: 0 | L46: 0 | M46: 0 | N46: 0 | O46: 0 | P46: 0 | Q46: 0
F47: EHV | G47: % | J47: 0 | K47: 0 | L47: 0 | M47: 0 | N47: 0 | O47: 0 | P47: 0.2 | Q47: 0
F48: EHV/HV | G48: % | J48: 0 | K48: 0 | L48: 0 | M48: 0 | N48: 0 | O48: 0 | P48: 1 | Q48: 0
F49: 132kV/HV | G49: % | I49: > | J49: =J30 -> 0 | K49: 0 | L49: 0 | M49: 0 | N49: 0 | O49: 0 | P49: 1 | Q49: 0 | AA49: Paragraph 75
F50: HV | G50: % | J50: =J32 -> 0 | K50: 0 | L50: 0 | M50: 0 | N50: 0.2 | O50: 1 | P50: 1 | Q50: 0
F51: HV/LV | G51: % | J51: 0 | K51: 0 | L51: 0 | M51: 0 | N51: 1 | O51: 1 | P51: 0 | Q51: 0
F52: LV circuits | G52: % | J52: 1 | K52: 1 | L52: 1 | M52: 1 | N52: 1 | O52: 0 | P52: 0 | Q52: 0
F53: LV customers | G53: %
F54: HV customers | G54: %
B56: Checks
E58: Check for error values | G58: number of issues | H58: =SUM(IF(ISERROR(H25:Y54), 1)) -> 0
B60: End of sheet

Sheet Load & loss characteristics
A1: =MID(CELL("filename",A1),FIND("]",CELL("filename",A1))+1,255) -> Load & loss characteristics
A2: =Cover!D21&" - "&Cover!D23 -> Electricity North West Limited - v1.0
A3: =Cover!D2&" - "&Cover!D8&" v"&Cover!D10&" - "&Cover!D19 -> ARP model - Release for charge setting v8 - 2025/26
A4: =H183 & IF(H183 = 1, " issue", " issues") &" identified in checks on this sheet" -> 0 issues identified in checks on this sheet
B5: Click here to return to model map | G5: Units | H5: Constants | J5: Transmission exit | K5: GSPs | L5: 132kV | M5: 132kV/EHV | N5: EHV | O5: EHV/HV | P5: 132kV/HV | Q5: HV | R5: HV/LV | S5: LV circuits | T5: LV customers | U5: HV customers | W5: Legal text reference
B7: Description
C9: This sheet adjusts diversity allowances, coincidence factors and loss adjustment factors for use in the model
C10: This sheet then uses network use factors and loss adjustment factors to calculate user loss factors
C11: Network use factors and user loss factors are also adjusted for the share of load going through 132/HV transformation
B13: Load and loss characteristics
C15: Brings in diversity allowances to calculate coincidence and cumulative diversity factors. Also adjusts loss adjustment factors.
C17: =INDEX('Version control'!$H$37:$H$63,MATCH($A$1,'Version control'!$F$37:$F$63,0),1)&"-A: Load characteristics" -> Section 505-A: Load characteristics
E19: Network model diversity allowances | G19: % | K19: ='Inputs by network level'!K18 -> 0.1088923406 | L19: ='Inputs by network level'!L18 -> 0.03771232896 | N19: ='Inputs by network level'!N18 -> 0.09148834523 | Q19: ='Inputs by network level'!Q18 -> 0.174318547
E20: Coincidence factor | G20: % | J20: =IF(I20 = "", 1, I20 / (1 + J19)) -> 1 | K20: =IF(J20 = "", 1, J20 / (1 + K19)) -> 0.9018008001 | L20: =IF(K20 = "", 1, K20 / (1 + L19)) -> 0.8690277401 | M20: 0.8690277401 | N20: 0.7961860004 | O20: 0.7961860004 | P20: 0.7961860004 | Q20: 0.6779983186 | R20: 0.6779983186 | S20: 0.6779983186
E21: Network model cumulative diversity factor | G21: % | J21: =1 / J20 - 1 -> 0 | K21: =1 / K20 - 1 -> 0.1088923406 | L21: 0.1507112534 | M21: 0.1507112534 | N21: 0.2559879218 | O21: 0.2559879218 | P21: 0.2559879218 | Q21: 0.4749299113 | R21: 0.4749299113 | S21: 0.4749299113
E22: Adjustment for 132/HV diversity | G22: % | P22: =M21 -> 0.1507112534
E23: Adjusted network model cumulative diversity factor | G23: % | I23: > | J23: =IF(J22 = "", J21, J22) -> 0 | K23: 0.1088923406 | L23: 0.1507112534 | M23: 0.1507112534 | N23: 0.2559879218 | O23: 0.2559879218 | P23: 0.1507112534 | Q23: 0.4749299113 | R23: 0.4749299113 | S23: 0.4749299113 | W23: Paragraphs 42 to 44
C25: =INDEX('Version control'!$H$37:$H$63,MATCH($A$1,'Version control'!$F$37:$F$63,0),1)&"-B: Loss adjustment factors" -> Section 505-B: Loss adjustment factors
E27: Loss adjustment factor to transmission | G27: scalar | K27: ='Inputs by network level'!K22 -> 1 | L27: ='Inputs by network level'!L22 -> 1.007649528 | M27: ='Inputs by network level'!M22 -> 1.012908838 | N27: ='Inputs by network level'!N22 -> 1.018226232 | O27: ='Inputs by network level'!O22 -> 1.023840958 | Q27: ='Inputs by network level'!Q22 -> 1.032769628 | R27: ='Inputs by network level'!R22 -> 1.04988666 | S27: ='Inputs by network level'!S22 -> 1.10004388
E28: Adjustment for 132/HV transformation & transmission exit | G28: scalar | J28: =K27 -> 1 | P28: =O27 -> 1.023840958
E29: Loss adjustment factor to transmission for each DRM network level | G29: scalar | I29: > | J29: =J27 + J28 -> 1 | K29: 1 | L29: 1.007649528 | M29: 1.012908838 | N29: 1.018226232 | O29: 1.023840958 | P29: 1.023840958 | Q29: 1.032769628 | R29: 1.04988666 | S29: 1.10004388 | W29: Paragraph 47
B31: User loss factor adjustments
C33: Calculates user loss factors and makes adjustments for share of load going through 132kV/HV
C35: =INDEX('Version control'!$H$37:$H$63,MATCH($A$1,'Version control'!$F$37:$F$63,0),1)&"-C: Proportion of relevant load going through 132kV/HV direct transformation" -> Section 505-C: Proportion of relevant load going through 132kV/HV direct transformation
E37: 132kV/HV | G37: % | H37: ='Inputs by network level'!P20 -> 0
E38: Adjustment to network use factors for 132/HV share | G38: % | M38: =1 - $H$37 -> 1 | N38: =1 - $H$37 -> 1 | O38: =1 - $H$37 -> 1 | P38: =H37 -> 0
C40: =INDEX('Version control'!$H$37:$H$63,MATCH($A$1,'Version control'!$F$37:$F$63,0),1)&"-D: Network use factors" -> Section 505-D: Network use factors
D42: Network use factors assume demand and generation use the network from the point of connection.
E44: Network use factors (assuming generation contributes at level of connection)
E45: These values are drawn from the "Fixed inputs" sheet.
F46: Domestic Aggregated or CT | G46: 1, 0 or -1 | J46: =TRANSPOSE('Fixed inputs'!J60:Y69) -> 1 | K46: 1 | L46: 1 | M46: 1 | N46: 1 | O46: 1 | P46: 1 | Q46: 1 | R46: 1 | S46: 1
F47: Domestic Aggregated (Related MPAN) | G47: 1, 0 or -1 | J47: 1 | K47: 1 | L47: 1 | M47: 1 | N47: 1 | O47: 1 | P47: 1 | Q47: 1 | R47: 1 | S47: 1
F48: Non-Domestic Aggregated or CT | G48: 1, 0 or -1 | J48: 1 | K48: 1 | L48: 1 | M48: 1 | N48: 1 | O48: 1 | P48: 1 | Q48: 1 | R48: 1 | S48: 1
F49: Non-Domestic Aggregated (Related MPAN) | G49: 1, 0 or -1 | J49: 1 | K49: 1 | L49: 1 | M49: 1 | N49: 1 | O49: 1 | P49: 1 | Q49: 1 | R49: 1 | S49: 1
F50: LV Site Specific | G50: 1, 0 or -1 | J50: 1 | K50: 1 | L50: 1 | M50: 1 | N50: 1 | O50: 1 | P50: 1 | Q50: 1 | R50: 1 | S50: 1
F51: LV Sub Site Specific | G51: 1, 0 or -1 | J51: 1 | K51: 1 | L51: 1 | M51: 1 | N51: 1 | O51: 1 | P51: 1 | Q51: 1 | R51: 1 | S51: 0
F52: HV Site Specific | G52: 1, 0 or -1 | J52: 1 | K52: 1 | L52: 1 | M52: 1 | N52: 1 | O52: 1 | P52: 1 | Q52: 1 | R52: 0 | S52: 0
F53: Unmetered Supplies | G53: 1, 0 or -1 | J53: 1 | K53: 1 | L53: 1 | M53: 1 | N53: 1 | O53: 1 | P53: 1 | Q53: 1 | R53: 1 | S53: 1
F54: LV Generation Aggregated | G54: 1, 0 or -1 | J54: -1 | K54: -1 | L54: -1 | M54: -1 | N54: -1 | O54: -1 | P54: -1 | Q54: -1 | R54: -1 | S54: -1
F55: LV Sub Generation Aggregated | G55: 1, 0 or -1 | J55: -1 | K55: -1 | L55: -1 | M55: -1 | N55: -1 | O55: -1 | P55: -1 | Q55: -1 | R55: -1 | S55: 0
F56: LV Generation Site Specific | G56: 1, 0 or -1 | J56: -1 | K56: -1 | L56: -1 | M56: -1 | N56: -1 | O56: -1 | P56: -1 | Q56: -1 | R56: -1 | S56: -1
F57: LV Generation Site Specific no RP Charge | G57: 1, 0 or -1 | J57: -1 | K57: -1 | L57: -1 | M57: -1 | N57: -1 | O57: -1 | P57: -1 | Q57: -1 | R57: -1 | S57: -1
F58: LV Sub Generation Site Specific | G58: 1, 0 or -1 | J58: -1 | K58: -1 | L58: -1 | M58: -1 | N58: -1 | O58: -1 | P58: -1 | Q58: -1 | R58: -1 | S58: 0
F59: LV Sub Generation Site Specific no RP Charge | G59: 1, 0 or -1 | J59: -1 | K59: -1 | L59: -1 | M59: -1 | N59: -1 | O59: -1 | P59: -1 | Q59: -1 | R59: -1 | S59: 0
F60: HV Generation Site Specific | G60: 1, 0 or -1 | J60: -1 | K60: -1 | L60: -1 | M60: -1 | N60: -1 | O60: -1 | P60: -1 | Q60: -1 | R60: 0 | S60: 0
F61: HV Generation Site Specific no RP Charge | G61: 1, 0 or -1 | J61: -1 | K61: -1 | L61: -1 | M61: -1 | N61: -1 | O61: -1 | P61: -1 | Q61: -1 | R61: 0 | S61: 0
E63: Network use factors (assuming generation contributes at level of connection) scaled for 132/HV
E64: These have been adjusted for the share of load going through 132/HV transformation
F65: Domestic Aggregated or CT | G65: 1, 0 or -1 | J65: =IF(J$38 = "", J46, J46 * J$38) -> 1 | K65: 1 | L65: 1 | M65: 1 | N65: 1 | O65: 1 | P65: 0 | Q65: 1 | R65: 1 | S65: 1
F66: Domestic Aggregated (Related MPAN) | G66: 1, 0 or -1 | J66: 1 | K66: 1 | L66: 1 | M66: 1 | N66: 1 | O66: 1 | P66: 0 | Q66: 1 | R66: 1 | S66: 1
F67: Non-Domestic Aggregated or CT | G67: 1, 0 or -1 | J67: 1 | K67: 1 | L67: 1 | M67: 1 | N67: 1 | O67: 1 | P67: 0 | Q67: 1 | R67: 1 | S67: 1
F68: Non-Domestic Aggregated (Related MPAN) | G68: 1, 0 or -1 | J68: 1 | K68: 1 | L68: 1 | M68: 1 | N68: 1 | O68: 1 | P68: 0 | Q68: 1 | R68: 1 | S68: 1
F69: LV Site Specific | G69: 1, 0 or -1 | J69: 1 | K69: 1 | L69: 1 | M69: 1 | N69: 1 | O69: 1 | P69: 0 | Q69: 1 | R69: 1 | S69: 1
F70: LV Sub Site Specific | G70: 1, 0 or -1 | J70: 1 | K70: 1 | L70: 1 | M70: 1 | N70: 1 | O70: 1 | P70: 0 | Q70: 1 | R70: 1 | S70: 0
F71: HV Site Specific | G71: 1, 0 or -1 | J71: 1 | K71: 1 | L71: 1 | M71: 1 | N71: 1 | O71: 1 | P71: 0 | Q71: 1 | R71: 0 | S71: 0
F72: Unmetered Supplies | G72: 1, 0 or -1 | J72: 1 | K72: 1 | L72: 1 | M72: 1 | N72: 1 | O72: 1 | P72: 0 | Q72: 1 | R72: 1 | S72: 1
F73: LV Generation Aggregated | G73: 1, 0 or -1 | J73: -1 | K73: -1 | L73: -1 | M73: -1 | N73: -1 | O73: -1 | P73: 0 | Q73: -1 | R73: -1 | S73: -1
F74: LV Sub Generation Aggregated | G74: 1, 0 or -1 | J74: -1 | K74: -1 | L74: -1 | M74: -1 | N74: -1 | O74: -1 | P74: 0 | Q74: -1 | R74: -1 | S74: 0
F75: LV Generation Site Specific | G75: 1, 0 or -1 | J75: -1 | K75: -1 | L75: -1 | M75: -1 | N75: -1 | O75: -1 | P75: 0 | Q75: -1 | R75: -1 | S75: -1
F76: LV Generation Site Specific no RP Charge | G76: 1, 0 or -1 | J76: -1 | K76: -1 | L76: -1 | M76: -1 | N76: -1 | O76: -1 | P76: 0 | Q76: -1 | R76: -1 | S76: -1
F77: LV Sub Generation Site Specific | G77: 1, 0 or -1 | J77: -1 | K77: -1 | L77: -1 | M77: -1 | N77: -1 | O77: -1 | P77: 0 | Q77: -1 | R77: -1 | S77: 0
F78: LV Sub Generation Site Specific no RP Charge | G78: 1, 0 or -1 | J78: -1 | K78: -1 | L78: -1 | M78: -1 | N78: -1 | O78: -1 | P78: 0 | Q78: -1 | R78: -1 | S78: 0
F79: HV Generation Site Specific | G79: 1, 0 or -1 | J79: -1 | K79: -1 | L79: -1 | M79: -1 | N79: -1 | O79: -1 | P79: 0 | Q79: -1 | R79: 0 | S79: 0
F80: HV Generation Site Specific no RP Charge | G80: 1, 0 or -1 | J80: -1 | K80: -1 | L80: -1 | M80: -1 | N80: -1 | O80: -1 | P80: 0 | Q80: -1 | R80: 0 | S80: 0
E82: Network use factors (assuming generation makes no contribution at level of connection) | I82: > | W82: Paragraphs 62 and 71
E83: Equal to 0 for the network level at which generation is connected, otherwise equal to network use factor
F84: Domestic Aggregated or CT | G84: 1 or 0 | J84: =TRANSPOSE('Fixed inputs'!J73:Y82) -> 1 | K84: 1 | L84: 1 | M84: 1 | N84: 1 | O84: 1 | P84: 1 | Q84: 1 | R84: 1 | S84: 1
F85: Domestic Aggregated (Related MPAN) | G85: 1 or 0 | J85: 1 | K85: 1 | L85: 1 | M85: 1 | N85: 1 | O85: 1 | P85: 1 | Q85: 1 | R85: 1 | S85: 1
F86: Non-Domestic Aggregated or CT | G86: 1 or 0 | J86: 1 | K86: 1 | L86: 1 | M86: 1 | N86: 1 | O86: 1 | P86: 1 | Q86: 1 | R86: 1 | S86: 1
F87: Non-Domestic Aggregated (Related MPAN) | G87: 1 or 0 | J87: 1 | K87: 1 | L87: 1 | M87: 1 | N87: 1 | O87: 1 | P87: 1 | Q87: 1 | R87: 1 | S87: 1
F88: LV Site Specific | G88: 1 or 0 | J88: 1 | K88: 1 | L88: 1 | M88: 1 | N88: 1 | O88: 1 | P88: 1 | Q88: 1 | R88: 1 | S88: 1
F89: LV Sub Site Specific | G89: 1 or 0 | J89: 1 | K89: 1 | L89: 1 | M89: 1 | N89: 1 | O89: 1 | P89: 1 | Q89: 1 | R89: 1 | S89: 0
F90: HV Site Specific | G90: 1 or 0 | J90: 1 | K90: 1 | L90: 1 | M90: 1 | N90: 1 | O90: 1 | P90: 1 | Q90: 1 | R90: 0 | S90: 0
F91: Unmetered Supplies | G91: 1 or 0 | J91: 1 | K91: 1 | L91: 1 | M91: 1 | N91: 1 | O91: 1 | P91: 1 | Q91: 1 | R91: 1 | S91: 1
F92: LV Generation Aggregated | G92: 1 or 0 | J92: -1 | K92: -1 | L92: -1 | M92: -1 | N92: -1 | O92: -1 | P92: -1 | Q92: -1 | R92: -1 | S92: 0
F93: LV Sub Generation Aggregated | G93: 1 or 0 | J93: -1 | K93: -1 | L93: -1 | M93: -1 | N93: -1 | O93: -1 | P93: -1 | Q93: -1 | R93: 0 | S93: 0
F94: LV Generation Site Specific | G94: 1 or 0 | J94: -1 | K94: -1 | L94: -1 | M94: -1 | N94: -1 | O94: -1 | P94: -1 | Q94: -1 | R94: -1 | S94: 0
F95: LV Generation Site Specific no RP Charge | G95: 1 or 0 | J95: -1 | K95: -1 | L95: -1 | M95: -1 | N95: -1 | O95: -1 | P95: -1 | Q95: -1 | R95: -1 | S95: 0
F96: LV Sub Generation Site Specific | G96: 1 or 0 | J96: -1 | K96: -1 | L96: -1 | M96: -1 | N96: -1 | O96: -1 | P96: -1 | Q96: -1 | R96: 0 | S96: 0
F97: LV Sub Generation Site Specific no RP Charge | G97: 1 or 0 | J97: -1 | K97: -1 | L97: -1 | M97: -1 | N97: -1 | O97: -1 | P97: -1 | Q97: -1 | R97: 0 | S97: 0
F98: HV Generation Site Specific | G98: 1 or 0 | J98: -1 | K98: -1 | L98: -1 | M98: -1 | N98: -1 | O98: -1 | P98: -1 | Q98: 0 | R98: 0 | S98: 0
F99: HV Generation Site Specific no RP Charge | G99: 1 or 0 | J99: -1 | K99: -1 | L99: -1 | M99: -1 | N99: -1 | O99: -1 | P99: -1 | Q99: 0 | R99: 0 | S99: 0
E101: Network use factors (assuming generation makes no contribution at level of connection), scaled for 132/HV | I101: > | W101: Paragraphs 62 and 71
E102: Equal to 0 for the network level at which generation is connected, otherwise equal to network use factor
E103: These have been adjusted for the share of load going through 132/HV transformation
F104: Domestic Aggregated or CT | G104: 1 or 0 | J104: =IF(J$38 = "", J84, J84 * J$38) -> 1 | K104: 1 | L104: 1 | M104: 1 | N104: 1 | O104: 1 | P104: 0 | Q104: 1 | R104: 1 | S104: 1
F105: Domestic Aggregated (Related MPAN) | G105: 1 or 0 | J105: 1 | K105: 1 | L105: 1 | M105: 1 | N105: 1 | O105: 1 | P105: 0 | Q105: 1 | R105: 1 | S105: 1
F106: Non-Domestic Aggregated or CT | G106: 1 or 0 | J106: 1 | K106: 1 | L106: 1 | M106: 1 | N106: 1 | O106: 1 | P106: 0 | Q106: 1 | R106: 1 | S106: 1
F107: Non-Domestic Aggregated (Related MPAN) | G107: 1 or 0 | J107: 1 | K107: 1 | L107: 1 | M107: 1 | N107: 1 | O107: 1 | P107: 0 | Q107: 1 | R107: 1 | S107: 1
F108: LV Site Specific | G108: 1 or 0 | J108: 1 | K108: 1 | L108: 1 | M108: 1 | N108: 1 | O108: 1 | P108: 0 | Q108: 1 | R108: 1 | S108: 1
F109: LV Sub Site Specific | G109: 1 or 0 | J109: 1 | K109: 1 | L109: 1 | M109: 1 | N109: 1 | O109: 1 | P109: 0 | Q109: 1 | R109: 1 | S109: 0
F110: HV Site Specific | G110: 1 or 0 | J110: 1 | K110: 1 | L110: 1 | M110: 1 | N110: 1 | O110: 1 | P110: 0 | Q110: 1 | R110: 0 | S110: 0
F111: Unmetered Supplies | G111: 1 or 0 | J111: 1 | K111: 1 | L111: 1 | M111: 1 | N111: 1 | O111: 1 | P111: 0 | Q111: 1 | R111: 1 | S111: 1
F112: LV Generation Aggregated | G112: 1 or 0 | J112: -1 | K112: -1 | L112: -1 | M112: -1 | N112: -1 | O112: -1 | P112: 0 | Q112: -1 | R112: -1 | S112: 0
F113: LV Sub Generation Aggregated | G113: 1 or 0 | J113: -1 | K113: -1 | L113: -1 | M113: -1 | N113: -1 | O113: -1 | P113: 0 | Q113: -1 | R113: 0 | S113: 0
F114: LV Generation Site Specific | G114: 1 or 0 | J114: -1 | K114: -1 | L114: -1 | M114: -1 | N114: -1 | O114: -1 | P114: 0 | Q114: -1 | R114: -1 | S114: 0
F115: LV Generation Site Specific no RP Charge | G115: 1 or 0 | J115: -1 | K115: -1 | L115: -1 | M115: -1 | N115: -1 | O115: -1 | P115: 0 | Q115: -1 | R115: -1 | S115: 0
F116: LV Sub Generation Site Specific | G116: 1 or 0 | J116: -1 | K116: -1 | L116: -1 | M116: -1 | N116: -1 | O116: -1 | P116: 0 | Q116: -1 | R116: 0 | S116: 0
F117: LV Sub Generation Site Specific no RP Charge | G117: 1 or 0 | J117: -1 | K117: -1 | L117: -1 | M117: -1 | N117: -1 | O117: -1 | P117: 0 | Q117: -1 | R117: 0 | S117: 0
F118: HV Generation Site Specific | G118: 1 or 0 | J118: -1 | K118: -1 | L118: -1 | M118: -1 | N118: -1 | O118: -1 | P118: 0 | Q118: 0 | R118: 0 | S118: 0
F119: HV Generation Site Specific no RP Charge | G119: 1 or 0 | J119: -1 | K119: -1 | L119: -1 | M119: -1 | N119: -1 | O119: -1 | P119: 0 | Q119: 0 | R119: 0 | S119: 0
C121: =INDEX('Version control'!$H$37:$H$63,MATCH($A$1,'Version control'!$F$37:$F$63,0),1)&"-E: User loss factors" -> Section 505-E: User loss factors
E123: User loss factor (assuming generation contributes at level of connection)
E124: For demand, it is the loss factor at network level which user is supplied.
E125: For generation, it is the loss factor at network level which user is supplied. | H125: Maximum
F126: Domestic Aggregated or CT | G126: scalar | H126: =MAX(J126:S126) -> 1.10004388 | J126: =OR(SUM(J65:$S65) = 1, SUM(J65:$S65) = -1) * J$29 -> 0 | K126: =OR(SUM(K65:$S65) = 1, SUM(K65:$S65) = -1) * K$29 -> 0 | L126: =OR(SUM(L65:$S65) = 1, SUM(L65:$S65) = -1) * L$29 -> 0 | M126: =OR(SUM(M65:$S65) = 1, SUM(M65:$S65) = -1) * M$29 -> 0 | N126: =OR(SUM(N65:$S65) = 1, SUM(N65:$S65) = -1) * N$29 -> 0 | O126: =OR(SUM(O65:$S65) = 1, SUM(O65:$S65) = -1) * O$29 -> 0 | P126: =OR(SUM(P65:$S65) = 1, SUM(P65:$S65) = -1) * P$29 -> 0 | Q126: =OR(SUM(Q65:$S65) = 1, SUM(Q65:$S65) = -1) * Q$29 -> 0 | R126: =OR(SUM(R65:$S65) = 1, SUM(R65:$S65) = -1) * R$29 -> 0 | S126: =OR(SUM(S65:$S65) = 1, SUM(S65:$S65) = -1) * S$29 -> 1.10004388
F127: Domestic Aggregated (Related MPAN) | G127: scalar | H127: 1.10004388 | J127: =OR(SUM(J66:$S66) = 1, SUM(J66:$S66) = -1) * J$29 -> 0 | K127: =OR(SUM(K66:$S66) = 1, SUM(K66:$S66) = -1) * K$29 -> 0 | L127: =OR(SUM(L66:$S66) = 1, SUM(L66:$S66) = -1) * L$29 -> 0 | M127: =OR(SUM(M66:$S66) = 1, SUM(M66:$S66) = -1) * M$29 -> 0 | N127: =OR(SUM(N66:$S66) = 1, SUM(N66:$S66) = -1) * N$29 -> 0 | O127: =OR(SUM(O66:$S66) = 1, SUM(O66:$S66) = -1) * O$29 -> 0 | P127: =OR(SUM(P66:$S66) = 1, SUM(P66:$S66) = -1) * P$29 -> 0 | Q127: =OR(SUM(Q66:$S66) = 1, SUM(Q66:$S66) = -1) * Q$29 -> 0 | R127: =OR(SUM(R66:$S66) = 1, SUM(R66:$S66) = -1) * R$29 -> 0 | S127: =OR(SUM(S66:$S66) = 1, SUM(S66:$S66) = -1) * S$29 -> 1.10004388
F128: Non-Domestic Aggregated or CT | G128: scalar | H128: 1.10004388 | J128: =OR(SUM(J67:$S67) = 1, SUM(J67:$S67) = -1) * J$29 -> 0 | K128: =OR(SUM(K67:$S67) = 1, SUM(K67:$S67) = -1) * K$29 -> 0 | L128: =OR(SUM(L67:$S67) = 1, SUM(L67:$S67) = -1) * L$29 -> 0 | M128: =OR(SUM(M67:$S67) = 1, SUM(M67:$S67) = -1) * M$29 -> 0 | N128: =OR(SUM(N67:$S67) = 1, SUM(N67:$S67) = -1) * N$29 -> 0 | O128: =OR(SUM(O67:$S67) = 1, SUM(O67:$S67) = -1) * O$29 -> 0 | P128: =OR(SUM(P67:$S67) = 1, SUM(P67:$S67) = -1) * P$29 -> 0 | Q128: =OR(SUM(Q67:$S67) = 1, SUM(Q67:$S67) = -1) * Q$29 -> 0 | R128: =OR(SUM(R67:$S67) = 1, SUM(R67:$S67) = -1) * R$29 -> 0 | S128: =OR(SUM(S67:$S67) = 1, SUM(S67:$S67) = -1) * S$29 -> 1.10004388
F129: Non-Domestic Aggregated (Related MPAN) | G129: scalar | H129: 1.10004388 | J129: =OR(SUM(J68:$S68) = 1, SUM(J68:$S68) = -1) * J$29 -> 0 | K129: =OR(SUM(K68:$S68) = 1, SUM(K68:$S68) = -1) * K$29 -> 0 | L129: =OR(SUM(L68:$S68) = 1, SUM(L68:$S68) = -1) * L$29 -> 0 | M129: =OR(SUM(M68:$S68) = 1, SUM(M68:$S68) = -1) * M$29 -> 0 | N129: =OR(SUM(N68:$S68) = 1, SUM(N68:$S68) = -1) * N$29 -> 0 | O129: =OR(SUM(O68:$S68) = 1, SUM(O68:$S68) = -1) * O$29 -> 0 | P129: =OR(SUM(P68:$S68) = 1, SUM(P68:$S68) = -1) * P$29 -> 0 | Q129: =OR(SUM(Q68:$S68) = 1, SUM(Q68:$S68) = -1) * Q$29 -> 0 | R129: =OR(SUM(R68:$S68) = 1, SUM(R68:$S68) = -1) * R$29 -> 0 | S129: =OR(SUM(S68:$S68) = 1, SUM(S68:$S68) = -1) * S$29 -> 1.10004388
F130: LV Site Specific | G130: scalar | H130: 1.10004388 | J130: =OR(SUM(J69:$S69) = 1, SUM(J69:$S69) = -1) * J$29 -> 0 | K130: =OR(SUM(K69:$S69) = 1, SUM(K69:$S69) = -1) * K$29 -> 0 | L130: =OR(SUM(L69:$S69) = 1, SUM(L69:$S69) = -1) * L$29 -> 0 | M130: =OR(SUM(M69:$S69) = 1, SUM(M69:$S69) = -1) * M$29 -> 0 | N130: =OR(SUM(N69:$S69) = 1, SUM(N69:$S69) = -1) * N$29 -> 0 | O130: =OR(SUM(O69:$S69) = 1, SUM(O69:$S69) = -1) * O$29 -> 0 | P130: =OR(SUM(P69:$S69) = 1, SUM(P69:$S69) = -1) * P$29 -> 0 | Q130: =OR(SUM(Q69:$S69) = 1, SUM(Q69:$S69) = -1) * Q$29 -> 0 | R130: =OR(SUM(R69:$S69) = 1, SUM(R69:$S69) = -1) * R$29 -> 0 | S130: =OR(SUM(S69:$S69) = 1, SUM(S69:$S69) = -1) * S$29 -> 1.10004388
F131: LV Sub Site Specific | G131: scalar | H131: 1.04988666 | J131: =OR(SUM(J70:$S70) = 1, SUM(J70:$S70) = -1) * J$29 -> 0 | K131: =OR(SUM(K70:$S70) = 1, SUM(K70:$S70) = -1) * K$29 -> 0 | L131: =OR(SUM(L70:$S70) = 1, SUM(L70:$S70) = -1) * L$29 -> 0 | M131: =OR(SUM(M70:$S70) = 1, SUM(M70:$S70) = -1) * M$29 -> 0 | N131: =OR(SUM(N70:$S70) = 1, SUM(N70:$S70) = -1) * N$29 -> 0 | O131: =OR(SUM(O70:$S70) = 1, SUM(O70:$S70) = -1) * O$29 -> 0 | P131: =OR(SUM(P70:$S70) = 1, SUM(P70:$S70) = -1) * P$29 -> 0 | Q131: =OR(SUM(Q70:$S70) = 1, SUM(Q70:$S70) = -1) * Q$29 -> 0 | R131: =OR(SUM(R70:$S70) = 1, SUM(R70:$S70) = -1) * R$29 -> 1.04988666 | S131: =OR(SUM(S70:$S70) = 1, SUM(S70:$S70) = -1) * S$29 -> 0
F132: HV Site Specific | G132: scalar | H132: 1.032769628 | J132: =OR(SUM(J71:$S71) = 1, SUM(J71:$S71) = -1) * J$29 -> 0 | K132: =OR(SUM(K71:$S71) = 1, SUM(K71:$S71) = -1) * K$29 -> 0 | L132: =OR(SUM(L71:$S71) = 1, SUM(L71:$S71) = -1) * L$29 -> 0 | M132: =OR(SUM(M71:$S71) = 1, SUM(M71:$S71) = -1) * M$29 -> 0 | N132: =OR(SUM(N71:$S71) = 1, SUM(N71:$S71) = -1) * N$29 -> 0 | O132: =OR(SUM(O71:$S71) = 1, SUM(O71:$S71) = -1) * O$29 -> 0 | P132: =OR(SUM(P71:$S71) = 1, SUM(P71:$S71) = -1) * P$29 -> 1.023840958 | Q132: =OR(SUM(Q71:$S71) = 1, SUM(Q71:$S71) = -1) * Q$29 -> 1.032769628 | R132: =OR(SUM(R71:$S71) = 1, SUM(R71:$S71) = -1) * R$29 -> 0 | S132: =OR(SUM(S71:$S71) = 1, SUM(S71:$S71) = -1) * S$29 -> 0
F133: Unmetered Supplies | G133: scalar | H133: 1.10004388 | J133: =OR(SUM(J72:$S72) = 1, SUM(J72:$S72) = -1) * J$29 -> 0 | K133: =OR(SUM(K72:$S72) = 1, SUM(K72:$S72) = -1) * K$29 -> 0 | L133: =OR(SUM(L72:$S72) = 1, SUM(L72:$S72) = -1) * L$29 -> 0 | M133: =OR(SUM(M72:$S72) = 1, SUM(M72:$S72) = -1) * M$29 -> 0 | N133: =OR(SUM(N72:$S72) = 1, SUM(N72:$S72) = -1) * N$29 -> 0 | O133: =OR(SUM(O72:$S72) = 1, SUM(O72:$S72) = -1) * O$29 -> 0 | P133: =OR(SUM(P72:$S72) = 1, SUM(P72:$S72) = -1) * P$29 -> 0 | Q133: =OR(SUM(Q72:$S72) = 1, SUM(Q72:$S72) = -1) * Q$29 -> 0 | R133: =OR(SUM(R72:$S72) = 1, SUM(R72:$S72) = -1) * R$29 -> 0 | S133: =OR(SUM(S72:$S72) = 1, SUM(S72:$S72) = -1) * S$29 -> 1.10004388
F134: LV Generation Aggregated | G134: scalar | H134: 1.10004388 | J134: =OR(SUM(J73:$S73) = 1, SUM(J73:$S73) = -1) * J$29 -> 0 | K134: =OR(SUM(K73:$S73) = 1, SUM(K73:$S73) = -1) * K$29 -> 0 | L134: =OR(SUM(L73:$S73) = 1, SUM(L73:$S73) = -1) * L$29 -> 0 | M134: =OR(SUM(M73:$S73) = 1, SUM(M73:$S73) = -1) * M$29 -> 0 | N134: =OR(SUM(N73:$S73) = 1, SUM(N73:$S73) = -1) * N$29 -> 0 | O134: =OR(SUM(O73:$S73) = 1, SUM(O73:$S73) = -1) * O$29 -> 0 | P134: =OR(SUM(P73:$S73) = 1, SUM(P73:$S73) = -1) * P$29 -> 0 | Q134: =OR(SUM(Q73:$S73) = 1, SUM(Q73:$S73) = -1) * Q$29 -> 0 | R134: =OR(SUM(R73:$S73) = 1, SUM(R73:$S73) = -1) * R$29 -> 0 | S134: =OR(SUM(S73:$S73) = 1, SUM(S73:$S73) = -1) * S$29 -> 1.10004388
F135: LV Sub Generation Aggregated | G135: scalar | H135: 1.04988666 | J135: =OR(SUM(J74:$S74) = 1, SUM(J74:$S74) = -1) * J$29 -> 0 | K135: =OR(SUM(K74:$S74) = 1, SUM(K74:$S74) = -1) * K$29 -> 0 | L135: =OR(SUM(L74:$S74) = 1, SUM(L74:$S74) = -1) * L$29 -> 0 | M135: =OR(SUM(M74:$S74) = 1, SUM(M74:$S74) = -1) * M$29 -> 0 | N135: =OR(SUM(N74:$S74) = 1, SUM(N74:$S74) = -1) * N$29 -> 0 | O135: =OR(SUM(O74:$S74) = 1, SUM(O74:$S74) = -1) * O$29 -> 0 | P135: =OR(SUM(P74:$S74) = 1, SUM(P74:$S74) = -1) * P$29 -> 0 | Q135: =OR(SUM(Q74:$S74) = 1, SUM(Q74:$S74) = -1) * Q$29 -> 0 | R135: =OR(SUM(R74:$S74) = 1, SUM(R74:$S74) = -1) * R$29 -> 1.04988666 | S135: =OR(SUM(S74:$S74) = 1, SUM(S74:$S74) = -1) * S$29 -> 0
F136: LV Generation Site Specific | G136: scalar | H136: 1.10004388 | J136: =OR(SUM(J75:$S75) = 1, SUM(J75:$S75) = -1) * J$29 -> 0 | K136: =OR(SUM(K75:$S75) = 1, SUM(K75:$S75) = -1) * K$29 -> 0 | L136: =OR(SUM(L75:$S75) = 1, SUM(L75:$S75) = -1) * L$29 -> 0 | M136: =OR(SUM(M75:$S75) = 1, SUM(M75:$S75) = -1) * M$29 -> 0 | N136: =OR(SUM(N75:$S75) = 1, SUM(N75:$S75) = -1) * N$29 -> 0 | O136: =OR(SUM(O75:$S75) = 1, SUM(O75:$S75) = -1) * O$29 -> 0 | P136: =OR(SUM(P75:$S75) = 1, SUM(P75:$S75) = -1) * P$29 -> 0 | Q136: =OR(SUM(Q75:$S75) = 1, SUM(Q75:$S75) = -1) * Q$29 -> 0 | R136: =OR(SUM(R75:$S75) = 1, SUM(R75:$S75) = -1) * R$29 -> 0 | S136: =OR(SUM(S75:$S75) = 1, SUM(S75:$S75) = -1) * S$29 -> 1.10004388
F137: LV Generation Site Specific no RP Charge | G137: scalar | H137: 1.10004388 | J137: =OR(SUM(J76:$S76) = 1, SUM(J76:$S76) = -1) * J$29 -> 0 | K137: =OR(SUM(K76:$S76) = 1, SUM(K76:$S76) = -1) * K$29 -> 0 | L137: =OR(SUM(L76:$S76) = 1, SUM(L76:$S76) = -1) * L$29 -> 0 | M137: =OR(SUM(M76:$S76) = 1, SUM(M76:$S76) = -1) * M$29 -> 0 | N137: =OR(SUM(N76:$S76) = 1, SUM(N76:$S76) = -1) * N$29 -> 0 | O137: =OR(SUM(O76:$S76) = 1, SUM(O76:$S76) = -1) * O$29 -> 0 | P137: =OR(SUM(P76:$S76) = 1, SUM(P76:$S76) = -1) * P$29 -> 0 | Q137: =OR(SUM(Q76:$S76) = 1, SUM(Q76:$S76) = -1) * Q$29 -> 0 | R137: =OR(SUM(R76:$S76) = 1, SUM(R76:$S76) = -1) * R$29 -> 0 | S137: =OR(SUM(S76:$S76) = 1, SUM(S76:$S76) = -1) * S$29 -> 1.10004388
F138: LV Sub Generation Site Specific | G138: scalar | H138: 1.04988666 | J138: =OR(SUM(J77:$S77) = 1, SUM(J77:$S77) = -1) * J$29 -> 0 | K138: =OR(SUM(K77:$S77) = 1, SUM(K77:$S77) = -1) * K$29 -> 0 | L138: =OR(SUM(L77:$S77) = 1, SUM(L77:$S77) = -1) * L$29 -> 0 | M138: =OR(SUM(M77:$S77) = 1, SUM(M77:$S77) = -1) * M$29 -> 0 | N138: =OR(SUM(N77:$S77) = 1, SUM(N77:$S77) = -1) * N$29 -> 0 | O138: =OR(SUM(O77:$S77) = 1, SUM(O77:$S77) = -1) * O$29 -> 0 | P138: =OR(SUM(P77:$S77) = 1, SUM(P77:$S77) = -1) * P$29 -> 0 | Q138: =OR(SUM(Q77:$S77) = 1, SUM(Q77:$S77) = -1) * Q$29 -> 0 | R138: =OR(SUM(R77:$S77) = 1, SUM(R77:$S77) = -1) * R$29 -> 1.04988666 | S138: =OR(SUM(S77:$S77) = 1, SUM(S77:$S77) = -1) * S$29 -> 0
F139: LV Sub Generation Site Specific no RP Charge | G139: scalar | H139: 1.04988666 | J139: =OR(SUM(J78:$S78) = 1, SUM(J78:$S78) = -1) * J$29 -> 0 | K139: =OR(SUM(K78:$S78) = 1, SUM(K78:$S78) = -1) * K$29 -> 0 | L139: =OR(SUM(L78:$S78) = 1, SUM(L78:$S78) = -1) * L$29 -> 0 | M139: =OR(SUM(M78:$S78) = 1, SUM(M78:$S78) = -1) * M$29 -> 0 | N139: =OR(SUM(N78:$S78) = 1, SUM(N78:$S78) = -1) * N$29 -> 0 | O139: =OR(SUM(O78:$S78) = 1, SUM(O78:$S78) = -1) * O$29 -> 0 | P139: =OR(SUM(P78:$S78) = 1, SUM(P78:$S78) = -1) * P$29 -> 0 | Q139: =OR(SUM(Q78:$S78) = 1, SUM(Q78:$S78) = -1) * Q$29 -> 0 | R139: =OR(SUM(R78:$S78) = 1, SUM(R78:$S78) = -1) * R$29 -> 1.04988666 | S139: =OR(SUM(S78:$S78) = 1, SUM(S78:$S78) = -1) * S$29 -> 0
F140: HV Generation Site Specific | G140: scalar | H140: 1.032769628 | J140: =OR(SUM(J79:$S79) = 1, SUM(J79:$S79) = -1) * J$29 -> 0 | K140: =OR(SUM(K79:$S79) = 1, SUM(K79:$S79) = -1) * K$29 -> 0 | L140: =OR(SUM(L79:$S79) = 1, SUM(L79:$S79) = -1) * L$29 -> 0 | M140: =OR(SUM(M79:$S79) = 1, SUM(M79:$S79) = -1) * M$29 -> 0 | N140: =OR(SUM(N79:$S79) = 1, SUM(N79:$S79) = -1) * N$29 -> 0 | O140: =OR(SUM(O79:$S79) = 1, SUM(O79:$S79) = -1) * O$29 -> 0 | P140: =OR(SUM(P79:$S79) = 1, SUM(P79:$S79) = -1) * P$29 -> 1.023840958 | Q140: =OR(SUM(Q79:$S79) = 1, SUM(Q79:$S79) = -1) * Q$29 -> 1.032769628 | R140: =OR(SUM(R79:$S79) = 1, SUM(R79:$S79) = -1) * R$29 -> 0 | S140: =OR(SUM(S79:$S79) = 1, SUM(S79:$S79) = -1) * S$29 -> 0
F141: HV Generation Site Specific no RP Charge | G141: scalar | H141: 1.032769628 | J141: =OR(SUM(J80:$S80) = 1, SUM(J80:$S80) = -1) * J$29 -> 0 | K141: =OR(SUM(K80:$S80) = 1, SUM(K80:$S80) = -1) * K$29 -> 0 | L141: =OR(SUM(L80:$S80) = 1, SUM(L80:$S80) = -1) * L$29 -> 0 | M141: =OR(SUM(M80:$S80) = 1, SUM(M80:$S80) = -1) * M$29 -> 0 | N141: =OR(SUM(N80:$S80) = 1, SUM(N80:$S80) = -1) * N$29 -> 0 | O141: =OR(SUM(O80:$S80) = 1, SUM(O80:$S80) = -1) * O$29 -> 0 | P141: =OR(SUM(P80:$S80) = 1, SUM(P80:$S80) = -1) * P$29 -> 1.023840958 | Q141: =OR(SUM(Q80:$S80) = 1, SUM(Q80:$S80) = -1) * Q$29 -> 1.032769628 | R141: =OR(SUM(R80:$S80) = 1, SUM(R80:$S80) = -1) * R$29 -> 0 | S141: =OR(SUM(S80:$S80) = 1, SUM(S80:$S80) = -1) * S$29 -> 0
E143: User loss factor (assuming generation does not contribute at level of connection) | I143: > | W143: Paragraph 70 (a)
E144: These have been adjusted for the share of load going through 132/HV transformation
F145: Domestic Aggregated or CT | G145: scalar | J145: =$H126 * J104 -> 1.10004388 | K145: 1.10004388 | L145: 1.10004388 | M145: 1.10004388 | N145: 1.10004388 | O145: 1.10004388 | P145: 0 | Q145: 1.10004388 | R145: 1.10004388 | S145: 1.10004388
F146: Domestic Aggregated (Related MPAN) | G146: scalar | J146: 1.10004388 | K146: 1.10004388 | L146: 1.10004388 | M146: 1.10004388 | N146: 1.10004388 | O146: 1.10004388 | P146: 0 | Q146: 1.10004388 | R146: 1.10004388 | S146: 1.10004388
F147: Non-Domestic Aggregated or CT | G147: scalar | J147: 1.10004388 | K147: 1.10004388 | L147: 1.10004388 | M147: 1.10004388 | N147: 1.10004388 | O147: 1.10004388 | P147: 0 | Q147: 1.10004388 | R147: 1.10004388 | S147: 1.10004388
F148: Non-Domestic Aggregated (Related MPAN) | G148: scalar | J148: 1.10004388 | K148: 1.10004388 | L148: 1.10004388 | M148: 1.10004388 | N148: 1.10004388 | O148: 1.10004388 | P148: 0 | Q148: 1.10004388 | R148: 1.10004388 | S148: 1.10004388
F149: LV Site Specific | G149: scalar | J149: 1.10004388 | K149: 1.10004388 | L149: 1.10004388 | M149: 1.10004388 | N149: 1.10004388 | O149: 1.10004388 | P149: 0 | Q149: 1.10004388 | R149: 1.10004388 | S149: 1.10004388
F150: LV Sub Site Specific | G150: scalar | J150: 1.04988666 | K150: 1.04988666 | L150: 1.04988666 | M150: 1.04988666 | N150: 1.04988666 | O150: 1.04988666 | P150: 0 | Q150: 1.04988666 | R150: 1.04988666 | S150: 0
F151: HV Site Specific | G151: scalar | J151: 1.032769628 | K151: 1.032769628 | L151: 1.032769628 | M151: 1.032769628 | N151: 1.032769628 | O151: 1.032769628 | P151: 0 | Q151: 1.032769628 | R151: 0 | S151: 0
F152: Unmetered Supplies | G152: scalar | J152: 1.10004388 | K152: 1.10004388 | L152: 1.10004388 | M152: 1.10004388 | N152: 1.10004388 | O152: 1.10004388 | P152: 0 | Q152: 1.10004388 | R152: 1.10004388 | S152: 1.10004388
F153: LV Generation Aggregated | G153: scalar | J153: -1.10004388 | K153: -1.10004388 | L153: -1.10004388 | M153: -1.10004388 | N153: -1.10004388 | O153: -1.10004388 | P153: 0 | Q153: -1.10004388 | R153: -1.10004388 | S153: 0
F154: LV Sub Generation Aggregated | G154: scalar | J154: -1.04988666 | K154: -1.04988666 | L154: -1.04988666 | M154: -1.04988666 | N154: -1.04988666 | O154: -1.04988666 | P154: 0 | Q154: -1.04988666 | R154: 0 | S154: 0
F155: LV Generation Site Specific | G155: scalar | J155: -1.10004388 | K155: -1.10004388 | L155: -1.10004388 | M155: -1.10004388 | N155: -1.10004388 | O155: -1.10004388 | P155: 0 | Q155: -1.10004388 | R155: -1.10004388 | S155: 0
F156: LV Generation Site Specific no RP Charge | G156: scalar | J156: -1.10004388 | K156: -1.10004388 | L156: -1.10004388 | M156: -1.10004388 | N156: -1.10004388 | O156: -1.10004388 | P156: 0 | Q156: -1.10004388 | R156: -1.10004388 | S156: 0
F157: LV Sub Generation Site Specific | G157: scalar | J157: -1.04988666 | K157: -1.04988666 | L157: -1.04988666 | M157: -1.04988666 | N157: -1.04988666 | O157: -1.04988666 | P157: 0 | Q157: -1.04988666 | R157: 0 | S157: 0
F158: LV Sub Generation Site Specific no RP Charge | G158: scalar | J158: -1.04988666 | K158: -1.04988666 | L158: -1.04988666 | M158: -1.04988666 | N158: -1.04988666 | O158: -1.04988666 | P158: 0 | Q158: -1.04988666 | R158: 0 | S158: 0
F159: HV Generation Site Specific | G159: scalar | J159: -1.032769628 | K159: -1.032769628 | L159: -1.032769628 | M159: -1.032769628 | N159: -1.032769628 | O159: -1.032769628 | P159: 0 | Q159: 0 | R159: 0 | S159: 0
F160: HV Generation Site Specific no RP Charge | G160: scalar | J160: -1.032769628 | K160: -1.032769628 | L160: -1.032769628 | M160: -1.032769628 | N160: -1.032769628 | O160: -1.032769628 | P160: 0 | Q160: 0 | R160: 0 | S160: 0
E162: User loss factor (assuming generation contributes at level of connection) | I162: > | W162: Paragraph 70 (a)
E163: These have been adjusted for the share of load going through 132/HV transformation
F164: Domestic Aggregated or CT | G164: scalar
F165: Domestic Aggregated (Related MPAN) | G165: scalar
F166: Non-Domestic Aggregated or CT | G166: scalar
F167: Non-Domestic Aggregated (Related MPAN) | G167: scalar
F168: LV Site Specific | G168: scalar
F169: LV Sub Site Specific | G169: scalar
F170: HV Site Specific | G170: scalar
F171: Unmetered Supplies | G171: scalar
F172: LV Generation Aggregated | G172: scalar | J172: =$H134 * J73 -> -1.10004388 | K172: -1.10004388 | L172: -1.10004388 | M172: -1.10004388 | N172: -1.10004388 | O172: -1.10004388 | P172: 0 | Q172: -1.10004388 | R172: -1.10004388 | S172: -1.10004388
F173: LV Sub Generation Aggregated | G173: scalar | J173: -1.04988666 | K173: -1.04988666 | L173: -1.04988666 | M173: -1.04988666 | N173: -1.04988666 | O173: -1.04988666 | P173: 0 | Q173: -1.04988666 | R173: -1.04988666 | S173: 0
F174: LV Generation Site Specific | G174: scalar | J174: -1.10004388 | K174: -1.10004388 | L174: -1.10004388 | M174: -1.10004388 | N174: -1.10004388 | O174: -1.10004388 | P174: 0 | Q174: -1.10004388 | R174: -1.10004388 | S174: -1.10004388
F175: LV Generation Site Specific no RP Charge | G175: scalar | J175: -1.10004388 | K175: -1.10004388 | L175: -1.10004388 | M175: -1.10004388 | N175: -1.10004388 | O175: -1.10004388 | P175: 0 | Q175: -1.10004388 | R175: -1.10004388 | S175: -1.10004388
F176: LV Sub Generation Site Specific | G176: scalar | J176: -1.04988666 | K176: -1.04988666 | L176: -1.04988666 | M176: -1.04988666 | N176: -1.04988666 | O176: -1.04988666 | P176: 0 | Q176: -1.04988666 | R176: -1.04988666 | S176: 0
F177: LV Sub Generation Site Specific no RP Charge | G177: scalar | J177: -1.04988666 | K177: -1.04988666 | L177: -1.04988666 | M177: -1.04988666 | N177: -1.04988666 | O177: -1.04988666 | P177: 0 | Q177: -1.04988666 | R177: -1.04988666 | S177: 0
F178: HV Generation Site Specific | G178: scalar | J178: -1.032769628 | K178: -1.032769628 | L178: -1.032769628 | M178: -1.032769628 | N178: -1.032769628 | O178: -1.032769628 | P178: 0 | Q178: -1.032769628 | R178: 0 | S178: 0
F179: HV Generation Site Specific no RP Charge | G179: scalar | J179: -1.032769628 | K179: -1.032769628 | L179: -1.032769628 | M179: -1.032769628 | N179: -1.032769628 | O179: -1.032769628 | P179: 0 | Q179: -1.032769628 | R179: 0 | S179: 0
B181: Checks
E183: Check for error values | G183: number of issues | H183: =SUM(IF(ISERROR(H19:W181), 1)) -> 0
B185: End of sheet

Sheet Customer contributions
A1: =MID(CELL("filename",A1),FIND("]",CELL("filename",A1))+1,255) -> Customer contributions
A2: =Cover!D21&" - "&Cover!D23 -> Electricity North West Limited - v1.0
A3: =Cover!D2&" - "&Cover!D8&" v"&Cover!D10&" - "&Cover!D19 -> ARP model - Release for charge setting v8 - 2025/26
A4: =H70 & IF(H70 = 1, " issue", " issues") &" identified in checks on this sheet" -> 0 issues identified in checks on this sheet
B5: Click here to return to model map | G5: Units | H5: Constants | W5: Legal text reference
B7: Description
C9: This sheet calculates customer contributions towards assets (i.e. assets that are paid for, and should not be
C10: recovered under Use of System charges)
B12: Customer contributions
C14: Maps customer contributions to customer categories
C16: =INDEX('Version control'!$H$37:$H$63,MATCH($A$1,'Version control'!$F$37:$F$63,0),1)&"-A: Network use factors" -> Section 506-A: Network use factors
E18: Network level at which users are supplied | I18: > | W18: Paragraph 30
E19: Network use factors based on customer contributed assets
J20: HV substation | K20: HV network | L20: LV substation | M20: LV network
F21: Domestic Aggregated or CT | G21: 1 or 0 | J21: =TRANSPOSE('Fixed inputs'!J53:Y56) -> 0 | K21: 0 | L21: 0 | M21: 1
F22: Domestic Aggregated (Related MPAN) | G22: 1 or 0 | J22: 0 | K22: 0 | L22: 0 | M22: 1
F23: Non-Domestic Aggregated or CT | G23: 1 or 0 | J23: 0 | K23: 0 | L23: 0 | M23: 1
F24: Non-Domestic Aggregated (Related MPAN) | G24: 1 or 0 | J24: 0 | K24: 0 | L24: 0 | M24: 1
F25: LV Site Specific | G25: 1 or 0 | J25: 0 | K25: 0 | L25: 0 | M25: 1
F26: LV Sub Site Specific | G26: 1 or 0 | J26: 0 | K26: 0 | L26: 1 | M26: 0
F27: HV Site Specific | G27: 1 or 0 | J27: 0 | K27: 1 | L27: 0 | M27: 0
F28: Unmetered Supplies | G28: 1 or 0 | J28: 0 | K28: 0 | L28: 0 | M28: 1
F29: LV Generation Aggregated | G29: 1 or 0 | J29: 0 | K29: 0 | L29: 0 | M29: 1
F30: LV Sub Generation Aggregated | G30: 1 or 0 | J30: 0 | K30: 0 | L30: 1 | M30: 0
F31: LV Generation Site Specific | G31: 1 or 0 | J31: 0 | K31: 0 | L31: 0 | M31: 1
F32: LV Generation Site Specific no RP Charge | G32: 1 or 0 | J32: 0 | K32: 0 | L32: 0 | M32: 1
F33: LV Sub Generation Site Specific | G33: 1 or 0 | J33: 0 | K33: 0 | L33: 1 | M33: 0
F34: LV Sub Generation Site Specific no RP Charge | G34: 1 or 0 | J34: 0 | K34: 0 | L34: 1 | M34: 0
F35: HV Generation Site Specific | G35: 1 or 0 | J35: 0 | K35: 1 | L35: 0 | M35: 0
F36: HV Generation Site Specific no RP Charge | G36: 1 or 0 | J36: 0 | K36: 1 | L36: 0 | M36: 0
C38: =INDEX('Version control'!$H$37:$H$63,MATCH($A$1,'Version control'!$F$37:$F$63,0),1)&"-B: Customer contributions" -> Section 506-B: Customer contributions
E40: Customer contributions, by network level of supply | I40: > | W40: Paragraph 29
E41: Share of customer contributions by network level and asset type
J42: Transmission exit | K42: GSPs | L42: 132kV | M42: 132kV/EHV | N42: EHV | O42: EHV/HV | P42: 132kV/HV | Q42: HV | R42: HV/LV | S42: LV circuits | T42: LV customers | U42: HV customers
F43: LV network | G43: % | L43: ='Inputs by network level'!L29 -> 0 | M43: ='Inputs by network level'!M29 -> 0 | N43: ='Inputs by network level'!N29 -> 0 | O43: ='Inputs by network level'!O29 -> 0 | P43: ='Inputs by network level'!P29 -> 0 | Q43: ='Inputs by network level'!Q29 -> 0 | R43: ='Inputs by network level'!R29 -> 0 | S43: ='Inputs by network level'!S29 -> 0
F44: LV substation | G44: % | L44: ='Inputs by network level'!L30 -> 0 | M44: ='Inputs by network level'!M30 -> 0 | N44: ='Inputs by network level'!N30 -> 0 | O44: ='Inputs by network level'!O30 -> 0 | P44: ='Inputs by network level'!P30 -> 0 | Q44: ='Inputs by network level'!Q30 -> 0 | R44: ='Inputs by network level'!R30 -> 0 | S44: ='Inputs by network level'!S30 -> 0
F45: HV network | G45: % | L45: ='Inputs by network level'!L31 -> 0 | M45: ='Inputs by network level'!M31 -> 0 | N45: ='Inputs by network level'!N31 -> 0 | O45: ='Inputs by network level'!O31 -> 0 | P45: ='Inputs by network level'!P31 -> 0 | Q45: ='Inputs by network level'!Q31 -> 0 | R45: ='Inputs by network level'!R31 -> 0 | S45: ='Inputs by network level'!S31 -> 0
F46: HV substation | G46: % | L46: ='Inputs by network level'!L32 -> 0 | M46: ='Inputs by network level'!M32 -> 0 | N46: ='Inputs by network level'!N32 -> 0 | O46: ='Inputs by network level'!O32 -> 0 | P46: ='Inputs by network level'!P32 -> 0 | Q46: ='Inputs by network level'!Q32 -> 0 | R46: ='Inputs by network level'!R32 -> 0 | S46: ='Inputs by network level'!S32 -> 0
E48: Customer contributions, by network level
E49: Customer contributions by network level and customer type based on mappings above
J50: Transmission exit | K50: GSPs | L50: 132kV | M50: 132kV/EHV | N50: EHV | O50: EHV/HV | P50: 132kV/HV | Q50: HV | R50: HV/LV | S50: LV circuits | T50: LV customers | U50: HV customers
F51: Domestic Aggregated or CT | H51: % | L51: =$M21 * L$43 + $L21 * L$44 + $K21 * L$45 + $J21 * L$46 -> 0 | M51: 0 | N51: 0 | O51: 0 | P51: 0 | Q51: 0 | R51: 0 | S51: 0
F52: Domestic Aggregated (Related MPAN) | H52: % | L52: 0 | M52: 0 | N52: 0 | O52: 0 | P52: 0 | Q52: 0 | R52: 0 | S52: 0
F53: Non-Domestic Aggregated or CT | H53: % | L53: 0 | M53: 0 | N53: 0 | O53: 0 | P53: 0 | Q53: 0 | R53: 0 | S53: 0
F54: Non-Domestic Aggregated (Related MPAN) | H54: % | L54: 0 | M54: 0 | N54: 0 | O54: 0 | P54: 0 | Q54: 0 | R54: 0 | S54: 0
F55: LV Site Specific | H55: % | L55: 0 | M55: 0 | N55: 0 | O55: 0 | P55: 0 | Q55: 0 | R55: 0 | S55: 0
F56: LV Sub Site Specific | H56: % | L56: 0 | M56: 0 | N56: 0 | O56: 0 | P56: 0 | Q56: 0 | R56: 0 | S56: 0
F57: HV Site Specific | H57: % | L57: 0 | M57: 0 | N57: 0 | O57: 0 | P57: 0 | Q57: 0 | R57: 0 | S57: 0
F58: Unmetered Supplies | H58: % | L58: 0 | M58: 0 | N58: 0 | O58: 0 | P58: 0 | Q58: 0 | R58: 0 | S58: 0
F59: LV Generation Aggregated | H59: % | L59: 0 | M59: 0 | N59: 0 | O59: 0 | P59: 0 | Q59: 0 | R59: 0 | S59: 0
F60: LV Sub Generation Aggregated | H60: % | L60: 0 | M60: 0 | N60: 0 | O60: 0 | P60: 0 | Q60: 0 | R60: 0 | S60: 0
F61: LV Generation Site Specific | H61: % | L61: 0 | M61: 0 | N61: 0 | O61: 0 | P61: 0 | Q61: 0 | R61: 0 | S61: 0
F62: LV Generation Site Specific no RP Charge | H62: % | L62: 0 | M62: 0 | N62: 0 | O62: 0 | P62: 0 | Q62: 0 | R62: 0 | S62: 0
F63: LV Sub Generation Site Specific | H63: % | L63: 0 | M63: 0 | N63: 0 | O63: 0 | P63: 0 | Q63: 0 | R63: 0 | S63: 0
F64: LV Sub Generation Site Specific no RP Charge | H64: % | L64: 0 | M64: 0 | N64: 0 | O64: 0 | P64: 0 | Q64: 0 | R64: 0 | S64: 0
F65: HV Generation Site Specific | H65: % | L65: 0 | M65: 0 | N65: 0 | O65: 0 | P65: 0 | Q65: 0 | R65: 0 | S65: 0
F66: HV Generation Site Specific no RP Charge | H66: % | L66: 0 | M66: 0 | N66: 0 | O66: 0 | P66: 0 | Q66: 0 | R66: 0 | S66: 0
B68: Checks
E70: Check for error values | G70: number of issues | H70: =SUM(IF(ISERROR(H21:U66), 1)) -> 0
B72: End of sheet

Sheet Volume adjustments
A1: =MID(CELL("filename",A1),FIND("]",CELL("filename",A1))+1,255) -> Volume adjustments
A2: =Cover!D21&" - "&Cover!D23 -> Electricity North West Limited - v1.0
A3: =Cover!D2&" - "&Cover!D8&" v"&Cover!D10&" - "&Cover!D19 -> ARP model - Release for charge setting v8 - 2025/26
A4: =H693 & IF(H693 = 1, " issue", " issues") &" identified in checks on this sheet" -> 0 issues identified in checks on this sheet
B5: Click here to return to model map | G5: Units | H5: Constants | J5: Domestic Aggregated or CT | K5: Domestic Aggregated (Related MPAN) | L5: Non-Domestic Aggregated or CT | M5: Non-Domestic Aggregated (Related MPAN) | N5: LV Site Specific | O5: LV Sub Site Specific | P5: HV Site Specific | Q5: Unmetered Supplies | R5: LV Generation Aggregated | S5: LV Sub Generation Aggregated | T5: LV Generation Site Specific | U5: LV Generation Site Specific no RP Charge | V5: LV Sub Generation Site Specific | W5: LV Sub Generation Site Specific no RP Charge | X5: HV Generation Site Specific | Y5: HV Generation Site Specific no RP Charge | AA5: Legal text reference
B7: Description
C9: This sheet calculates volumes (kWh, MPAN, import and exceeded capacity) to be used throughout the model.
C10: This sheet first calculates the discounts to be applied to LDNO volumes, then combines these with volumes for
C11: all the way customers.
B13: LDNO discounts
C15: =INDEX('Version control'!$H$37:$H$63,MATCH($A$1,'Version control'!$F$37:$F$63,0),1)&"-A: LDNO discounts" -> Section 507-A: LDNO discounts
D17: This section maps the LDNO discounts from the PCDM to different customer categories
D18: Generation LDNO customers do not receive the standard LDNO discounts, and this adjustment is made in this section
E20: Discounts from PCDM | I20: >
E21: LDNO discounts calculated in the PCDM | AA21: Paragraph 97
F22: LDNO LV: LV user | G22: % | H22: ='General inputs'!H33 -> 0.3619206701
F23: LDNO HV: LV user | G23: % | H23: ='General inputs'!H34 -> 0.5503573612
F24: LDNO HV: LV Sub user | G24: % | H24: ='General inputs'!H35 -> 0.2777160593
F25: LDNO HV: HV user | G25: % | H25: ='General inputs'!H36 -> 0.1453428393
E27: Discount mapping | I27: > | AA27: Paragraphs 98 & 99
E28: Maps customer types to LDNO discount categories and calculates the appropriate discount to be applied to
E29: each customer
F30: LDNO LV: LV user | G30: 1 or 0 | J30: ='Fixed inputs'!J46 -> 1 | K30: ='Fixed inputs'!K46 -> 1 | L30: ='Fixed inputs'!L46 -> 1 | M30: ='Fixed inputs'!M46 -> 1 | N30: ='Fixed inputs'!N46 -> 1 | O30: ='Fixed inputs'!O46 -> 0 | P30: ='Fixed inputs'!P46 -> 0 | Q30: ='Fixed inputs'!Q46 -> 1 | R30: ='Fixed inputs'!R46 -> 0 | S30: ='Fixed inputs'!S46 -> 0 | T30: ='Fixed inputs'!T46 -> 0 | U30: ='Fixed inputs'!U46 -> 0 | V30: ='Fixed inputs'!V46 -> 0 | W30: ='Fixed inputs'!W46 -> 0 | X30: ='Fixed inputs'!X46 -> 0 | Y30: ='Fixed inputs'!Y46 -> 0
F31: LDNO HV: LV user | G31: 1 or 0 | J31: ='Fixed inputs'!J47 -> 1 | K31: ='Fixed inputs'!K47 -> 1 | L31: ='Fixed inputs'!L47 -> 1 | M31: ='Fixed inputs'!M47 -> 1 | N31: ='Fixed inputs'!N47 -> 1 | O31: ='Fixed inputs'!O47 -> 0 | P31: ='Fixed inputs'!P47 -> 0 | Q31: ='Fixed inputs'!Q47 -> 1 | R31: ='Fixed inputs'!R47 -> 0 | S31: ='Fixed inputs'!S47 -> 0 | T31: ='Fixed inputs'!T47 -> 0 | U31: ='Fixed inputs'!U47 -> 0 | V31: ='Fixed inputs'!V47 -> 0 | W31: ='Fixed inputs'!W47 -> 0 | X31: ='Fixed inputs'!X47 -> 0 | Y31: ='Fixed inputs'!Y47 -> 0
F32: LDNO HV: LV Sub user | G32: 1 or 0 | J32: ='Fixed inputs'!J48 -> 0 | K32: ='Fixed inputs'!K48 -> 0 | L32: ='Fixed inputs'!L48 -> 0 | M32: ='Fixed inputs'!M48 -> 0 | N32: ='Fixed inputs'!N48 -> 0 | O32: ='Fixed inputs'!O48 -> 1 | P32: ='Fixed inputs'!P48 -> 0 | Q32: ='Fixed inputs'!Q48 -> 0 | R32: ='Fixed inputs'!R48 -> 0 | S32: ='Fixed inputs'!S48 -> 0 | T32: ='Fixed inputs'!T48 -> 0 | U32: ='Fixed inputs'!U48 -> 0 | V32: ='Fixed inputs'!V48 -> 0 | W32: ='Fixed inputs'!W48 -> 0 | X32: ='Fixed inputs'!X48 -> 0 | Y32: ='Fixed inputs'!Y48 -> 0
F33: LDNO HV: HV user | G33: 1 or 0 | J33: ='Fixed inputs'!J49 -> 0 | K33: ='Fixed inputs'!K49 -> 0 | L33: ='Fixed inputs'!L49 -> 0 | M33: ='Fixed inputs'!M49 -> 0 | N33: ='Fixed inputs'!N49 -> 0 | O33: ='Fixed inputs'!O49 -> 0 | P33: ='Fixed inputs'!P49 -> 1 | Q33: ='Fixed inputs'!Q49 -> 0 | R33: ='Fixed inputs'!R49 -> 0 | S33: ='Fixed inputs'!S49 -> 0 | T33: ='Fixed inputs'!T49 -> 0 | U33: ='Fixed inputs'!U49 -> 0 | V33: ='Fixed inputs'!V49 -> 0 | W33: ='Fixed inputs'!W49 -> 0 | X33: ='Fixed inputs'!X49 -> 0 | Y33: ='Fixed inputs'!Y49 -> 0
F34: LV discount | G34: % | J34: =J30 * $H$22 -> 0.3619206701 | K34: 0.3619206701 | L34: 0.3619206701 | M34: 0.3619206701 | N34: 0.3619206701 | O34: 0 | P34: 0 | Q34: 0.3619206701 | R34: 0 | S34: 0 | T34: 0 | U34: 0 | V34: 0 | W34: 0 | X34: 0 | Y34: 0
F35: HV discount | G35: % | J35: =SUMPRODUCT(J31:J33,$H$23:$H$25) -> 0.5503573612 | K35: 0.5503573612 | L35: 0.5503573612 | M35: 0.5503573612 | N35: 0.5503573612 | O35: 0.2777160593 | P35: 0.1453428393 | Q35: 0.5503573612 | R35: 0 | S35: 0 | T35: 0 | U35: 0 | V35: 0 | W35: 0 | X35: 0 | Y35: 0
E37: Discount override | I37: > | AA37: Paragraphs 98 & 99
E38: This table overrides discount factors for certain categories of user
F39: Flag for overriding MWh discount rate | G39: TRUE / FALSE | J39: ='Fixed inputs'!J105 -> FALSE | K39: ='Fixed inputs'!K105 -> FALSE | L39: ='Fixed inputs'!L105 -> FALSE | M39: ='Fixed inputs'!M105 -> FALSE | N39: ='Fixed inputs'!N105 -> FALSE | O39: ='Fixed inputs'!O105 -> FALSE | P39: ='Fixed inputs'!P105 -> FALSE | Q39: ='Fixed inputs'!Q105 -> FALSE | R39: ='Fixed inputs'!R105 -> TRUE | S39: ='Fixed inputs'!S105 -> TRUE | T39: ='Fixed inputs'!T105 -> TRUE | U39: ='Fixed inputs'!U105 -> TRUE | V39: ='Fixed inputs'!V105 -> TRUE | W39: ='Fixed inputs'!W105 -> TRUE | X39: ='Fixed inputs'!X105 -> TRUE | Y39: ='Fixed inputs'!Y105 -> TRUE
F40: Flag for overriding MPAN discount rate | G40: TRUE / FALSE | J40: ='Fixed inputs'!J109 -> FALSE | K40: ='Fixed inputs'!K109 -> FALSE | L40: ='Fixed inputs'!L109 -> FALSE | M40: ='Fixed inputs'!M109 -> FALSE | N40: ='Fixed inputs'!N109 -> FALSE | O40: ='Fixed inputs'!O109 -> FALSE | P40: ='Fixed inputs'!P109 -> FALSE | Q40: ='Fixed inputs'!Q109 -> FALSE | R40: ='Fixed inputs'!R109 -> TRUE | S40: ='Fixed inputs'!S109 -> TRUE | T40: ='Fixed inputs'!T109 -> TRUE | U40: ='Fixed inputs'!U109 -> TRUE | V40: ='Fixed inputs'!V109 -> TRUE | W40: ='Fixed inputs'!W109 -> TRUE | X40: ='Fixed inputs'!X109 -> TRUE | Y40: ='Fixed inputs'!Y109 -> TRUE
F41: Flag for overriding import capacity discount rate | G41: TRUE / FALSE | J41: ='Fixed inputs'!J113 -> FALSE | K41: ='Fixed inputs'!K113 -> FALSE | L41: ='Fixed inputs'!L113 -> FALSE | M41: ='Fixed inputs'!M113 -> FALSE | N41: ='Fixed inputs'!N113 -> FALSE | O41: ='Fixed inputs'!O113 -> FALSE | P41: ='Fixed inputs'!P113 -> FALSE | Q41: ='Fixed inputs'!Q113 -> FALSE | R41: ='Fixed inputs'!R113 -> TRUE | S41: ='Fixed inputs'!S113 -> TRUE | T41: ='Fixed inputs'!T113 -> TRUE | U41: ='Fixed inputs'!U113 -> TRUE | V41: ='Fixed inputs'!V113 -> TRUE | W41: ='Fixed inputs'!W113 -> TRUE | X41: ='Fixed inputs'!X113 -> TRUE | Y41: ='Fixed inputs'!Y113 -> TRUE
F42: Flag for overriding exceeded capacity discount rate | G42: TRUE / FALSE | J42: ='Fixed inputs'!J117 -> FALSE | K42: ='Fixed inputs'!K117 -> FALSE | L42: ='Fixed inputs'!L117 -> FALSE | M42: ='Fixed inputs'!M117 -> FALSE | N42: ='Fixed inputs'!N117 -> FALSE | O42: ='Fixed inputs'!O117 -> FALSE | P42: ='Fixed inputs'!P117 -> FALSE | Q42: ='Fixed inputs'!Q117 -> FALSE | R42: ='Fixed inputs'!R117 -> TRUE | S42: ='Fixed inputs'!S117 -> TRUE | T42: ='Fixed inputs'!T117 -> TRUE | U42: ='Fixed inputs'!U117 -> TRUE | V42: ='Fixed inputs'!V117 -> TRUE | W42: ='Fixed inputs'!W117 -> TRUE | X42: ='Fixed inputs'!X117 -> TRUE | Y42: ='Fixed inputs'!Y117 -> TRUE
F43: Flag for overriding reactive power units discount rate | G43: TRUE / FALSE | J43: ='Fixed inputs'!J121 -> FALSE | K43: ='Fixed inputs'!K121 -> FALSE | L43: ='Fixed inputs'!L121 -> FALSE | M43: ='Fixed inputs'!M121 -> FALSE | N43: ='Fixed inputs'!N121 -> FALSE | O43: ='Fixed inputs'!O121 -> FALSE | P43: ='Fixed inputs'!P121 -> FALSE | Q43: ='Fixed inputs'!Q121 -> FALSE | R43: ='Fixed inputs'!R121 -> TRUE | S43: ='Fixed inputs'!S121 -> TRUE | T43: ='Fixed inputs'!T121 -> TRUE | U43: ='Fixed inputs'!U121 -> TRUE | V43: ='Fixed inputs'!V121 -> TRUE | W43: ='Fixed inputs'!W121 -> TRUE | X43: ='Fixed inputs'!X121 -> TRUE | Y43: ='Fixed inputs'!Y121 -> TRUE
F45: Override MWh discount rate | G45: % | J45: ='Fixed inputs'!J106 -> 0 | K45: ='Fixed inputs'!K106 -> 0 | L45: ='Fixed inputs'!L106 -> 0 | M45: ='Fixed inputs'!M106 -> 0 | N45: ='Fixed inputs'!N106 -> 0 | O45: ='Fixed inputs'!O106 -> 0 | P45: ='Fixed inputs'!P106 -> 0 | Q45: ='Fixed inputs'!Q106 -> 0 | R45: ='Fixed inputs'!R106 -> 0 | S45: ='Fixed inputs'!S106 -> 0 | T45: ='Fixed inputs'!T106 -> 0 | U45: ='Fixed inputs'!U106 -> 0 | V45: ='Fixed inputs'!V106 -> 0 | W45: ='Fixed inputs'!W106 -> 0 | X45: ='Fixed inputs'!X106 -> 0 | Y45: ='Fixed inputs'!Y106 -> 0
F46: Override MPAN discount rate | G46: % | J46: ='Fixed inputs'!J110 -> 0 | K46: ='Fixed inputs'!K110 -> 0 | L46: ='Fixed inputs'!L110 -> 0 | M46: ='Fixed inputs'!M110 -> 0 | N46: ='Fixed inputs'!N110 -> 0 | O46: ='Fixed inputs'!O110 -> 0 | P46: ='Fixed inputs'!P110 -> 0 | Q46: ='Fixed inputs'!Q110 -> 0 | R46: ='Fixed inputs'!R110 -> 1 | S46: ='Fixed inputs'!S110 -> 1 | T46: ='Fixed inputs'!T110 -> 1 | U46: ='Fixed inputs'!U110 -> 1 | V46: ='Fixed inputs'!V110 -> 1 | W46: ='Fixed inputs'!W110 -> 1 | X46: ='Fixed inputs'!X110 -> 1 | Y46: ='Fixed inputs'!Y110 -> 1
F47: Override import capacity discount rate | G47: % | J47: ='Fixed inputs'!J114 -> 0 | K47: ='Fixed inputs'!K114 -> 0 | L47: ='Fixed inputs'!L114 -> 0 | M47: ='Fixed inputs'!M114 -> 0 | N47: ='Fixed inputs'!N114 -> 0 | O47: ='Fixed inputs'!O114 -> 0 | P47: ='Fixed inputs'!P114 -> 0 | Q47: ='Fixed inputs'!Q114 -> 0 | R47: ='Fixed inputs'!R114 -> 0 | S47: ='Fixed inputs'!S114 -> 0 | T47: ='Fixed inputs'!T114 -> 0 | U47: ='Fixed inputs'!U114 -> 0 | V47: ='Fixed inputs'!V114 -> 0 | W47: ='Fixed inputs'!W114 -> 0 | X47: ='Fixed inputs'!X114 -> 0 | Y47: ='Fixed inputs'!Y114 -> 0
F48: Override exceeded capacity discount rate | G48: % | J48: ='Fixed inputs'!J118 -> 0 | K48: ='Fixed inputs'!K118 -> 0 | L48: ='Fixed inputs'!L118 -> 0 | M48: ='Fixed inputs'!M118 -> 0 | N48: ='Fixed inputs'!N118 -> 0 | O48: ='Fixed inputs'!O118 -> 0 | P48: ='Fixed inputs'!P118 -> 0 | Q48: ='Fixed inputs'!Q118 -> 0 | R48: ='Fixed inputs'!R118 -> 0 | S48: ='Fixed inputs'!S118 -> 0 | T48: ='Fixed inputs'!T118 -> 0 | U48: ='Fixed inputs'!U118 -> 0 | V48: ='Fixed inputs'!V118 -> 0 | W48: ='Fixed inputs'!W118 -> 0 | X48: ='Fixed inputs'!X118 -> 0 | Y48: ='Fixed inputs'!Y118 -> 0
F49: Override reactive power units discount rate | G49: % | J49: ='Fixed inputs'!J122 -> 0 | K49: ='Fixed inputs'!K122 -> 0 | L49: ='Fixed inputs'!L122 -> 0 | M49: ='Fixed inputs'!M122 -> 0 | N49: ='Fixed inputs'!N122 -> 0 | O49: ='Fixed inputs'!O122 -> 0 | P49: ='Fixed inputs'!P122 -> 0 | Q49: ='Fixed inputs'!Q122 -> 0 | R49: ='Fixed inputs'!R122 -> 0 | S49: ='Fixed inputs'!S122 -> 0 | T49: ='Fixed inputs'!T122 -> 0 | U49: ='Fixed inputs'!U122 -> 0 | V49: ='Fixed inputs'!V122 -> 0 | W49: ='Fixed inputs'!W122 -> 0 | X49: ='Fixed inputs'!X122 -> 0 | Y49: ='Fixed inputs'!Y122 -> 0
B51: Volume discounting
C53: =INDEX('Version control'!$H$37:$H$63,MATCH($A$1,'Version control'!$F$37:$F$63,0),1)&"-B: Aggregation of volumes" -> Section 507-B: Aggregation of volumes
D55: Volumes for all the way tariffs are imported from the inputs, separately for each residual band.
E57: All the way volume forecast - No Residual | I57: >
F58: Rate 1 units | G58: MWh | K58: ='Inputs by customer type'!K26 -> 31.48014544 | L58: ='Inputs by customer type'!L26 -> 0 | M58: ='Inputs by customer type'!M26 -> 45.69652286 | N58: ='Inputs by customer type'!N26 -> 1.179842114 | O58: ='Inputs by customer type'!O26 -> 0 | P58: ='Inputs by customer type'!P26 -> 329.3553672 | R58: ='Inputs by customer type'!R26 -> 7180.233994 | S58: ='Inputs by customer type'!S26 -> 0 | T58: ='Inputs by customer type'!T26 -> 3390.05061 | U58: ='Inputs by customer type'!U26 -> 0 | V58: ='Inputs by customer type'!V26 -> 586.6321703 | W58: ='Inputs by customer type'!W26 -> 0 | X58: ='Inputs by customer type'!X26 -> 149365.3565 | Y58: ='Inputs by customer type'!Y26 -> 0
F59: Rate 2 units | G59: MWh | K59: ='Inputs by customer type'!K27 -> 484.2888501 | L59: ='Inputs by customer type'!L27 -> 0 | M59: ='Inputs by customer type'!M27 -> 732.2906452 | N59: ='Inputs by customer type'!N27 -> 3.853584729 | O59: ='Inputs by customer type'!O27 -> 0 | P59: ='Inputs by customer type'!P27 -> 1690.076098 | R59: ='Inputs by customer type'!R27 -> 53586.76191 | S59: ='Inputs by customer type'!S27 -> 0 | T59: ='Inputs by customer type'!T27 -> 12108.75868 | U59: ='Inputs by customer type'!U27 -> 0 | V59: ='Inputs by customer type'!V27 -> 2224.791254 | W59: ='Inputs by customer type'!W27 -> 0 | X59: ='Inputs by customer type'!X27 -> 337523.8333 | Y59: ='Inputs by customer type'!Y27 -> 0
F60: Rate 3 units | G60: MWh | K60: ='Inputs by customer type'!K28 -> 4417.374857 | L60: ='Inputs by customer type'!L28 -> 0 | M60: ='Inputs by customer type'!M28 -> 13318.92266 | N60: ='Inputs by customer type'!N28 -> 10.99994742 | O60: ='Inputs by customer type'!O28 -> 0 | P60: ='Inputs by customer type'!P28 -> 4305.109749 | R60: ='Inputs by customer type'!R28 -> 28245.82021 | S60: ='Inputs by customer type'!S28 -> 0 | T60: ='Inputs by customer type'!T28 -> 19639.00584 | U60: ='Inputs by customer type'!U28 -> 0 | V60: ='Inputs by customer type'!V28 -> 3543.987489 | W60: ='Inputs by customer type'!W28 -> 0 | X60: ='Inputs by customer type'!X28 -> 439423.3169 | Y60: ='Inputs by customer type'!Y28 -> 0
F61: MPANs | G61: MPANs | K61: ='Inputs by customer type'!K29 -> 1936.769863 | L61: ='Inputs by customer type'!L29 -> 0 | M61: ='Inputs by customer type'!M29 -> 2536.139726 | N61: ='Inputs by customer type'!N29 -> 10 | O61: ='Inputs by customer type'!O29 -> 0 | P61: ='Inputs by customer type'!P29 -> 101 | R61: ='Inputs by customer type'!R29 -> 15770.66301 | S61: ='Inputs by customer type'!S29 -> 0 | T61: ='Inputs by customer type'!T29 -> 334.1982648 | U61: ='Inputs by customer type'!U29 -> 0 | V61: ='Inputs by customer type'!V29 -> 45 | W61: ='Inputs by customer type'!W29 -> 0 | X61: ='Inputs by customer type'!X29 -> 316.9534247 | Y61: ='Inputs by customer type'!Y29 -> 0
F62: Import capacity | G62: kVA | K62: ='Inputs by customer type'!K30 -> 0 | L62: ='Inputs by customer type'!L30 -> 0 | M62: ='Inputs by customer type'!M30 -> 0 | N62: ='Inputs by customer type'!N30 -> 157.9452055 | O62: ='Inputs by customer type'!O30 -> 0 | P62: ='Inputs by customer type'!P30 -> 14349.0581 | R62: ='Inputs by customer type'!R30 -> 0 | S62: ='Inputs by customer type'!S30 -> 0 | T62: ='Inputs by customer type'!T30 -> 0 | U62: ='Inputs by customer type'!U30 -> 0 | V62: ='Inputs by customer type'!V30 -> 0 | W62: ='Inputs by customer type'!W30 -> 0 | X62: ='Inputs by customer type'!X30 -> 0 | Y62: ='Inputs by customer type'!Y30 -> 0
F63: Exceeded capacity | G63: kVA | K63: ='Inputs by customer type'!K31 -> 0 | L63: ='Inputs by customer type'!L31 -> 0 | M63: ='Inputs by customer type'!M31 -> 0 | N63: ='Inputs by customer type'!N31 -> 11.29863014 | O63: ='Inputs by customer type'!O31 -> 0 | P63: ='Inputs by customer type'!P31 -> 1250.493365 | R63: ='Inputs by customer type'!R31 -> 0 | S63: ='Inputs by customer type'!S31 -> 0 | T63: ='Inputs by customer type'!T31 -> 0 | U63: ='Inputs by customer type'!U31 -> 0 | V63: ='Inputs by customer type'!V31 -> 0 | W63: ='Inputs by customer type'!W31 -> 0 | X63: ='Inputs by customer type'!X31 -> 0 | Y63: ='Inputs by customer type'!Y31 -> 0
F64: Reactive power units | G64: MVArh | K64: ='Inputs by customer type'!K32 -> 0 | L64: ='Inputs by customer type'!L32 -> 0 | M64: ='Inputs by customer type'!M32 -> 0 | N64: ='Inputs by customer type'!N32 -> 46.182 | O64: ='Inputs by customer type'!O32 -> 0 | P64: ='Inputs by customer type'!P32 -> 1623.773541 | R64: ='Inputs by customer type'!R32 -> 0 | S64: ='Inputs by customer type'!S32 -> 0 | T64: ='Inputs by customer type'!T32 -> 3928.356911 | U64: ='Inputs by customer type'!U32 -> 0 | V64: ='Inputs by customer type'!V32 -> 553.571164 | W64: ='Inputs by customer type'!W32 -> 0 | X64: ='Inputs by customer type'!X32 -> 15927.70188 | Y64: ='Inputs by customer type'!Y32 -> 0
E66: All the way volume forecast - Residual Band 1 | I66: >
F67: Rate 1 units | G67: MWh | J67: ='Inputs by customer type'!J35 -> 836398.5198 | L67: ='Inputs by customer type'!L35 -> 30542.95908 | N67: ='Inputs by customer type'!N35 -> 49162.22093 | O67: ='Inputs by customer type'!O35 -> 4324.584647 | P67: ='Inputs by customer type'!P35 -> 37395.70593 | Q67: ='Inputs by customer type'!Q35 -> 8856.380053
F68: Rate 2 units | G68: MWh | J68: ='Inputs by customer type'!J36 -> 2273538.296 | L68: ='Inputs by customer type'!L36 -> 116452.383 | N68: ='Inputs by customer type'!N36 -> 181914.514 | O68: ='Inputs by customer type'!O36 -> 16326.63645 | P68: ='Inputs by customer type'!P36 -> 137858.3104 | Q68: ='Inputs by customer type'!Q36 -> 31938.37497
F69: Rate 3 units | G69: MWh | J69: ='Inputs by customer type'!J37 -> 3843228.747 | L69: ='Inputs by customer type'!L37 -> 151707.894 | N69: ='Inputs by customer type'!N37 -> 241213.8019 | O69: ='Inputs by customer type'!O37 -> 23211.22951 | P69: ='Inputs by customer type'!P37 -> 203558.1306 | Q69: ='Inputs by customer type'!Q37 -> 145326.4297
F70: MPANs | G70: MPANs | J70: ='Inputs by customer type'!J38 -> 2217420.014 | L70: ='Inputs by customer type'!L38 -> 60367.88219 | N70: ='Inputs by customer type'!N38 -> 5329.217808 | O70: ='Inputs by customer type'!O38 -> 314.1592694 | P70: ='Inputs by customer type'!P38 -> 769.8336073 | Q70: ='Inputs by customer type'!Q38 -> 640.1917808
F71: Import capacity | G71: kVA | J71: ='Inputs by customer type'!J39 -> 0 | L71: ='Inputs by customer type'!L39 -> 0 | N71: ='Inputs by customer type'!N39 -> 286588.6965 | O71: ='Inputs by customer type'!O39 -> 37806.36374 | P71: ='Inputs by customer type'!P39 -> 218416.0941 | Q71: ='Inputs by customer type'!Q39 -> 0
F72: Exceeded capacity | G72: kVA | J72: ='Inputs by customer type'!J40 -> 0 | L72: ='Inputs by customer type'!L40 -> 0 | N72: ='Inputs by customer type'!N40 -> 20500.57568 | O72: ='Inputs by customer type'!O40 -> 3714.493855 | P72: ='Inputs by customer type'!P40 -> 8370.637264 | Q72: ='Inputs by customer type'!Q40 -> 0
F73: Reactive power units | G73: MVArh | J73: ='Inputs by customer type'!J41 -> 0 | L73: ='Inputs by customer type'!L41 -> 0 | N73: ='Inputs by customer type'!N41 -> 38073.98402 | O73: ='Inputs by customer type'!O41 -> 6182.730126 | P73: ='Inputs by customer type'!P41 -> 43336.81403 | Q73: ='Inputs by customer type'!Q41 -> 0
E75: All the way volume forecast - Residual Band 2 | I75: >
F76: Rate 1 units | G76: MWh | L76: ='Inputs by customer type'!L44 -> 37904.08591 | N76: ='Inputs by customer type'!N44 -> 84374.92104 | O76: ='Inputs by customer type'!O44 -> 5894.149219 | P76: ='Inputs by customer type'!P44 -> 92505.35214
F77: Rate 2 units | G77: MWh | L77: ='Inputs by customer type'!L45 -> 144959.5116 | N77: ='Inputs by customer type'!N45 -> 301977.5702 | O77: ='Inputs by customer type'!O45 -> 23072.54218 | P77: ='Inputs by customer type'!P45 -> 326976.6297
F78: Rate 3 units | G78: MWh | L78: ='Inputs by customer type'!L46 -> 183719.9095 | N78: ='Inputs by customer type'!N46 -> 396220.7405 | O78: ='Inputs by customer type'!O46 -> 31053.75458 | P78: ='Inputs by customer type'!P46 -> 523409.7334
F79: MPANs | G79: MPANs | L79: ='Inputs by customer type'!L47 -> 48156.04932 | N79: ='Inputs by customer type'!N47 -> 5236.318995 | O79: ='Inputs by customer type'!O47 -> 304.2306849 | P79: ='Inputs by customer type'!P47 -> 700.6219178
F80: Import capacity | G80: kVA | L80: ='Inputs by customer type'!L48 -> 0 | N80: ='Inputs by customer type'!N48 -> 587325.299 | O80: ='Inputs by customer type'!O48 -> 35848.64293 | P80: ='Inputs by customer type'!P48 -> 450226.3942
F81: Exceeded capacity | G81: kVA | L81: ='Inputs by customer type'!L49 -> 0 | N81: ='Inputs by customer type'!N49 -> 2649.59608 | O81: ='Inputs by customer type'!O49 -> 817.7073002 | P81: ='Inputs by customer type'!P49 -> 4985.262275
F82: Reactive power units | G82: MVArh | L82: ='Inputs by customer type'!L50 -> 0 | N82: ='Inputs by customer type'!N50 -> 61662.7339 | O82: ='Inputs by customer type'!O50 -> 8902.779036 | P82: ='Inputs by customer type'!P50 -> 67471.14162
E84: All the way volume forecast - Residual Band 3 | I84: >
F85: Rate 1 units | G85: MWh | L85: ='Inputs by customer type'!L53 -> 43297.46819 | N85: ='Inputs by customer type'!N53 -> 43354.74519 | O85: ='Inputs by customer type'!O53 -> 10342.81869 | P85: ='Inputs by customer type'!P53 -> 83425.67446
F86: Rate 2 units | G86: MWh | L86: ='Inputs by customer type'!L54 -> 165774.0237 | N86: ='Inputs by customer type'!N54 -> 158749.6936 | O86: ='Inputs by customer type'!O54 -> 37761.15207 | P86: ='Inputs by customer type'!P54 -> 282824.2943
F87: Rate 3 units | G87: MWh | L87: ='Inputs by customer type'!L55 -> 214895.3882 | N87: ='Inputs by customer type'!N55 -> 214842.963 | O87: ='Inputs by customer type'!O55 -> 52351.70067 | P87: ='Inputs by customer type'!P55 -> 471411.6707
F88: MPANs | G88: MPANs | L88: ='Inputs by customer type'!L56 -> 25527.20822 | N88: ='Inputs by customer type'!N56 -> 1730.081826 | O88: ='Inputs by customer type'!O56 -> 293.3013699 | P88: ='Inputs by customer type'!P56 -> 296.0410959
F89: Import capacity | G89: kVA | L89: ='Inputs by customer type'!L57 -> 0 | N89: ='Inputs by customer type'!N57 -> 311985.2422 | O89: ='Inputs by customer type'!O57 -> 54956.17635 | P89: ='Inputs by customer type'!P57 -> 402818.3137
F90: Exceeded capacity | G90: kVA | L90: ='Inputs by customer type'!L58 -> 0 | N90: ='Inputs by customer type'!N58 -> 678.1085038 | O90: ='Inputs by customer type'!O58 -> 760.3152127 | P90: ='Inputs by customer type'!P58 -> 2387.740912
F91: Reactive power units | G91: MVArh | L91: ='Inputs by customer type'!L59 -> 0 | N91: ='Inputs by customer type'!N59 -> 37383.1974 | O91: ='Inputs by customer type'!O59 -> 9367.964885 | P91: ='Inputs by customer type'!P59 -> 63450.63293
E93: All the way volume forecast - Residual Band 4 | I93: >
F94: Rate 1 units | G94: MWh | L94: ='Inputs by customer type'!L62 -> 119338.7612 | N94: ='Inputs by customer type'!N62 -> 29946.52792 | O94: ='Inputs by customer type'!O62 -> 86398.4256 | P94: ='Inputs by customer type'!P62 -> 165343.0128
F95: Rate 2 units | G95: MWh | L95: ='Inputs by customer type'!L63 -> 449774.3872 | N95: ='Inputs by customer type'!N63 -> 112336.4926 | O95: ='Inputs by customer type'!O63 -> 321959.0961 | P95: ='Inputs by customer type'!P63 -> 541991.9037
F96: Rate 3 units | G96: MWh | L96: ='Inputs by customer type'!L64 -> 614426.5522 | N96: ='Inputs by customer type'!N64 -> 150340.7567 | O96: ='Inputs by customer type'!O64 -> 457078.5944 | P96: ='Inputs by customer type'!P64 -> 985136.7781
F97: MPANs | G97: MPANs | L97: ='Inputs by customer type'!L65 -> 25144.73973 | N97: ='Inputs by customer type'!N65 -> 794.5018265 | O97: ='Inputs by customer type'!O65 -> 1279.803105 | P97: ='Inputs by customer type'!P65 -> 233.3643836
F98: Import capacity | G98: kVA | L98: ='Inputs by customer type'!L66 -> 0 | N98: ='Inputs by customer type'!N66 -> 227427.7333 | O98: ='Inputs by customer type'!O66 -> 570095.9596 | P98: ='Inputs by customer type'!P66 -> 744010.7629
F99: Exceeded capacity | G99: kVA | L99: ='Inputs by customer type'!L67 -> 0 | N99: ='Inputs by customer type'!N67 -> 201.4063106 | O99: ='Inputs by customer type'!O67 -> 2024.899791 | P99: ='Inputs by customer type'!P67 -> 1453.692814
F100: Reactive power units | G100: MVArh | L100: ='Inputs by customer type'!L68 -> 0 | N100: ='Inputs by customer type'!N68 -> 24140.52295 | O100: ='Inputs by customer type'!O68 -> 65982.49861 | P100: ='Inputs by customer type'!P68 -> 128888.4999
D102: Volumes for LNDO LV tariffs are imported from the inputs, separately for each residual band.
E104: LDNO LV volume forecast - No Residual | I104: >
F105: Rate 1 units | G105: MWh | K105: ='Inputs by customer type'!K73 -> 0 | L105: ='Inputs by customer type'!L73 -> 0 | M105: ='Inputs by customer type'!M73 -> 0 | N105: ='Inputs by customer type'!N73 -> 0 | O105: ='Inputs by customer type'!O73 -> 0 | P105: ='Inputs by customer type'!P73 -> 0 | R105: ='Inputs by customer type'!R73 -> 570.0841327 | T105: ='Inputs by customer type'!T73 -> 0
F106: Rate 2 units | G106: MWh | K106: ='Inputs by customer type'!K74 -> 0 | L106: ='Inputs by customer type'!L74 -> 0 | M106: ='Inputs by customer type'!M74 -> 0 | N106: ='Inputs by customer type'!N74 -> 0 | O106: ='Inputs by customer type'!O74 -> 0 | P106: ='Inputs by customer type'!P74 -> 0 | R106: ='Inputs by customer type'!R74 -> 3053.413268 | T106: ='Inputs by customer type'!T74 -> 0
F107: Rate 3 units | G107: MWh | K107: ='Inputs by customer type'!K75 -> 0 | L107: ='Inputs by customer type'!L75 -> 0 | M107: ='Inputs by customer type'!M75 -> 0 | N107: ='Inputs by customer type'!N75 -> 0 | O107: ='Inputs by customer type'!O75 -> 0 | P107: ='Inputs by customer type'!P75 -> 0 | R107: ='Inputs by customer type'!R75 -> 1736.973913 | T107: ='Inputs by customer type'!T75 -> 0
F108: MPANs | G108: MPANs | K108: ='Inputs by customer type'!K76 -> 0 | L108: ='Inputs by customer type'!L76 -> 0 | M108: ='Inputs by customer type'!M76 -> 0 | N108: ='Inputs by customer type'!N76 -> 0 | O108: ='Inputs by customer type'!O76 -> 0 | P108: ='Inputs by customer type'!P76 -> 0 | R108: ='Inputs by customer type'!R76 -> 456.0698174 | T108: ='Inputs by customer type'!T76 -> 0
F109: Import capacity | G109: kVA | K109: ='Inputs by customer type'!K77 -> 0 | L109: ='Inputs by customer type'!L77 -> 0 | M109: ='Inputs by customer type'!M77 -> 0 | N109: ='Inputs by customer type'!N77 -> 0 | O109: ='Inputs by customer type'!O77 -> 0 | P109: ='Inputs by customer type'!P77 -> 0 | R109: ='Inputs by customer type'!R77 -> 0 | T109: ='Inputs by customer type'!T77 -> 0
F110: Exceeded capacity | G110: kVA | K110: ='Inputs by customer type'!K78 -> 0 | L110: ='Inputs by customer type'!L78 -> 0 | M110: ='Inputs by customer type'!M78 -> 0 | N110: ='Inputs by customer type'!N78 -> 0 | O110: ='Inputs by customer type'!O78 -> 0 | P110: ='Inputs by customer type'!P78 -> 0 | R110: ='Inputs by customer type'!R78 -> 0 | T110: ='Inputs by customer type'!T78 -> 0
F111: Reactive power units | G111: MVArh | K111: ='Inputs by customer type'!K79 -> 0 | L111: ='Inputs by customer type'!L79 -> 0 | M111: ='Inputs by customer type'!M79 -> 0 | N111: ='Inputs by customer type'!N79 -> 0 | O111: ='Inputs by customer type'!O79 -> 0 | P111: ='Inputs by customer type'!P79 -> 0 | R111: ='Inputs by customer type'!R79 -> 0 | T111: ='Inputs by customer type'!T79 -> 0
E113: LDNO LV volume forecast - Residual Band 1 | I113: >
F114: Rate 1 units | G114: MWh | J114: ='Inputs by customer type'!J82 -> 23937.92249 | L114: ='Inputs by customer type'!L82 -> 633.4769156 | N114: ='Inputs by customer type'!N82 -> 107.844912 | O114: ='Inputs by customer type'!O82 -> 0 | P114: ='Inputs by customer type'!P82 -> 0 | Q114: ='Inputs by customer type'!Q82 -> 0
F115: Rate 2 units | G115: MWh | J115: ='Inputs by customer type'!J83 -> 64810.77388 | L115: ='Inputs by customer type'!L83 -> 2410.060318 | N115: ='Inputs by customer type'!N83 -> 393.7157205 | O115: ='Inputs by customer type'!O83 -> 0 | P115: ='Inputs by customer type'!P83 -> 0 | Q115: ='Inputs by customer type'!Q83 -> 0
F116: Rate 3 units | G116: MWh | J116: ='Inputs by customer type'!J84 -> 102698.9653 | L116: ='Inputs by customer type'!L84 -> 2889.456802 | N116: ='Inputs by customer type'!N84 -> 589.4667788 | O116: ='Inputs by customer type'!O84 -> 0 | P116: ='Inputs by customer type'!P84 -> 0 | Q116: ='Inputs by customer type'!Q84 -> 0
F117: MPANs | G117: MPANs | J117: ='Inputs by customer type'!J85 -> 66706.44536 | L117: ='Inputs by customer type'!L85 -> 1006.402648 | N117: ='Inputs by customer type'!N85 -> 16 | O117: ='Inputs by customer type'!O85 -> 0 | P117: ='Inputs by customer type'!P85 -> 0 | Q117: ='Inputs by customer type'!Q85 -> 0
F118: Import capacity | G118: kVA | J118: ='Inputs by customer type'!J86 -> 0 | L118: ='Inputs by customer type'!L86 -> 0 | N118: ='Inputs by customer type'!N86 -> 907.8425009 | O118: ='Inputs by customer type'!O86 -> 0 | P118: ='Inputs by customer type'!P86 -> 0 | Q118: ='Inputs by customer type'!Q86 -> 0
F119: Exceeded capacity | G119: kVA | J119: ='Inputs by customer type'!J87 -> 0 | L119: ='Inputs by customer type'!L87 -> 0 | N119: ='Inputs by customer type'!N87 -> 46.80996738 | O119: ='Inputs by customer type'!O87 -> 0 | P119: ='Inputs by customer type'!P87 -> 0 | Q119: ='Inputs by customer type'!Q87 -> 0
F120: Reactive power units | G120: MVArh | J120: ='Inputs by customer type'!J88 -> 0 | L120: ='Inputs by customer type'!L88 -> 0 | N120: ='Inputs by customer type'!N88 -> 138.2068425 | O120: ='Inputs by customer type'!O88 -> 0 | P120: ='Inputs by customer type'!P88 -> 0 | Q120: ='Inputs by customer type'!Q88 -> 0
E122: LDNO LV volume forecast - Residual Band 2 | I122: >
F123: Rate 1 units | G123: MWh | L123: ='Inputs by customer type'!L91 -> 0 | N123: ='Inputs by customer type'!N91 -> 1032.434653 | O123: ='Inputs by customer type'!O91 -> 0 | P123: ='Inputs by customer type'!P91 -> 0
F124: Rate 2 units | G124: MWh | L124: ='Inputs by customer type'!L92 -> 0 | N124: ='Inputs by customer type'!N92 -> 3537.039831 | O124: ='Inputs by customer type'!O92 -> 0 | P124: ='Inputs by customer type'!P92 -> 0
F125: Rate 3 units | G125: MWh | L125: ='Inputs by customer type'!L93 -> 0 | N125: ='Inputs by customer type'!N93 -> 4879.493148 | O125: ='Inputs by customer type'!O93 -> 0 | P125: ='Inputs by customer type'!P93 -> 0
F126: MPANs | G126: MPANs | L126: ='Inputs by customer type'!L94 -> 0 | N126: ='Inputs by customer type'!N94 -> 87 | O126: ='Inputs by customer type'!O94 -> 0 | P126: ='Inputs by customer type'!P94 -> 0
F127: Import capacity | G127: kVA | L127: ='Inputs by customer type'!L95 -> 0 | N127: ='Inputs by customer type'!N95 -> 10303.78227 | O127: ='Inputs by customer type'!O95 -> 0 | P127: ='Inputs by customer type'!P95 -> 0
F128: Exceeded capacity | G128: kVA | L128: ='Inputs by customer type'!L96 -> 0 | N128: ='Inputs by customer type'!N96 -> 63.69067538 | O128: ='Inputs by customer type'!O96 -> 0 | P128: ='Inputs by customer type'!P96 -> 0
F129: Reactive power units | G129: MVArh | L129: ='Inputs by customer type'!L97 -> 0 | N129: ='Inputs by customer type'!N97 -> 523.7604634 | O129: ='Inputs by customer type'!O97 -> 0 | P129: ='Inputs by customer type'!P97 -> 0
E131: LDNO LV volume forecast - Residual Band 3 | I131: >
F132: Rate 1 units | G132: MWh | L132: ='Inputs by customer type'!L100 -> 0 | N132: ='Inputs by customer type'!N100 -> 924.7980259 | O132: ='Inputs by customer type'!O100 -> 0 | P132: ='Inputs by customer type'!P100 -> 0
F133: Rate 2 units | G133: MWh | L133: ='Inputs by customer type'!L101 -> 0 | N133: ='Inputs by customer type'!N101 -> 3177.788945 | O133: ='Inputs by customer type'!O101 -> 0 | P133: ='Inputs by customer type'!P101 -> 0
F134: Rate 3 units | G134: MWh | L134: ='Inputs by customer type'!L102 -> 0 | N134: ='Inputs by customer type'!N102 -> 4106.840876 | O134: ='Inputs by customer type'!O102 -> 0 | P134: ='Inputs by customer type'!P102 -> 0
F135: MPANs | G135: MPANs | L135: ='Inputs by customer type'!L103 -> 0 | N135: ='Inputs by customer type'!N103 -> 64 | O135: ='Inputs by customer type'!O103 -> 0 | P135: ='Inputs by customer type'!P103 -> 0
F136: Import capacity | G136: kVA | L136: ='Inputs by customer type'!L104 -> 0 | N136: ='Inputs by customer type'!N104 -> 10319.16187 | O136: ='Inputs by customer type'!O104 -> 0 | P136: ='Inputs by customer type'!P104 -> 0
F137: Exceeded capacity | G137: kVA | L137: ='Inputs by customer type'!L105 -> 0 | N137: ='Inputs by customer type'!N105 -> 2.643125317 | O137: ='Inputs by customer type'!O105 -> 0 | P137: ='Inputs by customer type'!P105 -> 0
F138: Reactive power units | G138: MVArh | L138: ='Inputs by customer type'!L106 -> 0 | N138: ='Inputs by customer type'!N106 -> 736.0556946 | O138: ='Inputs by customer type'!O106 -> 0 | P138: ='Inputs by customer type'!P106 -> 0
E140: LDNO LV volume forecast - Residual Band 4 | I140: >
F141: Rate 1 units | G141: MWh | L141: ='Inputs by customer type'!L109 -> 0 | N141: ='Inputs by customer type'!N109 -> 533.8400326 | O141: ='Inputs by customer type'!O109 -> 0 | P141: ='Inputs by customer type'!P109 -> 0
F142: Rate 2 units | G142: MWh | L142: ='Inputs by customer type'!L110 -> 0 | N142: ='Inputs by customer type'!N110 -> 1599.196527 | O142: ='Inputs by customer type'!O110 -> 0 | P142: ='Inputs by customer type'!P110 -> 0
F143: Rate 3 units | G143: MWh | L143: ='Inputs by customer type'!L111 -> 0 | N143: ='Inputs by customer type'!N111 -> 2336.046881 | O143: ='Inputs by customer type'!O111 -> 0 | P143: ='Inputs by customer type'!P111 -> 0
F144: MPANs | G144: MPANs | L144: ='Inputs by customer type'!L112 -> 0 | N144: ='Inputs by customer type'!N112 -> 21 | O144: ='Inputs by customer type'!O112 -> 0 | P144: ='Inputs by customer type'!P112 -> 0
F145: Import capacity | G145: kVA | L145: ='Inputs by customer type'!L113 -> 0 | N145: ='Inputs by customer type'!N113 -> 8108.197934 | O145: ='Inputs by customer type'!O113 -> 0 | P145: ='Inputs by customer type'!P113 -> 0
F146: Exceeded capacity | G146: kVA | L146: ='Inputs by customer type'!L114 -> 0 | N146: ='Inputs by customer type'!N114 -> 0 | O146: ='Inputs by customer type'!O114 -> 0 | P146: ='Inputs by customer type'!P114 -> 0
F147: Reactive power units | G147: MVArh | L147: ='Inputs by customer type'!L115 -> 0 | N147: ='Inputs by customer type'!N115 -> 178.2657275 | O147: ='Inputs by customer type'!O115 -> 0 | P147: ='Inputs by customer type'!P115 -> 0
D149: Volumes for LNDO HV tariffs are imported from the inputs, separately for each residual band.
E151: LDNO HV volume forecast - No Residual | I151: >
F152: Rate 1 units | G152: MWh | K152: ='Inputs by customer type'!K120 -> 0 | L152: ='Inputs by customer type'!L120 -> 0 | M152: ='Inputs by customer type'!M120 -> 0 | N152: ='Inputs by customer type'!N120 -> 0 | O152: ='Inputs by customer type'!O120 -> 0 | P152: ='Inputs by customer type'!P120 -> 0 | R152: ='Inputs by customer type'!R120 -> 913.8178873 | S152: ='Inputs by customer type'!S120 -> 0 | T152: ='Inputs by customer type'!T120 -> 0 | U152: ='Inputs by customer type'!U120 -> 0 | V152: ='Inputs by customer type'!V120 -> 0 | W152: ='Inputs by customer type'!W120 -> 0 | X152: ='Inputs by customer type'!X120 -> 0 | Y152: ='Inputs by customer type'!Y120 -> 0
F153: Rate 2 units | G153: MWh | K153: ='Inputs by customer type'!K121 -> 0 | L153: ='Inputs by customer type'!L121 -> 0 | M153: ='Inputs by customer type'!M121 -> 0 | N153: ='Inputs by customer type'!N121 -> 0 | O153: ='Inputs by customer type'!O121 -> 0 | P153: ='Inputs by customer type'!P121 -> 0 | R153: ='Inputs by customer type'!R121 -> 4896.80443 | S153: ='Inputs by customer type'!S121 -> 0 | T153: ='Inputs by customer type'!T121 -> 0 | U153: ='Inputs by customer type'!U121 -> 0 | V153: ='Inputs by customer type'!V121 -> 0 | W153: ='Inputs by customer type'!W121 -> 0 | X153: ='Inputs by customer type'!X121 -> 0 | Y153: ='Inputs by customer type'!Y121 -> 0
F154: Rate 3 units | G154: MWh | K154: ='Inputs by customer type'!K122 -> 0 | L154: ='Inputs by customer type'!L122 -> 0 | M154: ='Inputs by customer type'!M122 -> 0 | N154: ='Inputs by customer type'!N122 -> 0 | O154: ='Inputs by customer type'!O122 -> 0 | P154: ='Inputs by customer type'!P122 -> 0 | R154: ='Inputs by customer type'!R122 -> 2845.541654 | S154: ='Inputs by customer type'!S122 -> 0 | T154: ='Inputs by customer type'!T122 -> 0 | U154: ='Inputs by customer type'!U122 -> 0 | V154: ='Inputs by customer type'!V122 -> 0 | W154: ='Inputs by customer type'!W122 -> 0 | X154: ='Inputs by customer type'!X122 -> 0 | Y154: ='Inputs by customer type'!Y122 -> 0
F155: MPANs | G155: MPANs | K155: ='Inputs by customer type'!K123 -> 0 | L155: ='Inputs by customer type'!L123 -> 0 | M155: ='Inputs by customer type'!M123 -> 0 | N155: ='Inputs by customer type'!N123 -> 0 | O155: ='Inputs by customer type'!O123 -> 0 | P155: ='Inputs by customer type'!P123 -> 0 | R155: ='Inputs by customer type'!R123 -> 827.9485388 | S155: ='Inputs by customer type'!S123 -> 0 | T155: ='Inputs by customer type'!T123 -> 0 | U155: ='Inputs by customer type'!U123 -> 0 | V155: ='Inputs by customer type'!V123 -> 0 | W155: ='Inputs by customer type'!W123 -> 0 | X155: ='Inputs by customer type'!X123 -> 0 | Y155: ='Inputs by customer type'!Y123 -> 0
F156: Import capacity | G156: kVA | K156: ='Inputs by customer type'!K124 -> 0 | L156: ='Inputs by customer type'!L124 -> 0 | M156: ='Inputs by customer type'!M124 -> 0 | N156: ='Inputs by customer type'!N124 -> 0 | O156: ='Inputs by customer type'!O124 -> 0 | P156: ='Inputs by customer type'!P124 -> 0 | R156: ='Inputs by customer type'!R124 -> 0 | S156: ='Inputs by customer type'!S124 -> 0 | T156: ='Inputs by customer type'!T124 -> 0 | U156: ='Inputs by customer type'!U124 -> 0 | V156: ='Inputs by customer type'!V124 -> 0 | W156: ='Inputs by customer type'!W124 -> 0 | X156: ='Inputs by customer type'!X124 -> 0 | Y156: ='Inputs by customer type'!Y124 -> 0
F157: Exceeded capacity | G157: kVA | K157: ='Inputs by customer type'!K125 -> 0 | L157: ='Inputs by customer type'!L125 -> 0 | M157: ='Inputs by customer type'!M125 -> 0 | N157: ='Inputs by customer type'!N125 -> 0 | O157: ='Inputs by customer type'!O125 -> 0 | P157: ='Inputs by customer type'!P125 -> 0 | R157: ='Inputs by customer type'!R125 -> 0 | S157: ='Inputs by customer type'!S125 -> 0 | T157: ='Inputs by customer type'!T125 -> 0 | U157: ='Inputs by customer type'!U125 -> 0 | V157: ='Inputs by customer type'!V125 -> 0 | W157: ='Inputs by customer type'!W125 -> 0 | X157: ='Inputs by customer type'!X125 -> 0 | Y157: ='Inputs by customer type'!Y125 -> 0
F158: Reactive power units | G158: MVArh | K158: ='Inputs by customer type'!K126 -> 0 | L158: ='Inputs by customer type'!L126 -> 0 | M158: ='Inputs by customer type'!M126 -> 0 | N158: ='Inputs by customer type'!N126 -> 0 | O158: ='Inputs by customer type'!O126 -> 0 | P158: ='Inputs by customer type'!P126 -> 0 | R158: ='Inputs by customer type'!R126 -> 0 | S158: ='Inputs by customer type'!S126 -> 0 | T158: ='Inputs by customer type'!T126 -> 0 | U158: ='Inputs by customer type'!U126 -> 0 | V158: ='Inputs by customer type'!V126 -> 0 | W158: ='Inputs by customer type'!W126 -> 0 | X158: ='Inputs by customer type'!X126 -> 0 | Y158: ='Inputs by customer type'!Y126 -> 0
E160: LDNO HV volume forecast - Residual Band 1 | I160: >
F161: Rate 1 units | G161: MWh | J161: ='Inputs by customer type'!J129 -> 30617.5603 | L161: ='Inputs by customer type'!L129 -> 601.143302 | N161: ='Inputs by customer type'!N129 -> 1009.852655 | O161: ='Inputs by customer type'!O129 -> 0.09999683386 | P161: ='Inputs by customer type'!P129 -> 289.1756712 | Q161: ='Inputs by customer type'!Q129 -> 0
F162: Rate 2 units | G162: MWh | J162: ='Inputs by customer type'!J130 -> 82870.64272 | L162: ='Inputs by customer type'!L130 -> 2284.217913 | N162: ='Inputs by customer type'!N130 -> 3324.973382 | O162: ='Inputs by customer type'!O130 -> 0.3740437314 | P162: ='Inputs by customer type'!P130 -> 906.7657614 | Q162: ='Inputs by customer type'!Q130 -> 0
F163: Rate 3 units | G163: MWh | J163: ='Inputs by customer type'!J131 -> 132925.3995 | L163: ='Inputs by customer type'!L131 -> 2772.968005 | N163: ='Inputs by customer type'!N131 -> 5290.941334 | O163: ='Inputs by customer type'!O131 -> 0.9444623759 | P163: ='Inputs by customer type'!P131 -> 2099.790722 | Q163: ='Inputs by customer type'!Q131 -> 0
F164: MPANs | G164: MPANs | J164: ='Inputs by customer type'!J132 -> 81370.45624 | L164: ='Inputs by customer type'!L132 -> 975.2821918 | N164: ='Inputs by customer type'!N132 -> 128 | O164: ='Inputs by customer type'!O132 -> 2 | P164: ='Inputs by customer type'!P132 -> 5 | Q164: ='Inputs by customer type'!Q132 -> 0
F165: Import capacity | G165: kVA | J165: ='Inputs by customer type'!J133 -> 0 | L165: ='Inputs by customer type'!L133 -> 0 | N165: ='Inputs by customer type'!N133 -> 7554.413629 | O165: ='Inputs by customer type'!O133 -> 140 | P165: ='Inputs by customer type'!P133 -> 784 | Q165: ='Inputs by customer type'!Q133 -> 0
F166: Exceeded capacity | G166: kVA | J166: ='Inputs by customer type'!J134 -> 0 | L166: ='Inputs by customer type'!L134 -> 0 | N166: ='Inputs by customer type'!N134 -> 186.1191098 | O166: ='Inputs by customer type'!O134 -> 0 | P166: ='Inputs by customer type'!P134 -> 82.72328767 | Q166: ='Inputs by customer type'!Q134 -> 0
F167: Reactive power units | G167: MVArh | J167: ='Inputs by customer type'!J135 -> 0 | L167: ='Inputs by customer type'!L135 -> 0 | N167: ='Inputs by customer type'!N135 -> 792.6179343 | O167: ='Inputs by customer type'!O135 -> 0.177 | P167: ='Inputs by customer type'!P135 -> 111.078 | Q167: ='Inputs by customer type'!Q135 -> 0
E169: LDNO HV volume forecast - Residual Band 2 | I169: >
F170: Rate 1 units | G170: MWh | L170: ='Inputs by customer type'!L138 -> 0 | N170: ='Inputs by customer type'!N138 -> 2553.383157 | O170: ='Inputs by customer type'!O138 -> 103.4649086 | P170: ='Inputs by customer type'!P138 -> 664.5995764
F171: Rate 2 units | G171: MWh | L171: ='Inputs by customer type'!L139 -> 0 | N171: ='Inputs by customer type'!N139 -> 8372.827736 | O171: ='Inputs by customer type'!O139 -> 362.5424755 | P171: ='Inputs by customer type'!P139 -> 2336.787928
F172: Rate 3 units | G172: MWh | L172: ='Inputs by customer type'!L140 -> 0 | N172: ='Inputs by customer type'!N140 -> 12374.32699 | O172: ='Inputs by customer type'!O140 -> 606.1995552 | P172: ='Inputs by customer type'!P140 -> 3984.101922
F173: MPANs | G173: MPANs | L173: ='Inputs by customer type'!L141 -> 0 | N173: ='Inputs by customer type'!N141 -> 215.9753425 | O173: ='Inputs by customer type'!O141 -> 7 | P173: ='Inputs by customer type'!P141 -> 11
F174: Import capacity | G174: kVA | L174: ='Inputs by customer type'!L142 -> 0 | N174: ='Inputs by customer type'!N142 -> 24802.16204 | O174: ='Inputs by customer type'!O142 -> 670.3047945 | P174: ='Inputs by customer type'!P142 -> 6399.672181
F175: Exceeded capacity | G175: kVA | L175: ='Inputs by customer type'!L143 -> 0 | N175: ='Inputs by customer type'!N143 -> 2.953278476 | O175: ='Inputs by customer type'!O143 -> 16.21575342 | P175: ='Inputs by customer type'!P143 -> 0
F176: Reactive power units | G176: MVArh | L176: ='Inputs by customer type'!L144 -> 0 | N176: ='Inputs by customer type'!N144 -> 1762.13325 | O176: ='Inputs by customer type'!O144 -> 24.7 | P176: ='Inputs by customer type'!P144 -> 222.8380292
E178: LDNO HV volume forecast - Residual Band 3 | I178: >
F179: Rate 1 units | G179: MWh | L179: ='Inputs by customer type'!L147 -> 0 | N179: ='Inputs by customer type'!N147 -> 2403.758923 | O179: ='Inputs by customer type'!O147 -> 173.1202313 | P179: ='Inputs by customer type'!P147 -> 599.3784683
F180: Rate 2 units | G180: MWh | L180: ='Inputs by customer type'!L148 -> 0 | N180: ='Inputs by customer type'!N148 -> 7993.336366 | O180: ='Inputs by customer type'!O148 -> 525.2436638 | P180: ='Inputs by customer type'!P148 -> 2025.08013
F181: Rate 3 units | G181: MWh | L181: ='Inputs by customer type'!L149 -> 0 | N181: ='Inputs by customer type'!N149 -> 12709.59324 | O181: ='Inputs by customer type'!O149 -> 848.4812479 | P181: ='Inputs by customer type'!P149 -> 3383.133567
F182: MPANs | G182: MPANs | L182: ='Inputs by customer type'!L150 -> 0 | N182: ='Inputs by customer type'!N150 -> 119 | O182: ='Inputs by customer type'!O150 -> 10 | P182: ='Inputs by customer type'!P150 -> 6
F183: Import capacity | G183: kVA | L183: ='Inputs by customer type'!L151 -> 0 | N183: ='Inputs by customer type'!N151 -> 21540.35864 | O183: ='Inputs by customer type'!O151 -> 2067.426152 | P183: ='Inputs by customer type'!P151 -> 6531.119962
F184: Exceeded capacity | G184: kVA | L184: ='Inputs by customer type'!L152 -> 0 | N184: ='Inputs by customer type'!N152 -> 0.1684474886 | O184: ='Inputs by customer type'!O152 -> 0 | P184: ='Inputs by customer type'!P152 -> 0
F185: Reactive power units | G185: MVArh | L185: ='Inputs by customer type'!L153 -> 0 | N185: ='Inputs by customer type'!N153 -> 1635.058116 | O185: ='Inputs by customer type'!O153 -> 34.73872727 | P185: ='Inputs by customer type'!P153 -> 9.110420455
E187: LDNO HV volume forecast - Residual Band 4 | I187: >
F188: Rate 1 units | G188: MWh | L188: ='Inputs by customer type'!L156 -> 0 | N188: ='Inputs by customer type'!N156 -> 9964.602475 | O188: ='Inputs by customer type'!O156 -> 2165.302439 | P188: ='Inputs by customer type'!P156 -> 2210.185119
F189: Rate 2 units | G189: MWh | L189: ='Inputs by customer type'!L157 -> 0 | N189: ='Inputs by customer type'!N157 -> 34596.81386 | O189: ='Inputs by customer type'!O157 -> 7714.980694 | P189: ='Inputs by customer type'!P157 -> 6680.976311
F190: Rate 3 units | G190: MWh | L190: ='Inputs by customer type'!L158 -> 0 | N190: ='Inputs by customer type'!N158 -> 49899.61684 | O190: ='Inputs by customer type'!O158 -> 10664.55255 | P190: ='Inputs by customer type'!P158 -> 14003.94766
F191: MPANs | G191: MPANs | L191: ='Inputs by customer type'!L159 -> 0 | N191: ='Inputs by customer type'!N159 -> 215.169863 | O191: ='Inputs by customer type'!O159 -> 37 | P191: ='Inputs by customer type'!P159 -> 9
F192: Import capacity | G192: kVA | L192: ='Inputs by customer type'!L160 -> 0 | N192: ='Inputs by customer type'!N160 -> 104082.6682 | O192: ='Inputs by customer type'!O160 -> 22066.23509 | P192: ='Inputs by customer type'!P160 -> 17212.34981
F193: Exceeded capacity | G193: kVA | L193: ='Inputs by customer type'!L161 -> 0 | N193: ='Inputs by customer type'!N161 -> 0 | O193: ='Inputs by customer type'!O161 -> 0 | P193: ='Inputs by customer type'!P161 -> 0
F194: Reactive power units | G194: MVArh | L194: ='Inputs by customer type'!L162 -> 0 | N194: ='Inputs by customer type'!N162 -> 4148.951273 | O194: ='Inputs by customer type'!O162 -> 1080.592886 | P194: ='Inputs by customer type'!P162 -> 288.0618409
D196: Total volumes, aggregated across all residual bands, are then calculated.
E198: All the way volume forecast | I198: > | AA198: Paragraph 52
F199: Rate 1 units | G199: MWh | J199: =SUM( J67, J76, J85, J94, J58 ) -> 836398.5198 | K199: 31.48014544 | L199: 231083.2744 | M199: 45.69652286 | N199: 206839.5949 | O199: 106959.9782 | P199: 378999.1007 | Q199: 8856.380053 | R199: 7180.233994 | S199: 0 | T199: 3390.05061 | U199: 0 | V199: 586.6321703 | W199: 0 | X199: 149365.3565 | Y199: 0
F200: Rate 2 units | G200: MWh | J200: 2273538.296 | K200: 484.2888501 | L200: 876960.3055 | M200: 732.2906452 | N200: 754982.1239 | O200: 399119.4268 | P200: 1291341.214 | Q200: 31938.37497 | R200: 53586.76191 | S200: 0 | T200: 12108.75868 | U200: 0 | V200: 2224.791254 | W200: 0 | X200: 337523.8333 | Y200: 0
F201: Rate 3 units | G201: MWh | J201: 3843228.747 | K201: 4417.374857 | L201: 1164749.744 | M201: 13318.92266 | N201: 1002629.262 | O201: 563695.2791 | P201: 2187821.423 | Q201: 145326.4297 | R201: 28245.82021 | S201: 0 | T201: 19639.00584 | U201: 0 | V201: 3543.987489 | W201: 0 | X201: 439423.3169 | Y201: 0
F202: MPANs | G202: MPANs | J202: 2217420.014 | K202: 1936.769863 | L202: 159195.8795 | M202: 2536.139726 | N202: 13100.12046 | O202: 2191.494429 | P202: 2100.861005 | Q202: 640.1917808 | R202: 15770.66301 | S202: 0 | T202: 334.1982648 | U202: 0 | V202: 45 | W202: 0 | X202: 316.9534247 | Y202: 0
F203: Import capacity | G203: kVA | N203: 1413484.916 | O203: 698707.1426 | P203: 1829820.623
F204: Exceeded capacity | G204: kVA | N204: 24040.9852 | O204: 7317.416159 | P204: 18447.82663
F205: Reactive power units | G205: MVArh | N205: 161306.6203 | O205: 90435.97266 | P205: 304770.862 | T205: =SUM( T73, T82, T91, T100, T64 ) -> 3928.356911 | V205: =SUM( V73, V82, V91, V100, V64 ) -> 553.571164 | X205: =SUM( X73, X82, X91, X100, X64 ) -> 15927.70188
E207: LDNO LV volume forecast | I207: > | AA207: Paragraph 52
F208: Rate 1 units | G208: MWh | J208: =SUM( J114, J123, J132, J141, J105 ) -> 23937.92249 | K208: 0 | L208: 633.4769156 | M208: 0 | N208: 2598.917624 | Q208: =SUM( Q114, Q123, Q132, Q141, Q105 ) -> 0 | R208: 570.0841327 | T208: =SUM( T114, T123, T132, T141, T105 ) -> 0
F209: Rate 2 units | G209: MWh | J209: 64810.77388 | K209: 0 | L209: 2410.060318 | M209: 0 | N209: 8707.741024 | Q209: 0 | R209: 3053.413268 | T209: =SUM( T115, T124, T133, T142, T106 ) -> 0
F210: Rate 3 units | G210: MWh | J210: 102698.9653 | K210: 0 | L210: 2889.456802 | M210: 0 | N210: 11911.84768 | Q210: 0 | R210: 1736.973913 | T210: =SUM( T116, T125, T134, T143, T107 ) -> 0
F211: MPANs | G211: MPANs | J211: 66706.44536 | K211: 0 | L211: 1006.402648 | M211: 0 | N211: 188 | Q211: 0 | R211: 456.0698174 | T211: =SUM( T117, T126, T135, T144, T108 ) -> 0
F212: Import capacity | G212: kVA | N212: =SUM( N118, N127, N136, N145, N109 ) -> 29638.98457
F213: Exceeded capacity | G213: kVA | N213: =SUM( N119, N128, N137, N146, N110 ) -> 113.1437681
F214: Reactive power units | G214: MVArh | N214: =SUM( N120, N129, N138, N147, N111 ) -> 1576.288728 | T214: =SUM( T120, T129, T138, T147, T111 ) -> 0
E216: LDNO HV volume forecast | I216: > | AA216: Paragraph 52
F217: Rate 1 units | G217: MWh | J217: =SUM( J161, J170, J179, J188, J152 ) -> 30617.5603 | K217: 0 | L217: 601.143302 | M217: 0 | N217: 15931.59721 | O217: 2441.987576 | P217: 3763.338835 | Q217: 0 | R217: 913.8178873 | S217: 0 | T217: 0 | V217: =SUM( V161, V170, V179, V188, V152 ) -> 0 | X217: =SUM( X161, X170, X179, X188, X152 ) -> 0
F218: Rate 2 units | G218: MWh | J218: 82870.64272 | K218: 0 | L218: 2284.217913 | M218: 0 | N218: 54287.95134 | O218: 8603.140877 | P218: 11949.61013 | Q218: 0 | R218: 4896.80443 | S218: 0 | T218: 0 | V218: =SUM( V162, V171, V180, V189, V153 ) -> 0 | X218: =SUM( X162, X171, X180, X189, X153 ) -> 0
F219: Rate 3 units | G219: MWh | J219: 132925.3995 | K219: 0 | L219: 2772.968005 | M219: 0 | N219: 80274.4784 | O219: 12120.17782 | P219: 23470.97387 | Q219: 0 | R219: 2845.541654 | S219: 0 | T219: 0 | V219: =SUM( V163, V172, V181, V190, V154 ) -> 0 | X219: =SUM( X163, X172, X181, X190, X154 ) -> 0
F220: MPANs | G220: MPANs | J220: 81370.45624 | K220: 0 | L220: 975.2821918 | M220: 0 | N220: 678.1452055 | O220: 56 | P220: 31 | Q220: 0 | R220: 827.9485388 | S220: 0 | T220: 0 | V220: =SUM( V164, V173, V182, V191, V155 ) -> 0 | X220: =SUM( X164, X173, X182, X191, X155 ) -> 0
F221: Import capacity | G221: kVA | N221: 157979.6025 | O221: 24943.96604 | P221: 30927.14196
F222: Exceeded capacity | G222: kVA | N222: 189.2408358 | O222: 16.21575342 | P222: 82.72328767
F223: Reactive power units | G223: MVArh | N223: 8338.760573 | O223: 1140.208613 | P223: 631.0882905 | T223: =SUM( T167, T176, T185, T194, T158 ) -> 0 | V223: =SUM( V167, V176, V185, V194, V158 ) -> 0 | X223: =SUM( X167, X176, X185, X194, X158 ) -> 0
C225: =INDEX('Version control'!$H$37:$H$63,MATCH($A$1,'Version control'!$F$37:$F$63,0),1)&"-C: Volume discounting" -> Section 507-C: Volume discounting
C227: Applies LDNO discounts and aggregates with volumes from all the way customers
E229: Unit rate 1 | I229: > | AA229: Paragraph 53
F231: All the way customers | G231: MWh | J231: =J$199 -> 836398.5198 | K231: 31.48014544 | L231: 231083.2744 | M231: 45.69652286 | N231: 206839.5949 | O231: 106959.9782 | P231: 378999.1007 | Q231: 8856.380053 | R231: 7180.233994 | S231: 0 | T231: 3390.05061 | U231: 0 | V231: 586.6321703 | W231: 0 | X231: 149365.3565 | Y231: 0
F232: LDNO LV | G232: MWh | J232: =J$208 -> 23937.92249 | K232: 0 | L232: 633.4769156 | M232: 0 | N232: 2598.917624 | O232: 0 | P232: 0 | Q232: 0 | R232: 570.0841327 | S232: 0 | T232: 0 | U232: 0 | V232: 0 | W232: 0 | X232: 0 | Y232: 0
F233: LDNO HV | G233: MWh | J233: =J$217 -> 30617.5603 | K233: 0 | L233: 601.143302 | M233: 0 | N233: 15931.59721 | O233: 2441.987576 | P233: 3763.338835 | Q233: 0 | R233: 913.8178873 | S233: 0 | T233: 0 | U233: 0 | V233: 0 | W233: 0 | X233: 0 | Y233: 0
F234: LDNO LV discount rate applied | G234: % | J234: =IF(J$39, J$45, J$34) -> 0.3619206701 | K234: =IF(K$39, K$45, K$34) -> 0.3619206701 | L234: 0.3619206701 | M234: 0.3619206701 | N234: 0.3619206701 | O234: 0 | P234: 0 | Q234: 0.3619206701 | R234: 0 | S234: 0 | T234: 0 | U234: 0 | V234: 0 | W234: 0 | X234: 0 | Y234: 0
F235: LDNO HV discount rate applied | G235: % | J235: =IF(J$39, J$45, J$35) -> 0.5503573612 | K235: =IF(K$39, K$45, K$35) -> 0.5503573612 | L235: 0.5503573612 | M235: 0.5503573612 | N235: 0.5503573612 | O235: 0.2777160593 | P235: 0.1453428393 | Q235: 0.5503573612 | R235: 0 | S235: 0 | T235: 0 | U235: 0 | V235: 0 | W235: 0 | X235: 0 | Y235: 0
F236: LDNO LV, discounted | G236: MWh | J236: =J232 * (1 - J234) -> 15274.29354 | K236: 0 | L236: 404.2085258 | M236: 0 | N236: 1658.315616 | O236: 0 | P236: 0 | Q236: 0 | R236: 570.0841327 | S236: 0 | T236: 0 | U236: 0 | V236: 0 | W236: 0 | X236: 0 | Y236: 0
F237: LDNO HV, discounted | G237: MWh | J237: 13766.96061 | K237: 0 | L237: 270.2996606 | M237: 0 | N237: 7163.525411 | O237: 1763.80841 | P237: 3216.364483 | Q237: 0 | R237: 913.8178873 | S237: 0 | T237: 0 | U237: 0 | V237: 0 | W237: 0 | X237: 0 | Y237: 0
... 403 more rows

Sheet Pseudo-load coefficients
A1: =MID(CELL("filename",A1),FIND("]",CELL("filename",A1))+1,255) -> Pseudo-load coefficients
A2: =Cover!D21&" - "&Cover!D23 -> Electricity North West Limited - v1.0
A3: =Cover!D2&" - "&Cover!D8&" v"&Cover!D10&" - "&Cover!D19 -> ARP model - Release for charge setting v8 - 2025/26
A4: =H306 & IF(H306 = 1, " issue", " issues") &" identified in checks on this sheet" -> 0 issues identified in checks on this sheet
B5: Click here to return to model map | G5: Units | H5: Constants | J5: Domestic Aggregated or CT | K5: Domestic Aggregated (Related MPAN) | L5: Non-Domestic Aggregated or CT | M5: Non-Domestic Aggregated (Related MPAN) | N5: LV Site Specific | O5: LV Sub Site Specific | P5: HV Site Specific | Q5: Unmetered Supplies | R5: LV Generation Aggregated | S5: LV Sub Generation Aggregated | T5: LV Generation Site Specific | U5: LV Generation Site Specific no RP Charge | V5: LV Sub Generation Site Specific | W5: LV Sub Generation Site Specific no RP Charge | X5: HV Generation Site Specific | Y5: HV Generation Site Specific no RP Charge | AA5: Legal text reference
B7: Description
C9: This sheet calculates the pseudo load coefficients used in the calculation of unit rates and system simultaneous peak demand.
C10: The pseudo load coefficient is specified by customer category, network level and unit rate.
C11: The calculations in this sheet follow the steps set out in Paragraph 70.
B13: Step 1: Ratio of coincidence to load factor assuming units evenly spread within time bands, and peak falls in Red period
C15: This section first calculates the split of MWh by unit rate, aggregating "related MPAN" and "Aggregated" tariffs. | I15: > | AA15: Paragraphs 52A & 70 (c) i
C16: The last part of this section then calculates the ratio of coincidence to load factor based on a simplified load profile.
C18: =INDEX('Version control'!$H$37:$H$63,MATCH($A$1,'Version control'!$F$37:$F$63,0),1)&"-A: Flags and hours in timebands" -> Section 508-A: Flags and hours in timebands
E20: Flag for unmetered customers | G20: TRUE/FALSE | J20: ='Fixed inputs'!J127 -> FALSE | K20: ='Fixed inputs'!K127 -> FALSE | L20: ='Fixed inputs'!L127 -> FALSE | M20: ='Fixed inputs'!M127 -> FALSE | N20: ='Fixed inputs'!N127 -> FALSE | O20: ='Fixed inputs'!O127 -> FALSE | P20: ='Fixed inputs'!P127 -> FALSE | Q20: ='Fixed inputs'!Q127 -> TRUE | R20: ='Fixed inputs'!R127 -> FALSE | S20: ='Fixed inputs'!S127 -> FALSE | T20: ='Fixed inputs'!T127 -> FALSE | U20: ='Fixed inputs'!U127 -> FALSE | V20: ='Fixed inputs'!V127 -> FALSE | W20: ='Fixed inputs'!W127 -> FALSE | X20: ='Fixed inputs'!X127 -> FALSE | Y20: ='Fixed inputs'!Y127 -> FALSE
E22: Hours per timeband | I22: > | AA22: Paragraph 40
E23: UMS customers use Black & Yellow timebands, other customers use Red & Amber
F24: Red or Black | G24: hours | J24: =IF(J$20, 'General inputs'!$H19, 'General inputs'!$H24) -> 783 | K24: =IF(K$20, 'General inputs'!$H19, 'General inputs'!$H24) -> 783 | L24: =IF(L$20, 'General inputs'!$H19, 'General inputs'!$H24) -> 783 | M24: =IF(M$20, 'General inputs'!$H19, 'General inputs'!$H24) -> 783 | N24: =IF(N$20, 'General inputs'!$H19, 'General inputs'!$H24) -> 783 | O24: =IF(O$20, 'General inputs'!$H19, 'General inputs'!$H24) -> 783 | P24: =IF(P$20, 'General inputs'!$H19, 'General inputs'!$H24) -> 783 | Q24: =IF(Q$20, 'General inputs'!$H19, 'General inputs'!$H24) -> 255 | R24: =IF(R$20, 'General inputs'!$H19, 'General inputs'!$H24) -> 783 | S24: =IF(S$20, 'General inputs'!$H19, 'General inputs'!$H24) -> 783 | T24: =IF(T$20, 'General inputs'!$H19, 'General inputs'!$H24) -> 783 | U24: =IF(U$20, 'General inputs'!$H19, 'General inputs'!$H24) -> 783 | V24: =IF(V$20, 'General inputs'!$H19, 'General inputs'!$H24) -> 783 | W24: =IF(W$20, 'General inputs'!$H19, 'General inputs'!$H24) -> 783 | X24: =IF(X$20, 'General inputs'!$H19, 'General inputs'!$H24) -> 783 | Y24: =IF(Y$20, 'General inputs'!$H19, 'General inputs'!$H24) -> 783
F25: Amber or Yellow | G25: hours | J25: =IF(J$20, 'General inputs'!$H20, 'General inputs'!$H25) -> 2530.5 | K25: =IF(K$20, 'General inputs'!$H20, 'General inputs'!$H25) -> 2530.5 | L25: =IF(L$20, 'General inputs'!$H20, 'General inputs'!$H25) -> 2530.5 | M25: =IF(M$20, 'General inputs'!$H20, 'General inputs'!$H25) -> 2530.5 | N25: =IF(N$20, 'General inputs'!$H20, 'General inputs'!$H25) -> 2530.5 | O25: =IF(O$20, 'General inputs'!$H20, 'General inputs'!$H25) -> 2530.5 | P25: =IF(P$20, 'General inputs'!$H20, 'General inputs'!$H25) -> 2530.5 | Q25: =IF(Q$20, 'General inputs'!$H20, 'General inputs'!$H25) -> 3058.5 | R25: =IF(R$20, 'General inputs'!$H20, 'General inputs'!$H25) -> 2530.5 | S25: =IF(S$20, 'General inputs'!$H20, 'General inputs'!$H25) -> 2530.5 | T25: =IF(T$20, 'General inputs'!$H20, 'General inputs'!$H25) -> 2530.5 | U25: =IF(U$20, 'General inputs'!$H20, 'General inputs'!$H25) -> 2530.5 | V25: =IF(V$20, 'General inputs'!$H20, 'General inputs'!$H25) -> 2530.5 | W25: =IF(W$20, 'General inputs'!$H20, 'General inputs'!$H25) -> 2530.5 | X25: =IF(X$20, 'General inputs'!$H20, 'General inputs'!$H25) -> 2530.5 | Y25: =IF(Y$20, 'General inputs'!$H20, 'General inputs'!$H25) -> 2530.5
F26: Green | G26: hours | J26: =IF(J$20, 'General inputs'!$H21, 'General inputs'!$H26) -> 5446.5 | K26: =IF(K$20, 'General inputs'!$H21, 'General inputs'!$H26) -> 5446.5 | L26: =IF(L$20, 'General inputs'!$H21, 'General inputs'!$H26) -> 5446.5 | M26: =IF(M$20, 'General inputs'!$H21, 'General inputs'!$H26) -> 5446.5 | N26: =IF(N$20, 'General inputs'!$H21, 'General inputs'!$H26) -> 5446.5 | O26: =IF(O$20, 'General inputs'!$H21, 'General inputs'!$H26) -> 5446.5 | P26: =IF(P$20, 'General inputs'!$H21, 'General inputs'!$H26) -> 5446.5 | Q26: =IF(Q$20, 'General inputs'!$H21, 'General inputs'!$H26) -> 5446.5 | R26: =IF(R$20, 'General inputs'!$H21, 'General inputs'!$H26) -> 5446.5 | S26: =IF(S$20, 'General inputs'!$H21, 'General inputs'!$H26) -> 5446.5 | T26: =IF(T$20, 'General inputs'!$H21, 'General inputs'!$H26) -> 5446.5 | U26: =IF(U$20, 'General inputs'!$H21, 'General inputs'!$H26) -> 5446.5 | V26: =IF(V$20, 'General inputs'!$H21, 'General inputs'!$H26) -> 5446.5 | W26: =IF(W$20, 'General inputs'!$H21, 'General inputs'!$H26) -> 5446.5 | X26: =IF(X$20, 'General inputs'!$H21, 'General inputs'!$H26) -> 5446.5 | Y26: =IF(Y$20, 'General inputs'!$H21, 'General inputs'!$H26) -> 5446.5
C28: =INDEX('Version control'!$H$37:$H$63,MATCH($A$1,'Version control'!$F$37:$F$63,0),1)&"-B: Average load by timeband" -> Section 508-B: Average load by timeband
E30: Split of units by time pattern regime
